Workbook

Sheet Guide
A1: Guide
A3: Contents
B4: =HYPERLINK("#" & CELL("address", A15), A15) -> User Guide
C5: =HYPERLINK("#" & CELL("address", B17), B17) -> Overview
C6: =HYPERLINK("#" & CELL("address", B27), B27) -> Sheet descriptions
C7: =HYPERLINK("#" & CELL("address", B43), B43) -> Sheet structure diagram
C8: =HYPERLINK("#" & CELL("address", B66), B66) -> User Summary
C9: =HYPERLINK("#" & CELL("address", B83), B83) -> Navigation tips
B10: =HYPERLINK("#" & CELL("address", A106), A106) -> Developer Guide
C11: =HYPERLINK("#" & CELL("address", B108), B108) -> VBA description
C12: =HYPERLINK("#" & CELL("address", B115), B115) -> Formatting and colour coding
A15: User Guide
B17: Overview
D19: Name | E19: The MacKay Carbon Calculator
D20: Purpose | E20: To provide a model of the UK energy system that allows you to explore pathways to decarbonisation, including net zero by 2050 and on to 2100.
D21: Owner / Contact | E21: BEIS Central Modelling Team
D22: Version number | E22: 198
D23: Link to model's QA log | E23: Internal document
D24: Link to model's assumptions log | E24: Assumptions Log Contained within model
B27: Sheet descriptions
D28: Updated | E28: V198.0
D30: Sheet | E30: Category | F30: Description
D31: =HYPERLINK("#" & CELL("address", Guide!$A$1), Guide!$A$1) -> Guide | E31: Documentation | F31: User and developer guidance
D32: =HYPERLINK("#" & CELL("address", Control!$A$1), Control!$A$1) -> Control | E32: User Control | F32: User lever and unit selections. Basic chart outputs.
D33: =HYPERLINK("#" & CELL("address", OnePager!$A$1), OnePager!$A$1) -> OnePager | E33: Documentation | F33: This sheet contains equivalent graphs, tables and priority flow diagrams to those presented in the model one pagers.
D34: =HYPERLINK("#" & CELL("address", WebOutputs!$A$1), WebOutputs!$A$1) -> Web Outputs | E34: Outputs | F34: Outputs to populate the graphs displayed on the webtool.
D35: =HYPERLINK("#" & CELL("address", Results!$A$1), Results!$A$1) -> Results | E35: Outputs | F35: Model output extraction, processing and visualisation.
D36: =HYPERLINK("#" & CELL("address", EnergyBalance!$A$1), EnergyBalance!$A$1) -> EnergyBalance | E36: Outputs | F36: Full energy and emissions balance for a single year
D37: =HYPERLINK("#" & CELL("address", Model!$A$1), Model!$A$1) -> Model | E37: Transformations & Assumptions | F37: Model inputs and transformations including full assumptions log
D38: =HYPERLINK("#" & CELL("address", FullTimeSeries!$A$1), FullTimeSeries!$A$1) -> FullTimeSeries | E38: Transformations & Assumptions | F38: Capacity and cost calculations performed at single year time intervals
D39: =HYPERLINK("#" & CELL("address", Method!$A$1), Method!$A$1) -> Method | E39: Documentation | F39: Model documentation
D40: =HYPERLINK("#" & CELL("address", NameConv!$A$1), NameConv!$A$1) -> NameConv | E40: Documentation | F40: Model naming convention
D41: SourceLog | E41: Documentation | F41: Log of Primary Input Sources for the UK Energy Pathways Calculator
B43: Sheet structure diagram
D44: Diagram of how model sheets interact.
D45: All boxes are hyperlinks to navigate to the sheet described.
B66: User Summary
C67: Model User
D68: Relevant sheets
E69: =HYPERLINK("#" & CELL("address", Control!$A$1), Control!$A$1) -> Control | F69: Set up your pathway and select the units you wish results to be presented in.
E70: =HYPERLINK("#" & CELL("address", Results!$A$1), Results!$A$1) -> Results | F70: View detailed results from your pathway
E71: =HYPERLINK("#" & CELL("address", EnergyBalance!$A$1), EnergyBalance!$A$1) -> EnergyBalance | F71: Detailed energy and emissions balance for a single year selected by the user.
F72: Columns represent different energy vectors or pollutants
F73: Rows represent different technologies or processes.
C75: Model Reviewer
D76: Relevant sheets
E77: All sheets listed relevant for a model user
E78: =HYPERLINK("#" & CELL("address", Method!$A$1), Method!$A$1) -> Method | F78: Review the methodology used to represent the energy system in each area
E79: =HYPERLINK("#" & CELL("address", Model!$A$1), Model!$A$1) -> Model | F79: Review the implementation of the methodology and the assumptions used. Assumptions are referenced to the right of the model equations (link below).
F80: =HYPERLINK("#" & CELL("address", Model!$AH$1), Model!$AH$1) -> Assumptions log
B83: Navigation tips
C84: The model is designed for ease of navigation when using keyboard shortcuts.
C85: Useful shortcuts
D86: Trace precedents - Ctrl + [
E87: Selects all precedents of a formula
E88: These can by cycled through using the enter key.
E89: Make sure the clipboard is empty (using the 'Esc' key) before performing this operation to avoid pasting the contents of the clipboard when the enter key is used.
D90: Go to - Ctrl + g
E91: List of cells to navigate to
E92: The cell automatically selected is usually the last cell navigated away from using trace precedents (Ctrl + [) so pressing the enter key returns to this cell.
D94: Jump to the next populated cell in the column (Ctrl + down arrow) or in the row (Ctrl + right arrow)
E95: Useful for navigating indented heading lists.
C96: Other Tips
D97: Filtering of tables
E98: Large tables such as the model sheet have been present with filters.
E99: Use the downward arrow in the heading column to filter each column
E100: This is particularly useful to identify
F101: All information (assumptions, transformations and results) for a specific technology or process. Filter on 'Process' column
F102: All information on a particular fuel vector or pollutant. Filter on 'Vector' or 'Pollutant' column.
F103: All assumptions of a particular type (e.g. all efficiencies). Filter on 'Attribute' column.
F104: etc…
A106: Developer Guide
B108: VBA description
D109: Macro | E109: Description
D110: CreateAndReplaceNR() | E110: Macro to automate assigning or overwriting named ranges to single or ranges of cells.
D111: DeleteNamedRange() | E111: Delete a single named range by specifying its name.
D112: NamedRangeListNewSheet() | E112: Report a complete list of named ranges with live cell references to a new sheet.
B115: Formatting and colour coding
C116: Blank cell indicator
D117: A blank cell indicator is used to show where cells have deliberately been left blank.
D118: Blank = | E118: …
C120: Cell Styles
D121: Cell styles do not overwrite number formats
F125: *Set named cell styles to use font "Terminal" (monospaced font meaning all characters are the same width)
F126: *Set named cell styles to use font "Terminal" (monospaced font meaning all characters are the same width)
F127: *Set named cell styles to use font "Terminal" (monospaced font meaning all characters are the same width)
E128: Tmpl_UserInput
C131: Filter Categories
D132: Type of data
E133: OptionList_Type_of_data
E134: Model Input | F134: Data/assumptions that are required for model calculations. These will always be in the correct form and user preference units.
E135: Transformation | F135: Model equations to transform Model Inputs into Outputs or intermediate steps.
E136: Backing Data | F136: Data/assumptions that are required to derive Model Inputs. Backing Data is not used directly in model calculations and by definition is redundant if source data is in the exact form required by the model (only possible for attributes without units).
E137: Output | F137: Useful model outputs. (Unlikely to be required if Assumptions Log sheet does not contain the model methodology)
E138: Check | F138: Some checks to identify calculation errors. These should be designed to equal zero if there are no errors.
E139: Redundant | F139: Sources, assumptions and transformations on which model calculations have no dependence. By definition this information is redundant to the operation of the model and could be removed. This information is present in the model for information/context and if no longer useful should be deleted.
D141: Assumption Category
E142: OptionList_Assumption_Category
E143: Source | F143: Data/assumptions from a primary (external source). Always constants.
E144: Unit Transformation | F144: Conversion of a source to user preference units. Always formulae.
E145: Transformation | F145: Transformation of data. Basic mathematical or physical transformation which is deemed not to require documentation. Always formulae.
E146: Assumption | F146: Transformation of data (formula). Transformation where an assumption is being made that requires documentation. E.g. setting the property of one technology equal to another, grouping technologies into categories, etc. Always formulae.
E147: Lookup | F147: Data/Assumptions linked directly to other cells without being transformed. Always formulae.
D149: Source Units or Preference Units
E150: OptionList_Source_Units_or_Preference_Units
E151: su | F151: Source Units - fixed units matching that of the original data source. Test - Units column fixed value.
E152: pu | F152: Preference Units – flexible units corresponding to the user selected preference units. Test - Units column formula.
E153: nu | F153: No Units, e.g. Efficiency defining the energy output per unit energy input (energy unit / energy unit = no unit). Test - Units column blank cell indicator or clearly unit-less commodity.
D156: Method ID (Data Type)
E157: OptionList_Method_ID
E158: Fact | F158: Indisputably and objectively true, e.g. February has 28.25 days.
E159: Measured | F159: Actual experimental measurements, e.g. Energy Savings Trust boiler efficiencies measured from a set of instrumented houses over several winters.
E160: Survey | F160: Results from a consultant’s telephone survey or otherwise asking people what they remembered about something, e.g. the Sweett survey of boiler costs.
E161: Modelling decision | F161: These are things like scrappage decisions which are modelling decisions in the Calculator and not derived from public data.
E162: Opinion | F162: this is where the value is set by the data-sourcer based on their expert judgement or when the data-sourcer is prepared to accept a source from another model which has little documentation. The Notes column should be used to justify your reason for this opinion and the Quality column should reflect your confidence in the data quality (qual desc can say why).
E163: PLACEHOLDER | F163: where still just the placeholder value
E164: DEFER | F164: For cost and air quality assumptions. We are deferring them until after the workshops. (the published model should have no defers)
D167: Quality Rating
E168: The ‘quality’ of an assumption measures both how certain and robust an assumption is and how appropriate it is for its intended use.
E169: We would consider a published data source like DUKES or ONS data as very robust, but if it needs to be transformed significantly to fit the model, the quality rating would be downgraded.
E170: You may want to lower the quality rating if it is not possible to get technical sign-off for the assumptions (e.g. lack of technical knowledge).
E171: You will also want to lower the quality if the confidence interval is likely to be wide (i.e. you wouldn't be surprised if the value was 50% different) - in this case, you should rank it as amber/red.
E172: OptionList_Quality_Rating
E173: Green | F173: Based on validated ‘actual’ data. Methodology is robust. There are no or few transformations, or transformation methodology is also fully verified and robust. Data is current, and signed off by experts. Small confidence interval.
E174: Amber | F174: Assumptions are amber if: -the methodology is robust but based on limited data; -Data required significant transformation to fit the model; -Your confidence interval is quite wide; -Data has not been reviewed recently (e.g. older than around 2012)
E175: Red | F175: Unclear/unreliable data source or no data source provided. Based on limited data and methodology not robust. Data is not current (e.g. older than 2009). Confidence interval wide/unknown.
C178: Number Formats
F179: Positive | G179: Negative | H179: Zero | I179: Large | J179: Custom Number format
E180: General | F180: 12345.67891 | G180: =-12345.67891 -> -12345.67891 | H180: 0 | I180: -100000000000000 | J180: General;[Red]-General;"-"
E181: 0dp | F181: 12345.67891 | G181: =-12345.67891 -> -12345.67891 | H181: 0 | I181: -100000000000000 | J181: #,##0;[Red]-#,##0;"-"
E182: 2dp | F182: 12345.67891 | G182: =-12345.67891 -> -12345.67891 | H182: 0 | I182: -100000000000000 | J182: #,##0.??;[Red]-#,##0.??;"-"
E183: %0dp | F183: 0.001 | G183: -0.2 | H183: 0 | J183: #0%;[Red]-0%;"-"\%
E184: %1dp | F184: 0.001 | G184: -0.2 | H184: 0 | J184: #0.0%;[Red]-0.0%;"-"\%
E185: Scientific 1dp | F185: 546165 | G185: =-12345.67 -> -12345.67 | H185: 0 | I185: -100000000000000 | J185: 0.?E+??;[Red]-0.?E+??;"-"
E186: Scientific 2dp | F186: 12345.67891 | G186: =-12345.67 -> -12345.67 | H186: 0 | I186: -100000000000000 | J186: 0.??E+??;[Red]-0.??E+??;"-"
D188: References
E189: http://www.exceltactics.com/definitive-guide-custom-number-formats-excel/#Understanding-the-Number-Format-Codes
E190: https://www.ablebits.com/office-addins-blog/2016/07/07/custom-excel-number-format/#zeros-as-dashes

Sheet Control
A1: Control | C1: Web tool | D1: Selected Lever Level | J1: Description of Levers | P1: Example Pathways | AA1: Alignment of Lever Levels
D2: =IF(Results!$F$2026 = 1, "!Amb!", "") ->  | E2: =IF(Results!$F$2027 = 1, "!Fast!", "") ->  | F2: =IF(Results!$F$2028 = 1, "!Bio!", "") ->  | G2: =IF(Results!$F$2029 = 1, "!Land!", "") -> 
A3: Guidance
B4: Instructions on how to control the model
D5: 1) | E5: =HYPERLINK("#" & CELL("address", Control.Method.Selected), "Select the lever set used to control the model.") -> Select the lever set used to control the model.
F6: Lever selection options
G7: Control.Method.Web.Tool | H7: Web tool | I7: =COUNT(input.lever.ambition) &" levers matching those used in the web tool." -> 45 levers matching those used in the web tool.
G8: Control.Method.My2050 | H8: My2050 | I8: =COUNT($D$135:$D$149) &" levers matching those used in the My2050 tool." -> 15 levers matching those used in the My2050 tool.
G9: Control.Method.Manual | H9: Manual | I9: =COUNT($D$166:$D$327) &" levers reflecting the complete list of points of influence that can be applied. Each Web tool and My2050 lever is set up to control one or many manual levers." -> 162 levers reflecting the complete list of points of influence that can be applied. Each Web tool and My2050 lever is set up to control one or many manual levers.
D10: 2) | E10: =HYPERLINK("#" & CELL("address", PrefUnit.Energy.), "Select the units you wish results and calculations to be presented in.") -> Select the units you wish results and calculations to be presented in.
D11: 3) | E11: Select lever level settings
F12: Link to levers
G13: =HYPERLINK("#" & CELL("address", input.lever.ambition), "Webtool Levers") -> Webtool Levers
G14: =HYPERLINK("#" & CELL("address", input.simple.lever.ambition), "My2050 Levers") -> My2050 Levers
G15: =HYPERLINK("#" & CELL("address", $D$166:$D$327), "Manual Levers") -> Manual Levers
F16: Enter any value between 1 and 4.
G17: 1 - The least effort possible
G18: 2 - Ambitious but reasonable
G19: 3 - Very ambitious needing technical breakthrough
G20: 4 - The upper limit of what is considered plausible
F21: Use the lever descriptions to the right of the settings to inform your choices.
D22: 4) | E22: Select level ambition timing.
F23: Start: Set the year in which you feel action should begin. This is the year that deployment, behaviour, demand, etc… begins to deviate from the baseline scenario towards the level of ambition set.
G24: The start year should always be after the model base year of 2015
F25: Speed: Set how long it will take to reach the specified level of ambition.
F26: End: Set the year in which the ambition level specified for the lever is achieved.
G27: The end year must always be set later than the start year
F28: Default lever timings based on the earliest point experts believed level 4 ambition could be achieved can be found to the right for guidance.
F29: *note: Web tool levers have been set up to receive start and end years to replicate the selection options in the web tool. Manual levers have been set up to receive arguments of start year and speed.
F30: *note: this feature is not available for My2050 Levers
D31: 5) | E31: =HYPERLINK("#" & CELL("address", $C$2:$G$2), "Check warning icons and make sure you are comfortable with your decisions.") -> Check warning icons and make sure you are comfortable with your decisions.
D32: 6) | E32: View results of your pathway
F33: Headline results charts can be seen to the right of the webtool lever settings
F34: Navigate to the results sheet to see more detailed outputs and the figures behind the charts.
F35: Return to step 3 modifying ambition levels and repeat until you achieve a pathway you are happy with.
E36: Additional options
F37: =HYPERLINK("#" & CELL("address", $D$62), "Export your web tool lever pathway to the online web tool.") -> Export your web tool lever pathway to the online web tool.
G38: Click on or copy the URL below (linked) to export the closest representation possible of your scenario to the online webtool.
G39: Ambition levels will be rounded to 1 decimal place and start/end years will be rounded to the nearest 5. e.g. an ambition level of 1.811 will be rounded to 1.8 and a start year of 2022 will be rounded to 2020.
F40: =HYPERLINK("#" & CELL("address", $D$63), "Import a web tool lever pathway from the online web tool.") -> Import a web tool lever pathway from the online web tool.
G41: Copy a the URL from a web tool pathway to the cell linked here.
G42: follow the 'Decoded Copied URL Settings' link to the section of the sheet that converts the URL into lever settings.
G43: Copy values of the Ambition, Start and End into the lever settings.
F45: Create web tool lever settings equivalent to My2050 lever settings
F46: Create manual lever settings equivalent to web tool lever settings
A49: Unit Selection
C50: PrefUnit. | D50: Units | E50: Equivalent to
B51: Energy | C51: =$C$50&B51&"." -> PrefUnit.Energy. | D51: TWh. | E51: =1 / uc_J. -> 3.6e+15 | F51: Joules
B52: Power | C52: PrefUnit.Power. | D52: GW. | E52: =1 / uc_W. -> 1000000000 | F52: Watts
B53: Distance | C53: PrefUnit.Distance. | D53: km. | E53: =1 / uc_m. -> 1000 | F53: meters
B54: Area | C54: PrefUnit.Area. | D54: sqkm. | E54: =1 / uc_sqm. -> 1000000 | F54: square meters
B55: Mass.GHG | C55: PrefUnit.Mass.GHG. | D55: Mt. | E55: =1 / uc_GHG.g. -> 1000000000000 | F55: grams
B56: Mass.AQ | C56: PrefUnit.Mass.AQ. | D56: kt. | E56: =1 / uc_AQ.g. -> 1000000000 | F56: grams
B57: Cost | C57: PrefUnit.Cost. | D57: GBP.2016. | E57: =1 / uc_GBP.2016. -> 1 | F57: 2016£
A60: Levers Webtool
C62: URL of current web tool lever settings | D62: =HYPERLINK(J65 &GK115 &GL115 &GM115 &N65, J65 &GK115 &GL115 &GM115 &N65) -> https://mackaycarboncalculator.beis.gov.uk/overview/emissions-and-primary-energy-consumption/?levers=111111111111111111111111111111111111111111111aaabaaabaaabaaaaaaaaaaaabbabbbcbbaabcaabbaaaagggggggggggggeggggggggggiggiiiqgdgggggggggkgg
C63: Copied URL | D63: https://mackaycarboncalculator.beis.gov.uk/overview/emissions-and-primary-energy-consumption/?levers=111111111111111111111111111111111111111111111aaabaaabaaabaaaaaaaaaaaabbabbbcbbaabcaabbaaaagggggggggggggeggggggggggiggiiiqgdgggggggggkgg
D64: =HYPERLINK("#" & CELL("address", $GN$68), $GN$68) -> Decoded Copied URL Settings | I64: String length | J64: =LEN(J65) -> 101 | K64: 45 | L64: 45 | M64: 45 | N64: =LEN(N65) -> 0
D65: https://mackaycarboncalculator.beis.gov.uk/overview/emissions-and-primary-energy-consumption/?levers=111111111111111111111111111111111111111111111aaabaaabaaabaaaaaaaaaaaabbabbbcbbaabcaabbaaaagggggggggggggeggggggggggiggiiiqgdgggggggggkgg | I65: String | J65: https://mackaycarboncalculator.beis.gov.uk/overview/emissions-and-primary-energy-consumption/?levers= | K65: =LEFT(RIGHT($D$63,K64 +L64 +M64 +N64), K64) -> 111111111111111111111111111111111111111111111 | L65: =LEFT(RIGHT($D$63,L64 +M64 +N64), L64) -> aaabaaabaaabaaaaaaaaaaaabbabbbcbbaabcaabbaaaa | M65: =LEFT(RIGHT($D$63,M64 +N64), M64) -> gggggggggggggeggggggggggiggiiiqgdgggggggggkgg
Q67: Example Pathways | AG67: Default Timings
C68: output.lever.names | D68: input.lever.ambition | E68: input.lever.start | G68: input.lever.end | K68: output.lever.descriptions | Q68: output.lever.example.ambition | AG68: output.lever.default.start | AH68: output.lever.default.end | AL68: Webtool ambition corresponding to My2050 ambition | GK68: Create web tool URL | GN68: Decoded Copied URL Settings
C69: Lever Name | D69: Ambition | E69: Start | F69: Speed | G69: End | H69: Ambition | I69: Timing | J69: Description Comments/Assumptions | K69: Lever description | L69: Level 1 | M69: Level 2 | N69: Level 3 | O69: Level 4 | Q69: ESC Illustrative Net Zero | R69: All Level 2 | S69: All Level 3 | T69: Example 4 | U69: Example 5 | V69: Example 6 | W69: Example 7 | X69: Example 8 | Y69: Example 9 | Z69: Example 10 | AA69: Example 11 | AB69: Example 12 | AC69: Example 13 | AD69: Example 14 | AE69: Example 15 | AG69: Default Start | AH69: Default End | AI69: Default Speed | AJ69: My2050 Ambition (raw) | AK69: My2050 Lever | AL69: 1 | AM69: 2 | AN69: 3 | AO69: 4 | AP69: My2050 Ambition Applied | AR69: Levers Exceeding the deployment rate of level 4 (for webtool warnings) | AS69: List levers Exceeding the deployment rate of level 4 (for webtool warnings) | AT69: Speed warning | AU69: Levers Controlled | GJ69: Possition | GK69: Ambition | GL69: Start | GM69: End | GN69: Ambition | GO69: Start | GP69: End
B70: Transport | C70: UK Transport Demand | D70: 1 | E70: 2020 | F70: =+G70 -E70 -> 30 | G70: 2050 | K70: How far and by what methods passengers travel in the UK | L70: ="By "&$G$70&" the average annual distance travelled per person is "&IF(ROUND(ABS((L166-$BD$166)*100/$BD$166),0)=0,"the same as",ROUND(ABS((L166-$BD$166)*100/$BD$166),0)&"% "&IF(L166-$BD$166>0, "further than", "less than"))&" in 2015. "&L169*100 &"% of this is done by car." -> By 2050 the average annual distance travelled per person is 10% further than in 2015. 81% of this is done by car. | M70: ="By "&$G$70&" the average annual distance travelled per person is "&IF(ROUND(ABS((M166-$BD$166)*100/$BD$166),0)=0,"the same as",ROUND(ABS((M166-$BD$166)*100/$BD$166),0)&"% "&IF(M166-$BD$166>0, "further than", "less than"))&" in 2015. "&M169*100 &"% of this is done by car." -> By 2050 the average annual distance travelled per person is 2% less than in 2015. 72.5% of this is done by car. | N70: ="By "&$G$70&" the average annual distance travelled per person is "&IF(ROUND(ABS((N166-$BD$166)*100/$BD$166),0)=0,"the same as",ROUND(ABS((N166-$BD$166)*100/$BD$166),0)&"% "&IF(N166-$BD$166>0, "further than", "less than"))&" in 2015. "&N169*100 &"% of this is done by car." -> By 2050 the average annual distance travelled per person is 9% less than in 2015. 63% of this is done by car. | O70: ="By "&$G$70&" the average annual distance travelled per person is "&IF(ROUND(ABS((O166-$BD$166)*100/$BD$166),0)=0,"the same as",ROUND(ABS((O166-$BD$166)*100/$BD$166),0)&"% "&IF(O166-$BD$166>0, "further than", "less than"))&" in 2015. "&O169*100 &"% of this is done by car." -> By 2050 the average annual distance travelled per person is 24% less than in 2015. 48.5% of this is done by car. | Q70: 3 | R70: 2 | S70: 3 | T70: 1 | U70: 1 | V70: 1 | W70: 1 | X70: 1 | Y70: 1 | Z70: 1 | AA70: 1 | AB70: 1 | AC70: 1 | AD70: 1 | AE70: 1 | AG70: 2020 | AH70: 2050 | AI70: =+AH70 -AG70 -> 30 | AJ70: =Simplified.lever.value.01 -> 1 | AK70: =Simplified.lever.01 -> Transport Behaviour | AL70: 1 | AM70: 2 | AN70: 3 | AO70: 4 | AP70: =IF(MOD(AJ70, 1) = 0, (INDEX($AL70:$AO70, ,MATCH(+AJ70 -MOD(AJ70, 1), $AL$69:$AO$69, 0))), +(INDEX($AL70:$AO70, ,MATCH(+AJ70 -MOD(AJ70, 1), $AL$69:$AO$69, 0))) * (1 -MOD(AJ70, 1)) +(INDEX($AL70:$AO70, ,MATCH(+AJ70 -MOD(AJ70, 1) +1, $AL$69:$AO$69, 0))) * MOD(AJ70, 1)) -> 1 | AR70: =IF(SUMIFS($BC$166:$BC$327, $AB$166:$AB$327, $C70) = 0, "", $C70) ->  | AS70: =IF(AR70="","",", "&AR70) ->  | AT70: =IF(SUMIFS($BC$166:$BC$327, $AB$166:$AB$327, $C70) = 0, 0, 1) -> 0 | AU70: =COUNTIFS($AB$166:$AB$327, $C70) -> 9 | GJ70: 1 | GK70: =INDEX($E$333:$E$380, MATCH(ROUND(D70, 1), $D$333:$D$380, 0), ) -> 1 | GL70: =INDEX($E$333:$E$444, MATCH(E70, $D$333:$D$444, 0), ) -> a | GM70: =INDEX($E$333:$E$444, MATCH(G70, $D$333:$D$444, 0), ) -> g | GN70: =INDEX($D$333:$D$363, MATCH( VALUE(MID($K$65, $GJ70, 1)), $E$333:$E$363, 0), ) -> 1 | GO70: =INDEX($D$364:$D$444, IF(MATCH( MID($L$65, $GJ70, 1), $E$364:$E$444, 0)>3,MATCH( MID($L$65, $GJ70, 1), $E$364:$E$444, 0)+2, MATCH( MID($L$65, $GJ70, 1), $E$364:$E$444, 0)), ) -> 2020 | GP70: =INDEX($D$364:$D$444, IF(MATCH( MID($M$65, $GJ70, 1), $E$364:$E$444, 0)>3,MATCH( MID($M$65, $GJ70, 1), $E$364:$E$444, 0)+2, MATCH( MID($M$65, $GJ70, 1), $E$364:$E$444, 0)), ) -> 2050
C71: International Aviation | D71: 1 | E71: 2020 | F71: =+G71 -E71 -> 30 | G71: 2050 | K71: Distance flown abroad by passengers from the UK | L71: ="By "&$G$71&" the average annual distance travelled per person internationally is "&IF(ROUND(((L173-$BD$173)*100/$BD$173),0)=0,"the same as",ROUND(ABS((L173-$BD$173)*100/$BD$173),0)&"% "&IF(L173-$BD$173>0, "further than", "less than"))&" in 2015." -> By 2050 the average annual distance travelled per person internationally is 41% further than in 2015. | M71: ="By "&$G$71&" the average annual distance travelled per person internationally is "&IF(ROUND(((M173-$BD$173)*100/$BD$173),0)=0,"the same as",ROUND(ABS((M173-$BD$173)*100/$BD$173),0)&"% "&IF(M173-$BD$173>0, "further than", "less than"))&" in 2015." -> By 2050 the average annual distance travelled per person internationally is 27% further than in 2015. | N71: ="By "&$G$71&" the average annual distance travelled per person internationally is "&IF(ROUND(((N173-$BD$173)*100/$BD$173),0)=0,"the same as",ROUND(ABS((N173-$BD$173)*100/$BD$173),0)&"% "&IF(N173-$BD$173>0, "further than", "less than"))&" in 2015." -> By 2050 the average annual distance travelled per person internationally is 12% further than in 2015. | O71: ="By "&$G$71&" the average annual distance travelled per person internationally is "&IF(ROUND(((O173-$BD$173)*100/$BD$173),0)=0,"the same as",ROUND(ABS((O173-$BD$173)*100/$BD$173),0)&"% "&IF(O173-$BD$173>0, "further than", "less than"))&" in 2015." -> By 2050 the average annual distance travelled per person internationally is 3% less than in 2015. | Q71: 3.7 | R71: 2 | S71: 3 | T71: 1 | U71: 1 | V71: 1 | W71: 1 | X71: 1 | Y71: 1 | Z71: 1 | AA71: 1 | AB71: 1 | AC71: 1 | AD71: 1 | AE71: 1 | AG71: 2020 | AH71: 2050 | AI71: =+AH71 -AG71 -> 30 | AJ71: =Simplified.lever.value.01 -> 1 | AK71: =Simplified.lever.01 -> Transport Behaviour | AL71: 1 | AM71: 2 | AN71: 3 | AO71: 4 | AP71: 1 | AR71: =IF(SUMIFS($BC$166:$BC$327, $AB$166:$AB$327, $C71) = 0, "", $C71) ->  | AS71: =AS70&IF(AR71="","",", "&AR71) ->  | AT71: =IF(SUMIFS($BC$166:$BC$327, $AB$166:$AB$327, $C71) = 0, 0, 1) -> 0 | AU71: =COUNTIFS($AB$166:$AB$327, $C71) -> 1 | GJ71: 2 | GK71: 1 | GL71: =INDEX($E$333:$E$444, MATCH(E71, $D$333:$D$444, 0), ) -> a | GM71: =INDEX($E$333:$E$444, MATCH(G71, $D$333:$D$444, 0), ) -> g | GN71: =INDEX($D$333:$D$363, MATCH( VALUE(MID($K$65, $GJ71, 1)), $E$333:$E$363, 0), ) -> 1 | GO71: =INDEX($D$364:$D$444, IF(MATCH( MID($L$65, $GJ71, 1), $E$364:$E$444, 0)>3,MATCH( MID($L$65, $GJ71, 1), $E$364:$E$444, 0)+2, MATCH( MID($L$65, $GJ71, 1), $E$364:$E$444, 0)), ) -> 2020 | GP71: =INDEX($D$364:$D$444, IF(MATCH( MID($M$65, $GJ71, 1), $E$364:$E$444, 0)>3,MATCH( MID($M$65, $GJ71, 1), $E$364:$E$444, 0)+2, MATCH( MID($M$65, $GJ71, 1), $E$364:$E$444, 0)), ) -> 2050
C72: Light Vehicles - Electric | D72: 1 | E72: 2020 | F72: 30 | G72: 2050 | K72: Share of cars, vans and small trucks that are battery electric vehicles | L72: =ROUND(L176 *100, 0) &"% of cars are electric by "&$G$72&" ("& ROUND(L179 *100, 0) &"% of vans and "&ROUND(L182 *100, 0) &"% of small trucks)." -> 0% of cars are electric by 2050 (0% of vans and 0% of small trucks). | M72: =ROUND(M176 *100, 0) &"% of cars are electric by "&$G$72&" ("& ROUND(M179 *100, 0) &"% of vans and "&ROUND(M182 *100, 0) &"% of small trucks)." -> 50% of cars are electric by 2050 (50% of vans and 20% of small trucks). | N72: =ROUND(N176 *100, 0) &"% of cars are electric by "&$G$72&" ("& ROUND(N179 *100, 0) &"% of vans and "&ROUND(N182 *100, 0) &"% of small trucks)." -> 95% of cars are electric by 2050 (95% of vans and 50% of small trucks). | O72: =ROUND(O176 *100, 0) &"% of cars are electric by "&$G$72&" ("& ROUND(O179 *100, 0) &"% of vans and "&ROUND(O182 *100, 0) &"% of small trucks)." -> 100% of cars are electric by 2050 (100% of vans and 100% of small trucks). | Q72: 3.7 | R72: 2 | S72: 3 | T72: 1 | U72: 1 | V72: 1 | W72: 1 | X72: 1 | Y72: 1 | Z72: 1 | AA72: 1 | AB72: 1 | AC72: 1 | AD72: 1 | AE72: 1 | AG72: 2020 | AH72: 2050 | AI72: 30 | AJ72: =Simplified.lever.value.02 -> 1 | AK72: =Simplified.lever.02 -> Light Vehicle Technology | AL72: 1 | AM72: 2 | AN72: 3 | AO72: 4 | AP72: 1 | AS72: =AS71&IF(AR72="","",", "&AR72) ->  | AT72: 0 | AU72: 3 | GJ72: 3 | GK72: 1 | GL72: =INDEX($E$333:$E$444, MATCH(E72, $D$333:$D$444, 0), ) -> a | GM72: =INDEX($E$333:$E$444, MATCH(G72, $D$333:$D$444, 0), ) -> g | GN72: 1 | GO72: 2020 | GP72: 2050
C73: Light Vehicles - Hydrogen | D73: 1 | E73: 2025 | F73: 25 | G73: 2050 | K73: Share of cars, vans and small trucks that are hydrogen-fuelled | L73: =ROUND(L177 *100, 0) &"% of cars are hydrogen-fuelled by "&$G$73&" ("& ROUND(L180 *100, 0) &"% of vans and "&ROUND(L183 *100, 0) &"% of small trucks)." -> 0% of cars are hydrogen-fuelled by 2050 (0% of vans and 0% of small trucks). | M73: =ROUND(M177 *100, 0) &"% of cars are hydrogen-fuelled by "&$G$73&" ("& ROUND(M180 *100, 0) &"% of vans and "&ROUND(M183 *100, 0) &"% of small trucks)." -> 33% of cars are hydrogen-fuelled by 2050 (33% of vans and 5% of small trucks). | N73: =ROUND(N177 *100, 0) &"% of cars are hydrogen-fuelled by "&$G$73&" ("& ROUND(N180 *100, 0) &"% of vans and "&ROUND(N183 *100, 0) &"% of small trucks)." -> 67% of cars are hydrogen-fuelled by 2050 (67% of vans and 50% of small trucks). | O73: =ROUND(O177 *100, 0) &"% of cars are hydrogen-fuelled by "&$G$73&" ("& ROUND(O180 *100, 0) &"% of vans and "&ROUND(O183 *100, 0) &"% of small trucks)." -> 100% of cars are hydrogen-fuelled by 2050 (100% of vans and 100% of small trucks). | Q73: 1 | R73: 2 | S73: 3 | T73: 1 | U73: 1 | V73: 1 | W73: 1 | X73: 1 | Y73: 1 | Z73: 1 | AA73: 1 | AB73: 1 | AC73: 1 | AD73: 1 | AE73: 1 | AG73: 2025 | AH73: 2050 | AI73: 25 | AJ73: =Simplified.lever.value.16 -> 1 | AK73: =Simplified.lever.16 -> No Control Lv1 | AL73: 1 | AM73: 1 | AN73: 1 | AO73: 1 | AP73: 1 | AT73: 0 | AU73: 3 | GJ73: 4 | GK73: 1 | GL73: b | GM73: g | GN73: 1 | GO73: 2025 | GP73: 2050
C74: Light Vehicles - Hybrid | D74: 1 | E74: 2020 | F74: 30 | G74: 2050 | K74: Share of cars, vans and small trucks that are plug-in hybrid vehicles | L74: =ROUND(L178 *100, 0) &"% of cars are hybrids by "&$G$74&" ("& ROUND(L181 *100, 0) &"% of vans and "&ROUND(L184 *100, 0) &"% of small trucks)." -> 0% of cars are hybrids by 2050 (0% of vans and 0% of small trucks). | M74: =ROUND(M178 *100, 0) &"% of cars are hybrids by "&$G$74&" ("& ROUND(M181 *100, 0) &"% of vans and "&ROUND(M184 *100, 0) &"% of small trucks)." -> 33% of cars are hybrids by 2050 (33% of vans and 20% of small trucks). | N74: =ROUND(N178 *100, 0) &"% of cars are hybrids by "&$G$74&" ("& ROUND(N181 *100, 0) &"% of vans and "&ROUND(N184 *100, 0) &"% of small trucks)." -> 67% of cars are hybrids by 2050 (67% of vans and 50% of small trucks). | O74: =ROUND(O178 *100, 0) &"% of cars are hybrids by "&$G$74&" ("& ROUND(O181 *100, 0) &"% of vans and "&ROUND(O184 *100, 0) &"% of small trucks)." -> 100% of cars are hybrids by 2050 (100% of vans and 100% of small trucks). | Q74: 1 | R74: 2 | S74: 3 | T74: 1 | U74: 1 | V74: 1 | W74: 1 | X74: 1 | Y74: 1 | Z74: 1 | AA74: 1 | AB74: 1 | AC74: 1 | AD74: 1 | AE74: 1 | AG74: 2020 | AH74: 2050 | AI74: 30 | AJ74: =Simplified.lever.value.16 -> 1 | AK74: =Simplified.lever.16 -> No Control Lv1 | AL74: 1 | AM74: 1 | AN74: 1 | AO74: 1 | AP74: 1 | AT74: 0 | AU74: 3 | GJ74: 5 | GK74: 1 | GL74: a | GM74: g | GN74: 1 | GO74: 2020 | GP74: 2050
C75: Light Vehicles - Biofuel | D75: 1 | E75: 2020 | F75: 30 | G75: 2050 | K75: Share of fuel in conventional cars, vans and small trucks that is biofuel | L75: =ROUND(L193*100, 0) &"% of fuel used in conventional cars is biofuel by "&$G$75&" ("& ROUND(L194*100, 0) &"% of vans and "&ROUND(L195 *100, 0) &"% of small trucks)." -> 3% of fuel used in conventional cars is biofuel by 2050 (3% of vans and 2% of small trucks). | M75: =ROUND(M193*100, 0) &"% of fuel used in conventional cars is biofuel by "&$G$75&" ("& ROUND(M194*100, 0) &"% of vans and "&ROUND(M195 *100, 0) &"% of small trucks)." -> 25% of fuel used in conventional cars is biofuel by 2050 (25% of vans and 25% of small trucks). | N75: =ROUND(N193*100, 0) &"% of fuel used in conventional cars is biofuel by "&$G$75&" ("& ROUND(N194*100, 0) &"% of vans and "&ROUND(N195 *100, 0) &"% of small trucks)." -> 50% of fuel used in conventional cars is biofuel by 2050 (50% of vans and 50% of small trucks). | O75: =ROUND(O193*100, 0) &"% of fuel used in conventional cars is biofuel by "&$G$75&" ("& ROUND(O194*100, 0) &"% of vans and "&ROUND(O195 *100, 0) &"% of small trucks)." -> 100% of fuel used in conventional cars is biofuel by 2050 (100% of vans and 100% of small trucks). | Q75: 1 | R75: 2 | S75: 3 | T75: 1 | U75: 1 | V75: 1 | W75: 1 | X75: 1 | Y75: 1 | Z75: 1 | AA75: 1 | AB75: 1 | AC75: 1 | AD75: 1 | AE75: 1 | AG75: 2020 | AH75: 2050 | AI75: 30 | AJ75: =Simplified.lever.value.16 -> 1 | AK75: =Simplified.lever.16 -> No Control Lv1 | AL75: 1 | AM75: 1 | AN75: 1 | AO75: 1 | AP75: =IF(MOD(AJ75, 1) = 0, (INDEX($AL75:$AO75, ,MATCH(+AJ75 -MOD(AJ75, 1), $AL$69:$AO$69, 0))), +(INDEX($AL75:$AO75, ,MATCH(+AJ75 -MOD(AJ75, 1), $AL$69:$AO$69, 0))) * (1 -MOD(AJ75, 1)) +(INDEX($AL75:$AO75, ,MATCH(+AJ75 -MOD(AJ75, 1) +1, $AL$69:$AO$69, 0))) * MOD(AJ75, 1)) -> 1 | AT75: 0 | AU75: 3 | GJ75: 6 | GK75: 1 | GL75: a | GM75: g | GN75: 1 | GO75: 2020 | GP75: 2050
C76: Heavy Vehicles - Electric | D76: 1 | E76: 2020 | F76: 30 | G76: 2050 | K76: Share of large trucks, buses and trains that are battery electric vehicles | L76: =ROUND(L185*100,0)&"% of large trucks, "&ROUND(L188*100,0)&"% of buses and "&ROUND(L191*100,0)&"% of passenger trains are electric by "&$G$76&"." -> 0% of large trucks, 0% of buses and 65% of passenger trains are electric by 2050. | M76: =ROUND(M185*100,0)&"% of large trucks, "&ROUND(M188*100,0)&"% of buses and "&ROUND(M191*100,0)&"% of passenger trains are electric by "&$G$76&"." -> 2% of large trucks, 40% of buses and 80% of passenger trains are electric by 2050. | N76: =ROUND(N185*100,0)&"% of large trucks, "&ROUND(N188*100,0)&"% of buses and "&ROUND(N191*100,0)&"% of passenger trains are electric by "&$G$76&"." -> 15% of large trucks, 60% of buses and 90% of passenger trains are electric by 2050. | O76: =ROUND(O185*100,0)&"% of large trucks, "&ROUND(O188*100,0)&"% of buses and "&ROUND(O191*100,0)&"% of passenger trains are electric by "&$G$76&"." -> 100% of large trucks, 100% of buses and 100% of passenger trains are electric by 2050. | Q76: 3 | R76: 2 | S76: 3 | T76: 1 | U76: 1 | V76: 1 | W76: 1 | X76: 1 | Y76: 1 | Z76: 1 | AA76: 1 | AB76: 1 | AC76: 1 | AD76: 1 | AE76: 1 | AG76: 2020 | AH76: 2050 | AI76: 30 | AJ76: =Simplified.lever.value.03 -> 1 | AK76: =Simplified.lever.03 -> Heavy Vehicle Technology | AL76: 1 | AM76: 2 | AN76: 3 | AO76: 4 | AP76: 1 | AT76: 0 | AU76: 4 | GJ76: 7 | GK76: 1 | GL76: a | GM76: g | GN76: 1 | GO76: 2020 | GP76: 2050
C77: Heavy Vehicles - Hydrogen | D77: 1 | E77: 2025 | F77: 25 | G77: 2050 | K77: Share of large trucks and buses that are hydrogen-fuelled | L77: =ROUND(L186*100,0)&"% of large trucks and "&ROUND(L189*100,0)&"% of buses are hydrogen-fuelled by "&$G$77&"." -> 0% of large trucks and 0% of buses are hydrogen-fuelled by 2050. | M77: =ROUND(M186*100,0)&"% of large trucks and "&ROUND(M189*100,0)&"% of buses are hydrogen-fuelled by "&$G$77&"." -> 50% of large trucks and 40% of buses are hydrogen-fuelled by 2050. | N77: =ROUND(N186*100,0)&"% of large trucks and "&ROUND(N189*100,0)&"% of buses are hydrogen-fuelled by "&$G$77&"." -> 80% of large trucks and 60% of buses are hydrogen-fuelled by 2050. | O77: =ROUND(O186*100,0)&"% of large trucks and "&ROUND(O189*100,0)&"% of buses are hydrogen-fuelled by "&$G$77&"." -> 100% of large trucks and 100% of buses are hydrogen-fuelled by 2050. | Q77: 3 | R77: 2 | S77: 3 | T77: 1 | U77: 1 | V77: 1 | W77: 1 | X77: 1 | Y77: 1 | Z77: 1 | AA77: 1 | AB77: 1 | AC77: 1 | AD77: 1 | AE77: 1 | AG77: 2025 | AH77: 2050 | AI77: 25 | AJ77: =Simplified.lever.value.16 -> 1 | AK77: =Simplified.lever.16 -> No Control Lv1 | AL77: 1 | AM77: 1 | AN77: 1 | AO77: 1 | AP77: 1 | AT77: 0 | AU77: 2 | GJ77: 8 | GK77: 1 | GL77: b | GM77: g | GN77: 1 | GO77: 2025 | GP77: 2050
C78: Heavy Vehicles - Hybrid | D78: 1 | E78: 2020 | F78: 30 | G78: 2050 | K78: Share of large trucks and buses that are plug-in hybrid vehicles | L78: =ROUND(L187*100,0)&"% of large trucks and "&ROUND(L190*100,0)&"% of buses are hybrids by "&$G$78&"." -> 0% of large trucks and 0% of buses are hybrids by 2050. | M78: =ROUND(M187*100,0)&"% of large trucks and "&ROUND(M190*100,0)&"% of buses are hybrids by "&$G$78&"." -> 25% of large trucks and 40% of buses are hybrids by 2050. | N78: =ROUND(N187*100,0)&"% of large trucks and "&ROUND(N190*100,0)&"% of buses are hybrids by "&$G$78&"." -> 60% of large trucks and 60% of buses are hybrids by 2050. | O78: =ROUND(O187*100,0)&"% of large trucks and "&ROUND(O190*100,0)&"% of buses are hybrids by "&$G$78&"." -> 100% of large trucks and 100% of buses are hybrids by 2050. | Q78: 1 | R78: 2 | S78: 3 | T78: 1 | U78: 1 | V78: 1 | W78: 1 | X78: 1 | Y78: 1 | Z78: 1 | AA78: 1 | AB78: 1 | AC78: 1 | AD78: 1 | AE78: 1 | AG78: 2020 | AH78: 2050 | AI78: 30 | AJ78: =Simplified.lever.value.16 -> 1 | AK78: =Simplified.lever.16 -> No Control Lv1 | AL78: 1 | AM78: 1 | AN78: 1 | AO78: 1 | AP78: 1 | AT78: 0 | AU78: 2 | GJ78: 9 | GK78: 1 | GL78: a | GM78: g | GN78: 1 | GO78: 2020 | GP78: 2050
C79: Heavy Vehicles - Biofuel | D79: 1 | E79: 2020 | F79: 30 | G79: 2050 | K79: Share of fuel in conventional large trucks, buses, trains and ships that is biofuel | L79: =ROUND(L196*100,0)&"% of fuel used in convensional large trucks is biofuel, "&ROUND(L197*100,0)&"% in buses, "&ROUND(L198*100,0)&"% in trains by "&$G$79&"." -> 2% of fuel used in convensional large trucks is biofuel, 2% in buses, 2% in trains by 2050. | M79: =ROUND(M197*100,0)&"% of buses, "&ROUND(M198*100,0)&"% of passenger trains and "&ROUND(M196*100,0)&"% of large trucks use biofuel by "&$G$79&"." -> 25% of buses, 25% of passenger trains and 25% of large trucks use biofuel by 2050. | N79: =ROUND(N197*100,0)&"% of buses, "&ROUND(N198*100,0)&"% of passenger trains and "&ROUND(N196*100,0)&"% of large trucks use biofuel by "&$G$79&"." -> 50% of buses, 50% of passenger trains and 50% of large trucks use biofuel by 2050. | O79: =ROUND(O197*100,0)&"% of buses, "&ROUND(O198*100,0)&"% of passenger trains and "&ROUND(O196*100,0)&"% of large trucks use biofuel by "&$G$79&"." -> 100% of buses, 100% of passenger trains and 100% of large trucks use biofuel by 2050. | Q79: 1 | R79: 2 | S79: 3 | T79: 1 | U79: 1 | V79: 1 | W79: 1 | X79: 1 | Y79: 1 | Z79: 1 | AA79: 1 | AB79: 1 | AC79: 1 | AD79: 1 | AE79: 1 | AG79: 2020 | AH79: 2050 | AI79: 30 | AJ79: =Simplified.lever.value.16 -> 1 | AK79: =Simplified.lever.16 -> No Control Lv1 | AL79: 1 | AM79: 1 | AN79: 1 | AO79: 1 | AP79: 1 | AT79: 0 | AU79: 7 | GJ79: 10 | GK79: 1 | GL79: a | GM79: g | GN79: 1 | GO79: 2020 | GP79: 2050
C80: Aviation Efficiency | D80: 1 | E80: 2020 | F80: 30 | G80: 2050 | K80: Energy intensity of aircraft travel and the share of aircrafts that are hybrid electric | L80: ="Aircrafts are "&ROUND(((1 / L204) -1)*100,0)&"% more efficient than in 2015 and "&ROUND(L206*100,0)&"% are plug-in hybrid electric vehicles, by "&$G$80&"." -> Aircrafts are 18% more efficient than in 2015 and 0% are plug-in hybrid electric vehicles, by 2050. | M80: ="Aircrafts are "&ROUND(((1 / M204) -1)*100,0)&"% more efficient than in 2015 and "&ROUND(M206*100,0)&"% are plug-in hybrid electric vehicles, by "&$G$80&"." -> Aircrafts are 43% more efficient than in 2015 and 0% are plug-in hybrid electric vehicles, by 2050. | N80: ="Aircrafts are "&ROUND(((1 / N204) -1)*100,0)&"% more efficient than in 2015 and "&ROUND(N206*100,0)&"% are plug-in hybrid electric vehicles, by "&$G$80&"." -> Aircrafts are 54% more efficient than in 2015 and 50% are plug-in hybrid electric vehicles, by 2050. | O80: ="Aircrafts are "&ROUND(((1 / O204) -1)*100,0)&"% more efficient than in 2015 and "&ROUND(O206*100,0)&"% are plug-in hybrid electric vehicles, by "&$G$80&"." -> Aircrafts are 67% more efficient than in 2015 and 100% are plug-in hybrid electric vehicles, by 2050. | Q80: 3.1 | R80: 2 | S80: 3 | T80: 1 | U80: 1 | V80: 1 | W80: 1 | X80: 1 | Y80: 1 | Z80: 1 | AA80: 1 | AB80: 1 | AC80: 1 | AD80: 1 | AE80: 1 | AG80: 2020 | AH80: 2050 | AI80: 30 | AJ80: =Simplified.lever.value.03 -> 1 | AK80: =Simplified.lever.03 -> Heavy Vehicle Technology | AL80: 1 | AM80: 2 | AN80: 3 | AO80: 4 | AP80: 1 | AT80: 0 | AU80: 4 | GJ80: 11 | GK80: 1 | GL80: a | GM80: g | GN80: 1 | GO80: 2020 | GP80: 2050
C81: Aviation Biofuel | D81: 1 | E81: 2025 | F81: 25 | G81: 2050 | K81: Share of fuel used in conventional aircrafts that is biofuel. | L81: =ROUND(L208*100,0)&"% of liquid fuel used in aircraft is biofuel by "&$G$81&"." -> 0% of liquid fuel used in aircraft is biofuel by 2050. | M81: =ROUND(M208*100,0)&"% of liquid fuel used in aircraft is biofuel by "&$G$81&"." -> 10% of liquid fuel used in aircraft is biofuel by 2050. | N81: =ROUND(N208*100,0)&"% of liquid fuel used in aircraft is biofuel by "&$G$81&"." -> 30% of liquid fuel used in aircraft is biofuel by 2050. | O81: =ROUND(O208*100,0)&"% of liquid fuel used in aircraft is biofuel by "&$G$81&"." -> 100% of liquid fuel used in aircraft is biofuel by 2050. | Q81: 3 | R81: 2 | S81: 3 | T81: 1 | U81: 1 | V81: 1 | W81: 1 | X81: 1 | Y81: 1 | Z81: 1 | AA81: 1 | AB81: 1 | AC81: 1 | AD81: 1 | AE81: 1 | AG81: 2025 | AH81: 2050 | AI81: 25 | AJ81: =MIN(Simplified.lever.value.15,5-Simplified.lever.value.08) -> 1 | AK81: ="MIN("&Simplified.lever.15&",5-"&Simplified.lever.08&")" -> MIN(Bioenergy,5-Carbon Capture ) | AL81: 1 | AM81: 1.25 | AN81: 2.3 | AO81: 3.3 | AP81: 1 | AT81: 0 | AU81: 2 | GJ81: 12 | GK81: 1 | GL81: b | GM81: g | GN81: 1 | GO81: 2025 | GP81: 2050
B82: Buildings | C82: Buildings Temperature | D82: 1 | E82: 2020 | F82: =+G82 -E82 -> 30 | G82: 2050 | K82: Average temperature of homes, demand for hot water and penetration of air conditioning (AC) | L82: ="By "&$G$82&", the average house temperature is "&L209&$K$209&", "&ROUND(L226*100,0)&"% of homes have AC and domestic hot water demand is "&IF(ROUND(ABS((L212-$BD$212)*100),0)=0,"the same as in",IF(L212-$BD$212>0,ROUND(ABS((L212-$BD$212)*100),0)&"% more than",ROUND(ABS((L212-$BD$212)*100),0)&"% less than"))&" in 2015." -> By 2050, the average house temperature is 20°C, 50% of homes have AC and domestic hot water demand is 43% more than in 2015. | M82: ="By "&$G$82&", the average house temperature is "&M209&$K$209&", "&ROUND(M226*100,0)&"% of homes have AC and domestic hot water demand is "&IF(ROUND(ABS((M212-$BD$212)*100),0)=0,"the same as in",IF(M212-$BD$212>0,ROUND(ABS((M212-$BD$212)*100),0)&"% more than",ROUND(ABS((M212-$BD$212)*100),0)&"% less than"))&" in 2015." -> By 2050, the average house temperature is 18°C, 33% of homes have AC and domestic hot water demand is 3% more than in 2015. | N82: ="By "&$G$82&", the average house temperature is "&N209&$K$209&", "&ROUND(N226*100,0)&"% of homes have AC and domestic hot water demand is "&IF(ROUND(ABS((N212-$BD$212)*100),0)=0,"the same as in",IF(N212-$BD$212>0,ROUND(ABS((N212-$BD$212)*100),0)&"% more than",ROUND(ABS((N212-$BD$212)*100),0)&"% less than"))&" in 2015." -> By 2050, the average house temperature is 17°C, 17% of homes have AC and domestic hot water demand is 23% less than in 2015. | O82: ="By "&$G$82&", the average house temperature is "&O209&$K$209&", "&ROUND(O226*100,0)&"% of homes have AC and domestic hot water demand is "&IF(ROUND(ABS((O212-$BD$212)*100),0)=0,"the same as in",IF(O212-$BD$212>0,ROUND(ABS((O212-$BD$212)*100),0)&"% more than",ROUND(ABS((O212-$BD$212)*100),0)&"% less than"))&" in 2015." -> By 2050, the average house temperature is 16°C, 0% of homes have AC and domestic hot water demand is 49% less than in 2015. | Q82: 3 | R82: 2 | S82: 3 | T82: 1 | U82: 1 | V82: 1 | W82: 1 | X82: 1 | Y82: 1 | Z82: 1 | AA82: 1 | AB82: 1 | AC82: 1 | AD82: 1 | AE82: 1 | AG82: 2020 | AH82: 2050 | AI82: 30 | AJ82: =Simplified.lever.value.04 -> 1 | AK82: =Simplified.lever.04 -> Buildings Behaviour | AL82: 1 | AM82: 2 | AN82: 3 | AO82: 4 | AP82: 1 | AT82: 0 | AU82: 6 | GJ82: 13 | GK82: 1 | GL82: a | GM82: g | GN82: 1 | GO82: 2020 | GP82: 2050
C83: Buildings Insulation | D83: 1 | E83: 2020 | F83: 20 | G83: 2040 | K83: Retrofit insulation deployment and new build thermal performance standards. | L83: ="By "&$G$83&", insulation measures have been added to " &ROUND(L210*100/INDEX(Cap.dDwlBYS.,MATCH($G$83,Prd.,0)),0)&"% of existing homes and heat losses from new builds are " &IF(ROUND(ABS((L211-$BD$211)*100/$BD$211),0)=0, "the same as",ROUND(ABS((L211-$BD$211)*100/$BD$211),0)& "% "&IF(L211-$BD$211<0,"less than","more than"))&" in 2015." -> By 2040, insulation measures have been added to 9% of existing homes and heat losses from new builds are the same as in 2015. | M83: ="By "&$G$83&", insulation measures have been added to " &ROUND(M210*100/INDEX(Cap.dDwlBYS.,MATCH($G$83,Prd.,0)),0)&"% of existing homes and heat losses from new builds are " &IF(ROUND(ABS((M211-$BD$211)*100/$BD$211),0)=0, "the same as",ROUND(ABS((M211-$BD$211)*100/$BD$211),0)& "% "&IF(M211-$BD$211<0,"less than","more than"))&" in 2015." -> By 2040, insulation measures have been added to 34% of existing homes and heat losses from new builds are 33% less than in 2015. | N83: ="By "&$G$83&", insulation measures have been added to " &ROUND(N210*100/INDEX(Cap.dDwlBYS.,MATCH($G$83,Prd.,0)),0)&"% of existing homes and heat losses from new builds are " &IF(ROUND(ABS((N211-$BD$211)*100/$BD$211),0)=0, "the same as",ROUND(ABS((N211-$BD$211)*100/$BD$211),0)& "% "&IF(N211-$BD$211<0,"less than","more than"))&" in 2015." -> By 2040, insulation measures have been added to 58% of existing homes and heat losses from new builds are 58% less than in 2015. | O83: ="By "&$G$83&", insulation measures have been added to " &ROUND(O210*100/INDEX(Cap.dDwlBYS.,MATCH($G$83,Prd.,0)),0)&"% of existing homes and heat losses from new builds are " &IF(ROUND(ABS((O211-$BD$211)*100/$BD$211),0)=0, "the same as",ROUND(ABS((O211-$BD$211)*100/$BD$211),0)& "% "&IF(O211-$BD$211<0,"less than","more than"))&" in 2015." -> By 2040, insulation measures have been added to 83% of existing homes and heat losses from new builds are 83% less than in 2015. | Q83: 2 | R83: 2 | S83: 3 | T83: 1 | U83: 1 | V83: 1 | W83: 1 | X83: 1 | Y83: 1 | Z83: 1 | AA83: 1 | AB83: 1 | AC83: 1 | AD83: 1 | AE83: 1 | AG83: 2020 | AH83: 2040 | AI83: 20 | AJ83: =Simplified.lever.value.05 -> 1 | AK83: =Simplified.lever.05 -> Insulation & Efficiency | AL83: 1 | AM83: 2 | AN83: 3 | AO83: 4 | AP83: 1 | AT83: 0 | AU83: 4 | GJ83: 14 | GK83: 1 | GL83: a | GM83: e | GN83: 1 | GO83: 2020 | GP83: 2040
C84: District Heat Share | D84: 1 | E84: 2020 | F84: 30 | G84: 2050 | K84: Share of heat supplied by district heating | L84: =ROUND(L217*100,0)&"% of homes are heated by district heat by "&$G$84&" ("&IF(ROUND(L217*100,0)-ROUND($BD$217*100,0)=0,"the same as","compared to "&ROUND($BD$217*100,0)&"%")&" in 2015)." -> 4% of homes are heated by district heat by 2050 (the same as in 2015). | M84: =ROUND(M217*100,0)&"% of homes are heated by district heat by "&$G$84&" ("&IF(ROUND(M217*100,0)-ROUND($BD$217*100,0)=0,"the same as","compared to "&ROUND($BD$217*100,0)&"%")&" in 2015)." -> 20% of homes are heated by district heat by 2050 (compared to 4% in 2015). | N84: =ROUND(N217*100,0)&"% of homes are heated by district heat by "&$G$84&" ("&IF(ROUND(N217*100,0)-ROUND($BD$217*100,0)=0,"the same as","compared to "&ROUND($BD$217*100,0)&"%")&" in 2015)." -> 40% of homes are heated by district heat by 2050 (compared to 4% in 2015). | O84: =ROUND(O217*100,0)&"% of homes are heated by district heat by "&$G$84&" ("&IF(ROUND(O217*100,0)-ROUND($BD$217*100,0)=0,"the same as","compared to "&ROUND($BD$217*100,0)&"%")&" in 2015)." -> 60% of homes are heated by district heat by 2050 (compared to 4% in 2015). | Q84: 2 | R84: 2 | S84: 3 | T84: 1 | U84: 1 | V84: 1 | W84: 1 | X84: 1 | Y84: 1 | Z84: 1 | AA84: 1 | AB84: 1 | AC84: 1 | AD84: 1 | AE84: 1 | AG84: 2020 | AH84: 2050 | AI84: 30 | AJ84: =Simplified.lever.value.16 -> 1 | AK84: =Simplified.lever.16 -> No Control Lv1 | AL84: 1 | AM84: 1 | AN84: 1 | AO84: 1 | AP84: 1 | AT84: 0 | AU84: 2 | GJ84: 15 | GK84: 1 | GL84: a | GM84: g | GN84: 1 | GO84: 2020 | GP84: 2050
C85: Heat Pump Share | D85: 1 | E85: 2020 | F85: 30 | G85: 2050 | K85: Share of heat supplied by heat pumps | L85: =ROUND(L218*100,0)&"% of homes are heated by heat pumps by "&$G$85&" ("&IF(ROUND(L218*100,0)-ROUND($BD$218*100,0)=0,"the same as","compared to "&ROUND($BD$218*100,0)&"%")&" in 2015)." -> 0% of homes are heated by heat pumps by 2050 (the same as in 2015). | M85: =ROUND(M218*100,0)&"% of homes are heated by heat pumps by "&$G$85&" ("&IF(ROUND(M218*100,0)-ROUND($BD$218*100,0)=0,"the same as","compared to "&ROUND($BD$218*100,0)&"%")&" in 2015)." -> 20% of homes are heated by heat pumps by 2050 (compared to 0% in 2015). | N85: =ROUND(N218*100,0)&"% of homes are heated by heat pumps by "&$G$85&" ("&IF(ROUND(N218*100,0)-ROUND($BD$218*100,0)=0,"the same as","compared to "&ROUND($BD$218*100,0)&"%")&" in 2015)." -> 40% of homes are heated by heat pumps by 2050 (compared to 0% in 2015). | O85: =ROUND(O218*100,0)&"% of homes are heated by heat pumps by "&$G$85&" ("&IF(ROUND(O218*100,0)-ROUND($BD$218*100,0)=0,"the same as","compared to "&ROUND($BD$218*100,0)&"%")&" in 2015)." -> 90% of homes are heated by heat pumps by 2050 (compared to 0% in 2015). | Q85: 2 | R85: 2 | S85: 3 | T85: 1 | U85: 1 | V85: 1 | W85: 1 | X85: 1 | Y85: 1 | Z85: 1 | AA85: 1 | AB85: 1 | AC85: 1 | AD85: 1 | AE85: 1 | AG85: 2020 | AH85: 2050 | AI85: 30 | AJ85: =Simplified.lever.value.06 -> 1 | AK85: =Simplified.lever.06 -> Heat Technology | AL85: 1 | AM85: 2 | AN85: 3 | AO85: 4 | AP85: 1 | AT85: 0 | AU85: 2 | GJ85: 16 | GK85: 1 | GL85: a | GM85: g | GN85: 1 | GO85: 2020 | GP85: 2050
C86: Hybrid Heat Share | D86: 1 | E86: 2020 | F86: 30 | G86: 2050 | K86: Share of heat supply from hybrid heat pump / gas boilers | L86: =ROUND(L219*100,0)&"% of homes are heated by hybrid heat pumps by "&$G$86&" ("&IF(ROUND(L219*100,0)-ROUND($BD$219*100,0)=0,"the same as","compared to "&ROUND($BD$219*100,0)&"%")&" in 2015)." -> 0% of homes are heated by hybrid heat pumps by 2050 (the same as in 2015). | M86: =ROUND(M219*100,0)&"% of homes are heated by hybrid heat pumps by "&$G$86&" ("&IF(ROUND(M219*100,0)-ROUND($BD$219*100,0)=0,"the same as","compared to "&ROUND($BD$219*100,0)&"%")&" in 2015)." -> 25% of homes are heated by hybrid heat pumps by 2050 (compared to 0% in 2015). | N86: =ROUND(N219*100,0)&"% of homes are heated by hybrid heat pumps by "&$G$86&" ("&IF(ROUND(N219*100,0)-ROUND($BD$219*100,0)=0,"the same as","compared to "&ROUND($BD$219*100,0)&"%")&" in 2015)." -> 50% of homes are heated by hybrid heat pumps by 2050 (compared to 0% in 2015). | O86: =ROUND(O219*100,0)&"% of homes are heated by hybrid heat pumps by "&$G$86&" ("&IF(ROUND(O219*100,0)-ROUND($BD$219*100,0)=0,"the same as","compared to "&ROUND($BD$219*100,0)&"%")&" in 2015)." -> 90% of homes are heated by hybrid heat pumps by 2050 (compared to 0% in 2015). | Q86: 3 | R86: 2 | S86: 3 | T86: 1 | U86: 1 | V86: 1 | W86: 1 | X86: 1 | Y86: 1 | Z86: 1 | AA86: 1 | AB86: 1 | AC86: 1 | AD86: 1 | AE86: 1 | AG86: 2020 | AH86: 2050 | AI86: 30 | AJ86: =Simplified.lever.value.16 -> 1 | AK86: =Simplified.lever.16 -> No Control Lv1 | AL86: 1 | AM86: 1 | AN86: 1 | AO86: 1 | AP86: 1 | AT86: 0 | AU86: 2 | GJ86: 17 | GK86: 1 | GL86: a | GM86: g | GN86: 1 | GO86: 2020 | GP86: 2050
C87: Network - Heat Pump | D87: 1 | E87: 2020 | F87: 30 | G87: 2050 | K87: District/Network heat supplied by water-source (WS) and ground-source (GS) heat pumps | L87: =IF(AND(L223=0,L224=0),"Heat Pumps do not contribute to heat networks", +L223 +L224 &" "&LEFT($K$223,LEN($K$223)-1)&" from large scale heat pumps, "& L223&" "&LEFT($K$223,LEN($K$223)-1)&" from WS and "& L224&" "&LEFT($K$223,LEN($K$223)-1)&" from GS") &" by "&$G$87 &" (in 2015 "&IF(AND($BD$223=0,$BD$224=0),"neither are used).",$BD$223&" "&LEFT($K$223,LEN($K$223)-1)&" and "&$BD$224&" "&LEFT($K$224,LEN($K$224)-1)&").") -> Heat Pumps do not contribute to heat networks by 2050 (in 2015 neither are used). | M87: =IF(AND(M223=0,M224=0),"Heat Pumps do not contribute to heat networks", +M223 +M224 &" "&LEFT($K$223,LEN($K$223)-1)&" from large scale heat pumps, "& M223&" "&LEFT($K$223,LEN($K$223)-1)&" from WS and "& M224&" "&LEFT($K$223,LEN($K$223)-1)&" from GS") &" by "&$G$87 &" (in 2015 "&IF(AND($BD$223=0,$BD$224=0),"neither are used).",$BD$223&" "&LEFT($K$223,LEN($K$223)-1)&" and "&$BD$224&" "&LEFT($K$224,LEN($K$224)-1)&").") -> 70 TWh from large scale heat pumps, 20 TWh from WS and 50 TWh from GS by 2050 (in 2015 neither are used). | N87: =IF(AND(N223=0,N224=0),"Heat Pumps do not contribute to heat networks", +N223 +N224 &" "&LEFT($K$223,LEN($K$223)-1)&" from large scale heat pumps, "& N223&" "&LEFT($K$223,LEN($K$223)-1)&" from WS and "& N224&" "&LEFT($K$223,LEN($K$223)-1)&" from GS") &" by "&$G$87 &" (in 2015 "&IF(AND($BD$223=0,$BD$224=0),"neither are used).",$BD$223&" "&LEFT($K$223,LEN($K$223)-1)&" and "&$BD$224&" "&LEFT($K$224,LEN($K$224)-1)&").") -> 140 TWh from large scale heat pumps, 40 TWh from WS and 100 TWh from GS by 2050 (in 2015 neither are used). | O87: =IF(AND(O223=0,O224=0),"Heat Pumps do not contribute to heat networks", +O223 +O224 &" "&LEFT($K$223,LEN($K$223)-1)&" from large scale heat pumps, "& O223&" "&LEFT($K$223,LEN($K$223)-1)&" from WS and "& O224&" "&LEFT($K$223,LEN($K$223)-1)&" from GS") &" by "&$G$87 &" (in 2015 "&IF(AND($BD$223=0,$BD$224=0),"neither are used).",$BD$223&" "&LEFT($K$223,LEN($K$223)-1)&" and "&$BD$224&" "&LEFT($K$224,LEN($K$224)-1)&").") -> 305 TWh from large scale heat pumps, 80 TWh from WS and 225 TWh from GS by 2050 (in 2015 neither are used). | Q87: 2 | R87: 2 | S87: 3 | T87: 1 | U87: 1 | V87: 1 | W87: 1 | X87: 1 | Y87: 1 | Z87: 1 | AA87: 1 | AB87: 1 | AC87: 1 | AD87: 1 | AE87: 1 | AG87: 2020 | AH87: 2050 | AI87: 30 | AJ87: =Simplified.lever.value.06 -> 1 | AK87: =Simplified.lever.06 -> Heat Technology | AL87: 1 | AM87: 2 | AN87: 3 | AO87: 4 | AP87: 1 | AT87: 0 | AU87: 2 | GJ87: 18 | GK87: 1 | GL87: a | GM87: g | GN87: 1 | GO87: 2020 | GP87: 2050
C88: Heat Network - Biomass | D88: 1 | E88: 2020 | F88: 30 | G88: 2050 | K88: District/Network heat supply from biomass CHP | L88: =IF(L225=0,"Biomass CHP does not contribute to heat networks", L225&" "&LEFT($K$225,LEN($K$225)-1) &" heat supplied to heat networks from biomass CHP") &" by "&$G$88 -> Biomass CHP does not contribute to heat networks by 2050 | M88: =IF(M225=0,"Biomass CHP does not contribute to heat networks", M225&" "&LEFT($K$225,LEN($K$225)-1) &" heat supplied to heat networks from biomass CHP") &" by "&$G$88 -> 25 TWh heat supplied to heat networks from biomass CHP by 2050 | N88: =IF(N225=0,"Biomass CHP does not contribute to heat networks", N225&" "&LEFT($K$225,LEN($K$225)-1) &" heat supplied to heat networks from biomass CHP") &" by "&$G$88 -> 50 TWh heat supplied to heat networks from biomass CHP by 2050 | O88: =IF(O225=0,"Biomass CHP does not contribute to heat networks", O225&" "&LEFT($K$225,LEN($K$225)-1) &" heat supplied to heat networks from biomass CHP") &" by "&$G$88 -> 100 TWh heat supplied to heat networks from biomass CHP by 2050 | Q88: 1 | R88: 2 | S88: 3 | T88: 1 | U88: 1 | V88: 1 | W88: 1 | X88: 1 | Y88: 1 | Z88: 1 | AA88: 1 | AB88: 1 | AC88: 1 | AD88: 1 | AE88: 1 | AG88: 2020 | AH88: 2050 | AI88: 30 | AJ88: =Simplified.lever.value.16 -> 1 | AK88: =Simplified.lever.16 -> No Control Lv1 | AL88: 1 | AM88: 1 | AN88: 1 | AO88: 1 | AP88: 1 | AT88: 0 | AU88: 1 | GJ88: 19 | GK88: 1 | GL88: a | GM88: g | GN88: 1 | GO88: 2020 | GP88: 2050
C89: Lighting and Appliances | D89: 1 | E89: 2020 | F89: 30 | G89: 2050 | K89: Energy intensity of and demand for lighting and appliances | L89: ="By "&$G$89& ", compared to 2015, domestic lighting demand per person is " &IF(ROUND(L228, 2) = 100%,"the same", IF(L228 > 100%, ROUND((L228 -1)*100, 0)&"% higher", ROUND((1 -L228 )*100, 0)&"% lower"))&" and " &IF(ROUND(L232, 2) = 100%,"the same efficiency", IF(L232 > 100%, ROUND((L232 -1)*100, 0)&"% less efficient", ROUND((1 -L232 )*100, 0)&"% more efficient")) &", appliance demand is " &IF(ROUND(L230, 2)=100,"the same", IF(L230 > 100%, ROUND((L230 -1)*100,0)&"% higher", ROUND((1 -L230 )*100, 0)&"% lower"))&" and " &IF(ROUND(L234, 2) = 100%,"the same efficiency", IF(L234 > 100%, ROUND((L234 -1)*100, 0)&"% less efficient", ROUND((1 -L234 )*100, 0)&"% more efficient.")) -> By 2050, compared to 2015, domestic lighting demand per person is 50% higher and 22% more efficient, appliance demand is 50% higher and 10% more efficient. | M89: ="By "&$G$89& ", compared to 2015, domestic lighting demand per person is " &IF(ROUND(M228, 2) = 100%,"the same", IF(M228 > 100%, ROUND((M228 -1)*100, 0)&"% higher", ROUND((1 -M228 )*100, 0)&"% lower"))&" and " &IF(ROUND(M232, 2) = 100%,"the same efficiency", IF(M232 > 100%, ROUND((M232 -1)*100, 0)&"% less efficient", ROUND((1 -M232 )*100, 0)&"% more efficient")) &", appliance demand is " &IF(ROUND(M230, 2)=100,"the same", IF(M230 > 100%, ROUND((M230 -1)*100,0)&"% higher", ROUND((1 -M230 )*100, 0)&"% lower"))&" and " &IF(ROUND(M234, 2) = 100%,"the same efficiency", IF(M234 > 100%, ROUND((M234 -1)*100, 0)&"% less efficient", ROUND((1 -M234 )*100, 0)&"% more efficient.")) -> By 2050, compared to 2015, domestic lighting demand per person is the same and 67% more efficient, appliance demand is 0% lower and 23% more efficient. | N89: ="By "&$G$89& ", compared to 2015, domestic lighting demand per person is " &IF(ROUND(N228, 2) = 100%,"the same", IF(N228 > 100%, ROUND((N228 -1)*100, 0)&"% higher", ROUND((1 -N228 )*100, 0)&"% lower"))&" and " &IF(ROUND(N232, 2) = 100%,"the same efficiency", IF(N232 > 100%, ROUND((N232 -1)*100, 0)&"% less efficient", ROUND((1 -N232 )*100, 0)&"% more efficient")) &", appliance demand is " &IF(ROUND(N230, 2)=100,"the same", IF(N230 > 100%, ROUND((N230 -1)*100,0)&"% higher", ROUND((1 -N230 )*100, 0)&"% lower"))&" and " &IF(ROUND(N234, 2) = 100%,"the same efficiency", IF(N234 > 100%, ROUND((N234 -1)*100, 0)&"% less efficient", ROUND((1 -N234 )*100, 0)&"% more efficient.")) -> By 2050, compared to 2015, domestic lighting demand per person is 15% lower and 67% more efficient, appliance demand is 25% lower and 37% more efficient. | O89: ="By "&$G$89& ", compared to 2015, domestic lighting demand per person is " &IF(ROUND(O228, 2) = 100%,"the same", IF(O228 > 100%, ROUND((O228 -1)*100, 0)&"% higher", ROUND((1 -O228 )*100, 0)&"% lower"))&" and " &IF(ROUND(O232, 2) = 100%,"the same efficiency", IF(O232 > 100%, ROUND((O232 -1)*100, 0)&"% less efficient", ROUND((1 -O232 )*100, 0)&"% more efficient")) &", appliance demand is " &IF(ROUND(O230, 2)=100,"the same", IF(O230 > 100%, ROUND((O230 -1)*100,0)&"% higher", ROUND((1 -O230 )*100, 0)&"% lower"))&" and " &IF(ROUND(O234, 2) = 100%,"the same efficiency", IF(O234 > 100%, ROUND((O234 -1)*100, 0)&"% less efficient", ROUND((1 -O234 )*100, 0)&"% more efficient.")) -> By 2050, compared to 2015, domestic lighting demand per person is 30% lower and 75% more efficient, appliance demand is 50% lower and 50% more efficient. | Q89: 2 | R89: 2 | S89: 3 | T89: 1 | U89: 1 | V89: 1 | W89: 1 | X89: 1 | Y89: 1 | Z89: 1 | AA89: 1 | AB89: 1 | AC89: 1 | AD89: 1 | AE89: 1 | AG89: 2020 | AH89: 2050 | AI89: 30 | AJ89: =Simplified.lever.value.05 -> 1 | AK89: =Simplified.lever.05 -> Insulation & Efficiency | AL89: 1 | AM89: 2 | AN89: 3 | AO89: 4 | AP89: 1 | AT89: 0 | AU89: 10 | GJ89: 20 | GK89: 1 | GL89: a | GM89: g | GN89: 1 | GO89: 2020 | GP89: 2050
B90: Industry | C90: Industrial Efficiency | D90: 1 | E90: 2020 | F90: =+G90 -E90 -> 30 | G90: 2050 | K90: Energy and emissions intensity of industrial processes | L90: =IF(MAX(L238:L242) = 100%, "No change", IF(MAX(L238:L242) > 100%, ROUND(ABS((MAX(L238:L242) -100%) * 100), 0)&"% increase", ROUND(ABS((MAX(L238:L242) -100%) * 100), 0)&"% decrease")) &" to " &IF(MIN(L238:L242) = 100%, "No change", IF(MIN(L238:L242) > 100%, ROUND(ABS((MIN(L238:L242) -100%) * 100), 0)&"% increase", ROUND(ABS((MIN(L238:L242) -100%) * 100), 0)&"% decrease")) &" in energy consumption and " &IF(L329 = 100%, "no change", IF(L329 > 100%, ROUND(ABS((L329 -100%) * 100), 0)&"% increase", ROUND(ABS((L329 -100%) * 100), 0)&"% decrease")) &" in process emissions, per unit of output by "&$G$90 -> No change to 13% decrease in energy consumption and no change in process emissions, per unit of output by 2050 | M90: =IF(MAX(M238:M242) = 100%, "No change", IF(MAX(M238:M242) > 100%, ROUND(ABS((MAX(M238:M242) -100%) * 100), 0)&"% increase", ROUND(ABS((MAX(M238:M242) -100%) * 100), 0)&"% decrease")) &" to " &IF(MIN(M238:M242) = 100%, "No change", IF(MIN(M238:M242) > 100%, ROUND(ABS((MIN(M238:M242) -100%) * 100), 0)&"% increase", ROUND(ABS((MIN(M238:M242) -100%) * 100), 0)&"% decrease")) &" in energy consumption and " &IF(M329 = 100%, "no change", IF(M329 > 100%, ROUND(ABS((M329 -100%) * 100), 0)&"% increase", ROUND(ABS((M329 -100%) * 100), 0)&"% decrease")) &" in process emissions, per unit of output by "&$G$90 -> No change to 28% decrease in energy consumption and 13% decrease in process emissions, per unit of output by 2050 | N90: =IF(MAX(N238:N242) = 100%, "No change", IF(MAX(N238:N242) > 100%, ROUND(ABS((MAX(N238:N242) -100%) * 100), 0)&"% increase", ROUND(ABS((MAX(N238:N242) -100%) * 100), 0)&"% decrease")) &" to " &IF(MIN(N238:N242) = 100%, "No change", IF(MIN(N238:N242) > 100%, ROUND(ABS((MIN(N238:N242) -100%) * 100), 0)&"% increase", ROUND(ABS((MIN(N238:N242) -100%) * 100), 0)&"% decrease")) &" in energy consumption and " &IF(N329 = 100%, "no change", IF(N329 > 100%, ROUND(ABS((N329 -100%) * 100), 0)&"% increase", ROUND(ABS((N329 -100%) * 100), 0)&"% decrease")) &" in process emissions, per unit of output by "&$G$90 -> 10% decrease to 49% decrease in energy consumption and 27% decrease in process emissions, per unit of output by 2050 | O90: =IF(MAX(O238:O242) = 100%, "No change", IF(MAX(O238:O242) > 100%, ROUND(ABS((MAX(O238:O242) -100%) * 100), 0)&"% increase", ROUND(ABS((MAX(O238:O242) -100%) * 100), 0)&"% decrease")) &" to " &IF(MIN(O238:O242) = 100%, "No change", IF(MIN(O238:O242) > 100%, ROUND(ABS((MIN(O238:O242) -100%) * 100), 0)&"% increase", ROUND(ABS((MIN(O238:O242) -100%) * 100), 0)&"% decrease")) &" in energy consumption and " &IF(O329 = 100%, "no change", IF(O329 > 100%, ROUND(ABS((O329 -100%) * 100), 0)&"% increase", ROUND(ABS((O329 -100%) * 100), 0)&"% decrease")) &" in process emissions, per unit of output by "&$G$90 -> 25% decrease to 60% decrease in energy consumption and 40% decrease in process emissions, per unit of output by 2050 | Q90: 3 | R90: 2 | S90: 3 | T90: 1 | U90: 1 | V90: 1 | W90: 1 | X90: 1 | Y90: 1 | Z90: 1 | AA90: 1 | AB90: 1 | AC90: 1 | AD90: 1 | AE90: 1 | AG90: 2020 | AH90: 2050 | AI90: 30 | AJ90: =Simplified.lever.value.07 -> 1 | AK90: =Simplified.lever.07 -> Carbon Intensity | AL90: 1 | AM90: 2 | AN90: 3 | AO90: 4 | AP90: 1 | AT90: 0 | AU90: 10 | GJ90: 21 | GK90: 1 | GL90: a | GM90: g | GN90: 1 | GO90: 2020 | GP90: 2050
C91: Industry Electrification | D91: 1 | E91: 2020 | F91: =+G91 -E91 -> 30 | G91: 2050 | K91: Share of industrial heat produced from electricity | L91: =ROUND(MIN(L248,L251,L254,L257,L260) * 100, 0)&"% to "&ROUND(MAX(L248,L251,L254,L257,L260) * 100, 0)&"% of heat generated from electricity in industry sub-sectors by "&$G91&" (compared to " &ROUND(MIN($BD248,$BD251,$BD254,$BD257,$BD260) * 100, 0)&"% to "&ROUND(MAX($BD248,$BD251,$BD254,$BD257,$BD260) * 100, 0)&"% in 2015)." -> 3% to 20% of heat generated from electricity in industry sub-sectors by 2050 (compared to 3% to 20% in 2015). | M91: =ROUND(MIN(M248,M251,M254,M257,M260) * 100, 0)&"% to "&ROUND(MAX(M248,M251,M254,M257,M260) * 100, 0)&"% of heat generated from electricity in industry sub-sectors by "&$G91&" (compared to " &ROUND(MIN($BD248,$BD251,$BD254,$BD257,$BD260) * 100, 0)&"% to "&ROUND(MAX($BD248,$BD251,$BD254,$BD257,$BD260) * 100, 0)&"% in 2015)." -> 21% to 43% of heat generated from electricity in industry sub-sectors by 2050 (compared to 3% to 20% in 2015). | N91: =ROUND(MIN(N248,N251,N254,N257,N260) * 100, 0)&"% to "&ROUND(MAX(N248,N251,N254,N257,N260) * 100, 0)&"% of heat generated from electricity in industry sub-sectors by "&$G91&" (compared to " &ROUND(MIN($BD248,$BD251,$BD254,$BD257,$BD260) * 100, 0)&"% to "&ROUND(MAX($BD248,$BD251,$BD254,$BD257,$BD260) * 100, 0)&"% in 2015)." -> 44% to 50% of heat generated from electricity in industry sub-sectors by 2050 (compared to 3% to 20% in 2015). | O91: =ROUND(MIN(O248,O251,O254,O257,O260) * 100, 0)&"% to "&ROUND(MAX(O248,O251,O254,O257,O260) * 100, 0)&"% of heat generated from electricity in industry sub-sectors by "&$G91&" (compared to " &ROUND(MIN($BD248,$BD251,$BD254,$BD257,$BD260) * 100, 0)&"% to "&ROUND(MAX($BD248,$BD251,$BD254,$BD257,$BD260) * 100, 0)&"% in 2015)." -> 85% to 90% of heat generated from electricity in industry sub-sectors by 2050 (compared to 3% to 20% in 2015). | Q91: 3 | R91: 2 | S91: 3 | T91: 1 | U91: 1 | V91: 1 | W91: 1 | X91: 1 | Y91: 1 | Z91: 1 | AA91: 1 | AB91: 1 | AC91: 1 | AD91: 1 | AE91: 1 | AG91: 2020 | AH91: 2050 | AI91: 30 | AJ91: =Simplified.lever.value.07 -> 1 | AK91: =Simplified.lever.07 -> Carbon Intensity | AL91: 1 | AM91: 2 | AN91: 3 | AO91: 4 | AP91: 1 | AT91: 0 | AU91: 5 | GJ91: 22 | GK91: 1 | GL91: a | GM91: g | GN91: 1 | GO91: 2020 | GP91: 2050
C92: Industry Shift to Biomass | D92: 1 | E92: 2020 | F92: =+G92 -E92 -> 30 | G92: 2050 | K92: Share of industrial heat produced from biomass | L92: =ROUND(MIN(L249,L252,L255,L258,L261) * 100, 0)&"% to "&ROUND(MAX(L249,L252,L255,L258,L261) * 100, 0)&"% of heat generated from biomass in industry sub-sectors by "&$G92&" (compared to " &ROUND(MIN($BD249,$BD252,$BD255,$BD258,$BD261) * 100, 0)&"% to "&ROUND(MAX($BD249,$BD252,$BD255,$BD258,$BD261) * 100, 0)&"% in 2015)." -> 0% to 8% of heat generated from biomass in industry sub-sectors by 2050 (compared to 0% to 8% in 2015). | M92: =ROUND(MIN(M249,M252,M255,M258,M261) * 100, 0)&"% to "&ROUND(MAX(M249,M252,M255,M258,M261) * 100, 0)&"% of heat generated from biomass in industry sub-sectors by "&$G92&" (compared to " &ROUND(MIN($BD249,$BD252,$BD255,$BD258,$BD261) * 100, 0)&"% to "&ROUND(MAX($BD249,$BD252,$BD255,$BD258,$BD261) * 100, 0)&"% in 2015)." -> 23% to 31% of heat generated from biomass in industry sub-sectors by 2050 (compared to 0% to 8% in 2015). | N92: =ROUND(MIN(N249,N252,N255,N258,N261) * 100, 0)&"% to "&ROUND(MAX(N249,N252,N255,N258,N261) * 100, 0)&"% of heat generated from biomass in industry sub-sectors by "&$G92&" (compared to " &ROUND(MIN($BD249,$BD252,$BD255,$BD258,$BD261) * 100, 0)&"% to "&ROUND(MAX($BD249,$BD252,$BD255,$BD258,$BD261) * 100, 0)&"% in 2015)." -> 47% to 60% of heat generated from biomass in industry sub-sectors by 2050 (compared to 0% to 8% in 2015). | O92: =ROUND(MIN(O249,O252,O255,O258,O261) * 100, 0)&"% to "&ROUND(MAX(O249,O252,O255,O258,O261) * 100, 0)&"% of heat generated from biomass in industry sub-sectors by "&$G92&" (compared to " &ROUND(MIN($BD249,$BD252,$BD255,$BD258,$BD261) * 100, 0)&"% to "&ROUND(MAX($BD249,$BD252,$BD255,$BD258,$BD261) * 100, 0)&"% in 2015)." -> 70% to 90% of heat generated from biomass in industry sub-sectors by 2050 (compared to 0% to 8% in 2015). | Q92: 1 | R92: 2 | S92: 3 | T92: 1 | U92: 1 | V92: 1 | W92: 1 | X92: 1 | Y92: 1 | Z92: 1 | AA92: 1 | AB92: 1 | AC92: 1 | AD92: 1 | AE92: 1 | AG92: 2020 | AH92: 2050 | AI92: 30 | AJ92: =Simplified.lever.value.16 -> 1 | AK92: =Simplified.lever.16 -> No Control Lv1 | AL92: 1 | AM92: 1 | AN92: 1 | AO92: 1 | AP92: 1 | AT92: 0 | AU92: 5 | GJ92: 23 | GK92: 1 | GL92: a | GM92: g | GN92: 1 | GO92: 2020 | GP92: 2050
C93: Industry Shift to Gas | D93: 1 | E93: 2020 | F93: =+G93 -E93 -> 30 | G93: 2050 | K93: Share of industrial heat produced from gas (natural gas, biomethane or hydrogen) | L93: =ROUND(MIN(L250,L253,L256,L259,L262) * 100, 0)&"% to "&ROUND(MAX(L250,L253,L256,L259,L262) * 100, 0)&"% of heat generated from gas in industry sub-sectors by "&$G93&" (compared to " &ROUND(MIN($BD250,$BD253,$BD256,$BD259,$BD262) * 100, 0)&"% to "&ROUND(MAX($BD250,$BD253,$BD256,$BD259,$BD262) * 100, 0)&"% in 2015)." -> 3% to 74% of heat generated from gas in industry sub-sectors by 2050 (compared to 3% to 74% in 2015). | M93: =ROUND(MIN(M250,M253,M256,M259,M262) * 100, 0)&"% to "&ROUND(MAX(M250,M253,M256,M259,M262) * 100, 0)&"% of heat generated from gas in industry sub-sectors by "&$G93&" (compared to " &ROUND(MIN($BD250,$BD253,$BD256,$BD259,$BD262) * 100, 0)&"% to "&ROUND(MAX($BD250,$BD253,$BD256,$BD259,$BD262) * 100, 0)&"% in 2015)." -> 32% to 78% of heat generated from gas in industry sub-sectors by 2050 (compared to 3% to 74% in 2015). | N93: =ROUND(MIN(N250,N253,N256,N259,N262) * 100, 0)&"% to "&ROUND(MAX(N250,N253,N256,N259,N262) * 100, 0)&"% of heat generated from gas in industry sub-sectors by "&$G93&" (compared to " &ROUND(MIN($BD250,$BD253,$BD256,$BD259,$BD262) * 100, 0)&"% to "&ROUND(MAX($BD250,$BD253,$BD256,$BD259,$BD262) * 100, 0)&"% in 2015)." -> 52% to 83% of heat generated from gas in industry sub-sectors by 2050 (compared to 3% to 74% in 2015). | O93: =ROUND(MIN(O250,O253,O256,O259,O262) * 100, 0)&"% to "&ROUND(MAX(O250,O253,O256,O259,O262) * 100, 0)&"% of heat generated from gas in industry sub-sectors by "&$G93&" (compared to " &ROUND(MIN($BD250,$BD253,$BD256,$BD259,$BD262) * 100, 0)&"% to "&ROUND(MAX($BD250,$BD253,$BD256,$BD259,$BD262) * 100, 0)&"% in 2015)." -> 70% to 90% of heat generated from gas in industry sub-sectors by 2050 (compared to 3% to 74% in 2015). | Q93: 2 | R93: 2 | S93: 3 | T93: 1 | U93: 1 | V93: 1 | W93: 1 | X93: 1 | Y93: 1 | Z93: 1 | AA93: 1 | AB93: 1 | AC93: 1 | AD93: 1 | AE93: 1 | AG93: 2020 | AH93: 2050 | AI93: 30 | AJ93: =Simplified.lever.value.09 -> 1 | AK93: =Simplified.lever.09 -> Hydrogen | AL93: 1 | AM93: 2 | AN93: 3 | AO93: 4 | AP93: 1 | AT93: 0 | AU93: 5 | GJ93: 24 | GK93: 1 | GL93: a | GM93: g | GN93: 1 | GO93: 2020 | GP93: 2050
C94: Industry CCS | D94: 1 | E94: 2025 | F94: =+G94 -E94 -> 35 | G94: 2060 | K94: Share of polluting industrial combustion processes with Carbon Capture and Storage (CCS) applied | L94: =IF(ROUND(MIN(L243,L244,L245,L246,L247)*100,0) = ROUND(MAX(L243,L244,L245,L246,L247)*100,0), ROUND(MIN(L243,L244,L245,L246,L247)*100,0)&"%", ROUND(MIN(L243,L244,L245,L246,L247)*100,0)&"% to "&ROUND(MAX(L243,L244,L245,L246,L247)*100,0)&"%")&" of processes have CCS applied across industrial sub-sectors by "&$G$94&" (compared to " &ROUND(MAX($BD$243,$BD$244,$BD$245,$BD$246,$BD$247)*100,0)&"% in 2015)." -> 0% of processes have CCS applied across industrial sub-sectors by 2060 (compared to 0% in 2015). | M94: =IF(ROUND(MIN(M243,M244,M245,M246,M247)*100,0) = ROUND(MAX(M243,M244,M245,M246,M247)*100,0), ROUND(MIN(M243,M244,M245,M246,M247)*100,0)&"%", ROUND(MIN(M243,M244,M245,M246,M247)*100,0)&"% to "&ROUND(MAX(M243,M244,M245,M246,M247)*100,0)&"%")&" of processes have CCS applied across industrial sub-sectors by "&$G$94&" (compared to " &ROUND(MAX($BD$243,$BD$244,$BD$245,$BD$246,$BD$247)*100,0)&"% in 2015)." -> 23% to 30% of processes have CCS applied across industrial sub-sectors by 2060 (compared to 0% in 2015). | N94: =IF(ROUND(MIN(N243,N244,N245,N246,N247)*100,0) = ROUND(MAX(N243,N244,N245,N246,N247)*100,0), ROUND(MIN(N243,N244,N245,N246,N247)*100,0)&"%", ROUND(MIN(N243,N244,N245,N246,N247)*100,0)&"% to "&ROUND(MAX(N243,N244,N245,N246,N247)*100,0)&"%")&" of processes have CCS applied across industrial sub-sectors by "&$G$94&" (compared to " &ROUND(MAX($BD$243,$BD$244,$BD$245,$BD$246,$BD$247)*100,0)&"% in 2015)." -> 51% to 60% of processes have CCS applied across industrial sub-sectors by 2060 (compared to 0% in 2015). | O94: =IF(ROUND(MIN(O243,O244,O245,O246,O247)*100,0) = ROUND(MAX(O243,O244,O245,O246,O247)*100,0), ROUND(MIN(O243,O244,O245,O246,O247)*100,0)&"%", ROUND(MIN(O243,O244,O245,O246,O247)*100,0)&"% to "&ROUND(MAX(O243,O244,O245,O246,O247)*100,0)&"%")&" of processes have CCS applied across industrial sub-sectors by "&$G$94&" (compared to " &ROUND(MAX($BD$243,$BD$244,$BD$245,$BD$246,$BD$247)*100,0)&"% in 2015)." -> 98% to 100% of processes have CCS applied across industrial sub-sectors by 2060 (compared to 0% in 2015). | Q94: 3 | R94: 2 | S94: 3 | T94: 1 | U94: 1 | V94: 1 | W94: 1 | X94: 1 | Y94: 1 | Z94: 1 | AA94: 1 | AB94: 1 | AC94: 1 | AD94: 1 | AE94: 1 | AG94: 2025 | AH94: 2060 | AI94: 35 | AJ94: =Simplified.lever.value.08 -> 1 | AK94: =Simplified.lever.08 -> Carbon Capture | AL94: 1 | AM94: 2 | AN94: 3 | AO94: 4 | AP94: 1 | AT94: 0 | AU94: 5 | GJ94: 25 | GK94: 1 | GL94: b | GM94: i | GN94: 1 | GO94: 2025 | GP94: 2060
B95: CO2 Removal & Gases | C95: Hydrogen Gas Grid Share | D95: 1 | E95: 2025 | F95: =+G95 -E95 -> 25 | G95: 2050 | K95: Share of the gas grid converted to Hydrogen | L95: =ROUND(ABS(L268*100),1)&"% of the gas grid converted to hydrogen by "&$G$95&" (" &IF(ROUND(L268*100,1)-ROUND($BD$268*100,1)=0,"the same as","compared to "&ROUND($BD$268*100,1)&"%")&" in 2015)." -> 0% of the gas grid converted to hydrogen by 2050 (the same as in 2015). | M95: =ROUND(ABS(M268*100),1)&"% of the gas grid converted to hydrogen by "&$G$95&" (" &IF(ROUND(M268*100,1)-ROUND($BD$268*100,1)=0,"the same as","compared to "&ROUND($BD$268*100,1)&"%")&" in 2015)." -> 33% of the gas grid converted to hydrogen by 2050 (compared to 0% in 2015). | N95: =ROUND(ABS(N268*100),1)&"% of the gas grid converted to hydrogen by "&$G$95&" (" &IF(ROUND(N268*100,1)-ROUND($BD$268*100,1)=0,"the same as","compared to "&ROUND($BD$268*100,1)&"%")&" in 2015)." -> 67% of the gas grid converted to hydrogen by 2050 (compared to 0% in 2015). | O95: =ROUND(ABS(O268*100),1)&"% of the gas grid converted to hydrogen by "&$G$95&" (" &IF(ROUND(O268*100,1)-ROUND($BD$268*100,1)=0,"the same as","compared to "&ROUND($BD$268*100,1)&"%")&" in 2015)." -> 100% of the gas grid converted to hydrogen by 2050 (compared to 0% in 2015). | Q95: 3.7 | R95: 2 | S95: 3 | T95: 1 | U95: 1 | V95: 1 | W95: 1 | X95: 1 | Y95: 1 | Z95: 1 | AA95: 1 | AB95: 1 | AC95: 1 | AD95: 1 | AE95: 1 | AG95: 2025 | AH95: 2050 | AI95: 25 | AJ95: =Simplified.lever.value.09 -> 1 | AK95: =Simplified.lever.09 -> Hydrogen | AL95: 1 | AM95: 2 | AN95: 3 | AO95: 4 | AP95: 1 | AT95: 0 | AU95: 1 | GJ95: 26 | GK95: 1 | GL95: b | GM95: g | GN95: 1 | GO95: 2025 | GP95: 2050
C96: Biomethane Gas Grid Share | D96: 1 | E96: 2020 | F96: 30 | G96: 2050 | K96: Share of gas grid demand supplied by biomethane (substituted into grid) | L96: =ROUND(ABS(L269*100),1)&"% of the gas in the grid is biomethane by "&$G$96&" (" &IF(ROUND(L269*100,1)-ROUND($BD$269*100,1)=0,"the same as","compared to "&ROUND($BD$269*100,1)&"%")&" in 2015)." -> 0.5% of the gas in the grid is biomethane by 2050 (compared to 0.2% in 2015). | M96: =ROUND(ABS(M269*100),1)&"% of the gas in the grid is biomethane by "&$G$96&" (" &IF(ROUND(M269*100,1)-ROUND($BD$269*100,1)=0,"the same as","compared to "&ROUND($BD$269*100,1)&"%")&" in 2015)." -> 5% of the gas in the grid is biomethane by 2050 (compared to 0.2% in 2015). | N96: =ROUND(ABS(N269*100),1)&"% of the gas in the grid is biomethane by "&$G$96&" (" &IF(ROUND(N269*100,1)-ROUND($BD$269*100,1)=0,"the same as","compared to "&ROUND($BD$269*100,1)&"%")&" in 2015)." -> 25% of the gas in the grid is biomethane by 2050 (compared to 0.2% in 2015). | O96: =ROUND(ABS(O269*100),1)&"% of the gas in the grid is biomethane by "&$G$96&" (" &IF(ROUND(O269*100,1)-ROUND($BD$269*100,1)=0,"the same as","compared to "&ROUND($BD$269*100,1)&"%")&" in 2015)." -> 100% of the gas in the grid is biomethane by 2050 (compared to 0.2% in 2015). | Q96: 1 | R96: 2 | S96: 3 | T96: 1 | U96: 1 | V96: 1 | W96: 1 | X96: 1 | Y96: 1 | Z96: 1 | AA96: 1 | AB96: 1 | AC96: 1 | AD96: 1 | AE96: 1 | AG96: 2020 | AH96: 2050 | AI96: 30 | AJ96: =Simplified.lever.value.16 -> 1 | AK96: =Simplified.lever.16 -> No Control Lv1 | AL96: 1 | AM96: 1 | AN96: 1 | AO96: 1 | AP96: 1 | AT96: 0 | AU96: 1 | GJ96: 27 | GK96: 1 | GL96: a | GM96: g | GN96: 1 | GO96: 2020 | GP96: 2050
C97: Hydrogen - Biomass CCS | D97: 1 | E97: 2025 | F97: 35 | G97: 2060 | K97: Hydrogen produced using the gasification of biomass with CCS | L97: =IF(L270=0,"No",L270&" "&LEFT($K270,LEN($K270)-1)&" of")& " hydrogen is produced using biomass gasification with CCS by "&$G97&" (compared to " &$BD270&" "&LEFT($K270,LEN($K270)-1)&" in 2015)." -> No hydrogen is produced using biomass gasification with CCS by 2060 (compared to 0 TWh in 2015). | M97: =IF(M270=0,"No",M270&" "&LEFT($K270,LEN($K270)-1)&" of")& " hydrogen is produced using biomass gasification with CCS by "&$G97&" (compared to " &$BD270&" "&LEFT($K270,LEN($K270)-1)&" in 2015)." -> 50 TWh of hydrogen is produced using biomass gasification with CCS by 2060 (compared to 0 TWh in 2015). | N97: =IF(N270=0,"No",N270&" "&LEFT($K270,LEN($K270)-1)&" of")& " hydrogen is produced using biomass gasification with CCS by "&$G97&" (compared to " &$BD270&" "&LEFT($K270,LEN($K270)-1)&" in 2015)." -> 100 TWh of hydrogen is produced using biomass gasification with CCS by 2060 (compared to 0 TWh in 2015). | O97: =IF(O270=0,"No",O270&" "&LEFT($K270,LEN($K270)-1)&" of")& " hydrogen is produced using biomass gasification with CCS by "&$G97&" (compared to " &$BD270&" "&LEFT($K270,LEN($K270)-1)&" in 2015)." -> 200 TWh of hydrogen is produced using biomass gasification with CCS by 2060 (compared to 0 TWh in 2015). | Q97: 3.2 | R97: 2 | S97: 3 | T97: 1 | U97: 1 | V97: 1 | W97: 1 | X97: 1 | Y97: 1 | Z97: 1 | AA97: 1 | AB97: 1 | AC97: 1 | AD97: 1 | AE97: 1 | AG97: 2025 | AH97: 2060 | AI97: 35 | AJ97: =Simplified.lever.value.16 -> 1 | AK97: =Simplified.lever.16 -> No Control Lv1 | AL97: 1 | AM97: 1 | AN97: 1 | AO97: 1 | AP97: 1 | AT97: 0 | AU97: 1 | GJ97: 28 | GK97: 1 | GL97: b | GM97: i | GN97: 1 | GO97: 2025 | GP97: 2060
C98: Hydrogen - Methane CCS | D98: 1 | E98: 2025 | F98: 35 | G98: 2060 | K98: Hydrogen produced using Steam Methane Reformation (SMR) with CCS | L98: =IF(L271=0,"No",L271&" "&LEFT($K271,LEN($K271)-1)&" of")& " hydrogen is produced using SMR with CCS by "&$G98&" (compared to " &$BD271&" "&LEFT($K271,LEN($K271)-1)&" in 2015)." -> No hydrogen is produced using SMR with CCS by 2060 (compared to 0 TWh in 2015). | M98: =IF(M271=0,"No",M271&" "&LEFT($K271,LEN($K271)-1)&" of")& " hydrogen is produced using SMR with CCS by "&$G98&" (compared to " &$BD271&" "&LEFT($K271,LEN($K271)-1)&" in 2015)." -> 188 TWh of hydrogen is produced using SMR with CCS by 2060 (compared to 0 TWh in 2015). | N98: =IF(N271=0,"No",N271&" "&LEFT($K271,LEN($K271)-1)&" of")& " hydrogen is produced using SMR with CCS by "&$G98&" (compared to " &$BD271&" "&LEFT($K271,LEN($K271)-1)&" in 2015)." -> 375 TWh of hydrogen is produced using SMR with CCS by 2060 (compared to 0 TWh in 2015). | O98: =IF(O271=0,"No",O271&" "&LEFT($K271,LEN($K271)-1)&" of")& " hydrogen is produced using SMR with CCS by "&$G98&" (compared to " &$BD271&" "&LEFT($K271,LEN($K271)-1)&" in 2015)." -> 750 TWh of hydrogen is produced using SMR with CCS by 2060 (compared to 0 TWh in 2015). | Q98: 2 | R98: 2 | S98: 3 | T98: 1 | U98: 1 | V98: 1 | W98: 1 | X98: 1 | Y98: 1 | Z98: 1 | AA98: 1 | AB98: 1 | AC98: 1 | AD98: 1 | AE98: 1 | AG98: 2025 | AH98: 2060 | AI98: 35 | AJ98: =Simplified.lever.value.08 -> 1 | AK98: =Simplified.lever.08 -> Carbon Capture | AL98: 1 | AM98: 1.6 | AN98: 2.2 | AO98: 2.8 | AP98: 1 | AT98: 0 | AU98: 1 | GJ98: 29 | GK98: 1 | GL98: b | GM98: i | GN98: 1 | GO98: 2025 | GP98: 2060
C99: Hydrogen - Imports | D99: 1 | E99: 2025 | F99: 35 | G99: 2060 | K99: Amount of zero-carbon hydrogen imports | L99: =IF(L272 = 0,"No hydrogen imported",L272&" "&LEFT($K$272, LEN($K$272) -1) &" of zero-carbon hydrogen is imported by "&$G$99&".") -> No hydrogen imported | M99: =IF(M272 = 0,"No hydrogen imported",M272&" "&LEFT($K$272, LEN($K$272) -1) &" of zero-carbon hydrogen is imported by "&$G$99&".") -> 138 TWh of zero-carbon hydrogen is imported by 2060. | N99: =IF(N272 = 0,"No hydrogen imported",N272&" "&LEFT($K$272, LEN($K$272) -1) &" of zero-carbon hydrogen is imported by "&$G$99&".") -> 275 TWh of zero-carbon hydrogen is imported by 2060. | O99: =IF(O272 = 0,"No hydrogen imported",O272&" "&LEFT($K$272, LEN($K$272) -1) &" of zero-carbon hydrogen is imported by "&$G$99&".") -> 600 TWh of zero-carbon hydrogen is imported by 2060. | Q99: 1 | R99: 2 | S99: 3 | T99: 1 | U99: 1 | V99: 1 | W99: 1 | X99: 1 | Y99: 1 | Z99: 1 | AA99: 1 | AB99: 1 | AC99: 1 | AD99: 1 | AE99: 1 | AG99: 2025 | AH99: 2060 | AI99: 35 | AJ99: =Simplified.lever.value.16 -> 1 | AK99: =Simplified.lever.16 -> No Control Lv1 | AL99: 1 | AM99: 1 | AN99: 1 | AO99: 1 | AP99: 1 | AT99: 0 | AU99: 1 | GJ99: 30 | GK99: 1 | GL99: b | GM99: i | GN99: 1 | GO99: 2025 | GP99: 2060
C100: Greenhouse Gas Removal | D100: 1 | E100: 2030 | F100: 70 | G100: 2100 | K100: Carbon dioxide captured with Direct Air Capture (DAC) and Enhanced Weathering (EW) | L100: =IF(AND(L288=0,L289=0),"No emissions captured",L288+L289&" "&$K$288&" of CO2 captured by "&$G$100&" ("&L288&" from DAC and "&L289&" from EW)") -> No emissions captured | M100: =IF(AND(M288=0,M289=0),"No emissions captured",M288+M289&" "&$K$288&" of CO2 captured by "&$G$100&" ("&M288&" from DAC and "&M289&" from EW)") -> No emissions captured | N100: =IF(AND(N288=0,N289=0),"No emissions captured",N288+N289&" "&$K$288&" of CO2 captured by "&$G$100&" ("&N288&" from DAC and "&N289&" from EW)") -> 20 Mt.CO2e of CO2 captured by 2100 (15 from DAC and 5 from EW) | O100: =IF(AND(O288=0,O289=0),"No emissions captured",O288+O289&" "&$K$288&" of CO2 captured by "&$G$100&" ("&O288&" from DAC and "&O289&" from EW)") -> 90 Mt.CO2e of CO2 captured by 2100 (75 from DAC and 15 from EW) | Q100: 3.7 | R100: 2 | S100: 3 | T100: 1 | U100: 1 | V100: 1 | W100: 1 | X100: 1 | Y100: 1 | Z100: 1 | AA100: 1 | AB100: 1 | AC100: 1 | AD100: 1 | AE100: 1 | AG100: 2030 | AH100: 2100 | AI100: 70 | AJ100: =Simplified.lever.value.08 -> 1 | AK100: =Simplified.lever.08 -> Carbon Capture | AL100: 1 | AM100: 2 | AN100: 3.4 | AO100: 4 | AP100: 1 | AT100: 0 | AU100: 2 | GJ100: 31 | GK100: 1 | GL100: c | GM100: q | GN100: 1 | GO100: 2030 | GP100: 2100
C101: Bio-Conversion with CCS | D101: 1 | E101: 2025 | F101: 25 | G101: 2050 | K101: Share of bioenergy conversion processes with CCS applied | L101: =IF(MIN(L273,L274,L275) = MAX(L273,L274,L275), ROUND(ABS(L273*100),0), MIN(L273,L274,L275) &"-"& MAX(L273,L274,L275)) &"% of bio-conversion processes have CCS applied by "&$G$101 -> 0% of bio-conversion processes have CCS applied by 2050 | M101: =IF(MIN(M273,M274,M275) = MAX(M273,M274,M275), ROUND(ABS(M273*100),0), MIN(M273,M274,M275) &"-"& MAX(M273,M274,M275)) &"% of bio-conversion processes have CCS applied by "&$G$101 -> 33% of bio-conversion processes have CCS applied by 2050 | N101: =IF(MIN(N273,N274,N275) = MAX(N273,N274,N275), ROUND(ABS(N273*100),0), MIN(N273,N274,N275) &"-"& MAX(N273,N274,N275)) &"% of bio-conversion processes have CCS applied by "&$G$101 -> 67% of bio-conversion processes have CCS applied by 2050 | O101: =IF(MIN(O273,O274,O275) = MAX(O273,O274,O275), ROUND(ABS(O273*100),0), MIN(O273,O274,O275) &"-"& MAX(O273,O274,O275)) &"% of bio-conversion processes have CCS applied by "&$G$101 -> 100% of bio-conversion processes have CCS applied by 2050 | Q101: 3 | R101: 2 | S101: 3 | T101: 1 | U101: 1 | V101: 1 | W101: 1 | X101: 1 | Y101: 1 | Z101: 1 | AA101: 1 | AB101: 1 | AC101: 1 | AD101: 1 | AE101: 1 | AG101: 2025 | AH101: 2050 | AI101: 25 | AJ101: =Simplified.lever.value.08 -> 1 | AK101: =Simplified.lever.08 -> Carbon Capture | AL101: 1 | AM101: 2 | AN101: 3 | AO101: 4 | AP101: 1 | AT101: 0 | AU101: 3 | GJ101: 32 | GK101: 1 | GL101: b | GM101: g | GN101: 1 | GO101: 2025 | GP101: 2050
C102: CCS Capture Rate | D102: 1 | E102: 2025 | F102: 10 | G102: 2035 | K102: The share of carbon captured in CCS for industrial processes, bio-conversion, electricity and hydrogen production. | L102: =IF(ROUND(MIN(L276:L287)*100,0)=ROUND(MAX(L276:L287)*100,0), ROUND(MIN(L276:L287)*100,0) &"% capture rate ", ROUND(MIN(L276:L287)*100,0)&"% to "&ROUND(MAX(L276:L287)*100,0)&"% capture rate range ") &"for CCS processes by "&$G$102&"." -> 65% to 85% capture rate range for CCS processes by 2035. | M102: =IF(ROUND(MIN(M276:M287)*100,0)=ROUND(MAX(M276:M287)*100,0), ROUND(MIN(M276:M287)*100,0) &"% capture rate ", ROUND(MIN(M276:M287)*100,0)&"% to "&ROUND(MAX(M276:M287)*100,0)&"% capture rate range ") &"for CCS processes by "&$G$102&"." -> 77% to 90% capture rate range for CCS processes by 2035. | N102: =IF(ROUND(MIN(N276:N287)*100,0)=ROUND(MAX(N276:N287)*100,0), ROUND(MIN(N276:N287)*100,0) &"% capture rate ", ROUND(MIN(N276:N287)*100,0)&"% to "&ROUND(MAX(N276:N287)*100,0)&"% capture rate range ") &"for CCS processes by "&$G$102&"." -> 88% to 95% capture rate range for CCS processes by 2035. | O102: =IF(ROUND(MIN(O276:O287)*100,0)=ROUND(MAX(O276:O287)*100,0), ROUND(MIN(O276:O287)*100,0) &"% capture rate ", ROUND(MIN(O276:O287)*100,0)&"% to "&ROUND(MAX(O276:O287)*100,0)&"% capture rate range ") &"for CCS processes by "&$G$102&"." -> 100% capture rate for CCS processes by 2035. | Q102: 3.1 | R102: 2 | S102: 3 | T102: 1 | U102: 1 | V102: 1 | W102: 1 | X102: 1 | Y102: 1 | Z102: 1 | AA102: 1 | AB102: 1 | AC102: 1 | AD102: 1 | AE102: 1 | AG102: 2025 | AH102: 2035 | AI102: 10 | AJ102: =Simplified.lever.value.19 -> 4 | AK102: =Simplified.lever.19 -> No Control Lv4 | AL102: 4 | AM102: 4 | AN102: 4 | AO102: 4 | AP102: 4 | AT102: 0 | AU102: 12 | GJ102: 33 | GK102: 1 | GL102: b | GM102: d | GN102: 1 | GO102: 2025 | GP102: 2035
B103: Electricity | C103: Seasonal Storage | D103: 1 | E103: 2020 | F103: =+G103 -E103 -> 30 | G103: 2050 | K103: Electricity stored between seasons to better balance supply and demand | L103: =IF(L290 = 0, "No electricity stored between seasons", L290 &" "&LEFT($K$290,LEN($K$290)-1) &" of electricity stored each year by "&$G$103) &IF($BD$290 = 0, " (none stored in 2015).", " " &$BD$290 &" "&LEFT($K$290,LEN($K$290)-1) &" stored in 2015).") -> No electricity stored between seasons (none stored in 2015). | M103: =IF(M290 = 0, "No electricity stored between seasons", M290 &" "&LEFT($K$290,LEN($K$290)-1) &" of electricity stored each year by "&$G$103) &IF($BD$290 = 0, " (none stored in 2015).", " " &$BD$290 &" "&LEFT($K$290,LEN($K$290)-1) &" stored in 2015).") -> 15 TWh of electricity stored each year by 2050 (none stored in 2015). | N103: =IF(N290 = 0, "No electricity stored between seasons", N290 &" "&LEFT($K$290,LEN($K$290)-1) &" of electricity stored each year by "&$G$103) &IF($BD$290 = 0, " (none stored in 2015).", " " &$BD$290 &" "&LEFT($K$290,LEN($K$290)-1) &" stored in 2015).") -> 30 TWh of electricity stored each year by 2050 (none stored in 2015). | O103: =IF(O290 = 0, "No electricity stored between seasons", O290 &" "&LEFT($K$290,LEN($K$290)-1) &" of electricity stored each year by "&$G$103) &IF($BD$290 = 0, " (none stored in 2015).", " " &$BD$290 &" "&LEFT($K$290,LEN($K$290)-1) &" stored in 2015).") -> 60 TWh of electricity stored each year by 2050 (none stored in 2015). | Q103: 2 | R103: 2 | S103: 3 | T103: 1 | U103: 1 | V103: 1 | W103: 1 | X103: 1 | Y103: 1 | Z103: 1 | AA103: 1 | AB103: 1 | AC103: 1 | AD103: 1 | AE103: 1 | AG103: 2020 | AH103: 2050 | AI103: 30 | AJ103: =Simplified.lever.value.11 -> 1 | AK103: =Simplified.lever.11 -> Wind | AL103: 1 | AM103: 2 | AN103: 3 | AO103: 4 | AP103: 1 | AT103: 0 | AU103: 1 | GJ103: 34 | GK103: 1 | GL103: a | GM103: g | GN103: 1 | GO103: 2020 | GP103: 2050
C104: Short Term Balancing | D104: 1 | E104: 2020 | F104: 30 | G104: 2050 | K104: Short term demand shifting potential through interconnection, demand side response (DSR), vehicle-to-grid (V2G) charging and batteries | L104: =L292&" "&LEFT($K$292,LEN($K$292)-1)&" of interconnectors and " &L291&" "&LEFT($K$291,LEN($K$292)-1)&" of demand shifting capacity by "&$G$104 &" ("&$BD$292&" "&LEFT($K$292,LEN($K$292)-1)&" and "&$BD$291&" "&LEFT($K$291,LEN($K$292)-1)&" in 2015)." -> 6.5 GW of interconnectors and 5 GW of demand shifting capacity by 2050 (4.1 GW and 2.828 GW in 2015). | M104: =M292&" "&LEFT($K$292,LEN($K$292)-1)&" of interconnectors and " &M291&" "&LEFT($K$291,LEN($K$292)-1)&" of demand shifting capacity by "&$G$104 &" ("&$BD$292&" "&LEFT($K$292,LEN($K$292)-1)&" and "&$BD$291&" "&LEFT($K$291,LEN($K$292)-1)&" in 2015)." -> 9 GW of interconnectors and 25 GW of demand shifting capacity by 2050 (4.1 GW and 2.828 GW in 2015). | N104: =N292&" "&LEFT($K$292,LEN($K$292)-1)&" of interconnectors and " &N291&" "&LEFT($K$291,LEN($K$292)-1)&" of demand shifting capacity by "&$G$104 &" ("&$BD$292&" "&LEFT($K$292,LEN($K$292)-1)&" and "&$BD$291&" "&LEFT($K$291,LEN($K$292)-1)&" in 2015)." -> 14.5 GW of interconnectors and 50 GW of demand shifting capacity by 2050 (4.1 GW and 2.828 GW in 2015). | O104: =O292&" "&LEFT($K$292,LEN($K$292)-1)&" of interconnectors and " &O291&" "&LEFT($K$291,LEN($K$292)-1)&" of demand shifting capacity by "&$G$104 &" ("&$BD$292&" "&LEFT($K$292,LEN($K$292)-1)&" and "&$BD$291&" "&LEFT($K$291,LEN($K$292)-1)&" in 2015)." -> 20 GW of interconnectors and 100 GW of demand shifting capacity by 2050 (4.1 GW and 2.828 GW in 2015). | Q104: 2 | R104: 2 | S104: 3 | T104: 1 | U104: 1 | V104: 1 | W104: 1 | X104: 1 | Y104: 1 | Z104: 1 | AA104: 1 | AB104: 1 | AC104: 1 | AD104: 1 | AE104: 1 | AG104: 2020 | AH104: 2050 | AI104: 30 | AJ104: =Simplified.lever.value.11 -> 1 | AK104: =Simplified.lever.11 -> Wind | AL104: 1 | AM104: 2 | AN104: 3 | AO104: 4 | AP104: 1 | AT104: 0 | AU104: 2 | GJ104: 35 | GK104: 1 | GL104: a | GM104: g | GN104: 1 | GO104: 2020 | GP104: 2050
C105: Biomass with CCS | D105: 1 | E105: 2025 | F105: 25 | G105: 2050 | K105: Electricity generation from the combustion of biomass with CCS (generating negative emissions credits under accounting rules) | L105: =L293&" "&LEFT(PrefUnit.Power., LEN(PrefUnit.Power.) -1)&" capacity by "&$G105 &" ("&IF(ROUND(L293*100,1)-ROUND($BD293*100,1)=0,"the same as 2015).",""&$BD293&" "&LEFT($K293,LEN($K293)-1)&" in 2015) capable of generating up to " &ROUND(BM293,0)&" "&LEFT(PrefUnit.Energy.,LEN(PrefUnit.Energy.)-1)&" per year.") -> 0 GW capacity by 2050 (the same as 2015). | M105: =M293&" "&LEFT(PrefUnit.Power., LEN(PrefUnit.Power.) -1)&" capacity by "&$G105 &" ("&IF(ROUND(M293*100,1)-ROUND($BD293*100,1)=0,"the same as 2015).",""&$BD293&" "&LEFT($K293,LEN($K293)-1)&" in 2015) capable of generating up to " &ROUND(BN293,0)&" "&LEFT(PrefUnit.Energy.,LEN(PrefUnit.Energy.)-1)&" per year.") -> 5 GW capacity by 2050 (0 GW in 2015) capable of generating up to 37 TWh per year. | N105: =N293&" "&LEFT(PrefUnit.Power., LEN(PrefUnit.Power.) -1)&" capacity by "&$G105 &" ("&IF(ROUND(N293*100,1)-ROUND($BD293*100,1)=0,"the same as 2015).",""&$BD293&" "&LEFT($K293,LEN($K293)-1)&" in 2015) capable of generating up to " &ROUND(BO293,0)&" "&LEFT(PrefUnit.Energy.,LEN(PrefUnit.Energy.)-1)&" per year.") -> 10 GW capacity by 2050 (0 GW in 2015) capable of generating up to 74 TWh per year. | O105: =O293&" "&LEFT(PrefUnit.Power., LEN(PrefUnit.Power.) -1)&" capacity by "&$G105 &" ("&IF(ROUND(O293*100,1)-ROUND($BD293*100,1)=0,"the same as 2015).",""&$BD293&" "&LEFT($K293,LEN($K293)-1)&" in 2015) capable of generating up to " &ROUND(BP293,0)&" "&LEFT(PrefUnit.Energy.,LEN(PrefUnit.Energy.)-1)&" per year.") -> 15 GW capacity by 2050 (0 GW in 2015) capable of generating up to 110 TWh per year. | Q105: 1 | R105: 2 | S105: 3 | T105: 1 | U105: 1 | V105: 1 | W105: 1 | X105: 1 | Y105: 1 | Z105: 1 | AA105: 1 | AB105: 1 | AC105: 1 | AD105: 1 | AE105: 1 | AG105: 2025 | AH105: 2050 | AI105: 25 | AJ105: =MIN(Simplified.lever.value.08, Simplified.lever.value.15) -> 1 | AK105: ="MIN("&Simplified.lever.08&","& Simplified.lever.15&")" -> MIN(Carbon Capture ,Bioenergy) | AL105: 1 | AM105: 1.5 | AN105: 2 | AO105: 2.35 | AP105: 1 | AT105: 0 | AU105: 1 | GJ105: 36 | GK105: 1 | GL105: b | GM105: g | GN105: 1 | GO105: 2025 | GP105: 2050
C106: Nuclear | D106: 1 | E106: 2030 | F106: 20 | G106: 2050 | K106: Electricity generation using nuclear power | L106: =L294&" "&LEFT(PrefUnit.Power., LEN(PrefUnit.Power.) -1)&" capacity by "&$G106 &IF(ROUND(L294*100,1)-ROUND($BD294*100,1)=0," (the same as 2015).", " ("&ROUND(L294/$BD294,1)&"x the "&ROUND($BD294, 1)&" "&LEFT($K294,LEN($K294)-1)&" capacity in 2015) capable of generating up to " &ROUND(BM294,0)&" "&LEFT(PrefUnit.Energy.,LEN(PrefUnit.Energy.)-1)&" per year.") &" Equivalent to "&ROUND(BT294, 1)&" "&$BR294&" "&$BS294&"." -> 4.5 GW capacity by 2050 (0.5x the 9.6 GW capacity in 2015) capable of generating up to 35 TWh per year. Equivalent to 1.5 3 GW plants.. | M106: =M294&" "&LEFT(PrefUnit.Power., LEN(PrefUnit.Power.) -1)&" capacity by "&$G106 &IF(ROUND(M294*100,1)-ROUND($BD294*100,1)=0," (the same as 2015).", " ("&ROUND(M294/$BD294,1)&"x the "&ROUND($BD294, 1)&" "&LEFT($K294,LEN($K294)-1)&" capacity in 2015) capable of generating up to " &ROUND(BN294,0)&" "&LEFT(PrefUnit.Energy.,LEN(PrefUnit.Energy.)-1)&" per year.") &" Equivalent to "&ROUND(BU294, 1)&" "&$BR294&" "&$BS294&"." -> 15 GW capacity by 2050 (1.6x the 9.6 GW capacity in 2015) capable of generating up to 117 TWh per year. Equivalent to 5 3 GW plants.. | N106: =N294&" "&LEFT(PrefUnit.Power., LEN(PrefUnit.Power.) -1)&" capacity by "&$G106 &IF(ROUND(N294*100,1)-ROUND($BD294*100,1)=0," (the same as 2015).", " ("&ROUND(N294/$BD294,1)&"x the "&ROUND($BD294, 1)&" "&LEFT($K294,LEN($K294)-1)&" capacity in 2015) capable of generating up to " &ROUND(BO294,0)&" "&LEFT(PrefUnit.Energy.,LEN(PrefUnit.Energy.)-1)&" per year.") &" Equivalent to "&ROUND(BV294, 1)&" "&$BR294&" "&$BS294&"." -> 30 GW capacity by 2050 (3.1x the 9.6 GW capacity in 2015) capable of generating up to 234 TWh per year. Equivalent to 10 3 GW plants.. | O106: =O294&" "&LEFT(PrefUnit.Power., LEN(PrefUnit.Power.) -1)&" capacity by "&$G106 &IF(ROUND(O294*100,1)-ROUND($BD294*100,1)=0," (the same as 2015).", " ("&ROUND(O294/$BD294,1)&"x the "&ROUND($BD294, 1)&" "&LEFT($K294,LEN($K294)-1)&" capacity in 2015) capable of generating up to " &ROUND(BP294,0)&" "&LEFT(PrefUnit.Energy.,LEN(PrefUnit.Energy.)-1)&" per year.") &" Equivalent to "&ROUND(BW294, 1)&" "&$BR294&" "&$BS294&"." -> 62 GW capacity by 2050 (6.5x the 9.6 GW capacity in 2015) capable of generating up to 484 TWh per year. Equivalent to 20.7 3 GW plants.. | Q106: 3 | R106: 2 | S106: 3 | T106: 1 | U106: 1 | V106: 1 | W106: 1 | X106: 1 | Y106: 1 | Z106: 1 | AA106: 1 | AB106: 1 | AC106: 1 | AD106: 1 | AE106: 1 | AG106: 2030 | AH106: 2050 | AI106: 20 | AJ106: =Simplified.lever.value.10 -> 1 | AK106: =Simplified.lever.10 -> Nuclear | AL106: 1 | AM106: 2 | AN106: 3 | AO106: 4 | AP106: 1 | AT106: 0 | AU106: 1 | GJ106: 37 | GK106: 1 | GL106: c | GM106: g | GN106: 1 | GO106: 2030 | GP106: 2050
C107: Offshore & Onshore Wind | D107: 1 | E107: 2020 | F107: 30 | G107: 2050 | K107: Electricity generation using onshore and offshore wind | L107: =ROUND(L295 +L296, 1)&" "&LEFT(PrefUnit.Power., LEN(PrefUnit.Power.) -1)&" capacity by "&$G107 &", "&ROUND(L295, 1)&" "&LEFT(PrefUnit.Power., LEN(PrefUnit.Power.) -1)&" onshore and "&ROUND(L296, 1)&" "&LEFT(PrefUnit.Power., LEN(PrefUnit.Power.) -1)&" offshore" &IF(ROUND(L295 +L296,1)-ROUND($BD295 +$BD296,1)=0," (the same as 2015).", " ("&ROUND((L295 +L296)/($BD295 +$BD296),1)&"x the "&ROUND($BD295 +$BD296, 1)&" "&LEFT($K295,LEN($K295)-1)&" capacity in 2015) capable of generating up to " &ROUND(BM295 +BM296,0)&" "&LEFT(PrefUnit.Energy.,LEN(PrefUnit.Energy.)-1)&" per year.") -> 0 GW capacity by 2050, 0 GW onshore and 0 GW offshore (0x the 14.3 GW capacity in 2015) capable of generating up to 0 TWh per year. | M107: =ROUND(M295 +M296, 1)&" "&LEFT(PrefUnit.Power., LEN(PrefUnit.Power.) -1)&" capacity by "&$G107 &", "&ROUND(M295, 1)&" "&LEFT(PrefUnit.Power., LEN(PrefUnit.Power.) -1)&" onshore and "&ROUND(M296, 1)&" "&LEFT(PrefUnit.Power., LEN(PrefUnit.Power.) -1)&" offshore" &IF(ROUND(M295 +M296,1)-ROUND($BD295 +$BD296,1)=0," (the same as 2015).", " ("&ROUND((M295 +M296)/($BD295 +$BD296),1)&"x the "&ROUND($BD295 +$BD296, 1)&" "&LEFT($K295,LEN($K295)-1)&" capacity in 2015) capable of generating up to " &ROUND(BN295 +BN296,0)&" "&LEFT(PrefUnit.Energy.,LEN(PrefUnit.Energy.)-1)&" per year.") -> 77 GW capacity by 2050, 22 GW onshore and 55 GW offshore (5.4x the 14.3 GW capacity in 2015) capable of generating up to 296 TWh per year. | N107: =ROUND(N295 +N296, 1)&" "&LEFT(PrefUnit.Power., LEN(PrefUnit.Power.) -1)&" capacity by "&$G107 &", "&ROUND(N295, 1)&" "&LEFT(PrefUnit.Power., LEN(PrefUnit.Power.) -1)&" onshore and "&ROUND(N296, 1)&" "&LEFT(PrefUnit.Power., LEN(PrefUnit.Power.) -1)&" offshore" &IF(ROUND(N295 +N296,1)-ROUND($BD295 +$BD296,1)=0," (the same as 2015).", " ("&ROUND((N295 +N296)/($BD295 +$BD296),1)&"x the "&ROUND($BD295 +$BD296, 1)&" "&LEFT($K295,LEN($K295)-1)&" capacity in 2015) capable of generating up to " &ROUND(BO295 +BO296,0)&" "&LEFT(PrefUnit.Energy.,LEN(PrefUnit.Energy.)-1)&" per year.") -> 155 GW capacity by 2050, 35 GW onshore and 120 GW offshore (10.8x the 14.3 GW capacity in 2015) capable of generating up to 611 TWh per year. | O107: =ROUND(O295 +O296, 1)&" "&LEFT(PrefUnit.Power., LEN(PrefUnit.Power.) -1)&" capacity by "&$G107 &", "&ROUND(O295, 1)&" "&LEFT(PrefUnit.Power., LEN(PrefUnit.Power.) -1)&" onshore and "&ROUND(O296, 1)&" "&LEFT(PrefUnit.Power., LEN(PrefUnit.Power.) -1)&" offshore" &IF(ROUND(O295 +O296,1)-ROUND($BD295 +$BD296,1)=0," (the same as 2015).", " ("&ROUND((O295 +O296)/($BD295 +$BD296),1)&"x the "&ROUND($BD295 +$BD296, 1)&" "&LEFT($K295,LEN($K295)-1)&" capacity in 2015) capable of generating up to " &ROUND(BP295 +BP296,0)&" "&LEFT(PrefUnit.Energy.,LEN(PrefUnit.Energy.)-1)&" per year.") -> 280 GW capacity by 2050, 80 GW onshore and 200 GW offshore (19.6x the 14.3 GW capacity in 2015) capable of generating up to 1076 TWh per year. | Q107: 2 | R107: 2 | S107: 3 | T107: 1 | U107: 1 | V107: 1 | W107: 1 | X107: 1 | Y107: 1 | Z107: 1 | AA107: 1 | AB107: 1 | AC107: 1 | AD107: 1 | AE107: 1 | AG107: 2020 | AH107: 2050 | AI107: 30 | AJ107: =Simplified.lever.value.11 -> 1 | AK107: =Simplified.lever.11 -> Wind | AL107: 1 | AM107: 2 | AN107: 3 | AO107: 4 | AP107: 1 | AT107: 0 | AU107: 2 | GJ107: 38 | GK107: 1 | GL107: a | GM107: g | GN107: 1 | GO107: 2020 | GP107: 2050
C108: Solar | D108: 1 | E108: 2020 | F108: 30 | G108: 2050 | K108: Electricity generation using solar power | L108: =L297&" "&LEFT(PrefUnit.Power., LEN(PrefUnit.Power.) -1)&" capacity by "&$G108 &IF(ROUND(L297*100,1)-ROUND($BD297*100,1)=0," (the same as 2015).", " ("&ROUND(L297/$BD297,1)&"x the "&ROUND($BD297, 1)&" "&LEFT($K297,LEN($K297)-1)&" capacity in 2015) capable of generating up to " &ROUND(BM297,0)&" "&LEFT(PrefUnit.Energy.,LEN(PrefUnit.Energy.)-1)&" per year.") -> 0 GW capacity by 2050 (0x the 9.5 GW capacity in 2015) capable of generating up to 0 TWh per year. | M108: =M297&" "&LEFT(PrefUnit.Power., LEN(PrefUnit.Power.) -1)&" capacity by "&$G108 &IF(ROUND(M297*100,1)-ROUND($BD297*100,1)=0," (the same as 2015).", " ("&ROUND(M297/$BD297,1)&"x the "&ROUND($BD297, 1)&" "&LEFT($K297,LEN($K297)-1)&" capacity in 2015) capable of generating up to " &ROUND(BN297,0)&" "&LEFT(PrefUnit.Energy.,LEN(PrefUnit.Energy.)-1)&" per year.") -> 70 GW capacity by 2050 (7.3x the 9.5 GW capacity in 2015) capable of generating up to 67 TWh per year. | N108: =N297&" "&LEFT(PrefUnit.Power., LEN(PrefUnit.Power.) -1)&" capacity by "&$G108 &IF(ROUND(N297*100,1)-ROUND($BD297*100,1)=0," (the same as 2015).", " ("&ROUND(N297/$BD297,1)&"x the "&ROUND($BD297, 1)&" "&LEFT($K297,LEN($K297)-1)&" capacity in 2015) capable of generating up to " &ROUND(BO297,0)&" "&LEFT(PrefUnit.Energy.,LEN(PrefUnit.Energy.)-1)&" per year.") -> 165 GW capacity by 2050 (17.3x the 9.5 GW capacity in 2015) capable of generating up to 159 TWh per year. | O108: =O297&" "&LEFT(PrefUnit.Power., LEN(PrefUnit.Power.) -1)&" capacity by "&$G108 &IF(ROUND(O297*100,1)-ROUND($BD297*100,1)=0," (the same as 2015).", " ("&ROUND(O297/$BD297,1)&"x the "&ROUND($BD297, 1)&" "&LEFT($K297,LEN($K297)-1)&" capacity in 2015) capable of generating up to " &ROUND(BP297,0)&" "&LEFT(PrefUnit.Energy.,LEN(PrefUnit.Energy.)-1)&" per year.") -> 300 GW capacity by 2050 (31.5x the 9.5 GW capacity in 2015) capable of generating up to 289 TWh per year. | Q108: 1 | R108: 2 | S108: 3 | T108: 1 | U108: 1 | V108: 1 | W108: 1 | X108: 1 | Y108: 1 | Z108: 1 | AA108: 1 | AB108: 1 | AC108: 1 | AD108: 1 | AE108: 1 | AG108: 2020 | AH108: 2050 | AI108: 30 | AJ108: =Simplified.lever.value.12 -> 1 | AK108: =Simplified.lever.12 -> Solar | AL108: 1 | AM108: 2 | AN108: 3 | AO108: 4 | AP108: 1 | AT108: 0 | AU108: 1 | GJ108: 39 | GK108: 1 | GL108: a | GM108: g | GN108: 1 | GO108: 2020 | GP108: 2050
C109: Wave & Tidal | D109: 1 | E109: 2025 | F109: 25 | G109: 2050 | K109: Electricity generation using wave and tidal power | L109: =ROUND(L298 +L299 +L300, 1)&" "& LEFT(PrefUnit.Power., LEN(PrefUnit.Power.) -1)&" capacity by "&$G109 &", "&ROUND(L298, 1)&" "& LEFT(PrefUnit.Power., LEN(PrefUnit.Power.) -1)&" tidal stream, "&ROUND(L299, 1)&" "& LEFT(PrefUnit.Power., LEN(PrefUnit.Power.) -1)&" tidal range and "&ROUND(L300, 1)&" "& LEFT(PrefUnit.Power., LEN(PrefUnit.Power.) -1)&" wave" &IF(ROUND(L298 +L299 +L300,1)-ROUND($BD298 +$BD299 +$BD300,1)=0," (the same as 2015).", " ("&ROUND($BD298 +$BD299 +$BD300, 1)&" "&LEFT($K298,LEN($K298)-1)&" capacity in 2015) capable of generating up to " &ROUND(BM298 +BM299 +BM300,0)&" "&LEFT(PrefUnit.Energy.,LEN(PrefUnit.Energy.)-1)&" per year.") -> 0 GW capacity by 2050, 0 GW tidal stream, 0 GW tidal range and 0 GW wave (the same as 2015). | M109: =ROUND(M298 +M299 +M300, 1)&" "& LEFT(PrefUnit.Power., LEN(PrefUnit.Power.) -1)&" capacity by "&$G109 &", "&ROUND(M298, 1)&" "& LEFT(PrefUnit.Power., LEN(PrefUnit.Power.) -1)&" tidal stream, "&ROUND(M299, 1)&" "& LEFT(PrefUnit.Power., LEN(PrefUnit.Power.) -1)&" tidal range and "&ROUND(M300, 1)&" "& LEFT(PrefUnit.Power., LEN(PrefUnit.Power.) -1)&" wave" &IF(ROUND(M298 +M299 +M300,1)-ROUND($BD298 +$BD299 +$BD300,1)=0," (the same as 2015).", " ("&ROUND($BD298 +$BD299 +$BD300, 1)&" "&LEFT($K298,LEN($K298)-1)&" capacity in 2015) capable of generating up to " &ROUND(BN298 +BN299 +BN300,0)&" "&LEFT(PrefUnit.Energy.,LEN(PrefUnit.Energy.)-1)&" per year.") -> 9.7 GW capacity by 2050, 8 GW tidal stream, 0.2 GW tidal range and 1.5 GW wave (0 GW capacity in 2015) capable of generating up to 26 TWh per year. | N109: =ROUND(N298 +N299 +N300, 1)&" "& LEFT(PrefUnit.Power., LEN(PrefUnit.Power.) -1)&" capacity by "&$G109 &", "&ROUND(N298, 1)&" "& LEFT(PrefUnit.Power., LEN(PrefUnit.Power.) -1)&" tidal stream, "&ROUND(N299, 1)&" "& LEFT(PrefUnit.Power., LEN(PrefUnit.Power.) -1)&" tidal range and "&ROUND(N300, 1)&" "& LEFT(PrefUnit.Power., LEN(PrefUnit.Power.) -1)&" wave" &IF(ROUND(N298 +N299 +N300,1)-ROUND($BD298 +$BD299 +$BD300,1)=0," (the same as 2015).", " ("&ROUND($BD298 +$BD299 +$BD300, 1)&" "&LEFT($K298,LEN($K298)-1)&" capacity in 2015) capable of generating up to " &ROUND(BO298 +BO299 +BO300,0)&" "&LEFT(PrefUnit.Energy.,LEN(PrefUnit.Energy.)-1)&" per year.") -> 34 GW capacity by 2050, 16 GW tidal stream, 15 GW tidal range and 3 GW wave (0 GW capacity in 2015) capable of generating up to 78 TWh per year. | O109: =ROUND(O298 +O299 +O300, 1)&" "& LEFT(PrefUnit.Power., LEN(PrefUnit.Power.) -1)&" capacity by "&$G109 &", "&ROUND(O298, 1)&" "& LEFT(PrefUnit.Power., LEN(PrefUnit.Power.) -1)&" tidal stream, "&ROUND(O299, 1)&" "& LEFT(PrefUnit.Power., LEN(PrefUnit.Power.) -1)&" tidal range and "&ROUND(O300, 1)&" "& LEFT(PrefUnit.Power., LEN(PrefUnit.Power.) -1)&" wave" &IF(ROUND(O298 +O299 +O300,1)-ROUND($BD298 +$BD299 +$BD300,1)=0," (the same as 2015).", " ("&ROUND($BD298 +$BD299 +$BD300, 1)&" "&LEFT($K298,LEN($K298)-1)&" capacity in 2015) capable of generating up to " &ROUND(BP298 +BP299 +BP300,0)&" "&LEFT(PrefUnit.Energy.,LEN(PrefUnit.Energy.)-1)&" per year.") -> 68 GW capacity by 2050, 22 GW tidal stream, 33 GW tidal range and 13 GW wave (0 GW capacity in 2015) capable of generating up to 152 TWh per year. | Q109: 2 | R109: 2 | S109: 3 | T109: 1 | U109: 1 | V109: 1 | W109: 1 | X109: 1 | Y109: 1 | Z109: 1 | AA109: 1 | AB109: 1 | AC109: 1 | AD109: 1 | AE109: 1 | AG109: 2025 | AH109: 2050 | AI109: 25 | AJ109: =Simplified.lever.value.13 -> 1 | AK109: =Simplified.lever.13 -> Wave & Tidal | AL109: 1 | AM109: 2 | AN109: 3 | AO109: 4 | AP109: 1 | AT109: 0 | AU109: 3 | GJ109: 40 | GK109: 1 | GL109: b | GM109: g | GN109: 1 | GO109: 2025 | GP109: 2050
C110: Gas with CCS | D110: 1 | E110: 2025 | F110: 25 | G110: 2050 | K110: Electricity generation from the combustion of gas with CCS | L110: =L301&" "& LEFT(PrefUnit.Power., LEN(PrefUnit.Power.) -1)&" capacity by "&$G110 &" ("&IF(ROUND(L301*100,1)-ROUND($BD301*100,1)=0,"the same as 2015).",""&$BD301&" "&LEFT($K301,LEN($K301)-1)&" in 2015) capable of generating up to " &ROUND(BM301,0)&" "&LEFT(PrefUnit.Energy.,LEN(PrefUnit.Energy.)-1)&" per year.") -> 0 GW capacity by 2050 (the same as 2015). | M110: =M301&" "& LEFT(PrefUnit.Power., LEN(PrefUnit.Power.) -1)&" capacity by "&$G110 &" ("&IF(ROUND(M301*100,1)-ROUND($BD301*100,1)=0,"the same as 2015).",""&$BD301&" "&LEFT($K301,LEN($K301)-1)&" in 2015) capable of generating up to " &ROUND(BN301,0)&" "&LEFT(PrefUnit.Energy.,LEN(PrefUnit.Energy.)-1)&" per year.") -> 10 GW capacity by 2050 (0 GW in 2015) capable of generating up to 77 TWh per year. | N110: =N301&" "& LEFT(PrefUnit.Power., LEN(PrefUnit.Power.) -1)&" capacity by "&$G110 &" ("&IF(ROUND(N301*100,1)-ROUND($BD301*100,1)=0,"the same as 2015).",""&$BD301&" "&LEFT($K301,LEN($K301)-1)&" in 2015) capable of generating up to " &ROUND(BO301,0)&" "&LEFT(PrefUnit.Energy.,LEN(PrefUnit.Energy.)-1)&" per year.") -> 30 GW capacity by 2050 (0 GW in 2015) capable of generating up to 231 TWh per year. | O110: =O301&" "& LEFT(PrefUnit.Power., LEN(PrefUnit.Power.) -1)&" capacity by "&$G110 &" ("&IF(ROUND(O301*100,1)-ROUND($BD301*100,1)=0,"the same as 2015).",""&$BD301&" "&LEFT($K301,LEN($K301)-1)&" in 2015) capable of generating up to " &ROUND(BP301,0)&" "&LEFT(PrefUnit.Energy.,LEN(PrefUnit.Energy.)-1)&" per year.") -> 60 GW capacity by 2050 (0 GW in 2015) capable of generating up to 463 TWh per year. | Q110: 3 | R110: 2 | S110: 3 | T110: 1 | U110: 1 | V110: 1 | W110: 1 | X110: 1 | Y110: 1 | Z110: 1 | AA110: 1 | AB110: 1 | AC110: 1 | AD110: 1 | AE110: 1 | AG110: 2025 | AH110: 2050 | AI110: 25 | AJ110: =Simplified.lever.value.08 -> 1 | AK110: =Simplified.lever.08 -> Carbon Capture | AL110: 1 | AM110: 1.5 | AN110: 2 | AO110: 2.5 | AP110: 1 | AT110: 0 | AU110: 1 | GJ110: 41 | GK110: 1 | GL110: b | GM110: g | GN110: 1 | GO110: 2025 | GP110: 2050
B111: Land, Bioenergy & Waste | C111: Farming Yield & Efficiency | D111: 1 | E111: 2020 | F111: =+G111 -E111 -> 30 | G111: 2050 | K111: Reductions in the number of livestock, crop yield improvements and the emissions intensity of agricultural processes | L111: ="In "&$G$111 &", emissions intensity is " &IF(MIN(L313,L314,L315,L316)=MAX(L313,L314,L315,L316), IF(MIN(L313,L314,L315,L316)=1,"unchanged", ABS(ROUND((MIN(L313,L314,L315,L316)-1)*100,0)) &"% lower"), ABS(ROUND((MAX(L313,L314,L315,L316)-1)*100,0))&"-"&ABS(ROUND((MIN(L313,L314,L315,L316)-1)*100,0)) &"% lower") &", land yield is " &IF(MIN(L305,L306,L307)=MAX(L305,L306,L307), IF(MIN(L305,L306,L307)=1,"unchanged", ABS(ROUND((MIN(L305,L306,L307)-1)*100,0)) &"% lower"), ABS(ROUND((MIN(L305,L306,L307)-1)*100,0))&"-"&ABS(ROUND((MAX(L305,L306,L307)-1)*100,0)) &"% higher") &", there are " &ABS(ROUND((L303 / $BD$303 *100)-100, 0))&"% "&IF(ROUND((L303 / $BD$303 *100)-100, 0) >= 0, "more", "fewer") &" cattle, " &ABS(ROUND((L302 / $BD$302 *100)-100, 0))&"% "&IF(ROUND((L302 / $BD$302 *100)-100, 0) >= 0, "more", "fewer") &" poultry and " &ABS(ROUND((L304 / $BD$304 *100)-100, 0))&"% "&IF(ROUND((L304 / $BD$304 *100)-100, 0) >= 0, "more", "fewer") &" other livestock" &" compared to 2015." -> In 2050, emissions intensity is unchanged, land yield is 0-25% higher, there are 0% more cattle, 0% more poultry and 0% more other livestock compared to 2015. | M111: ="In "&$G$111 &", emissions intensity is " &IF(MIN(M313,M314,M315,M316)=MAX(M313,M314,M315,M316), IF(MIN(M313,M314,M315,M316)=1,"unchanged", ABS(ROUND((MIN(M313,M314,M315,M316)-1)*100,0)) &"% lower"), ABS(ROUND((MAX(M313,M314,M315,M316)-1)*100,0))&"-"&ABS(ROUND((MIN(M313,M314,M315,M316)-1)*100,0)) &"% lower") &", land yield is " &IF(MIN(M305,M306,M307)=MAX(M305,M306,M307), IF(MIN(M305,M306,M307)=1,"unchanged", ABS(ROUND((MIN(M305,M306,M307)-1)*100,0)) &"% lower"), ABS(ROUND((MIN(M305,M306,M307)-1)*100,0))&"-"&ABS(ROUND((MAX(M305,M306,M307)-1)*100,0)) &"% higher") &", there are " &ABS(ROUND((M303 / $BD$303 *100)-100, 0))&"% "&IF(ROUND((M303 / $BD$303 *100)-100, 0) >= 0, "more", "fewer") &" cattle, " &ABS(ROUND((M302 / $BD$302 *100)-100, 0))&"% "&IF(ROUND((M302 / $BD$302 *100)-100, 0) >= 0, "more", "fewer") &" poultry and " &ABS(ROUND((M304 / $BD$304 *100)-100, 0))&"% "&IF(ROUND((M304 / $BD$304 *100)-100, 0) >= 0, "more", "fewer") &" other livestock" &" compared to 2015." -> In 2050, emissions intensity is 4-8% lower, land yield is 10-37% higher, there are 16% fewer cattle, 10% more poultry and 11% fewer other livestock compared to 2015. | N111: ="In "&$G$111 &", emissions intensity is " &IF(MIN(N313,N314,N315,N316)=MAX(N313,N314,N315,N316), IF(MIN(N313,N314,N315,N316)=1,"unchanged", ABS(ROUND((MIN(N313,N314,N315,N316)-1)*100,0)) &"% lower"), ABS(ROUND((MAX(N313,N314,N315,N316)-1)*100,0))&"-"&ABS(ROUND((MIN(N313,N314,N315,N316)-1)*100,0)) &"% lower") &", land yield is " &IF(MIN(N305,N306,N307)=MAX(N305,N306,N307), IF(MIN(N305,N306,N307)=1,"unchanged", ABS(ROUND((MIN(N305,N306,N307)-1)*100,0)) &"% lower"), ABS(ROUND((MIN(N305,N306,N307)-1)*100,0))&"-"&ABS(ROUND((MAX(N305,N306,N307)-1)*100,0)) &"% higher") &", there are " &ABS(ROUND((N303 / $BD$303 *100)-100, 0))&"% "&IF(ROUND((N303 / $BD$303 *100)-100, 0) >= 0, "more", "fewer") &" cattle, " &ABS(ROUND((N302 / $BD$302 *100)-100, 0))&"% "&IF(ROUND((N302 / $BD$302 *100)-100, 0) >= 0, "more", "fewer") &" poultry and " &ABS(ROUND((N304 / $BD$304 *100)-100, 0))&"% "&IF(ROUND((N304 / $BD$304 *100)-100, 0) >= 0, "more", "fewer") &" other livestock" &" compared to 2015." -> In 2050, emissions intensity is 9-15% lower, land yield is 20-48% higher, there are 32% fewer cattle, 21% more poultry and 23% fewer other livestock compared to 2015. | O111: ="In "&$G$111 &", emissions intensity is " &IF(MIN(O313,O314,O315,O316)=MAX(O313,O314,O315,O316), IF(MIN(O313,O314,O315,O316)=1,"unchanged", ABS(ROUND((MIN(O313,O314,O315,O316)-1)*100,0)) &"% lower"), ABS(ROUND((MAX(O313,O314,O315,O316)-1)*100,0))&"-"&ABS(ROUND((MIN(O313,O314,O315,O316)-1)*100,0)) &"% lower") &", land yield is " &IF(MIN(O305,O306,O307)=MAX(O305,O306,O307), IF(MIN(O305,O306,O307)=1,"unchanged", ABS(ROUND((MIN(O305,O306,O307)-1)*100,0)) &"% lower"), ABS(ROUND((MIN(O305,O306,O307)-1)*100,0))&"-"&ABS(ROUND((MAX(O305,O306,O307)-1)*100,0)) &"% higher") &", there are " &ABS(ROUND((O303 / $BD$303 *100)-100, 0))&"% "&IF(ROUND((O303 / $BD$303 *100)-100, 0) >= 0, "more", "fewer") &" cattle, " &ABS(ROUND((O302 / $BD$302 *100)-100, 0))&"% "&IF(ROUND((O302 / $BD$302 *100)-100, 0) >= 0, "more", "fewer") &" poultry and " &ABS(ROUND((O304 / $BD$304 *100)-100, 0))&"% "&IF(ROUND((O304 / $BD$304 *100)-100, 0) >= 0, "more", "fewer") &" other livestock" &" compared to 2015." -> In 2050, emissions intensity is 13-23% lower, land yield is 30-72% higher, there are 49% fewer cattle, 31% more poultry and 34% fewer other livestock compared to 2015. | Q111: 3.7 | R111: 2 | S111: 3 | T111: 1 | U111: 1 | V111: 1 | W111: 1 | X111: 1 | Y111: 1 | Z111: 1 | AA111: 1 | AB111: 1 | AC111: 1 | AD111: 1 | AE111: 1 | AG111: 2020 | AH111: 2050 | AI111: 30 | AJ111: =MAX(Simplified.lever.value.14, Simplified.lever.value.15) -> 1 | AK111: ="MAX("&Simplified.lever.14&","& Simplified.lever.15&")" -> MAX(Forestry,Bioenergy) | AL111: 1 | AM111: 2 | AN111: 3 | AO111: 4 | AP111: 1 | AT111: 0 | AU111: 11 | GJ111: 42 | GK111: 1 | GL111: a | GM111: g | GN111: 1 | GO111: 2020 | GP111: 2050
C112: Forestry | D112: 1 | E112: 2020 | F112: =+G112 -E112 -> 50 | G112: 2070 | K112: Land dedicated to planting forest (requires land to be freed up using the Farming Yield & Efficiency lever) | L112: =ROUND(L308 / LBBY.LndTot. *100, 0) &"% of UK land area covered by forest by "&$G$112 &" (compared to "&ROUND($BD$308 / LBBY.LndTot. *100, 0)&"% in 2015)." -> 14% of UK land area covered by forest by 2070 (compared to 14% in 2015). | M112: =ROUND(M308 / LBBY.LndTot. *100, 0) &"% of UK land area covered by forest by "&$G$112 &" (compared to "&ROUND($BD$308 / LBBY.LndTot. *100, 0)&"% in 2015)." -> 20% of UK land area covered by forest by 2070 (compared to 14% in 2015). | N112: =ROUND(N308 / LBBY.LndTot. *100, 0) &"% of UK land area covered by forest by "&$G$112 &" (compared to "&ROUND($BD$308 / LBBY.LndTot. *100, 0)&"% in 2015)." -> 23% of UK land area covered by forest by 2070 (compared to 14% in 2015). | O112: =ROUND(O308 / LBBY.LndTot. *100, 0) &"% of UK land area covered by forest by "&$G$112 &" (compared to "&ROUND($BD$308 / LBBY.LndTot. *100, 0)&"% in 2015)." -> 29% of UK land area covered by forest by 2070 (compared to 14% in 2015). | Q112: 3.7 | R112: 2 | S112: 3 | T112: 1 | U112: 1 | V112: 1 | W112: 1 | X112: 1 | Y112: 1 | Z112: 1 | AA112: 1 | AB112: 1 | AC112: 1 | AD112: 1 | AE112: 1 | AG112: 2020 | AH112: 2070 | AI112: 50 | AJ112: =Simplified.lever.value.14 -> 1 | AK112: =Simplified.lever.14 -> Forestry | AL112: 1 | AM112: 2 | AN112: 3 | AO112: 4 | AP112: 1 | AT112: 0 | AU112: 1 | GJ112: 43 | GK112: 1 | GL112: a | GM112: k | GN112: 1 | GO112: 2020 | GP112: 2070
C113: Land for Bioenergy | D113: 1 | E113: 2020 | F113: =+G113 -E113 -> 30 | G113: 2050 | K113: Land dedicated to growing bio-crops (requires land to be freed up using the Farming Yield & Efficiency lever) | L113: =ROUND(L309 / LBBY.LndTot. *100, 1)&"% of UK land area covered by biocrops by "&$G113 &" (compared to "&ROUND($BD309 / LBBY.LndTot. *100, 1)&"% in 2015)" &" and "&ROUND(MIN(L312,L311,L310)*100,0)&"-" &ROUND(MAX(L312,L311,L310)*100,0)&"% of agricultural wastes are collected for energy." -> 0.4% of UK land area covered by biocrops by 2050 (compared to 0.4% in 2015) and 10-19% of agricultural wastes are collected for energy. | M113: =ROUND(M309 / LBBY.LndTot. *100, 1)&"% of UK land area covered by biocrops by "&$G113 &" (compared to "&ROUND($BD309 / LBBY.LndTot. *100, 1)&"% in 2015)" &" and "&ROUND(MIN(M312,M311,M310)*100,0)&"-" &ROUND(MAX(M312,M311,M310)*100,0)&"% of agricultural wastes are collected for energy." -> 2.9% of UK land area covered by biocrops by 2050 (compared to 0.4% in 2015) and 13-38% of agricultural wastes are collected for energy. | N113: =ROUND(N309 / LBBY.LndTot. *100, 1)&"% of UK land area covered by biocrops by "&$G113 &" (compared to "&ROUND($BD309 / LBBY.LndTot. *100, 1)&"% in 2015)" &" and "&ROUND(MIN(N312,N311,N310)*100,0)&"-" &ROUND(MAX(N312,N311,N310)*100,0)&"% of agricultural wastes are collected for energy." -> 5.7% of UK land area covered by biocrops by 2050 (compared to 0.4% in 2015) and 17-69% of agricultural wastes are collected for energy. | O113: =ROUND(O309 / LBBY.LndTot. *100, 1)&"% of UK land area covered by biocrops by "&$G113 &" (compared to "&ROUND($BD309 / LBBY.LndTot. *100, 1)&"% in 2015)" &" and "&ROUND(MIN(O312,O311,O310)*100,0)&"-" &ROUND(MAX(O312,O311,O310)*100,0)&"% of agricultural wastes are collected for energy." -> 8.2% of UK land area covered by biocrops by 2050 (compared to 0.4% in 2015) and 18-100% of agricultural wastes are collected for energy. | Q113: 3.6 | R113: 2 | S113: 3 | T113: 1 | U113: 1 | V113: 1 | W113: 1 | X113: 1 | Y113: 1 | Z113: 1 | AA113: 1 | AB113: 1 | AC113: 1 | AD113: 1 | AE113: 1 | AG113: 2020 | AH113: 2050 | AI113: 30 | AJ113: =Simplified.lever.value.15 -> 1 | AK113: =Simplified.lever.15 -> Bioenergy | AL113: 1 | AM113: 2 | AN113: 3 | AO113: 4 | AP113: 1 | AT113: 0 | AU113: 4 | GJ113: 44 | GK113: 1 | GL113: a | GM113: g | GN113: 1 | GO113: 2020 | GP113: 2050
C114: Waste Reduction | D114: 1 | E114: 2020 | F114: =+G114 -E114 -> 30 | G114: 2050 | K114: Amount of waste produced, recycled and diverted to energy processes | L114: ="By "&$G$114&", " &IF(L325 = 1, "No change", ABS(ROUND((L325 -1) *100, 0)) & IF(L325 > 1, "% increase", "% decrease") ) & " in dry waste (" &ROUND(L318*100, 0)& "% recycled, "&ROUND(L321*100, 0)& "% used for energy)" &", " &IF(L326 = 1, "No change", ABS(ROUND((L326 -1) *100, 0)) & IF(L326 > 1, "% increase", "% decrease") ) & " in wet waste (" &ROUND(L319*100, 0)& "% recycled, "&ROUND(L322*100, 0)& "% used for energy)." -> By 2050, 25% increase in dry waste (50% recycled, 3% used for energy), 20% increase in wet waste (85% recycled, 4% used for energy). | M114: ="By "&$G$114&", " &IF(M325 = 1, "No change", ABS(ROUND((M325 -1) *100, 0)) & IF(M325 > 1, "% increase", "% decrease") ) & " in dry waste (" &ROUND(M318*100, 0)& "% recycled, "&ROUND(M321*100, 0)& "% used for energy)" &", " &IF(M326 = 1, "No change", ABS(ROUND((M326 -1) *100, 0)) & IF(M326 > 1, "% increase", "% decrease") ) & " in wet waste (" &ROUND(M319*100, 0)& "% recycled, "&ROUND(M322*100, 0)& "% used for energy)." -> By 2050, No change in dry waste (65% recycled, 10% used for energy), 20% increase in wet waste (85% recycled, 8% used for energy). | N114: ="By "&$G$114&", " &IF(N325 = 1, "No change", ABS(ROUND((N325 -1) *100, 0)) & IF(N325 > 1, "% increase", "% decrease") ) & " in dry waste (" &ROUND(N318*100, 0)& "% recycled, "&ROUND(N321*100, 0)& "% used for energy)" &", " &IF(N326 = 1, "No change", ABS(ROUND((N326 -1) *100, 0)) & IF(N326 > 1, "% increase", "% decrease") ) & " in wet waste (" &ROUND(N319*100, 0)& "% recycled, "&ROUND(N322*100, 0)& "% used for energy)." -> By 2050, 15% decrease in dry waste (80% recycled, 20% used for energy), 20% increase in wet waste (85% recycled, 12% used for energy). | O114: ="By "&$G$114&", " &IF(O325 = 1, "No change", ABS(ROUND((O325 -1) *100, 0)) & IF(O325 > 1, "% increase", "% decrease") ) & " in dry waste (" &ROUND(O318*100, 0)& "% recycled, "&ROUND(O321*100, 0)& "% used for energy)" &", " &IF(O326 = 1, "No change", ABS(ROUND((O326 -1) *100, 0)) & IF(O326 > 1, "% increase", "% decrease") ) & " in wet waste (" &ROUND(O319*100, 0)& "% recycled, "&ROUND(O322*100, 0)& "% used for energy)." -> By 2050, 35% decrease in dry waste (90% recycled, 10% used for energy), 20% increase in wet waste (85% recycled, 15% used for energy). | Q114: 2 | R114: 2 | S114: 3 | T114: 1 | U114: 1 | V114: 1 | W114: 1 | X114: 1 | Y114: 1 | Z114: 1 | AA114: 1 | AB114: 1 | AC114: 1 | AD114: 1 | AE114: 1 | AG114: 2020 | AH114: 2050 | AI114: 30 | AJ114: =Simplified.lever.value.15 -> 1 | AK114: =Simplified.lever.15 -> Bioenergy | AL114: 1 | AM114: 2 | AN114: 3 | AO114: 4 | AP114: 1 | AR114: =IF(SUMIFS($BC$166:$BC$327, $AB$166:$AB$327, $C114) = 0, "", $C114) ->  | AT114: 0 | AU114: 10 | GJ114: 45 | GK114: 1 | GL114: a | GM114: g | GN114: 1 | GO114: 2020 | GP114: 2050
AS115: =AS114 ->  | AT115: =SUM(AT70:AT114) -> 0 | GK115: =GK70 &GK71 &GK72 &GK73 &GK74 &GK75 &GK76 &GK77 &GK78 &GK79 &GK80 &GK81 &GK82 &GK83 &GK84 &GK85 &GK86 &GK87 &GK88 &GK89 &GK90 &GK91 &GK92 &GK93 &GK94 &GK95 &GK96 &GK97 &GK98 &GK99 &GK100 &GK101 &GK102 &GK103 &GK104 &GK105 &GK106 &GK107 &GK108 &GK109 &GK110 &GK111 &GK112 &GK113 &GK114 -> 111111111111111111111111111111111111111111111 | GL115: =GL70 &GL71 &GL72 &GL73 &GL74 &GL75 &GL76 &GL77 &GL78 &GL79 &GL80 &GL81 &GL82 &GL83 &GL84 &GL85 &GL86 &GL87 &GL88 &GL89 &GL90 &GL91 &GL92 &GL93 &GL94 &GL95 &GL96 &GL97 &GL98 &GL99 &GL100 &GL101 &GL102 &GL103 &GL104 &GL105 &GL106 &GL107 &GL108 &GL109 &GL110 &GL111 &GL112 &GL113 &GL114 -> aaabaaabaaabaaaaaaaaaaaabbabbbcbbaabcaabbaaaa | GM115: =GM70 &GM71 &GM72 &GM73 &GM74 &GM75 &GM76 &GM77 &GM78 &GM79 &GM80 &GM81 &GM82 &GM83 &GM84 &GM85 &GM86 &GM87 &GM88 &GM89 &GM90 &GM91 &GM92 &GM93 &GM94 &GM95 &GM96 &GM97 &GM98 &GM99 &GM100 &GM101 &GM102 &GM103 &GM104 &GM105 &GM106 &GM107 &GM108 &GM109 &GM110 &GM111 &GM112 &GM113 &GM114 -> gggggggggggggeggggggggggiggiiiqgdgggggggggkgg
A130: Levers 'My 2050'
K131: Note: ambition Level description formula only work if integer My2050 lever settings correspond to integer webtool lever settings.
K132: Note: description are of the world in the year 2050 not of the final level of ambition which may differ.
C133: output.simple.lever.names | D133: input.simple.lever.ambition | K133: output.simple.lever.descriptions
C134: Lever | D134: Ambition | E134: Lever Named range | F134: Lever Value Named range | H134: Ambition | K134: Lever description | L134: Level 1 | M134: Level 2 | N134: Level 3 | O134: Level 4
B135: Transport | C135: Transport Behaviour | D135: 1 | E135: Simplified.lever.01 | F135: Simplified.lever.value.01 | K135: How far and by what methods passengers travel | L135: ="In 2050, average annual distance travelled per person domestically is " &IF(ROUND(ABS((INDEX($L$166:$O$166, 0, AL$70)-$BD$166) * 100 / $BD$166), 0) = 0, "the same as", ROUND(ABS((INDEX($L$166:$O$166, 0, AL$70)-$BD$166) * 100 / $BD$166), 0) & "% "&IF(INDEX($L$166:$O$166, 0, AL$70) -$BD$166 > 0, "further than", "less than"))&" in 2015. " &ROUND(INDEX($L$169:$O$169, 0, AL$70) *100, 0) &"% of this is done by car." &" International travel is " &IF(ROUND(((INDEX($L$173:$O$173, 0, AL$71) -$BD$173) * 100 / $BD$173), 0) = 0,"the same as", ROUND(ABS((INDEX($L$173:$O$173, 0, AL$71) -$BD$173) * 100 / $BD$173), 0) & "% "& IF(INDEX($L$173:$O$173, 0, AL$71) > $BD$173, "higher than", "lower than"))&" in 2015." -> In 2050, average annual distance travelled per person domestically is 10% further than in 2015. 81% of this is done by car. International travel is 41% higher than in 2015. | M135: ="In 2050, average annual distance travelled per person domestically is " &IF(ROUND(ABS((INDEX($L$166:$O$166, 0, AM$70)-$BD$166) * 100 / $BD$166), 0) = 0, "the same as", ROUND(ABS((INDEX($L$166:$O$166, 0, AM$70)-$BD$166) * 100 / $BD$166), 0) & "% "&IF(INDEX($L$166:$O$166, 0, AM$70) -$BD$166 > 0, "further than", "less than"))&" in 2015. " &ROUND(INDEX($L$169:$O$169, 0, AM$70) *100, 0) &"% of this is done by car." &" International travel is " &IF(ROUND(((INDEX($L$173:$O$173, 0, AM$71) -$BD$173) * 100 / $BD$173), 0) = 0,"the same as", ROUND(ABS((INDEX($L$173:$O$173, 0, AM$71) -$BD$173) * 100 / $BD$173), 0) & "% "& IF(INDEX($L$173:$O$173, 0, AM$71) > $BD$173, "higher than", "lower than"))&" in 2015." -> In 2050, average annual distance travelled per person domestically is 2% less than in 2015. 73% of this is done by car. International travel is 27% higher than in 2015. | N135: ="In 2050, average annual distance travelled per person domestically is " &IF(ROUND(ABS((INDEX($L$166:$O$166, 0, AN$70)-$BD$166) * 100 / $BD$166), 0) = 0, "the same as", ROUND(ABS((INDEX($L$166:$O$166, 0, AN$70)-$BD$166) * 100 / $BD$166), 0) & "% "&IF(INDEX($L$166:$O$166, 0, AN$70) -$BD$166 > 0, "further than", "less than"))&" in 2015. " &ROUND(INDEX($L$169:$O$169, 0, AN$70) *100, 0) &"% of this is done by car." &" International travel is " &IF(ROUND(((INDEX($L$173:$O$173, 0, AN$71) -$BD$173) * 100 / $BD$173), 0) = 0,"the same as", ROUND(ABS((INDEX($L$173:$O$173, 0, AN$71) -$BD$173) * 100 / $BD$173), 0) & "% "& IF(INDEX($L$173:$O$173, 0, AN$71) > $BD$173, "higher than", "lower than"))&" in 2015." -> In 2050, average annual distance travelled per person domestically is 9% less than in 2015. 63% of this is done by car. International travel is 12% higher than in 2015. | O135: ="In 2050, average annual distance travelled per person domestically is " &IF(ROUND(ABS((INDEX($L$166:$O$166, 0, AO$70)-$BD$166) * 100 / $BD$166), 0) = 0, "the same as", ROUND(ABS((INDEX($L$166:$O$166, 0, AO$70)-$BD$166) * 100 / $BD$166), 0) & "% "&IF(INDEX($L$166:$O$166, 0, AO$70) -$BD$166 > 0, "further than", "less than"))&" in 2015. " &ROUND(INDEX($L$169:$O$169, 0, AO$70) *100, 0) &"% of this is done by car." &" International travel is " &IF(ROUND(((INDEX($L$173:$O$173, 0, AO$71) -$BD$173) * 100 / $BD$173), 0) = 0,"the same as", ROUND(ABS((INDEX($L$173:$O$173, 0, AO$71) -$BD$173) * 100 / $BD$173), 0) & "% "& IF(INDEX($L$173:$O$173, 0, AO$71) > $BD$173, "higher than", "lower than"))&" in 2015." -> In 2050, average annual distance travelled per person domestically is 24% less than in 2015. 49% of this is done by car. International travel is 3% lower than in 2015.
C136: Light Vehicle Technology | D136: 1 | E136: Simplified.lever.02 | F136: Simplified.lever.value.02 | K136: Share of cars, vans and small trucks powered by electricity | L136: ="By 2050, "&ROUND(INDEX($L$176:$O$176, 0, AL$72) *100, 0) &"% of cars, " & ROUND(INDEX($L$179:$O$179, 0, AL$72) *100, 0) &"% of vans and " &ROUND(INDEX($L$182:$O$182, 0, AL$72) *100, 0) &"% of small trucks are electric." -> By 2050, 0% of cars, 0% of vans and 0% of small trucks are electric. | M136: ="By 2050, "&ROUND(INDEX($L$176:$O$176, 0, AM$72) *100, 0) &"% of cars, " & ROUND(INDEX($L$179:$O$179, 0, AM$72) *100, 0) &"% of vans and " &ROUND(INDEX($L$182:$O$182, 0, AM$72) *100, 0) &"% of small trucks are electric." -> By 2050, 50% of cars, 50% of vans and 20% of small trucks are electric. | N136: ="By 2050, "&ROUND(INDEX($L$176:$O$176, 0, AN$72) *100, 0) &"% of cars, " & ROUND(INDEX($L$179:$O$179, 0, AN$72) *100, 0) &"% of vans and " &ROUND(INDEX($L$182:$O$182, 0, AN$72) *100, 0) &"% of small trucks are electric." -> By 2050, 95% of cars, 95% of vans and 50% of small trucks are electric. | O136: ="By 2050, "&ROUND(INDEX($L$176:$O$176, 0, AO$72) *100, 0) &"% of cars, " & ROUND(INDEX($L$179:$O$179, 0, AO$72) *100, 0) &"% of vans and " &ROUND(INDEX($L$182:$O$182, 0, AO$72) *100, 0) &"% of small trucks are electric." -> By 2050, 100% of cars, 100% of vans and 100% of small trucks are electric.
C137: Heavy Vehicle Technology | D137: 1 | E137: Simplified.lever.03 | F137: Simplified.lever.value.03 | K137: Share of large trucks, buses and trains powered by electricity | L137: ="By 2050, "&ROUND(MIN(100%, +INDEX($L$185:$O$185, 0, AL$76) +INDEX($L$186:$O$186, 0, AL$77)) * 100, 0)&"% of large trucks, "& ROUND(MIN(100%, +INDEX($L$188:$O$188, 0, AL$76) +INDEX($L$189:$O$189, 0, AL$77)) * 100, 0)&"% of buses, "& ROUND(MIN(100%, +INDEX($L$191:$O$191, 0, AL$76)) * 100, 0)&"% of passenger trains are electric." -> By 2050, 0% of large trucks, 0% of buses, 65% of passenger trains are electric. | M137: ="By 2050, "&ROUND(MIN(100%, +INDEX($L$185:$O$185, 0, AM$76) +INDEX($L$186:$O$186, 0, AM$77)) * 100, 0)&"% of large trucks, "& ROUND(MIN(100%, +INDEX($L$188:$O$188, 0, AM$76) +INDEX($L$189:$O$189, 0, AM$77)) * 100, 0)&"% of buses, "& ROUND(MIN(100%, +INDEX($L$191:$O$191, 0, AM$76)) * 100, 0)&"% of passenger trains are electric." -> By 2050, 2% of large trucks, 40% of buses, 80% of passenger trains are electric. | N137: ="By 2050, "&ROUND(MIN(100%, +INDEX($L$185:$O$185, 0, AN$76) +INDEX($L$186:$O$186, 0, AN$77)) * 100, 0)&"% of large trucks, "& ROUND(MIN(100%, +INDEX($L$188:$O$188, 0, AN$76) +INDEX($L$189:$O$189, 0, AN$77)) * 100, 0)&"% of buses, "& ROUND(MIN(100%, +INDEX($L$191:$O$191, 0, AN$76)) * 100, 0)&"% of passenger trains are electric." -> By 2050, 15% of large trucks, 60% of buses, 90% of passenger trains are electric. | O137: ="By 2050, "&ROUND(MIN(100%, +INDEX($L$185:$O$185, 0, AO$76) +INDEX($L$186:$O$186, 0, AO$77)) * 100, 0)&"% of large trucks, "& ROUND(MIN(100%, +INDEX($L$188:$O$188, 0, AO$76) +INDEX($L$189:$O$189, 0, AO$77)) * 100, 0)&"% of buses, "& ROUND(MIN(100%, +INDEX($L$191:$O$191, 0, AO$76)) * 100, 0)&"% of passenger trains are electric." -> By 2050, 100% of large trucks, 100% of buses, 100% of passenger trains are electric.
B138: Buildings | C138: Buildings Behaviour | D138: 1 | E138: Simplified.lever.04 | F138: Simplified.lever.value.04 | K138: Average temperature of homes, demand for hot water and air conditioning (AC) | L138: ="In 2050, average household temperature is "&INDEX($L$209:$O$209, 0, AL$82) & $K$209 &" and " &ROUND(INDEX($L$226:$O$226, 0, AL$82) * 100, 0)& "% of homes have AC." -> In 2050, average household temperature is 20°C and 50% of homes have AC. | M138: ="In 2050, average household temperature is "&INDEX($L$209:$O$209, 0, AM$82) & $K$209 &" and " &ROUND(INDEX($L$226:$O$226, 0, AM$82) * 100, 0)& "% of homes have AC." -> In 2050, average household temperature is 18°C and 33% of homes have AC. | N138: ="In 2050, average household temperature is "&INDEX($L$209:$O$209, 0, AN$82) & $K$209 &" and " &ROUND(INDEX($L$226:$O$226, 0, AN$82) * 100, 0)& "% of homes have AC." -> In 2050, average household temperature is 17°C and 17% of homes have AC. | O138: ="In 2050, average household temperature is "&INDEX($L$209:$O$209, 0, AO$82) & $K$209 &" and " &ROUND(INDEX($L$226:$O$226, 0, AO$82) * 100, 0)& "% of homes have AC." -> In 2050, average household temperature is 16°C and 0% of homes have AC.
C139: Insulation & Efficiency | D139: 1 | E139: Simplified.lever.05 | F139: Simplified.lever.value.05 | K139: Insulation levels in buildings and the use and efficiency of appliances | L139: ="By 2050, " &ROUND(INDEX($L$210:$O$210, 0, AL$83) * 100 / INDEX(Cap.dDwlBYS., MATCH($AH$83,Prd.,0)), 0) & "% of existing homes have maximum insulation, heat losses from new builds are " &IF(ROUND(ABS((INDEX($L$211:$O$211, 0, AL$83) -$BD$211)*100/$BD$211),0)=0, "the same as", ROUND(ABS((INDEX($L$211:$O$211, 0, AL$83) -$BD$211)*100/$BD$211),0)& "% " &IF(INDEX($L$211:$O$211, 0, AL$83)-$BD$211<0,"less than","more than"))&" in 2015." &" Appliances use "&ABS(ROUND((INDEX($L$230:$O$230, 0, AL$89) -100%) * 100, 0)) &"% "&IF(INDEX($L$230:$O$230, 0, AL$89) < 100%, "less", "more") &" energy." -> By 2050, 9% of existing homes have maximum insulation, heat losses from new builds are the same as in 2015. Appliances use 50% more energy. | M139: ="By 2050, " &ROUND(INDEX($L$210:$O$210, 0, AM$83) * 100 / INDEX(Cap.dDwlBYS., MATCH($AH$83,Prd.,0)), 0) & "% of existing homes have maximum insulation, heat losses from new builds are " &IF(ROUND(ABS((INDEX($L$211:$O$211, 0, AM$83) -$BD$211)*100/$BD$211),0)=0, "the same as", ROUND(ABS((INDEX($L$211:$O$211, 0, AM$83) -$BD$211)*100/$BD$211),0)& "% " &IF(INDEX($L$211:$O$211, 0, AM$83)-$BD$211<0,"less than","more than"))&" in 2015." &" Appliances use "&ABS(ROUND((INDEX($L$230:$O$230, 0, AM$89) -100%) * 100, 0)) &"% "&IF(INDEX($L$230:$O$230, 0, AM$89) < 100%, "less", "more") &" energy." -> By 2050, 34% of existing homes have maximum insulation, heat losses from new builds are 33% less than in 2015. Appliances use 0% more energy. | N139: ="By 2050, " &ROUND(INDEX($L$210:$O$210, 0, AN$83) * 100 / INDEX(Cap.dDwlBYS., MATCH($AH$83,Prd.,0)), 0) & "% of existing homes have maximum insulation, heat losses from new builds are " &IF(ROUND(ABS((INDEX($L$211:$O$211, 0, AN$83) -$BD$211)*100/$BD$211),0)=0, "the same as", ROUND(ABS((INDEX($L$211:$O$211, 0, AN$83) -$BD$211)*100/$BD$211),0)& "% " &IF(INDEX($L$211:$O$211, 0, AN$83)-$BD$211<0,"less than","more than"))&" in 2015." &" Appliances use "&ABS(ROUND((INDEX($L$230:$O$230, 0, AN$89) -100%) * 100, 0)) &"% "&IF(INDEX($L$230:$O$230, 0, AN$89) < 100%, "less", "more") &" energy." -> By 2050, 58% of existing homes have maximum insulation, heat losses from new builds are 58% less than in 2015. Appliances use 25% less energy. | O139: ="By 2050, " &ROUND(INDEX($L$210:$O$210, 0, AO$83) * 100 / INDEX(Cap.dDwlBYS., MATCH($AH$83,Prd.,0)), 0) & "% of existing homes have maximum insulation, heat losses from new builds are " &IF(ROUND(ABS((INDEX($L$211:$O$211, 0, AO$83) -$BD$211)*100/$BD$211),0)=0, "the same as", ROUND(ABS((INDEX($L$211:$O$211, 0, AO$83) -$BD$211)*100/$BD$211),0)& "% " &IF(INDEX($L$211:$O$211, 0, AO$83)-$BD$211<0,"less than","more than"))&" in 2015." &" Appliances use "&ABS(ROUND((INDEX($L$230:$O$230, 0, AO$89) -100%) * 100, 0)) &"% "&IF(INDEX($L$230:$O$230, 0, AO$89) < 100%, "less", "more") &" energy." -> By 2050, 83% of existing homes have maximum insulation, heat losses from new builds are 83% less than in 2015. Appliances use 50% less energy.
C140: Heat Technology | D140: 1 | E140: Simplified.lever.06 | F140: Simplified.lever.value.06 | I140: *may need to control more than just HP as this leaves a lot of gas still on the system at level 4 | K140: Amount of heating for buildings supplied by electric heat pumps | L140: ="By 2050, "&ROUND(INDEX($L$218:$O$218, 0, AL$85) *100, 0) &"% of residential heat is supplied by electric heat pumps." -> By 2050, 0% of residential heat is supplied by electric heat pumps. | M140: ="By 2050, "&ROUND(INDEX($L$218:$O$218, 0, AM$85) *100, 0) &"% of residential heat is supplied by electric heat pumps." -> By 2050, 20% of residential heat is supplied by electric heat pumps. | N140: ="By 2050, "&ROUND(INDEX($L$218:$O$218, 0, AN$85) *100, 0) &"% of residential heat is supplied by electric heat pumps." -> By 2050, 40% of residential heat is supplied by electric heat pumps. | O140: ="By 2050, "&ROUND(INDEX($L$218:$O$218, 0, AO$85) *100, 0) &"% of residential heat is supplied by electric heat pumps." -> By 2050, 90% of residential heat is supplied by electric heat pumps.
B141: Industry | C141: Carbon Intensity | D141: 1 | E141: Simplified.lever.07 | F141: Simplified.lever.value.07 | K141: Efficiency improvements and electrification of industrial processes | L141: ="By 2050, "&ROUND(INDEX($BN$254:$BQ$254, 0, AL$91) * 100, 0) &"% of heat generated in industry is from electricity (compared to " &ROUND(INDEX($BN$254:$BQ$254, 0, $AL$91) * 100, 0)&"% in 2015). Industry energy efficiency improves by "&ROUND(100-INDEX($BW$254:$BZ$254, 0, AL$91) * 100, 0)& "% relative to 2015." -> By 2050, 15% of heat generated in industry is from electricity (compared to 15% in 2015). Industry energy efficiency improves by 9% relative to 2015. | M141: ="By 2050, "&ROUND(INDEX($BN$254:$BQ$254, 0, AM$91) * 100, 0) &"% of heat generated in industry is from electricity (compared to " &ROUND(INDEX($BN$254:$BQ$254, 0, $AL$91) * 100, 0)&"% in 2015). Industry energy efficiency improves by "&ROUND(100-INDEX($BW$254:$BZ$254, 0, AM$91) * 100, 0)& "% relative to 2015." -> By 2050, 32% of heat generated in industry is from electricity (compared to 15% in 2015). Industry energy efficiency improves by 20% relative to 2015. | N141: ="By 2050, "&ROUND(INDEX($BN$254:$BQ$254, 0, AN$91) * 100, 0) &"% of heat generated in industry is from electricity (compared to " &ROUND(INDEX($BN$254:$BQ$254, 0, $AL$91) * 100, 0)&"% in 2015). Industry energy efficiency improves by "&ROUND(100-INDEX($BW$254:$BZ$254, 0, AN$91) * 100, 0)& "% relative to 2015." -> By 2050, 48% of heat generated in industry is from electricity (compared to 15% in 2015). Industry energy efficiency improves by 38% relative to 2015. | O141: ="By 2050, "&ROUND(INDEX($BN$254:$BQ$254, 0, AO$91) * 100, 0) &"% of heat generated in industry is from electricity (compared to " &ROUND(INDEX($BN$254:$BQ$254, 0, $AL$91) * 100, 0)&"% in 2015). Industry energy efficiency improves by "&ROUND(100-INDEX($BW$254:$BZ$254, 0, AO$91) * 100, 0)& "% relative to 2015." -> By 2050, 88% of heat generated in industry is from electricity (compared to 15% in 2015). Industry energy efficiency improves by 50% relative to 2015.
B142: CO2 Reduction | C142: Carbon Capture | D142: 1 | E142: Simplified.lever.08 | F142: Simplified.lever.value.08 | K142: Carbon capture and storage of CO2 from combustion of carbon-based fuels by industry and electricity generation, or low-carbon hydrogen production | L142: ="By 2050, " &ROUND(INDEX($BM$301:$BP$301, 0, AL$110) * MIN(100%, (2050 -$AD$301) / $AE$301), 0)&" "&LEFT(PrefUnit.Energy.,LEN(PrefUnit.Energy.)-1)&" of electricity and " &ROUND(INDEX($L$271:$O$271, 0, AL$110) * MIN(100%, (2050 -$AD$271) / $AE$271), 0) &" "& LEFT(PrefUnit.Energy.,LEN(PrefUnit.Energy.)-1)&" of"& " hydrogen is produced from gas with CCS. " &ROUND(INDEX($BS$254:$BV$254, 0, AL$94) * MIN(100%, (2050 -$AG$94) / $AI$94) * 100,0)&"%" &" of industrial processes have CCS." -> By 2050, 0 TWh of electricity and 0 TWh of hydrogen is produced from gas with CCS. 0% of industrial processes have CCS. | M142: ="By 2050, " &ROUND(INDEX($BM$301:$BP$301, 0, AM$110) * MIN(100%, (2050 -$AD$301) / $AE$301), 0)&" "&LEFT(PrefUnit.Energy.,LEN(PrefUnit.Energy.)-1)&" of electricity and " &ROUND(INDEX($L$271:$O$271, 0, AM$110) * MIN(100%, (2050 -$AD$271) / $AE$271), 0) &" "& LEFT(PrefUnit.Energy.,LEN(PrefUnit.Energy.)-1)&" of"& " hydrogen is produced from gas with CCS. " &ROUND(INDEX($BS$254:$BV$254, 0, AM$94) * MIN(100%, (2050 -$AG$94) / $AI$94) * 100,0)&"%" &" of industrial processes have CCS." -> By 2050, 0 TWh of electricity and 0 TWh of hydrogen is produced from gas with CCS. 17% of industrial processes have CCS. | N142: ="By 2050, " &ROUND(INDEX($BM$301:$BP$301, 0, AN$110) * MIN(100%, (2050 -$AD$301) / $AE$301), 0)&" "&LEFT(PrefUnit.Energy.,LEN(PrefUnit.Energy.)-1)&" of electricity and " &ROUND(INDEX($L$271:$O$271, 0, AN$110) * MIN(100%, (2050 -$AD$271) / $AE$271), 0) &" "& LEFT(PrefUnit.Energy.,LEN(PrefUnit.Energy.)-1)&" of"& " hydrogen is produced from gas with CCS. " &ROUND(INDEX($BS$254:$BV$254, 0, AN$94) * MIN(100%, (2050 -$AG$94) / $AI$94) * 100,0)&"%" &" of industrial processes have CCS." -> By 2050, 77 TWh of electricity and 134 TWh of hydrogen is produced from gas with CCS. 37% of industrial processes have CCS. | O142: ="By 2050, " &ROUND(INDEX($BM$301:$BP$301, 0, AO$110) * MIN(100%, (2050 -$AD$301) / $AE$301), 0)&" "&LEFT(PrefUnit.Energy.,LEN(PrefUnit.Energy.)-1)&" of electricity and " &ROUND(INDEX($L$271:$O$271, 0, AO$110) * MIN(100%, (2050 -$AD$271) / $AE$271), 0) &" "& LEFT(PrefUnit.Energy.,LEN(PrefUnit.Energy.)-1)&" of"& " hydrogen is produced from gas with CCS. " &ROUND(INDEX($BS$254:$BV$254, 0, AO$94) * MIN(100%, (2050 -$AG$94) / $AI$94) * 100,0)&"%" &" of industrial processes have CCS." -> By 2050, 77 TWh of electricity and 134 TWh of hydrogen is produced from gas with CCS. 71% of industrial processes have CCS.
C143: Hydrogen | D143: 1 | E143: Simplified.lever.09 | F143: Simplified.lever.value.09 | K143: How much of the gas grid supplying homes, businesses and industry is converted from fossil fuels to hydrogen | L143: ="By 2050, "&ROUND(INDEX($L$268:$O$268, 0, AL$95) * 100 * MIN(100%, (2050 -$AD$268) / $AE$268), 0) &"% of the gas grid converted to hydrogen" & IF(INDEX($L$268:$O$268, 0, AL$95) = 1, " on route to full conversion by "& +$AD$268 +$AE$268, "") &"." -> By 2050, 0% of the gas grid converted to hydrogen. | M143: ="By 2050, "&ROUND(INDEX($L$268:$O$268, 0, AM$95) * 100,0) &"% of the gas grid is converted to hydrogen." -> By 2050, 33% of the gas grid is converted to hydrogen. | N143: ="By 2050, "&ROUND(INDEX($L$268:$O$268, 0, AN$95) * 100,0) &"% of the gas grid is converted to hydrogen." -> By 2050, 67% of the gas grid is converted to hydrogen. | O143: ="By 2050, "&ROUND(INDEX($L$268:$O$268, 0, AO$95) * 100,0) &"% of the gas grid is converted to hydrogen." -> By 2050, 100% of the gas grid is converted to hydrogen.
B144: Electricity | C144: Nuclear | D144: 1 | E144: Simplified.lever.10 | F144: Simplified.lever.value.10 | K144: Nuclear Power for Electricity Generation | L144: ="By 2050, "&INDEX($L$294:$O$294, 0, AL$106)&" "&LEFT(PrefUnit.Power., LEN(PrefUnit.Power.) -1)&" nuclear capacity " &" ("&ROUND(INDEX($L$294:$O$294, 0, AL$106) / $BD294, 1)&"x the capacity in 2015) capable of generating up to " &ROUND(INDEX($BM$294:$BP$294, 0, AL$106), 0)&" "&LEFT(PrefUnit.Energy.,LEN(PrefUnit.Energy.) -1)&" per year." &" Equivalent to roughly "&ROUND(INDEX($BT$294:$BW$294, 0, AL$106), 1)&" Hinkley Point C s." -> By 2050, 4.5 GW nuclear capacity (0.5x the capacity in 2015) capable of generating up to 35 TWh per year. Equivalent to roughly 1.5 Hinkley Point C s. | M144: ="By 2050, "&INDEX($L$294:$O$294, 0, AM$106)&" "&LEFT(PrefUnit.Power., LEN(PrefUnit.Power.) -1)&" nuclear capacity " &" ("&ROUND(INDEX($L$294:$O$294, 0, AM$106) / $BD294, 1)&"x the capacity in 2015) capable of generating up to " &ROUND(INDEX($BM$294:$BP$294, 0, AM$106), 0)&" "&LEFT(PrefUnit.Energy.,LEN(PrefUnit.Energy.) -1)&" per year." &" Equivalent to roughly "&ROUND(INDEX($BT$294:$BW$294, 0, AM$106), 0)&" Hinkley Point C s." -> By 2050, 15 GW nuclear capacity (1.6x the capacity in 2015) capable of generating up to 117 TWh per year. Equivalent to roughly 5 Hinkley Point C s. | N144: ="By 2050, "&INDEX($L$294:$O$294, 0, AN$106)&" "&LEFT(PrefUnit.Power., LEN(PrefUnit.Power.) -1)&" nuclear capacity " &" ("&ROUND(INDEX($L$294:$O$294, 0, AN$106) / $BD294, 1)&"x the capacity in 2015) capable of generating up to " &ROUND(INDEX($BM$294:$BP$294, 0, AN$106), 0)&" "&LEFT(PrefUnit.Energy.,LEN(PrefUnit.Energy.) -1)&" per year." &" Equivalent to roughly "&ROUND(INDEX($BT$294:$BW$294, 0, AN$106), 0)&" Hinkley Point C s." -> By 2050, 30 GW nuclear capacity (3.1x the capacity in 2015) capable of generating up to 234 TWh per year. Equivalent to roughly 10 Hinkley Point C s. | O144: ="By 2050, "&INDEX($L$294:$O$294, 0, AO$106)&" "&LEFT(PrefUnit.Power., LEN(PrefUnit.Power.) -1)&" nuclear capacity " &" ("&ROUND(INDEX($L$294:$O$294, 0, AO$106) / $BD294, 1)&"x the capacity in 2015) capable of generating up to " &ROUND(INDEX($BM$294:$BP$294, 0, AO$106), 0)&" "&LEFT(PrefUnit.Energy.,LEN(PrefUnit.Energy.) -1)&" per year." &" Equivalent to roughly "&ROUND(INDEX($BT$294:$BW$294, 0, AO$106), -1)&" Hinkley Point C s." -> By 2050, 62 GW nuclear capacity (6.5x the capacity in 2015) capable of generating up to 484 TWh per year. Equivalent to roughly 20 Hinkley Point C s.
C145: Wind | D145: 1 | E145: Simplified.lever.11 | F145: Simplified.lever.value.11 | K145: Wind Power for Electricity Generation | L145: ="By 2050, "&ROUND(INDEX($L$295:$O$295, 0, AL$107) +INDEX($L$296:$O$296, 0, AL$107), 1)&" "& LEFT(PrefUnit.Power., LEN(PrefUnit.Power.) -1)&" wind capacity, (" &ROUND((INDEX($L$295:$O$295, 0, AL$107) +INDEX($L$296:$O$296, 0, AL$107)) / ($BD295 +$BD296), 1)&"x the capacity in 2015) capable of generating up to " &ROUND(INDEX($BM$295:$BP$295, 0, AL$107) +INDEX($BM$296:$BP$296, 0, AL$107), 0)&" "&LEFT(PrefUnit.Energy.,LEN(PrefUnit.Energy.)-1)&" per year." &" Equivalent to "&ROUND(INDEX($BT$295:$BW$295, 0, AL$107)+INDEX($BT$296:$BW$296, 0, AL$107), -2)&" "&$BS295&"." -> By 2050, 0 GW wind capacity, (0x the capacity in 2015) capable of generating up to 0 TWh per year. Equivalent to 0 sqkm. | M145: ="By 2050, "&ROUND(INDEX($L$295:$O$295, 0, AM$107) +INDEX($L$296:$O$296, 0, AM$107), 1)&" "& LEFT(PrefUnit.Power., LEN(PrefUnit.Power.) -1)&" wind capacity, (" &ROUND((INDEX($L$295:$O$295, 0, AM$107) +INDEX($L$296:$O$296, 0, AM$107)) / ($BD295 +$BD296), 1)&"x the capacity in 2015) capable of generating up to " &ROUND(INDEX($BM$295:$BP$295, 0, AM$107) +INDEX($BM$296:$BP$296, 0, AM$107), 0)&" "&LEFT(PrefUnit.Energy.,LEN(PrefUnit.Energy.)-1)&" per year." &" Equivalent to "&ROUND(INDEX($BT$295:$BW$295, 0, AM$107)+INDEX($BT$296:$BW$296, 0, AM$107), -2)&" "&$BS295&"." -> By 2050, 77 GW wind capacity, (5.4x the capacity in 2015) capable of generating up to 296 TWh per year. Equivalent to 13500 sqkm. | N145: ="By 2050, "&ROUND(INDEX($L$295:$O$295, 0, AN$107) +INDEX($L$296:$O$296, 0, AN$107), 1)&" "& LEFT(PrefUnit.Power., LEN(PrefUnit.Power.) -1)&" wind capacity, (" &ROUND((INDEX($L$295:$O$295, 0, AN$107) +INDEX($L$296:$O$296, 0, AN$107)) / ($BD295 +$BD296), 1)&"x the capacity in 2015) capable of generating up to " &ROUND(INDEX($BM$295:$BP$295, 0, AN$107) +INDEX($BM$296:$BP$296, 0, AN$107), 0)&" "&LEFT(PrefUnit.Energy.,LEN(PrefUnit.Energy.)-1)&" per year." &" Equivalent to "&ROUND(INDEX($BT$295:$BW$295, 0, AN$107)+INDEX($BT$296:$BW$296, 0, AN$107), -2)&" "&$BS295&"." -> By 2050, 155 GW wind capacity, (10.8x the capacity in 2015) capable of generating up to 611 TWh per year. Equivalent to 27900 sqkm. | O145: ="By 2050, "&ROUND(INDEX($L$295:$O$295, 0, AO$107) +INDEX($L$296:$O$296, 0, AO$107), 1)&" "& LEFT(PrefUnit.Power., LEN(PrefUnit.Power.) -1)&" wind capacity, (" &ROUND((INDEX($L$295:$O$295, 0, AO$107) +INDEX($L$296:$O$296, 0, AO$107)) / ($BD295 +$BD296), 1)&"x the capacity in 2015) capable of generating up to " &ROUND(INDEX($BM$295:$BP$295, 0, AO$107) +INDEX($BM$296:$BP$296, 0, AO$107), 0)&" "&LEFT(PrefUnit.Energy.,LEN(PrefUnit.Energy.)-1)&" per year." &" Equivalent to "&ROUND(INDEX($BT$295:$BW$295, 0, AO$107)+INDEX($BT$296:$BW$296, 0, AO$107), -2)&" "&$BS295&"." -> By 2050, 280 GW wind capacity, (19.6x the capacity in 2015) capable of generating up to 1076 TWh per year. Equivalent to 49100 sqkm.
C146: Solar | D146: 1 | E146: Simplified.lever.12 | F146: Simplified.lever.value.12 | K146: Solar Photovoltaics for Electricity Generation | L146: ="By 2050, "&INDEX($L$297:$O$297, 0, AL$108)&" "&LEFT(PrefUnit.Power., LEN(PrefUnit.Power.) -1)&" solar capacity (" &ROUND(INDEX($L$297:$O$297, 0, AL$108) / $BD297,1)&"x the capacity in 2015) capable of generating up to " &ROUND(INDEX($BM$297:$BP$297, 0, AL$108),0)&" "&LEFT(PrefUnit.Energy.,LEN(PrefUnit.Energy.)-1)&" per year."&" Equivalent to "&ROUND(INDEX($BT$297:$BW$297, 0, AL$108)+INDEX($BT$297:$BW$297, 0, AL$108), 0)&" "&$BS297&"." -> By 2050, 0 GW solar capacity (0x the capacity in 2015) capable of generating up to 0 TWh per year. Equivalent to 0 sqkm. | M146: ="By 2050, "&INDEX($L$297:$O$297, 0, AM$108)&" "&LEFT(PrefUnit.Power., LEN(PrefUnit.Power.) -1)&" solar capacity (" &ROUND(INDEX($L$297:$O$297, 0, AM$108) / $BD297,1)&"x the capacity in 2015) capable of generating up to " &ROUND(INDEX($BM$297:$BP$297, 0, AM$108),0)&" "&LEFT(PrefUnit.Energy.,LEN(PrefUnit.Energy.)-1)&" per year."&" Equivalent to "&ROUND(INDEX($BT$297:$BW$297, 0, AM$108)+INDEX($BT$297:$BW$297, 0, AM$108), 0)&" "&$BS297&"." -> By 2050, 70 GW solar capacity (7.3x the capacity in 2015) capable of generating up to 67 TWh per year. Equivalent to 700 sqkm. | N146: ="By 2050, "&INDEX($L$297:$O$297, 0, AN$108)&" "&LEFT(PrefUnit.Power., LEN(PrefUnit.Power.) -1)&" solar capacity (" &ROUND(INDEX($L$297:$O$297, 0, AN$108) / $BD297,1)&"x the capacity in 2015) capable of generating up to " &ROUND(INDEX($BM$297:$BP$297, 0, AN$108),0)&" "&LEFT(PrefUnit.Energy.,LEN(PrefUnit.Energy.)-1)&" per year."&" Equivalent to "&ROUND(INDEX($BT$297:$BW$297, 0, AN$108)+INDEX($BT$297:$BW$297, 0, AN$108), 0)&" "&$BS297&"." -> By 2050, 165 GW solar capacity (17.3x the capacity in 2015) capable of generating up to 159 TWh per year. Equivalent to 1650 sqkm. | O146: ="By 2050, "&INDEX($L$297:$O$297, 0, AO$108)&" "&LEFT(PrefUnit.Power., LEN(PrefUnit.Power.) -1)&" solar capacity (" &ROUND(INDEX($L$297:$O$297, 0, AO$108) / $BD297,1)&"x the capacity in 2015) capable of generating up to " &ROUND(INDEX($BM$297:$BP$297, 0, AO$108),0)&" "&LEFT(PrefUnit.Energy.,LEN(PrefUnit.Energy.)-1)&" per year."&" Equivalent to "&ROUND(INDEX($BT$297:$BW$297, 0, AO$108)+INDEX($BT$297:$BW$297, 0, AO$108), 0)&" "&$BS297&"." -> By 2050, 300 GW solar capacity (31.5x the capacity in 2015) capable of generating up to 289 TWh per year. Equivalent to 3000 sqkm.
C147: Wave & Tidal | D147: 1 | E147: Simplified.lever.13 | F147: Simplified.lever.value.13 | K147: Wave and Tidal Power for Electricity Generation | L147: ="By 2050, "&ROUND(INDEX($L$298:$O$298, 0, AL$109) +INDEX($L$299:$O$299, 0, AL$109) +INDEX($L$300:$O$300, 0, AL$109), 1)&" "& LEFT(PrefUnit.Power., LEN(PrefUnit.Power.) -1)&" capacity of tidal stream, tidal range and wave power (" &ROUND($BD298 +$BD299 +$BD300, 1)&" "&LEFT(PrefUnit.Power., LEN(PrefUnit.Power.) -1)& " capacity in 2015) capable of generating up to " &ROUND(INDEX($BM$298:$BP$298, 0, AL$109) +INDEX($BM$299:$BP$299, 0, AL$109) +INDEX($BM$300:$BP$300, 0, AL$109),0)&" "&LEFT(PrefUnit.Energy.,LEN(PrefUnit.Energy.)-1)&" per year." -> By 2050, 0 GW capacity of tidal stream, tidal range and wave power (0 GW capacity in 2015) capable of generating up to 0 TWh per year. | M147: ="By 2050, "&ROUND(INDEX($L$298:$O$298, 0, AM$109) +INDEX($L$299:$O$299, 0, AM$109) +INDEX($L$300:$O$300, 0, AM$109), 1)&" "& LEFT(PrefUnit.Power., LEN(PrefUnit.Power.) -1)&" capacity of tidal stream, tidal range and wave power (" &ROUND($BD298 +$BD299 +$BD300, 1)&" "&LEFT(PrefUnit.Power., LEN(PrefUnit.Power.) -1)& " capacity in 2015) capable of generating up to " &ROUND(INDEX($BM$298:$BP$298, 0, AM$109) +INDEX($BM$299:$BP$299, 0, AM$109) +INDEX($BM$300:$BP$300, 0, AM$109),0)&" "&LEFT(PrefUnit.Energy.,LEN(PrefUnit.Energy.)-1)&" per year." -> By 2050, 9.7 GW capacity of tidal stream, tidal range and wave power (0 GW capacity in 2015) capable of generating up to 26 TWh per year. | N147: ="By 2050, "&ROUND(INDEX($L$298:$O$298, 0, AN$109) +INDEX($L$299:$O$299, 0, AN$109) +INDEX($L$300:$O$300, 0, AN$109), 1)&" "& LEFT(PrefUnit.Power., LEN(PrefUnit.Power.) -1)&" capacity of tidal stream, tidal range and wave power (" &ROUND($BD298 +$BD299 +$BD300, 1)&" "&LEFT(PrefUnit.Power., LEN(PrefUnit.Power.) -1)& " capacity in 2015) capable of generating up to " &ROUND(INDEX($BM$298:$BP$298, 0, AN$109) +INDEX($BM$299:$BP$299, 0, AN$109) +INDEX($BM$300:$BP$300, 0, AN$109),0)&" "&LEFT(PrefUnit.Energy.,LEN(PrefUnit.Energy.)-1)&" per year." -> By 2050, 34 GW capacity of tidal stream, tidal range and wave power (0 GW capacity in 2015) capable of generating up to 78 TWh per year. | O147: ="By 2050, "&ROUND(INDEX($L$298:$O$298, 0, AO$109) +INDEX($L$299:$O$299, 0, AO$109) +INDEX($L$300:$O$300, 0, AO$109), 1)&" "& LEFT(PrefUnit.Power., LEN(PrefUnit.Power.) -1)&" capacity of tidal stream, tidal range and wave power (" &ROUND($BD298 +$BD299 +$BD300, 1)&" "&LEFT(PrefUnit.Power., LEN(PrefUnit.Power.) -1)& " capacity in 2015) capable of generating up to " &ROUND(INDEX($BM$298:$BP$298, 0, AO$109) +INDEX($BM$299:$BP$299, 0, AO$109) +INDEX($BM$300:$BP$300, 0, AO$109),0)&" "&LEFT(PrefUnit.Energy.,LEN(PrefUnit.Energy.)-1)&" per year." -> By 2050, 68 GW capacity of tidal stream, tidal range and wave power (0 GW capacity in 2015) capable of generating up to 152 TWh per year.
B148: Land, Bioenergy & Waste | C148: Forestry | D148: 1 | E148: Simplified.lever.14 | F148: Simplified.lever.value.14 | K148: Land area used for forestry, freed from other uses due to farming efficiency | L148: ="By 2050, "&ROUND(($BD$308 +((INDEX($L$308:$O$308, 0, AL$112) -$BD$308) * MIN(100%, (2050 -$AD$308) / $AE$308))) / LBBY.LndTot. *100, 0) &"% of UK land area is covered by forest" &" (compared to "&ROUND($BD$308 / LBBY.LndTot. *100, 0)&"% in 2015)." &IF(AL$111 > 1, " Farming efficiency improves and livestock is reduced.", "") -> By 2050, 14% of UK land area is covered by forest (compared to 14% in 2015). | M148: ="By 2050, "&ROUND(($BD$308 +((INDEX($L$308:$O$308, 0, AM$112) -$BD$308) * MIN(100%, (2050 -$AD$308) / $AE$308))) / LBBY.LndTot. *100, 0) &"% of UK land area is covered by forest" &" (compared to "&ROUND($BD$308 / LBBY.LndTot. *100, 0)&"% in 2015)." &IF(AM$111 > 1, " Farming efficiency improves and livestock is reduced.", "") -> By 2050, 18% of UK land area is covered by forest (compared to 14% in 2015). Farming efficiency improves and livestock is reduced. | N148: ="By 2050, "&ROUND(($BD$308 +((INDEX($L$308:$O$308, 0, AN$112) -$BD$308) * MIN(100%, (2050 -$AD$308) / $AE$308))) / LBBY.LndTot. *100, 0) &"% of UK land area is covered by forest" &" (compared to "&ROUND($BD$308 / LBBY.LndTot. *100, 0)&"% in 2015)." &IF(AN$111 > 1, " Farming efficiency improves and livestock is reduced.", "") -> By 2050, 19% of UK land area is covered by forest (compared to 14% in 2015). Farming efficiency improves and livestock is reduced. | O148: ="By 2050, "&ROUND(($BD$308 +((INDEX($L$308:$O$308, 0, AO$112) -$BD$308) * MIN(100%, (2050 -$AD$308) / $AE$308))) / LBBY.LndTot. *100, 0) &"% of UK land area is covered by forest" &" (compared to "&ROUND($BD$308 / LBBY.LndTot. *100, 0)&"% in 2015)." &IF(AO$111 > 1, " Farming efficiency improves and livestock is reduced.", "") -> By 2050, 23% of UK land area is covered by forest (compared to 14% in 2015). Farming efficiency improves and livestock is reduced.
C149: Bioenergy | D149: 1 | E149: Simplified.lever.15 | F149: Simplified.lever.value.15 | K149: Growth of UK bioenergy production and use as an energy source, on land freed from other uses due to farming efficiency | L149: ="By 2050, "&ROUND(($BD$309 +((INDEX($L$309:$O$309, 0, AL$113) -$BD$309) * (2050 -$AD$309) / $AE$309)) / LBBY.LndTot. *100, 1) &"% of UK land is used for bioenergy crops " &"(compared to "&ROUND($BD$309 / LBBY.LndTot. *100, 1)&"% in 2015)." &IF(AL$111 > 1, " Farming efficiency improves and livestock is reduced.", "") -> By 2050, 0.4% of UK land is used for bioenergy crops (compared to 0.4% in 2015). | M149: ="By 2050, "&ROUND(($BD$309 +((INDEX($L$309:$O$309, 0, AM$113) -$BD$309) * (2050 -$AD$309) / $AE$309)) / LBBY.LndTot. *100, 1) &"% of UK land is used for bioenergy crops " &"(compared to "&ROUND($BD$309 / LBBY.LndTot. *100, 1)&"% in 2015)." &IF(AM$111 > 1, " Farming efficiency improves and livestock is reduced.", "") -> By 2050, 2.9% of UK land is used for bioenergy crops (compared to 0.4% in 2015). Farming efficiency improves and livestock is reduced. | N149: ="By 2050, "&ROUND(($BD$309 +((INDEX($L$309:$O$309, 0, AN$113) -$BD$309) * (2050 -$AD$309) / $AE$309)) / LBBY.LndTot. *100, 1) &"% of UK land is used for bioenergy crops " &"(compared to "&ROUND($BD$309 / LBBY.LndTot. *100, 1)&"% in 2015)." &IF(AN$111 > 1, " Farming efficiency improves and livestock is reduced.", "") -> By 2050, 5.7% of UK land is used for bioenergy crops (compared to 0.4% in 2015). Farming efficiency improves and livestock is reduced. | O149: ="By 2050, "&ROUND(($BD$309 +((INDEX($L$309:$O$309, 0, AO$113) -$BD$309) * (2050 -$AD$309) / $AE$309)) / LBBY.LndTot. *100, 1) &"% of UK land is used for bioenergy crops " &"(compared to "&ROUND($BD$309 / LBBY.LndTot. *100, 1)&"% in 2015)." &IF(AO$111 > 1, " Farming efficiency improves and livestock is reduced.", "") -> By 2050, 8.2% of UK land is used for bioenergy crops (compared to 0.4% in 2015). Farming efficiency improves and livestock is reduced.
C150: No Control Lv1 | D150: 1 | E150: Simplified.lever.16 | F150: Simplified.lever.value.16
C151: No Control Lv2 | D151: 2 | E151: Simplified.lever.17 | F151: Simplified.lever.value.17
C152: No Control Lv3 | D152: 3 | E152: Simplified.lever.18 | F152: Simplified.lever.value.18
C153: No Control Lv4 | D153: 4 | E153: Simplified.lever.19 | F153: Simplified.lever.value.19
L154: *some descriptions have been adjusted to reflect that the full level of ambition is not reached by 2050.
A160: Manual Lever Selection and Model Lever Values Applied
D163: =Control.Method.Manual&"_"&D165 -> Manual_Share/Penetration | E163: =Control.Method.Manual&"_"&E165 -> Manual_Start | F163: =Control.Method.Manual&"_"&F165 -> Manual_Speed | G163: =Control.Method.Manual&"_"&G165 -> Manual_End | K163: ="=OFFSET("&$L$165&$B163&",0,-1)" -> =OFFSET(lv1.,0,-1) | L163: ="="&L$165&$B163 -> =lv1. | M163: ="="&M$165&$B163 -> =lv2. | N163: ="="&N$165&$B163 -> =lv3. | O163: ="="&O$165&$B163 -> =lv4. | P163: ="="&SUBSTITUTE(B163,"Amb","lvr") -> = | AB163: =Control.Method.Web.Tool&"_"&AB165 -> Web tool_Lever | AC163: =Control.Method.Web.Tool&"_"&AC165 -> Web tool_Share/Penetration | AD163: =Control.Method.Web.Tool&"_"&AD165 -> Web tool_Start | AE163: =Control.Method.Web.Tool&"_"&AE165 -> Web tool_Speed | AF163: =Control.Method.My2050&"_"&AF165 -> My2050_Lever | AG163: =Control.Method.My2050&"_"&AG165 -> My2050_Share/Penetration | AH163: =Control.Method.My2050&"_"&AH165 -> My2050_Start | AI163: =Control.Method.My2050&"_"&AI165 -> My2050_Speed | AQ163: =Control.Method.Selected&"_"&AQ165 -> Web tool_Share/Penetration | AR163: =Control.Method.Selected&"_"&AR165 -> Web tool_Start | AS163: =Control.Method.Selected&"_"&AS165 -> Web tool_Speed | BC163: Speed Test- show 1 if action takes place faster than level 4 under default timing. | BD163: BaU | BH163: BaU Values for Indices
D164: Manual Choices | L164: Ambition level options | AB164: Web Tool | AF164: My2050 | AQ164: Lever levels applied | BC164: =SUM(BC166:BC327) -> 0
D165: Share/Penetration | E165: Start | F165: Speed | G165: End | H165: Ambition | I165: Timing | K165: Units | L165: lv1. | M165: lv2. | N165: lv3. | O165: lv4. | P165: Selected | AB165: Lever | AC165: Share/Penetration | AD165: Start | AE165: Speed | AF165: Lever | AG165: Share/Penetration | AH165: Start | AI165: Speed | AQ165: Share/Penetration | AR165: Start | AS165: Speed | BC165: Speed Test- show 1 if action takes place faster than level 4 under default timing. If the levels of ambition are not a contiuously increasing or continuously decreasing series show zero (pass) as the speed test is not valid. The test shows 1 if the magnitude of the difference between the ambition level applied and level 1 divided by the speed of action is greater than the absolute difference between level 4 and level 1 divided by the default speed of action. A factor of 10^-12 is subtracted as a threshold to avoid false possitives due to Excel rounding errors where ambition levels are the same or very similar. | BD165: =BY. -> 2015 | BE165: Units | BF165: Start | BG165: End | BH165: Value | BI165: Unit | BJ165: Note
B166: =Model!$G$5483 -> AmbDemUnit.dDPs. | C166: =AW166&AX166 -> Domestic passenger travel demand | D166: 1 | E166: 2020 | F166: 30 | K166: =OFFSET(lv1.AmbDemUnit.dDPs.,0,-1) -> Psg km. / person | L166: =lv1.AmbDemUnit.dDPs. -> 12000 | M166: =lv2.AmbDemUnit.dDPs. -> 10714 | N166: =lv3.AmbDemUnit.dDPs. -> 9950 | O166: =lv4.AmbDemUnit.dDPs. -> 8292 | P166: =LvrDemUnit.dDPs. -> 12000 | AB166: =Control!$C$70 -> UK Transport Demand | AC166: =Control!$D$70 -> 1 | AD166: =Control!$E$70 -> 2020 | AE166: =Control!$F$70 -> 30 | AF166: =Control!$AK$70 -> Transport Behaviour | AG166: =Control!$AP$70 -> 1 | AH166: =Control!$AG$70 -> 2020 | AI166: =Control!$AI$70 -> 30 | AQ166: =INDEX($D166:$AI166, , MATCH(AQ$163,$D$163:$AI$163,0)) -> 1 | AR166: 2020 | AS166: 30 | AX166: Domestic passenger travel demand | BC166: =IF( OR(AND(L166 <= M166, M166 <= N166, N166 <=O166), AND(L166 >= M166, M166 >= N166, N166 >=O166)), IF( (ABS(P166 -L166) / AS166) -10^-12 > (ABS(O166 -L166) / AI166), 1, 0), 0) -> 0 | BD166: =+SUMIFS(DemUnitBaU.dDPs.,Prd.,BY.) -> 10915.11293 | BE166: =OFFSET(lv1.AmbDemUnit.dDPs.,0,-1) -> Psg km. / person | BF166: =+SUMIFS(DemUnitBaU.dDPs.,Prd.,AQ166) -> 0 | BG166: =+SUMIFS(DemUnitBaU.dDPs.,Prd.,2050) -> 11594.84115 | BH166: … | BI166: … | BJ166: … | BK166: TS
B167: =Model!$G$5507 -> AmbShrPen.Wlk.dDPs. | C167: Walking share of passenger travel demand | D167: 1 | E167: 2020 | F167: 30 | K167: =OFFSET(lv1.AmbShrPen.Wlk.dDPs.,0,-1) -> … | L167: =lv1.AmbShrPen.Wlk.dDPs. -> 0.025 | M167: =lv2.AmbShrPen.Wlk.dDPs. -> 0.03 | N167: =lv3.AmbShrPen.Wlk.dDPs. -> 0.035 | O167: =lv4.AmbShrPen.Wlk.dDPs. -> 0.055 | P167: =LvrShrPen.Wlk.dDPs. -> 0.025 | AB167: =Control!$C$70 -> UK Transport Demand | AC167: =Control!$D$70 -> 1 | AD167: =Control!$E$70 -> 2020 | AE167: =Control!$F$70 -> 30 | AF167: =Control!$AK$70 -> Transport Behaviour | AG167: =Control!$AP$70 -> 1 | AH167: =Control!$AG$70 -> 2020 | AI167: =Control!$AI$70 -> 30 | AQ167: 1 | AR167: 2020 | AS167: 30 | AX167: Walking share of passenger travel demand | BC167: =IF( OR(AND(L167 <= M167, M167 <= N167, N167 <=O167), AND(L167 >= M167, M167 >= N167, N167 >=O167)), IF( (ABS(P167 -L167) / AS167) -10^-12 > (ABS(O167 -L167) / AI167), 1, 0), 0) -> 0 | BD167: =+SUMIFS(ShrBaU.Wlk.dDPs.,Prd.,BY.) -> 0.02834676242 | BE167: =OFFSET(lv1.AmbShrPen.Wlk.dDPs.,0,-1) -> … | BF167: =+SUMIFS(ShrBaU.Wlk.dDPs.,Prd.,AQ167) -> 0 | BG167: =+SUMIFS(ShrBaU.Wlk.dDPs.,Prd.,2050) -> 0.02668498076 | BH167: … | BI167: … | BJ167: … | BK167: TS
B168: =Model!$G$5508 -> AmbShrPen.Cyc.dDPs. | C168: Cycling share of passenger travel demand | D168: 1 | E168: 2020 | F168: 30 | K168: =OFFSET(lv1.AmbShrPen.Cyc.dDPs.,0,-1) -> … | L168: =lv1.AmbShrPen.Cyc.dDPs. -> 0.005 | M168: =lv2.AmbShrPen.Cyc.dDPs. -> 0.04 | N168: =lv3.AmbShrPen.Cyc.dDPs. -> 0.09 | O168: =lv4.AmbShrPen.Cyc.dDPs. -> 0.15 | P168: =LvrShrPen.Cyc.dDPs. -> 0.005 | AB168: =Control!$C$70 -> UK Transport Demand | AC168: =Control!$D$70 -> 1 | AD168: =Control!$E$70 -> 2020 | AE168: =Control!$F$70 -> 30 | AF168: =Control!$AK$70 -> Transport Behaviour | AG168: =Control!$AP$70 -> 1 | AH168: =Control!$AG$70 -> 2020 | AI168: =Control!$AI$70 -> 30 | AQ168: 1 | AR168: 2020 | AS168: 30 | AX168: Cycling share of passenger travel demand | BC168: 0 | BD168: =+SUMIFS(ShrBaU.Cyc.dDPs.,Prd.,BY.) -> 0.007809174732 | BE168: =OFFSET(lv1.AmbShrPen.Cyc.dDPs.,0,-1) -> … | BF168: =+SUMIFS(ShrBaU.Cyc.dDPs.,Prd.,AQ168) -> 0 | BG168: =+SUMIFS(ShrBaU.Cyc.dDPs.,Prd.,2050) -> 0.01640454424 | BH168: … | BI168: … | BJ168: … | BK168: TS
B169: =Model!$G$5509 -> AmbShrPen.carALL.dDPs. | C169: Car share of passenger travel demand | D169: 1 | E169: 2020 | F169: 30 | K169: =OFFSET(lv1.AmbShrPen.carALL.dDPs.,0,-1) -> … | L169: =lv1.AmbShrPen.carALL.dDPs. -> 0.81 | M169: =lv2.AmbShrPen.carALL.dDPs. -> 0.725 | N169: =lv3.AmbShrPen.carALL.dDPs. -> 0.63 | O169: =lv4.AmbShrPen.carALL.dDPs. -> 0.485 | P169: =LvrShrPen.carALL.dDPs. -> 0.81 | AB169: =Control!$C$70 -> UK Transport Demand | AC169: =Control!$D$70 -> 1 | AD169: =Control!$E$70 -> 2020 | AE169: =Control!$F$70 -> 30 | AF169: =Control!$AK$70 -> Transport Behaviour | AG169: =Control!$AP$70 -> 1 | AH169: =Control!$AG$70 -> 2020 | AI169: =Control!$AI$70 -> 30 | AQ169: 1 | AR169: 2020 | AS169: 30 | AX169: Car share of passenger travel demand | BC169: 0 | BD169: =+SUMIFS(ShrBaU.carALL.dDPs.,Prd.,BY.) -> 0.7731441696 | BE169: =OFFSET(lv1.AmbShrPen.carALL.dDPs.,0,-1) -> … | BF169: =+SUMIFS(ShrBaU.carALL.dDPs.,Prd.,AQ169) -> 0 | BG169: =+SUMIFS(ShrBaU.carALL.dDPs.,Prd.,2050) -> 0.782771501 | BH169: … | BI169: … | BJ169: … | BK169: TS
B170: =Model!$G$5510 -> AmbShrPen.busALL.dDPs. | C170: Bus share of passenger travel demand | D170: 1 | E170: 2020 | F170: 30 | K170: =OFFSET(lv1.AmbShrPen.busALL.dDPs.,0,-1) -> … | L170: =lv1.AmbShrPen.busALL.dDPs. -> 0.045 | M170: =lv2.AmbShrPen.busALL.dDPs. -> 0.05 | N170: =lv3.AmbShrPen.busALL.dDPs. -> 0.075 | O170: =lv4.AmbShrPen.busALL.dDPs. -> 0.115 | P170: =LvrShrPen.busALL.dDPs. -> 0.045 | AB170: =Control!$C$70 -> UK Transport Demand | AC170: =Control!$D$70 -> 1 | AD170: =Control!$E$70 -> 2020 | AE170: =Control!$F$70 -> 30 | AF170: =Control!$AK$70 -> Transport Behaviour | AG170: =Control!$AP$70 -> 1 | AH170: =Control!$AG$70 -> 2020 | AI170: =Control!$AI$70 -> 30 | AQ170: =INDEX($D170:$AI170, , MATCH(AQ$163,$D$163:$AI$163,0)) -> 1 | AR170: 2020 | AS170: 30 | AX170: Bus share of passenger travel demand | BC170: 0 | BD170: =+SUMIFS(ShrBaU.busALL.dDPs.,Prd.,BY.) -> 0.06369088925 | BE170: =OFFSET(lv1.AmbShrPen.busALL.dDPs.,0,-1) -> … | BF170: =+SUMIFS(ShrBaU.busALL.dDPs.,Prd.,AQ170) -> 0 | BG170: =+SUMIFS(ShrBaU.busALL.dDPs.,Prd.,2050) -> 0.05023576834 | BH170: … | BI170: … | BJ170: … | BK170: TS
B171: =Model!$G$5511 -> AmbShrPen.trnPALL.dDPs. | C171: Rail share of passenger travel demand | D171: 1 | E171: 2020 | F171: 30 | K171: =OFFSET(lv1.AmbShrPen.trnPALL.dDPs.,0,-1) -> … | L171: =lv1.AmbShrPen.trnPALL.dDPs. -> 0.095 | M171: =lv2.AmbShrPen.trnPALL.dDPs. -> 0.135 | N171: =lv3.AmbShrPen.trnPALL.dDPs. -> 0.15 | O171: =lv4.AmbShrPen.trnPALL.dDPs. -> 0.18 | P171: =LvrShrPen.trnPALL.dDPs. -> 0.095 | AB171: =Control!$C$70 -> UK Transport Demand | AC171: =Control!$D$70 -> 1 | AD171: =Control!$E$70 -> 2020 | AE171: =Control!$F$70 -> 30 | AF171: =Control!$AK$70 -> Transport Behaviour | AG171: =Control!$AP$70 -> 1 | AH171: =Control!$AG$70 -> 2020 | AI171: =Control!$AI$70 -> 30 | AQ171: 1 | AR171: 2020 | AS171: 30 | AX171: Rail share of passenger travel demand | BC171: 0 | BD171: =+SUMIFS(ShrBaU.trnPALL.dDPs.,Prd.,BY.) -> 0.1033587307 | BE171: =OFFSET(lv1.AmbShrPen.trnPALL.dDPs.,0,-1) -> … | BF171: =+SUMIFS(ShrBaU.trnPALL.dDPs.,Prd.,AQ171) -> 0 | BG171: =+SUMIFS(ShrBaU.trnPALL.dDPs.,Prd.,2050) -> 0.0972994975 | BH171: … | BI171: … | BJ171: … | BK171: TS
B172: =Model!$G$5512 -> AmbShrPen.aviD.dDPs. | C172: Aviation share of passenger travel demand | D172: 1 | E172: 2020 | F172: 30 | K172: =OFFSET(lv1.AmbShrPen.aviD.dDPs.,0,-1) -> … | L172: =lv1.AmbShrPen.aviD.dDPs. -> 0.02 | M172: =lv2.AmbShrPen.aviD.dDPs. -> 0.02 | N172: =lv3.AmbShrPen.aviD.dDPs. -> 0.02 | O172: =lv4.AmbShrPen.aviD.dDPs. -> 0.015 | P172: =LvrShrPen.aviD.dDPs. -> 0.02 | AB172: =Control!$C$70 -> UK Transport Demand | AC172: =Control!$D$70 -> 1 | AD172: =Control!$E$70 -> 2020 | AE172: =Control!$F$70 -> 30 | AF172: =Control!$AK$70 -> Transport Behaviour | AG172: =Control!$AP$70 -> 1 | AH172: =Control!$AG$70 -> 2020 | AI172: =Control!$AI$70 -> 30 | AQ172: 1 | AR172: 2020 | AS172: 30 | AX172: Aviation share of passenger travel demand | BC172: 0 | BD172: =+SUMIFS(ShrBaU.aviD.dDPs.,Prd.,BY.) -> 0.02365027337 | BE172: =OFFSET(lv1.AmbShrPen.aviD.dDPs.,0,-1) -> … | BF172: =+SUMIFS(ShrBaU.aviD.dDPs.,Prd.,AQ172) -> 0 | BG172: =+SUMIFS(ShrBaU.aviD.dDPs.,Prd.,2050) -> 0.02660370817 | BH172: … | BI172: … | BJ172: … | BK172: TS
B173: =Model!$G$5590 -> AmbDemUnit.aviI.dDPs. | C173: International passenger travel demand | D173: 1 | E173: 2020 | F173: 30 | K173: =OFFSET(lv1.AmbDemUnit.aviI.dDPs.,0,-1) -> Psg km. / person | L173: =lv1.AmbDemUnit.aviI.dDPs. -> 7457.5 | M173: =lv2.AmbDemUnit.aviI.dDPs. -> 6682.333333 | N173: =lv3.AmbDemUnit.aviI.dDPs. -> 5907.166667 | O173: =lv4.AmbDemUnit.aviI.dDPs. -> 5132 | P173: =LvrDemUnit.aviI.dDPs. -> 7457.5 | AB173: =Control!$C$71 -> International Aviation | AC173: =Control!$D$71 -> 1 | AD173: =Control!$E$71 -> 2020 | AE173: =Control!$F$71 -> 30 | AF173: =Control!$AK$71 -> Transport Behaviour | AG173: =Control!$AP$71 -> 1 | AH173: =Control!$AG$71 -> 2020 | AI173: =Control!$AI$71 -> 30 | AQ173: 1 | AR173: 2020 | AS173: 30 | AX173: International passenger travel demand | BC173: 0 | BD173: =+SUMIFS(DemUnitBaU.aviI.dDPs.,Prd.,BY.) -> 5271.228593 | BE173: =OFFSET(lv1.AmbDemUnit.aviI.dDPs.,0,-1) -> Psg km. / person | BF173: =+SUMIFS(DemUnitBaU.aviI.dDPs.,Prd.,AQ173) -> 0 | BG173: =+SUMIFS(DemUnitBaU.aviI.dDPs.,Prd.,2050) -> 7457.480159 | BH173: … | BI173: … | BJ173: … | BK173: TS
B174: =Model!$G$5647 -> AmbOcc.carALL. | C174: Car Occupancy/sharing rates | D174: 1 | E174: 2020 | F174: 30 | K174: =OFFSET(lv1.AmbOcc.carALL.,0,-1) -> Psg / Vehicle | L174: =lv1.AmbOcc.carALL. -> 1.45 | M174: =lv2.AmbOcc.carALL. -> 1.55 | N174: =lv3.AmbOcc.carALL. -> 1.6 | O174: =lv4.AmbOcc.carALL. -> 1.8 | P174: =LvrOcc.carALL. -> 1.45 | AB174: =Control!$C$70 -> UK Transport Demand | AC174: =Control!$D$70 -> 1 | AD174: =Control!$E$70 -> 2020 | AE174: =Control!$F$70 -> 30 | AF174: =Control!$AK$70 -> Transport Behaviour | AG174: =Control!$AP$70 -> 1 | AH174: =Control!$AG$70 -> 2020 | AI174: =Control!$AI$70 -> 30 | AQ174: 1 | AR174: 2020 | AS174: 30 | AX174: Car Occupancy/sharing rates | BC174: 0 | BD174: =+SUMIFS(OccBaU.carALL.,Prd.,BY.) -> 1.531135531 | BE174: =OFFSET(lv1.AmbOcc.carALL.,0,-1) -> Psg / Vehicle | BF174: =+SUMIFS(OccBaU.carALL.,Prd.,AQ174) -> 0 | BG174: =+SUMIFS(OccBaU.carALL.,Prd.,2050) -> 1.445121951 | BH174: … | BI174: … | BJ174: … | BK174: TS
B175: =Model!$G$7256 -> AmbRng.carALL. | C175: Car own or hire (average vehicle mileage) | D175: 1 | E175: 2020 | F175: 30 | K175: =OFFSET(lv1.AmbRng.carALL.,0,-1) -> km. / Vehicle | L175: =lv1.AmbRng.carALL. -> 13700 | M175: =lv2.AmbRng.carALL. -> 18233.33333 | N175: =lv3.AmbRng.carALL. -> 22766.66667 | O175: =lv4.AmbRng.carALL. -> 27300 | P175: =LvrRng.carALL. -> 13700 | AB175: =Control!$C$70 -> UK Transport Demand | AC175: =Control!$D$70 -> 1 | AD175: =Control!$E$70 -> 2020 | AE175: =Control!$F$70 -> 30 | AF175: =Control!$AK$70 -> Transport Behaviour | AG175: =Control!$AP$70 -> 1 | AH175: =Control!$AG$70 -> 2020 | AI175: =Control!$AI$70 -> 30 | AQ175: 1 | AR175: 2020 | AS175: 30 | AX175: Car own or hire (average vehicle mileage) | BC175: 0 | BD175: =RngBY.carALL. -> 11065.5511 | BE175: =OFFSET(lv1.AmbRng.carALL.,0,-1) -> km. / Vehicle | BF175: … | BG175: … | BH175: … | BI175: … | BJ175: … | BK175: Const
B176: =Model!$G$5817 -> AmbShrPen.carE. | C176: Car - Electric vehicle distance share | D176: 1 | E176: 2020 | F176: 30 | K176: =OFFSET(lv1.AmbShrPen.carE.,0,-1) -> … | L176: =lv1.AmbShrPen.carE. -> 0 | M176: =lv2.AmbShrPen.carE. -> 0.5 | N176: =lv3.AmbShrPen.carE. -> 0.95 | O176: =lv4.AmbShrPen.carE. -> 1 | P176: =LvrShrPen.carE. -> 0 | AB176: =Control!$C$72 -> Light Vehicles - Electric | AC176: =Control!$D$72 -> 1 | AD176: =Control!$E$72 -> 2020 | AE176: =Control!$F$72 -> 30 | AF176: =Control!$AK$72 -> Light Vehicle Technology | AG176: =Control!$AP$72 -> 1 | AH176: =Control!$AG$72 -> 2020 | AI176: =Control!$AI$72 -> 30 | AQ176: 1 | AR176: 2020 | AS176: 30 | AW176: Car - | AX176: Electric vehicle distance share | BC176: 0 | BD176: =ShrBY.carE. -> 0.0008 | BE176: =OFFSET(lv1.AmbShrPen.carE.,0,-1) -> … | BF176: … | BG176: … | BH176: … | BI176: … | BJ176: … | BK176: Const
B177: =Model!$G$5818 -> AmbShrPen.carH2. | C177: Car - Hydrogen vehicle distance share | D177: 1 | E177: 2025 | F177: 25 | K177: =OFFSET(lv1.AmbShrPen.carH2.,0,-1) -> … | L177: =lv1.AmbShrPen.carH2. -> 0 | M177: =lv2.AmbShrPen.carH2. -> 0.3333333333 | N177: =lv3.AmbShrPen.carH2. -> 0.6666666667 | O177: =lv4.AmbShrPen.carH2. -> 1 | P177: =LvrShrPen.carH2. -> 0 | AB177: =Control!$C$73 -> Light Vehicles - Hydrogen | AC177: =Control!$D$73 -> 1 | AD177: =Control!$E$73 -> 2025 | AE177: =Control!$F$73 -> 25 | AF177: =Control!$AK$73 -> No Control Lv1 | AG177: =Control!$AP$73 -> 1 | AH177: =Control!$AG$73 -> 2025 | AI177: =Control!$AI$73 -> 25 | AQ177: 1 | AR177: 2025 | AS177: 25 | AW177: Car - | AX177: Hydrogen vehicle distance share | BC177: 0 | BD177: =ShrBY.carH2. -> 2.598719235e-06 | BE177: =OFFSET(lv1.AmbShrPen.carH2.,0,-1) -> … | BF177: … | BG177: … | BH177: … | BI177: … | BJ177: … | BK177: Const
B178: =Model!$G$5819 -> AmbShrPen.carPHEV. | C178: Car - Plug-in Hybrid Electric vehicle distance share | D178: 1 | E178: 2020 | F178: 30 | K178: =OFFSET(lv1.AmbShrPen.carPHEV.,0,-1) -> … | L178: =lv1.AmbShrPen.carPHEV. -> 0 | M178: =lv2.AmbShrPen.carPHEV. -> 0.3333333333 | N178: =lv3.AmbShrPen.carPHEV. -> 0.6666666667 | O178: =lv4.AmbShrPen.carPHEV. -> 1 | P178: =LvrShrPen.carPHEV. -> 0 | AB178: =Control!$C$74 -> Light Vehicles - Hybrid | AC178: =Control!$D$74 -> 1 | AD178: =Control!$E$74 -> 2020 | AE178: =Control!$F$74 -> 30 | AF178: =Control!$AK$74 -> No Control Lv1 | AG178: =Control!$AP$74 -> 1 | AH178: =Control!$AG$74 -> 2020 | AI178: =Control!$AI$74 -> 30 | AQ178: 1 | AR178: 2020 | AS178: 30 | AW178: Car - | AX178: Plug-in Hybrid Electric vehicle distance share | BC178: 0 | BD178: =ShrBY.carPHEV. -> 0.002273765312 | BE178: =OFFSET(lv1.AmbShrPen.carPHEV.,0,-1) -> … | BF178: … | BG178: … | BH178: … | BI178: … | BJ178: … | BK178: Const
B179: =Model!$G$5820 -> AmbShrPen.lgvE. | C179: LGV - Electric vehicle distance share | D179: 1 | E179: 2020 | F179: 30 | K179: =OFFSET(lv1.AmbShrPen.lgvE.,0,-1) -> … | L179: =lv1.AmbShrPen.lgvE. -> 0 | M179: =lv2.AmbShrPen.lgvE. -> 0.5 | N179: =lv3.AmbShrPen.lgvE. -> 0.95 | O179: =lv4.AmbShrPen.lgvE. -> 1 | P179: =LvrShrPen.lgvE. -> 0 | AB179: =Control!$C$72 -> Light Vehicles - Electric | AC179: =Control!$D$72 -> 1 | AD179: =Control!$E$72 -> 2020 | AE179: =Control!$F$72 -> 30 | AF179: =Control!$AK$72 -> Light Vehicle Technology | AG179: =Control!$AP$72 -> 1 | AH179: =Control!$AG$72 -> 2020 | AI179: =Control!$AI$72 -> 30 | AQ179: 1 | AR179: 2020 | AS179: 30 | AW179: LGV - | AX179: Electric vehicle distance share | BC179: 0 | BD179: =ShrBY.lgvE. -> 0.001229913202 | BE179: =OFFSET(lv1.AmbShrPen.lgvE.,0,-1) -> … | BF179: … | BG179: … | BH179: … | BI179: … | BJ179: … | BK179: Const
B180: =Model!$G$5821 -> AmbShrPen.lgvH2. | C180: LGV - Hydrogen vehicle distance share | D180: 1 | E180: 2025 | F180: 25 | K180: =OFFSET(lv1.AmbShrPen.lgvH2.,0,-1) -> … | L180: =lv1.AmbShrPen.lgvH2. -> 0 | M180: =lv2.AmbShrPen.lgvH2. -> 0.3333333333 | N180: =lv3.AmbShrPen.lgvH2. -> 0.6666666667 | O180: =lv4.AmbShrPen.lgvH2. -> 1 | P180: =LvrShrPen.lgvH2. -> 0 | AB180: =Control!$C$73 -> Light Vehicles - Hydrogen | AC180: =Control!$D$73 -> 1 | AD180: =Control!$E$73 -> 2025 | AE180: =Control!$F$73 -> 25 | AF180: =Control!$AK$73 -> No Control Lv1 | AG180: =Control!$AP$73 -> 1 | AH180: =Control!$AG$73 -> 2025 | AI180: =Control!$AI$73 -> 25 | AQ180: 1 | AR180: 2025 | AS180: 25 | AW180: LGV - | AX180: Hydrogen vehicle distance share | BC180: 0 | BD180: =ShrBY.lgvH2. -> 0 | BE180: =OFFSET(lv1.AmbShrPen.lgvH2.,0,-1) -> … | BF180: … | BG180: … | BH180: … | BI180: … | BJ180: … | BK180: Const
B181: =Model!$G$5822 -> AmbShrPen.lgvPHEV. | C181: LGV - Plug-in Hybrid Electric vehicle distance share | D181: 1 | E181: 2020 | F181: 30 | K181: =OFFSET(lv1.AmbShrPen.lgvPHEV.,0,-1) -> … | L181: =lv1.AmbShrPen.lgvPHEV. -> 0 | M181: =lv2.AmbShrPen.lgvPHEV. -> 0.3333333333 | N181: =lv3.AmbShrPen.lgvPHEV. -> 0.6666666667 | O181: =lv4.AmbShrPen.lgvPHEV. -> 1 | P181: =LvrShrPen.lgvPHEV. -> 0 | AB181: =Control!$C$74 -> Light Vehicles - Hybrid | AC181: =Control!$D$74 -> 1 | AD181: =Control!$E$74 -> 2020 | AE181: =Control!$F$74 -> 30 | AF181: =Control!$AK$74 -> No Control Lv1 | AG181: =Control!$AP$74 -> 1 | AH181: =Control!$AG$74 -> 2020 | AI181: =Control!$AI$74 -> 30 | AQ181: 1 | AR181: 2020 | AS181: 30 | AW181: LGV - | AX181: Plug-in Hybrid Electric vehicle distance share | BC181: 0 | BD181: =ShrBY.lgvPHEV. -> 0.0001862937081 | BE181: =OFFSET(lv1.AmbShrPen.lgvPHEV.,0,-1) -> … | BF181: … | BG181: … | BH181: … | BI181: … | BJ181: … | BK181: Const
B182: =Model!$G$5823 -> AmbShrPen.hgvRE. | C182: HGV Rigid - Electric vehicle distance share | D182: 1 | E182: 2020 | F182: 30 | K182: =OFFSET(lv1.AmbShrPen.hgvRE.,0,-1) -> … | L182: =lv1.AmbShrPen.hgvRE. -> 0 | M182: =lv2.AmbShrPen.hgvRE. -> 0.2 | N182: =lv3.AmbShrPen.hgvRE. -> 0.5 | O182: =lv4.AmbShrPen.hgvRE. -> 1 | P182: =LvrShrPen.hgvRE. -> 0 | AB182: =Control!$C$72 -> Light Vehicles - Electric | AC182: =Control!$D$72 -> 1 | AD182: =Control!$E$72 -> 2020 | AE182: =Control!$F$72 -> 30 | AF182: =Control!$AK$72 -> Light Vehicle Technology | AG182: =Control!$AP$72 -> 1 | AH182: =Control!$AG$72 -> 2020 | AI182: =Control!$AI$72 -> 30 | AQ182: 1 | AR182: 2020 | AS182: 30 | AW182: HGV Rigid - | AX182: Electric vehicle distance share | BC182: 0 | BD182: =ShrBY.hgvRE. -> 0.0008356199292 | BE182: =OFFSET(lv1.AmbShrPen.hgvRE.,0,-1) -> … | BF182: … | BG182: … | BH182: … | BI182: … | BJ182: … | BK182: Const
B183: =Model!$G$5824 -> AmbShrPen.hgvRH2. | C183: HGV Rigid - Hydrogen vehicle distance share | D183: 1 | E183: 2025 | F183: 25 | K183: =OFFSET(lv1.AmbShrPen.hgvRH2.,0,-1) -> … | L183: =lv1.AmbShrPen.hgvRH2. -> 0 | M183: =lv2.AmbShrPen.hgvRH2. -> 0.05 | N183: =lv3.AmbShrPen.hgvRH2. -> 0.5 | O183: =lv4.AmbShrPen.hgvRH2. -> 1 | P183: =LvrShrPen.hgvRH2. -> 0 | AB183: =Control!$C$73 -> Light Vehicles - Hydrogen | AC183: =Control!$D$73 -> 1 | AD183: =Control!$E$73 -> 2025 | AE183: =Control!$F$73 -> 25 | AF183: =Control!$AK$73 -> No Control Lv1 | AG183: =Control!$AP$73 -> 1 | AH183: =Control!$AG$73 -> 2025 | AI183: =Control!$AI$73 -> 25 | AQ183: 1 | AR183: 2025 | AS183: 25 | AW183: HGV Rigid - | AX183: Hydrogen vehicle distance share | BC183: 0 | BD183: =ShrBY.hgvRH2. -> 0 | BE183: =OFFSET(lv1.AmbShrPen.hgvRH2.,0,-1) -> … | BF183: … | BG183: … | BH183: … | BI183: … | BJ183: … | BK183: Const
B184: =Model!$G$5825 -> AmbShrPen.hgvRPHEV. | C184: HGV Rigid - Plug-in Hybrid Electric vehicle distance share | D184: 1 | E184: 2020 | F184: 30 | K184: =OFFSET(lv1.AmbShrPen.hgvRPHEV.,0,-1) -> … | L184: =lv1.AmbShrPen.hgvRPHEV. -> 0 | M184: =lv2.AmbShrPen.hgvRPHEV. -> 0.2 | N184: =lv3.AmbShrPen.hgvRPHEV. -> 0.5 | O184: =lv4.AmbShrPen.hgvRPHEV. -> 1 | P184: =LvrShrPen.hgvRPHEV. -> 0 | AB184: =Control!$C$74 -> Light Vehicles - Hybrid | AC184: =Control!$D$74 -> 1 | AD184: =Control!$E$74 -> 2020 | AE184: =Control!$F$74 -> 30 | AF184: =Control!$AK$74 -> No Control Lv1 | AG184: =Control!$AP$74 -> 1 | AH184: =Control!$AG$74 -> 2020 | AI184: =Control!$AI$74 -> 30 | AQ184: 1 | AR184: 2020 | AS184: 30 | AW184: HGV Rigid - | AX184: Plug-in Hybrid Electric vehicle distance share | BC184: 0 | BD184: =ShrBY.hgvRPHEV. -> 0 | BE184: =OFFSET(lv1.AmbShrPen.hgvRPHEV.,0,-1) -> … | BF184: … | BG184: … | BH184: … | BI184: … | BJ184: … | BK184: Const
B185: =Model!$G$5826 -> AmbShrPen.hgvAE. | C185: HGV Articulated - Electric vehicle distance share | D185: 1 | E185: 2020 | F185: 30 | K185: =OFFSET(lv1.AmbShrPen.hgvAE.,0,-1) -> … | L185: =lv1.AmbShrPen.hgvAE. -> 0 | M185: =lv2.AmbShrPen.hgvAE. -> 0.02 | N185: =lv3.AmbShrPen.hgvAE. -> 0.15 | O185: =lv4.AmbShrPen.hgvAE. -> 1 | P185: =LvrShrPen.hgvAE. -> 0 | AB185: =Control!$C$76 -> Heavy Vehicles - Electric | AC185: =Control!$D$76 -> 1 | AD185: =Control!$E$76 -> 2020 | AE185: =Control!$F$76 -> 30 | AF185: =Control!$AK$76 -> Heavy Vehicle Technology | AG185: =Control!$AP$76 -> 1 | AH185: =Control!$AG$76 -> 2020 | AI185: =Control!$AI$76 -> 30 | AQ185: 1 | AR185: 2020 | AS185: 30 | AW185: HGV Articulated - | AX185: Electric vehicle distance share | BC185: 0 | BD185: =ShrBY.hgvAE. -> 0 | BE185: =OFFSET(lv1.AmbShrPen.hgvAE.,0,-1) -> … | BF185: … | BG185: … | BH185: … | BI185: … | BJ185: … | BK185: Const
B186: =Model!$G$5827 -> AmbShrPen.hgvAH2. | C186: HGV Articulated - Hydrogen vehicle distance share | D186: 1 | E186: 2025 | F186: 25 | K186: =OFFSET(lv1.AmbShrPen.hgvAH2.,0,-1) -> … | L186: =lv1.AmbShrPen.hgvAH2. -> 0 | M186: =lv2.AmbShrPen.hgvAH2. -> 0.5 | N186: =lv3.AmbShrPen.hgvAH2. -> 0.8 | O186: =lv4.AmbShrPen.hgvAH2. -> 1 | P186: =LvrShrPen.hgvAH2. -> 0 | AB186: =Control!$C$77 -> Heavy Vehicles - Hydrogen | AC186: =Control!$D$77 -> 1 | AD186: =Control!$E$77 -> 2025 | AE186: =Control!$F$77 -> 25 | AF186: =Control!$AK$77 -> No Control Lv1 | AG186: =Control!$AP$77 -> 1 | AH186: =Control!$AG$77 -> 2025 | AI186: =Control!$AI$77 -> 25 | AQ186: =INDEX($D186:$AI186, , MATCH(AQ$163,$D$163:$AI$163,0)) -> 1 | AR186: 2025 | AS186: 25 | AW186: HGV Articulated - | AX186: Hydrogen vehicle distance share | BC186: 0 | BD186: =ShrBY.hgvAH2. -> 0.0008356199292 | BE186: =OFFSET(lv1.AmbShrPen.hgvAH2.,0,-1) -> … | BF186: … | BG186: … | BH186: … | BI186: … | BJ186: … | BK186: Const
B187: =Model!$G$5828 -> AmbShrPen.hgvAPHEV. | C187: HGV Articulated - Plug-in Hybrid Electric vehicle distance share | D187: 1 | E187: 2020 | F187: 30 | K187: =OFFSET(lv1.AmbShrPen.hgvAPHEV.,0,-1) -> … | L187: =lv1.AmbShrPen.hgvAPHEV. -> 0 | M187: =lv2.AmbShrPen.hgvAPHEV. -> 0.25 | N187: =lv3.AmbShrPen.hgvAPHEV. -> 0.6 | O187: =lv4.AmbShrPen.hgvAPHEV. -> 1 | P187: =LvrShrPen.hgvAPHEV. -> 0 | AB187: =Control!$C$78 -> Heavy Vehicles - Hybrid | AC187: =Control!$D$78 -> 1 | AD187: =Control!$E$78 -> 2020 | AE187: =Control!$F$78 -> 30 | AF187: =Control!$AK$78 -> No Control Lv1 | AG187: =Control!$AP$78 -> 1 | AH187: =Control!$AG$78 -> 2020 | AI187: =Control!$AI$78 -> 30 | AQ187: 1 | AR187: 2020 | AS187: 30 | AW187: HGV Articulated - | AX187: Plug-in Hybrid Electric vehicle distance share | BC187: 0 | BD187: =ShrBY.hgvAPHEV. -> 0 | BE187: =OFFSET(lv1.AmbShrPen.hgvAPHEV.,0,-1) -> … | BF187: … | BG187: … | BH187: … | BI187: … | BJ187: … | BK187: Const
B188: =Model!$G$5829 -> AmbShrPen.busE. | C188: Bus - Electric vehicle distance share | D188: 1 | E188: 2020 | F188: 30 | K188: =OFFSET(lv1.AmbShrPen.busE.,0,-1) -> … | L188: =lv1.AmbShrPen.busE. -> 0 | M188: =lv2.AmbShrPen.busE. -> 0.4 | N188: =lv3.AmbShrPen.busE. -> 0.6 | O188: =lv4.AmbShrPen.busE. -> 1 | P188: =LvrShrPen.busE. -> 0 | AB188: =Control!$C$76 -> Heavy Vehicles - Electric | AC188: =Control!$D$76 -> 1 | AD188: =Control!$E$76 -> 2020 | AE188: =Control!$F$76 -> 30 | AF188: =Control!$AK$76 -> Heavy Vehicle Technology | AG188: =Control!$AP$76 -> 1 | AH188: =Control!$AG$76 -> 2020 | AI188: =Control!$AI$76 -> 30 | AQ188: 1 | AR188: 2020 | AS188: 30 | AW188: Bus - | AX188: Electric vehicle distance share | BC188: 0 | BD188: =ShrBY.busE. -> 0.001153251694 | BE188: =OFFSET(lv1.AmbShrPen.busE.,0,-1) -> … | BF188: … | BG188: … | BH188: … | BI188: … | BJ188: … | BK188: Const
B189: =Model!$G$5830 -> AmbShrPen.busH2. | C189: Bus - Hydrogen vehicle distance share | D189: 1 | E189: 2025 | F189: 25 | K189: =OFFSET(lv1.AmbShrPen.busH2.,0,-1) -> … | L189: =lv1.AmbShrPen.busH2. -> 0 | M189: =lv2.AmbShrPen.busH2. -> 0.4 | N189: =lv3.AmbShrPen.busH2. -> 0.6 | O189: =lv4.AmbShrPen.busH2. -> 1 | P189: =LvrShrPen.busH2. -> 0 | AB189: =Control!$C$77 -> Heavy Vehicles - Hydrogen | AC189: =Control!$D$77 -> 1 | AD189: =Control!$E$77 -> 2025 | AE189: =Control!$F$77 -> 25 | AF189: =Control!$AK$77 -> No Control Lv1 | AG189: =Control!$AP$77 -> 1 | AH189: =Control!$AG$77 -> 2025 | AI189: =Control!$AI$77 -> 25 | AQ189: 1 | AR189: 2025 | AS189: 25 | AW189: Bus - | AX189: Hydrogen vehicle distance share | BC189: 0 | BD189: =ShrBY.busH2. -> 0 | BE189: =OFFSET(lv1.AmbShrPen.busH2.,0,-1) -> … | BF189: … | BG189: … | BH189: … | BI189: … | BJ189: … | BK189: Const
B190: =Model!$G$5831 -> AmbShrPen.busPHEV. | C190: Bus - Plug-in Hybrid Electric vehicle distance share | D190: 1 | E190: 2020 | F190: 30 | K190: =OFFSET(lv1.AmbShrPen.busPHEV.,0,-1) -> … | L190: =lv1.AmbShrPen.busPHEV. -> 0 | M190: =lv2.AmbShrPen.busPHEV. -> 0.4 | N190: =lv3.AmbShrPen.busPHEV. -> 0.6 | O190: =lv4.AmbShrPen.busPHEV. -> 1 | P190: =LvrShrPen.busPHEV. -> 0 | AB190: =Control!$C$78 -> Heavy Vehicles - Hybrid | AC190: =Control!$D$78 -> 1 | AD190: =Control!$E$78 -> 2020 | AE190: =Control!$F$78 -> 30 | AF190: =Control!$AK$78 -> No Control Lv1 | AG190: =Control!$AP$78 -> 1 | AH190: =Control!$AG$78 -> 2020 | AI190: =Control!$AI$78 -> 30 | AQ190: 1 | AR190: 2020 | AS190: 30 | AW190: Bus - | AX190: Plug-in Hybrid Electric vehicle distance share | BC190: 0 | BD190: =ShrBY.busPHEV. -> 0 | BE190: =OFFSET(lv1.AmbShrPen.busPHEV.,0,-1) -> … | BF190: … | BG190: … | BH190: … | BI190: … | BJ190: … | BK190: Const
B191: =Model!$G$5832 -> AmbShrPen.trnPE. | C191: Rail Passenger - Electric vehicle distance share | D191: 1 | E191: 2020 | F191: 30 | K191: =OFFSET(lv1.AmbShrPen.trnPE.,0,-1) -> … | L191: =lv1.AmbShrPen.trnPE. -> 0.65 | M191: =lv2.AmbShrPen.trnPE. -> 0.8 | N191: =lv3.AmbShrPen.trnPE. -> 0.9 | O191: =lv4.AmbShrPen.trnPE. -> 1 | P191: =LvrShrPen.trnPE. -> 0.65 | AB191: =Control!$C$76 -> Heavy Vehicles - Electric | AC191: =Control!$D$76 -> 1 | AD191: =Control!$E$76 -> 2020 | AE191: =Control!$F$76 -> 30 | AF191: =Control!$AK$76 -> Heavy Vehicle Technology | AG191: =Control!$AP$76 -> 1 | AH191: =Control!$AG$76 -> 2020 | AI191: =Control!$AI$76 -> 30 | AQ191: 1 | AR191: 2020 | AS191: 30 | AW191: Rail Passenger - | AX191: Electric vehicle distance share | BC191: 0 | BD191: =ShrBY.trnPE. -> 0.6468205548 | BE191: =OFFSET(lv1.AmbShrPen.trnPE.,0,-1) -> … | BF191: … | BG191: … | BH191: … | BI191: … | BJ191: … | BK191: Const
B192: =Model!$G$5833 -> AmbShrPen.trnFE. | C192: Rail Freight - Electric vehicle distance share | D192: 1 | E192: 2020 | F192: 30 | K192: =OFFSET(lv1.AmbShrPen.trnFE.,0,-1) -> … | L192: =lv1.AmbShrPen.trnFE. -> 0.08 | M192: =lv2.AmbShrPen.trnFE. -> 0.4 | N192: =lv3.AmbShrPen.trnFE. -> 0.75 | O192: =lv4.AmbShrPen.trnFE. -> 1 | P192: =LvrShrPen.trnFE. -> 0.08 | AB192: =Control!$C$76 -> Heavy Vehicles - Electric | AC192: =Control!$D$76 -> 1 | AD192: =Control!$E$76 -> 2020 | AE192: =Control!$F$76 -> 30 | AF192: =Control!$AK$76 -> Heavy Vehicle Technology | AG192: =Control!$AP$76 -> 1 | AH192: =Control!$AG$76 -> 2020 | AI192: =Control!$AI$76 -> 30 | AQ192: 1 | AR192: 2020 | AS192: 30 | AW192: Rail Freight - | AX192: Electric vehicle distance share | BC192: 0 | BD192: =ShrBY.trnFE. -> 0.07751224302 | BE192: =OFFSET(lv1.AmbShrPen.trnFE.,0,-1) -> … | BF192: … | BG192: … | BH192: … | BI192: … | BJ192: … | BK192: Const
B193: =Model!$G$6066 -> AmbShrPen.carALL.fBiL. | C193: Car - Biofuel share of liquid fuel | D193: 1 | E193: 2020 | F193: 30 | K193: =OFFSET(lv1.AmbShrPen.carALL.fBiL.,0,-1) -> … | L193: =lv1.AmbShrPen.carALL.fBiL. -> 0.029 | M193: =lv2.AmbShrPen.carALL.fBiL. -> 0.25 | N193: =lv3.AmbShrPen.carALL.fBiL. -> 0.5 | O193: =lv4.AmbShrPen.carALL.fBiL. -> 1 | P193: =LvrShrPen.carALL.fBiL. -> 0.029 | AB193: =Control!$C$75 -> Light Vehicles - Biofuel | AC193: =Control!$D$75 -> 1 | AD193: =Control!$E$75 -> 2020 | AE193: =Control!$F$75 -> 30 | AF193: =Control!$AK$75 -> No Control Lv1 | AG193: =Control!$AP$75 -> 1 | AH193: =Control!$AG$75 -> 2020 | AI193: =Control!$AI$75 -> 30 | AQ193: 1 | AR193: 2020 | AS193: 30 | AW193: Car - | AX193: Biofuel share of liquid fuel | BC193: 0 | BD193: =ShrBY.carALL.fBiL. -> 0.02909045782 | BE193: =OFFSET(lv1.AmbShrPen.carALL.fBiL.,0,-1) -> … | BF193: … | BG193: … | BH193: … | BI193: … | BJ193: … | BK193: Const
B194: =Model!$G$6067 -> AmbShrPen.lgvALL.fBiL. | C194: LGV - Biofuel share of liquid fuel | D194: 1 | E194: 2020 | F194: 30 | K194: =OFFSET(lv1.AmbShrPen.lgvALL.fBiL.,0,-1) -> … | L194: =lv1.AmbShrPen.lgvALL.fBiL. -> 0.029 | M194: =lv2.AmbShrPen.lgvALL.fBiL. -> 0.25 | N194: =lv3.AmbShrPen.lgvALL.fBiL. -> 0.5 | O194: =lv4.AmbShrPen.lgvALL.fBiL. -> 1 | P194: =LvrShrPen.lgvALL.fBiL. -> 0.029 | AB194: =Control!$C$75 -> Light Vehicles - Biofuel | AC194: =Control!$D$75 -> 1 | AD194: =Control!$E$75 -> 2020 | AE194: =Control!$F$75 -> 30 | AF194: =Control!$AK$75 -> No Control Lv1 | AG194: =Control!$AP$75 -> 1 | AH194: =Control!$AG$75 -> 2020 | AI194: =Control!$AI$75 -> 30 | AQ194: 1 | AR194: 2020 | AS194: 30 | AW194: LGV - | AX194: Biofuel share of liquid fuel | BC194: 0 | BD194: =ShrBY.lgvALL.fBiL. -> 0.02284864427 | BE194: =OFFSET(lv1.AmbShrPen.lgvALL.fBiL.,0,-1) -> … | BF194: … | BG194: … | BH194: … | BI194: … | BJ194: … | BK194: Const
B195: =Model!$G$6068 -> AmbShrPen.hgvRALL.fBiL. | C195: HGV Rigid - Biofuel share of liquid fuel | D195: 1 | E195: 2020 | F195: 30 | K195: =OFFSET(lv1.AmbShrPen.hgvRALL.fBiL.,0,-1) -> … | L195: =lv1.AmbShrPen.hgvRALL.fBiL. -> 0.022 | M195: =lv2.AmbShrPen.hgvRALL.fBiL. -> 0.25 | N195: =lv3.AmbShrPen.hgvRALL.fBiL. -> 0.5 | O195: =lv4.AmbShrPen.hgvRALL.fBiL. -> 1 | P195: =LvrShrPen.hgvRALL.fBiL. -> 0.022 | AB195: =Control!$C$75 -> Light Vehicles - Biofuel | AC195: =Control!$D$75 -> 1 | AD195: =Control!$E$75 -> 2020 | AE195: =Control!$F$75 -> 30 | AF195: =Control!$AK$75 -> No Control Lv1 | AG195: =Control!$AP$75 -> 1 | AH195: =Control!$AG$75 -> 2020 | AI195: =Control!$AI$75 -> 30 | AQ195: 1 | AR195: 2020 | AS195: 30 | AW195: HGV Rigid - | AX195: Biofuel share of liquid fuel | BC195: 0 | BD195: =ShrBY.hgvRALL.fBiL. -> 0.0223443592 | BE195: =OFFSET(lv1.AmbShrPen.hgvRALL.fBiL.,0,-1) -> … | BF195: … | BG195: … | BH195: … | BI195: … | BJ195: … | BK195: Const
B196: =Model!$G$6069 -> AmbShrPen.hgvAALL.fBiL. | C196: HGV Articulated - Biofuel share of liquid fuel | D196: 1 | E196: 2020 | F196: 30 | K196: =OFFSET(lv1.AmbShrPen.hgvAALL.fBiL.,0,-1) -> … | L196: =lv1.AmbShrPen.hgvAALL.fBiL. -> 0.022 | M196: =lv2.AmbShrPen.hgvAALL.fBiL. -> 0.25 | N196: =lv3.AmbShrPen.hgvAALL.fBiL. -> 0.5 | O196: =lv4.AmbShrPen.hgvAALL.fBiL. -> 1 | P196: =LvrShrPen.hgvAALL.fBiL. -> 0.022 | AB196: =Control!$C$79 -> Heavy Vehicles - Biofuel | AC196: =Control!$D$79 -> 1 | AD196: =Control!$E$79 -> 2020 | AE196: =Control!$F$79 -> 30 | AF196: =Control!$AK$79 -> No Control Lv1 | AG196: =Control!$AP$79 -> 1 | AH196: =Control!$AG$79 -> 2020 | AI196: =Control!$AI$79 -> 30 | AQ196: 1 | AR196: 2020 | AS196: 30 | AW196: HGV Articulated - | AX196: Biofuel share of liquid fuel | BC196: 0 | BD196: =ShrBY.hgvAALL.fBiL. -> 0.0223443592 | BE196: =OFFSET(lv1.AmbShrPen.hgvAALL.fBiL.,0,-1) -> … | BF196: … | BG196: … | BH196: … | BI196: … | BJ196: … | BK196: Const
B197: =Model!$G$6070 -> AmbShrPen.busALL.fBiL. | C197: Bus - Biofuel share of liquid fuel | D197: 1 | E197: 2020 | F197: 30 | K197: =OFFSET(lv1.AmbShrPen.busALL.fBiL.,0,-1) -> … | L197: =lv1.AmbShrPen.busALL.fBiL. -> 0.022 | M197: =lv2.AmbShrPen.busALL.fBiL. -> 0.25 | N197: =lv3.AmbShrPen.busALL.fBiL. -> 0.5 | O197: =lv4.AmbShrPen.busALL.fBiL. -> 1 | P197: =LvrShrPen.busALL.fBiL. -> 0.022 | AB197: =Control!$C$79 -> Heavy Vehicles - Biofuel | AC197: =Control!$D$79 -> 1 | AD197: =Control!$E$79 -> 2020 | AE197: =Control!$F$79 -> 30 | AF197: =Control!$AK$79 -> No Control Lv1 | AG197: =Control!$AP$79 -> 1 | AH197: =Control!$AG$79 -> 2020 | AI197: =Control!$AI$79 -> 30 | AQ197: 1 | AR197: 2020 | AS197: 30 | AW197: Bus - | AX197: Biofuel share of liquid fuel | BC197: 0 | BD197: =ShrBY.busALL.fBiL. -> 0.0223443592 | BE197: =OFFSET(lv1.AmbShrPen.busALL.fBiL.,0,-1) -> … | BF197: … | BG197: … | BH197: … | BI197: … | BJ197: … | BK197: Const
B198: =Model!$G$6071 -> AmbShrPen.trnPALL.fBiL. | C198: Rail Passenger - Biofuel share of liquid fuel | D198: 1 | E198: 2020 | F198: 30 | K198: =OFFSET(lv1.AmbShrPen.trnPALL.fBiL.,0,-1) -> … | L198: =lv1.AmbShrPen.trnPALL.fBiL. -> 0.022 | M198: =lv2.AmbShrPen.trnPALL.fBiL. -> 0.25 | N198: =lv3.AmbShrPen.trnPALL.fBiL. -> 0.5 | O198: =lv4.AmbShrPen.trnPALL.fBiL. -> 1 | P198: =LvrShrPen.trnPALL.fBiL. -> 0.022 | AB198: =Control!$C$79 -> Heavy Vehicles - Biofuel | AC198: =Control!$D$79 -> 1 | AD198: =Control!$E$79 -> 2020 | AE198: =Control!$F$79 -> 30 | AF198: =Control!$AK$79 -> No Control Lv1 | AG198: =Control!$AP$79 -> 1 | AH198: =Control!$AG$79 -> 2020 | AI198: =Control!$AI$79 -> 30 | AQ198: 1 | AR198: 2020 | AS198: 30 | AW198: Rail Passenger - | AX198: Biofuel share of liquid fuel | BC198: 0 | BD198: =ShrBY.trnPALL.fBiL. -> 0 | BE198: =OFFSET(lv1.AmbShrPen.trnPALL.fBiL.,0,-1) -> … | BF198: … | BG198: … | BH198: … | BI198: … | BJ198: … | BK198: Const
B199: =Model!$G$6072 -> AmbShrPen.trnFALL.fBiL. | C199: Rail Freight - Biofuel share of liquid fuel | D199: 1 | E199: 2020 | F199: 30 | K199: =OFFSET(lv1.AmbShrPen.trnFALL.fBiL.,0,-1) -> … | L199: =lv1.AmbShrPen.trnFALL.fBiL. -> 0.022 | M199: =lv2.AmbShrPen.trnFALL.fBiL. -> 0.25 | N199: =lv3.AmbShrPen.trnFALL.fBiL. -> 0.5 | O199: =lv4.AmbShrPen.trnFALL.fBiL. -> 1 | P199: =LvrShrPen.trnFALL.fBiL. -> 0.022 | AB199: =Control!$C$79 -> Heavy Vehicles - Biofuel | AC199: =Control!$D$79 -> 1 | AD199: =Control!$E$79 -> 2020 | AE199: =Control!$F$79 -> 30 | AF199: =Control!$AK$79 -> No Control Lv1 | AG199: =Control!$AP$79 -> 1 | AH199: =Control!$AG$79 -> 2020 | AI199: =Control!$AI$79 -> 30 | AQ199: 1 | AR199: 2020 | AS199: 30 | AW199: Rail Freight - | AX199: Biofuel share of liquid fuel | BC199: 0 | BD199: =ShrBY.trnFALL.fBiL. -> 0 | BE199: =OFFSET(lv1.AmbShrPen.trnFALL.fBiL.,0,-1) -> … | BF199: … | BG199: … | BH199: … | BI199: … | BJ199: … | BK199: Const
B200: =Model!$G$6073 -> AmbShrPen.nrm.fBiL. | C200: Non Road Mobile Machinery - Biofuel share of liquid fuel | D200: 1 | E200: 2020 | F200: 30 | K200: =OFFSET(lv1.AmbShrPen.nrm.fBiL.,0,-1) -> … | L200: =lv1.AmbShrPen.nrm.fBiL. -> 0.022 | M200: =lv2.AmbShrPen.nrm.fBiL. -> 0.25 | N200: =lv3.AmbShrPen.nrm.fBiL. -> 0.5 | O200: =lv4.AmbShrPen.nrm.fBiL. -> 1 | P200: =LvrShrPen.nrm.fBiL. -> 0.022 | AB200: =Control!$C$79 -> Heavy Vehicles - Biofuel | AC200: =Control!$D$79 -> 1 | AD200: =Control!$E$79 -> 2020 | AE200: =Control!$F$79 -> 30 | AF200: =Control!$AK$79 -> No Control Lv1 | AG200: =Control!$AP$79 -> 1 | AH200: =Control!$AG$79 -> 2020 | AI200: =Control!$AI$79 -> 30 | AQ200: 1 | AR200: 2020 | AS200: 30 | AW200: Non Road Mobile Machinery - | AX200: Biofuel share of liquid fuel | BC200: 0 | BD200: =ShrBY.nrm.fBiL. -> 0 | BE200: =OFFSET(lv1.AmbShrPen.nrm.fBiL.,0,-1) -> … | BF200: … | BG200: … | BH200: … | BI200: … | BJ200: … | BK200: Const
B201: =Model!$G$6074 -> AmbShrPen.shpD.fBiL. | C201: Shipping Domestic - Biofuel share of liquid fuel | D201: 1 | E201: 2020 | F201: 30 | K201: =OFFSET(lv1.AmbShrPen.shpD.fBiL.,0,-1) -> … | L201: =lv1.AmbShrPen.shpD.fBiL. -> 0 | M201: =lv2.AmbShrPen.shpD.fBiL. -> 0.1 | N201: =lv3.AmbShrPen.shpD.fBiL. -> 0.3 | O201: =lv4.AmbShrPen.shpD.fBiL. -> 1 | P201: =LvrShrPen.shpD.fBiL. -> 0 | AB201: =Control!$C$79 -> Heavy Vehicles - Biofuel | AC201: =Control!$D$79 -> 1 | AD201: =Control!$E$79 -> 2020 | AE201: =Control!$F$79 -> 30 | AF201: =Control!$AK$79 -> No Control Lv1 | AG201: =Control!$AP$79 -> 1 | AH201: =Control!$AG$79 -> 2020 | AI201: =Control!$AI$79 -> 30 | AQ201: 1 | AR201: 2020 | AS201: 30 | AW201: Shipping Domestic - | AX201: Biofuel share of liquid fuel | BC201: 0 | BD201: =ShrBY.shpD.fBiL. -> 0 | BE201: =OFFSET(lv1.AmbShrPen.shpD.fBiL.,0,-1) -> … | BF201: … | BG201: … | BH201: … | BI201: … | BJ201: … | BK201: Const
B202: =Model!$G$6075 -> AmbShrPen.shpI.fBiL. | C202: Shipping International - Biofuel share of liquid fuel | D202: 1 | E202: 2020 | F202: 30 | K202: =OFFSET(lv1.AmbShrPen.shpI.fBiL.,0,-1) -> … | L202: =lv1.AmbShrPen.shpI.fBiL. -> 0 | M202: =lv2.AmbShrPen.shpI.fBiL. -> 0.1 | N202: =lv3.AmbShrPen.shpI.fBiL. -> 0.3 | O202: =lv4.AmbShrPen.shpI.fBiL. -> 1 | P202: =LvrShrPen.shpI.fBiL. -> 0 | AB202: =Control!$C$79 -> Heavy Vehicles - Biofuel | AC202: =Control!$D$79 -> 1 | AD202: =Control!$E$79 -> 2020 | AE202: =Control!$F$79 -> 30 | AF202: =Control!$AK$79 -> No Control Lv1 | AG202: =Control!$AP$79 -> 1 | AH202: =Control!$AG$79 -> 2020 | AI202: =Control!$AI$79 -> 30 | AQ202: 1 | AR202: 2020 | AS202: 30 | AW202: Shipping International - | AX202: Biofuel share of liquid fuel | BC202: 0 | BD202: =ShrBY.shpI.fBiL. -> 0 | BE202: =OFFSET(lv1.AmbShrPen.shpI.fBiL.,0,-1) -> … | BF202: … | BG202: … | BH202: … | BI202: … | BJ202: … | BK202: Const
B203: =Model!$G$8434 -> AmbEInIndx.aviD. | C203: Aviation Domestic - Energy Intensity Improvement | D203: 1 | E203: 2020 | F203: 30 | K203: =OFFSET(lv1.AmbEInIndx.aviD.,0,-1) -> … | L203: =lv1.AmbEInIndx.aviD. -> 0.85 | M203: =lv2.AmbEInIndx.aviD. -> 0.7 | N203: =lv3.AmbEInIndx.aviD. -> 0.65 | O203: =lv4.AmbEInIndx.aviD. -> 0.6 | P203: =LvrEInIndx.aviD. -> 0.85 | AB203: =Control!$C$80 -> Aviation Efficiency | AC203: =Control!$D$80 -> 1 | AD203: =Control!$E$80 -> 2020 | AE203: =Control!$F$80 -> 30 | AF203: =Control!$AK$80 -> Heavy Vehicle Technology | AG203: =Control!$AP$80 -> 1 | AH203: =Control!$AG$80 -> 2020 | AI203: =Control!$AI$80 -> 30 | AQ203: 1 | AR203: 2020 | AS203: 30 | AW203: Aviation Domestic - | AX203: Energy Intensity Improvement | BC203: 0 | BD203: =+SUMIFS(EInIndxBaU.aviD.,Prd.,BY.) -> 1 | BE203: =OFFSET(lv1.AmbEInIndx.aviD.,0,-1) -> … | BF203: =+SUMIFS(EInIndxBaU.aviD.,Prd.,AR203) -> 0.99500999 | BG203: =+SUMIFS(EInIndxBaU.aviD.,Prd.,2050) -> 1.436913488 | BH203: =+SUMIFS(EIn.aviDCon.fFsL.,Prd.,2015) -> 5.369195537e-08 | BI203: =OFFSET(INDEX(EIn.aviDCon.fFsL.,MATCH(2015,Prd.,0)),0,-2) -> TWh. / km. | BJ203: FFL only | BK203: TS
B204: =Model!$G$8435 -> AmbEInIndx.aviI. | C204: Aviation International - Energy Intensity Improvement | D204: 1 | E204: 2020 | F204: 30 | K204: =OFFSET(lv1.AmbEInIndx.aviI.,0,-1) -> … | L204: =lv1.AmbEInIndx.aviI. -> 0.85 | M204: =lv2.AmbEInIndx.aviI. -> 0.7 | N204: =lv3.AmbEInIndx.aviI. -> 0.65 | O204: =lv4.AmbEInIndx.aviI. -> 0.6 | P204: =LvrEInIndx.aviI. -> 0.85 | AB204: =Control!$C$80 -> Aviation Efficiency | AC204: =Control!$D$80 -> 1 | AD204: =Control!$E$80 -> 2020 | AE204: =Control!$F$80 -> 30 | AF204: =Control!$AK$80 -> Heavy Vehicle Technology | AG204: =Control!$AP$80 -> 1 | AH204: =Control!$AG$80 -> 2020 | AI204: =Control!$AI$80 -> 30 | AQ204: 1 | AR204: 2020 | AS204: 30 | AW204: Aviation International - | AX204: Energy Intensity Improvement | BC204: 0 | BD204: =+SUMIFS(EInIndxBaU.aviI.,Prd.,BY.) -> 1 | BE204: =OFFSET(lv1.AmbEInIndx.aviI.,0,-1) -> … | BF204: =+SUMIFS(EInIndxBaU.aviI.,Prd.,AR204) -> 0.99500999 | BG204: =+SUMIFS(EInIndxBaU.aviI.,Prd.,2050) -> 1.436913488 | BH204: =+SUMIFS(EIn.aviICon.fFsL.,Prd.,2015) -> 3.922770138e-08 | BI204: =OFFSET(INDEX(EIn.aviICon.fFsL.,MATCH(2015,Prd.,0)),0,-2) -> TWh. / km. | BJ204: FFL only | BK204: TS
B205: =Model!$G$8465 -> AmbShrPen.aviDPHEV. | C205: Aviation Domestic - Plug-in Hybrid Electric vehicle distance share | D205: 1 | E205: 2020 | F205: 30 | K205: =OFFSET(lv1.AmbShrPen.aviDPHEV.,0,-1) -> … | L205: =lv1.AmbShrPen.aviDPHEV. -> 0 | M205: =lv2.AmbShrPen.aviDPHEV. -> 0 | N205: =lv3.AmbShrPen.aviDPHEV. -> 0.5 | O205: =lv4.AmbShrPen.aviDPHEV. -> 1 | P205: =LvrShrPen.aviDPHEV. -> 0 | AB205: =Control!$C$80 -> Aviation Efficiency | AC205: =Control!$D$80 -> 1 | AD205: =Control!$E$80 -> 2020 | AE205: =Control!$F$80 -> 30 | AF205: =Control!$AK$80 -> Heavy Vehicle Technology | AG205: =Control!$AP$80 -> 1 | AH205: =Control!$AG$80 -> 2020 | AI205: =Control!$AI$80 -> 30 | AQ205: 1 | AR205: 2020 | AS205: 30 | AW205: Aviation Domestic - | AX205: Plug-in Hybrid Electric vehicle distance share | BC205: 0 | BD205: =ShrBY.aviDPHEV. -> 0 | BE205: =OFFSET(lv1.AmbShrPen.aviDPHEV.,0,-1) -> … | BF205: … | BG205: … | BH205: … | BI205: … | BJ205: … | BK205: Const
B206: =Model!$G$8466 -> AmbShrPen.aviIPHEV. | C206: Aviation International - Plug-in Hybrid Electric vehicle distance share | D206: 1 | E206: 2020 | F206: 30 | K206: =OFFSET(lv1.AmbShrPen.aviIPHEV.,0,-1) -> … | L206: =lv1.AmbShrPen.aviIPHEV. -> 0 | M206: =lv2.AmbShrPen.aviIPHEV. -> 0 | N206: =lv3.AmbShrPen.aviIPHEV. -> 0.5 | O206: =lv4.AmbShrPen.aviIPHEV. -> 1 | P206: =LvrShrPen.aviIPHEV. -> 0 | AB206: =Control!$C$80 -> Aviation Efficiency | AC206: =Control!$D$80 -> 1 | AD206: =Control!$E$80 -> 2020 | AE206: =Control!$F$80 -> 30 | AF206: =Control!$AK$80 -> Heavy Vehicle Technology | AG206: =Control!$AP$80 -> 1 | AH206: =Control!$AG$80 -> 2020 | AI206: =Control!$AI$80 -> 30 | AQ206: =INDEX($D206:$AI206, , MATCH(AQ$163,$D$163:$AI$163,0)) -> 1 | AR206: 2020 | AS206: 30 | AW206: Aviation International - | AX206: Plug-in Hybrid Electric vehicle distance share | BC206: 0 | BD206: =ShrBY.aviIPHEV. -> 0 | BE206: =OFFSET(lv1.AmbShrPen.aviIPHEV.,0,-1) -> … | BF206: … | BG206: … | BH206: … | BI206: … | BJ206: … | BK206: Const
B207: =Model!$G$8501 -> AmbShrPen.aviD.fBiL. | C207: Aviation Domestic - Biofuel share of liquid fuel | D207: 1 | E207: 2025 | F207: 25 | K207: =OFFSET(lv1.AmbShrPen.aviD.fBiL.,0,-1) -> … | L207: =lv1.AmbShrPen.aviD.fBiL. -> 0 | M207: =lv2.AmbShrPen.aviD.fBiL. -> 0.1 | N207: =lv3.AmbShrPen.aviD.fBiL. -> 0.3 | O207: =lv4.AmbShrPen.aviD.fBiL. -> 1 | P207: =LvrShrPen.aviD.fBiL. -> 0 | AB207: =Control!$C$81 -> Aviation Biofuel | AC207: =Control!$D$81 -> 1 | AD207: =Control!$E$81 -> 2025 | AE207: =Control!$F$81 -> 25 | AF207: =Control!$AK$81 -> MIN(Bioenergy,5-Carbon Capture ) | AG207: =Control!$AP$81 -> 1 | AH207: =Control!$AG$81 -> 2025 | AI207: =Control!$AI$81 -> 25 | AQ207: 1 | AR207: 2025 | AS207: 25 | AW207: Aviation Domestic - | AX207: Biofuel share of liquid fuel | BC207: 0 | BD207: =ShrBY.aviD.fBiL. -> 0 | BE207: =OFFSET(lv1.AmbShrPen.aviD.fBiL.,0,-1) -> … | BF207: … | BG207: … | BH207: … | BI207: … | BJ207: … | BK207: Const
B208: =Model!$G$8502 -> AmbShrPen.aviI.fBiL. | C208: Aviation International - Biofuel share of liquid fuel | D208: 1 | E208: 2025 | F208: 25 | K208: =OFFSET(lv1.AmbShrPen.aviI.fBiL.,0,-1) -> … | L208: =lv1.AmbShrPen.aviI.fBiL. -> 0 | M208: =lv2.AmbShrPen.aviI.fBiL. -> 0.1 | N208: =lv3.AmbShrPen.aviI.fBiL. -> 0.3 | O208: =lv4.AmbShrPen.aviI.fBiL. -> 1 | P208: =LvrShrPen.aviI.fBiL. -> 0 | AB208: =Control!$C$81 -> Aviation Biofuel | AC208: =Control!$D$81 -> 1 | AD208: =Control!$E$81 -> 2025 | AE208: =Control!$F$81 -> 25 | AF208: =Control!$AK$81 -> MIN(Bioenergy,5-Carbon Capture ) | AG208: =Control!$AP$81 -> 1 | AH208: =Control!$AG$81 -> 2025 | AI208: =Control!$AI$81 -> 25 | AQ208: 1 | AR208: 2025 | AS208: 25 | AW208: Aviation International - | AX208: Biofuel share of liquid fuel | BC208: 0 | BD208: =ShrBY.aviI.fBiL. -> 0 | BE208: =OFFSET(lv1.AmbShrPen.aviI.fBiL.,0,-1) -> … | BF208: … | BG208: … | BH208: … | BI208: … | BJ208: … | BK208: Const
B209: =Model!$G$1480 -> AmbTmpIn.dDwl. | C209: Dwelling internal temperature | D209: 1 | E209: 2020 | F209: 30 | K209: =OFFSET(lv1.AmbTmpIn.dDwl.,0,-1) -> °C | L209: =lv1.AmbTmpIn.dDwl. -> 20 | M209: =lv2.AmbTmpIn.dDwl. -> 18 | N209: =lv3.AmbTmpIn.dDwl. -> 17 | O209: =lv4.AmbTmpIn.dDwl. -> 16 | P209: =LvrTmpIn.dDwl.dSH. -> 20 | AB209: =Control!$C$82 -> Buildings Temperature | AC209: =Control!$D$82 -> 1 | AD209: =Control!$E$82 -> 2020 | AE209: =Control!$F$82 -> 30 | AF209: =Control!$AK$82 -> Buildings Behaviour | AG209: =Control!$AP$82 -> 1 | AH209: =Control!$AG$82 -> 2020 | AI209: =Control!$AI$82 -> 30 | AQ209: 1 | AR209: 2020 | AS209: 30 | BC209: 0 | BD209: =+SUMIFS(TmpInBaU.dDwl.,Prd.,BY.) -> 18.7 | BE209: =OFFSET(lv1.AmbTmpIn.dDwl.,0,-1) -> °C | BF209: =+SUMIFS(TmpInBaU.dDwl.,Prd.,AR209) -> 18.7 | BG209: =+SUMIFS(TmpInBaU.dDwl.,Prd.,2050) -> 18.7 | BH209: … | BI209: … | BJ209: … | BK209: TS
B210: =Model!$G$1498 -> AmbShrPen.dCnsv. | C210: Domestic insulation/conservation measure deployments | D210: 1 | E210: 2020 | F210: 20 | K210: =OFFSET(lv1.AmbShrPen.dCnsv.,0,-1) -> Number of retrofits | L210: =lv1.AmbShrPen.dCnsv. -> 2500000 | M210: =lv2.AmbShrPen.dCnsv. -> 9166666.667 | N210: =lv3.AmbShrPen.dCnsv. -> 15833333.33 | O210: =lv4.AmbShrPen.dCnsv. -> 22500000 | P210: =LvrShrPen.dCnsv. -> 2500000 | AB210: =Control!$C$83 -> Buildings Insulation | AC210: =Control!$D$83 -> 1 | AD210: =Control!$E$83 -> 2020 | AE210: =Control!$F$83 -> 20 | AF210: =Control!$AK$83 -> Insulation & Efficiency | AG210: =Control!$AP$83 -> 1 | AH210: =Control!$AG$83 -> 2020 | AI210: =Control!$AI$83 -> 20 | AQ210: 1 | AR210: 2020 | AS210: 20 | BC210: 0 | BD210: 0 | BE210: =OFFSET(lv1.AmbShrPen.dCnsv.,0,-1) -> Number of retrofits | BF210: … | BG210: … | BH210: … | BI210: … | BJ210: … | BK210: Const
B211: =Model!$G$1514 -> AmbHtLsRt.dDwlNwI. | C211: Dwelling new build standards | D211: 1 | E211: 2020 | F211: 20 | K211: =OFFSET(lv1.AmbHtLsRt.dDwlNwI.,0,-1) -> W / °C | L211: =lv1.AmbHtLsRt.dDwlNwI. -> 150 | M211: =lv2.AmbHtLsRt.dDwlNwI. -> 100 | N211: =lv3.AmbHtLsRt.dDwlNwI. -> 62.5 | O211: =lv4.AmbHtLsRt.dDwlNwI. -> 25 | P211: =LvrHtLsRt.dDwlNwI.dSH. -> 150 | AB211: =Control!$C$83 -> Buildings Insulation | AC211: =Control!$D$83 -> 1 | AD211: =Control!$E$83 -> 2020 | AE211: =Control!$F$83 -> 20 | AF211: =Control!$AK$83 -> Insulation & Efficiency | AG211: =Control!$AP$83 -> 1 | AH211: =Control!$AG$83 -> 2020 | AI211: =Control!$AI$83 -> 20 | AQ211: 1 | AR211: 2020 | AS211: 20 | BC211: 0 | BD211: =+SUMIFS(HtLsRtBaU.dDwlNwI.,Prd.,BY.) -> 150 | BE211: =OFFSET(lv1.AmbHtLsRt.dDwlNwI.,0,-1) -> W / °C | BF211: =+SUMIFS(HtLsRtBaU.dDwlNwI.,Prd.,AR211) -> 150 | BG211: =+SUMIFS(HtLsRtBaU.dDwlNwI.,Prd.,2040) -> 150 | BH211: … | BI211: … | BJ211: … | BK211: TS
B212: =Model!$G$1644 -> AmbDemUnitIndx.dDwl.dHW. | C212: Domestic hot water demand index | D212: 1 | E212: 2020 | F212: 30 | K212: =OFFSET(lv1.AmbDemUnitIndx.dDwl.dHW.,0,-1) -> … | L212: =lv1.AmbDemUnitIndx.dDwl.dHW. -> 1.43 | M212: =lv2.AmbDemUnitIndx.dDwl.dHW. -> 1.03 | N212: =lv3.AmbDemUnitIndx.dDwl.dHW. -> 0.77 | O212: =lv4.AmbDemUnitIndx.dDwl.dHW. -> 0.51 | P212: =LvrDemUnitIndx.dDwl.dHW. -> 1.43 | AB212: =Control!$C$82 -> Buildings Temperature | AC212: =Control!$D$82 -> 1 | AD212: =Control!$E$82 -> 2020 | AE212: =Control!$F$82 -> 30 | AF212: =Control!$AK$82 -> Buildings Behaviour | AG212: =Control!$AP$82 -> 1 | AH212: =Control!$AG$82 -> 2020 | AI212: =Control!$AI$82 -> 30 | AQ212: 1 | AR212: 2020 | AS212: 30 | BC212: 0 | BD212: =+SUMIFS(DemUnitIndxBaU.dDwl.dHW.,Prd.,BY.) -> 1 | BE212: =OFFSET(lv1.AmbDemUnitIndx.dDwl.dHW.,0,-1) -> … | BF212: =+SUMIFS(DemUnitIndxBaU.dDwl.dHW.,Prd.,AR212) -> 1 | BG212: =+SUMIFS(DemUnitIndxBaU.dDwl.dHW.,Prd.,2050) -> 1 | BH212: =+SUMIFS(DemUnitBaU.dDwl.dHW.,Prd.,2015) -> 7.099373841e-07 | BI212: =OFFSET(INDEX(DemUnitBaU.dDwl.dHW.,MATCH(2015,Prd.,0)),0,-2) -> TWh. / Person | BJ212: … | BK212: TS
B213: =Model!$G$1580 -> AmbDemUnitIndx.nFlr.dSH. | C213: Non-domestic space heat demand index | D213: 1 | E213: 2020 | F213: 30 | K213: =OFFSET(lv1.AmbDemUnitIndx.nFlr.dSH.,0,-1) -> … | L213: =lv1.AmbDemUnitIndx.nFlr.dSH. -> 1.5 | M213: =lv2.AmbDemUnitIndx.nFlr.dSH. -> 1.35 | N213: =lv3.AmbDemUnitIndx.nFlr.dSH. -> 1.08 | O213: =lv4.AmbDemUnitIndx.nFlr.dSH. -> 0.8 | P213: =LvrDemUnitIndx.nFlr.dSH. -> 1.5 | AB213: =Control!$C$82 -> Buildings Temperature | AC213: =Control!$D$82 -> 1 | AD213: =Control!$E$82 -> 2020 | AE213: =Control!$F$82 -> 30 | AF213: =Control!$AK$82 -> Buildings Behaviour | AG213: =Control!$AP$82 -> 1 | AH213: =Control!$AG$82 -> 2020 | AI213: =Control!$AI$82 -> 30 | AQ213: 1 | AR213: 2020 | AS213: 30 | BC213: 0 | BD213: =+SUMIFS(DemUnitIndxBaU.nFlr.dSH.,Prd.,BY.) -> 1 | BE213: =OFFSET(lv1.AmbDemUnitIndx.nFlr.dSH.,0,-1) -> … | BF213: =+SUMIFS(DemUnitIndxBaU.nFlr.dSH.,Prd.,AR213) -> 1 | BG213: =+SUMIFS(DemUnitIndxBaU.nFlr.dSH.,Prd.,2050) -> 1 | BH213: =+SUMIFS(DemUnit.nFlrBYS.dSH.,Prd.,2015) -> 1.5398907e-07 | BI213: =OFFSET(INDEX(DemUnit.nFlrBYS.dSH.,MATCH(2015,Prd.,0)),0,-2) -> TWh. / sqm floor area | BJ213: … | BK213: TS
B214: =Model!$G$1597 -> AmbShrPen.nCnsv. | C214: Non-Domestic insulation/conservation measure deployments | D214: 1 | E214: 2020 | F214: 20 | K214: =OFFSET(lv1.AmbShrPen.nCnsv.,0,-1) -> … | L214: =lv1.AmbShrPen.nCnsv. -> 0 | M214: =lv2.AmbShrPen.nCnsv. -> 0.33 | N214: =lv3.AmbShrPen.nCnsv. -> 0.67 | O214: =lv4.AmbShrPen.nCnsv. -> 1 | P214: =LvrShrPen.nCnsv. -> 0 | AB214: =Control!$C$83 -> Buildings Insulation | AC214: =Control!$D$83 -> 1 | AD214: =Control!$E$83 -> 2020 | AE214: =Control!$F$83 -> 20 | AF214: =Control!$AK$83 -> Insulation & Efficiency | AG214: =Control!$AP$83 -> 1 | AH214: =Control!$AG$83 -> 2020 | AI214: =Control!$AI$83 -> 20 | AQ214: 1 | AR214: 2020 | AS214: 20 | BC214: 0 | BD214: 0 | BE214: =OFFSET(lv1.AmbShrPen.nCnsv.,0,-1) -> … | BF214: … | BG214: … | BH214: … | BI214: … | BJ214: … | BK214: Const
B215: =Model!$G$1620 -> AmbDemUnitIndx.nFlrNwI.dSH. | C215: Non-Domestic new build standards | D215: 1 | E215: 2020 | F215: 20 | K215: =OFFSET(lv1.AmbDemUnitIndx.nFlrNwI.dSH.,0,-1) -> Index | L215: =lv1.AmbDemUnitIndx.nFlrNwI.dSH. -> 0.6 | M215: =lv2.AmbDemUnitIndx.nFlrNwI.dSH. -> 0.3 | N215: =lv3.AmbDemUnitIndx.nFlrNwI.dSH. -> 0.2 | O215: =lv4.AmbDemUnitIndx.nFlrNwI.dSH. -> 0.1 | P215: =LvrDemUnitIndx.nFlrNwI.dSH. -> 0.6 | AB215: =Control!$C$83 -> Buildings Insulation | AC215: =Control!$D$83 -> 1 | AD215: =Control!$E$83 -> 2020 | AE215: =Control!$F$83 -> 20 | AF215: =Control!$AK$83 -> Insulation & Efficiency | AG215: =Control!$AP$83 -> 1 | AH215: =Control!$AG$83 -> 2020 | AI215: =Control!$AI$83 -> 20 | AQ215: 1 | AR215: 2020 | AS215: 20 | BC215: 0 | BD215: =+SUMIFS(DemUnitIndxBaU.nFlrNwI.dSH.,Prd.,BY.) -> 0.6 | BE215: =OFFSET(lv1.AmbDemUnitIndx.nFlrNwI.dSH.,0,-1) -> Index | BF215: =+SUMIFS(DemUnitIndxBaU.nFlrNwI.dSH.,Prd.,AR215) -> 0.6 | BG215: =+SUMIFS(DemUnitIndxBaU.nFlrNwI.dSH.,Prd.,2040) -> 0.6 | BH215: =+SUMIFS(DemUnit.nFlrNwI.dSH.,Prd.,2015) -> 9.2393442e-08 | BI215: =OFFSET(INDEX(DemUnit.nFlrNwI.dSH.,MATCH(2015,Prd.,0)),0,-2) -> TWh. / sqm floor area | BJ215: … | BK215: TS
B216: =Model!$G$1667 -> AmbDemUnitIndx.nFlr.dHW. | C216: Non-Domestic hot water demand index | D216: 1 | E216: 2020 | F216: 30 | K216: =OFFSET(lv1.AmbDemUnitIndx.nFlr.dHW.,0,-1) -> … | L216: =lv1.AmbDemUnitIndx.nFlr.dHW. -> 1.5 | M216: =lv2.AmbDemUnitIndx.nFlr.dHW. -> 1.42 | N216: =lv3.AmbDemUnitIndx.nFlr.dHW. -> 1.25 | O216: =lv4.AmbDemUnitIndx.nFlr.dHW. -> 0.9 | P216: =LvrDemUnitIndx.nFlr.dHW. -> 1.5 | AB216: =Control!$C$82 -> Buildings Temperature | AC216: =Control!$D$82 -> 1 | AD216: =Control!$E$82 -> 2020 | AE216: =Control!$F$82 -> 30 | AF216: =Control!$AK$82 -> Buildings Behaviour | AG216: =Control!$AP$82 -> 1 | AH216: =Control!$AG$82 -> 2020 | AI216: =Control!$AI$82 -> 30 | AQ216: 1 | AR216: 2020 | AS216: 30 | BC216: 0 | BD216: =+SUMIFS(DemUnitIndxBaU.nFlr.dHW.,Prd.,BY.) -> 1 | BE216: =OFFSET(lv1.AmbDemUnitIndx.nFlr.dHW.,0,-1) -> … | BF216: =+SUMIFS(DemUnitIndxBaU.nFlr.dHW.,Prd.,AR216) -> 1 | BG216: =+SUMIFS(DemUnitIndxBaU.nFlr.dHW.,Prd.,2050) -> 1 | BH216: =+SUMIFS(DemUnitBaU.nFlr.dHW.,Prd.,2015) -> 1.633688988e-08 | BI216: =OFFSET(INDEX(DemUnitBaU.nFlr.dHW.,MATCH(2015,Prd.,0)),0,-2) -> TWh. / sqm floor area | BJ216: … | BK216: TS
B217: =Model!$G$1691 -> AmbShrPen.dDHN. | C217: Domestic District heat share | D217: 1 | E217: 2020 | F217: 30 | K217: =OFFSET(lv1.AmbShrPen.dDHN.,0,-1) -> … | L217: =lv1.AmbShrPen.dDHN. -> 0.04 | M217: =lv2.AmbShrPen.dDHN. -> 0.2 | N217: =lv3.AmbShrPen.dDHN. -> 0.4 | O217: =lv4.AmbShrPen.dDHN. -> 0.6 | P217: =LvrShrPen.dDHN. -> 0.04 | AB217: =Control!$C$84 -> District Heat Share | AC217: =Control!$D$84 -> 1 | AD217: =Control!$E$84 -> 2020 | AE217: =Control!$F$84 -> 30 | AF217: =Control!$AK$84 -> No Control Lv1 | AG217: =Control!$AP$84 -> 1 | AH217: =Control!$AG$84 -> 2020 | AI217: =Control!$AI$84 -> 30 | AQ217: 1 | AR217: 2020 | AS217: 30 | BC217: 0 | BD217: =ShrBY.dDHN. -> 0.03667575365 | BE217: =OFFSET(lv1.AmbShrPen.dDHN.,0,-1) -> … | BF217: … | BG217: … | BH217: … | BI217: … | BJ217: … | BK217: Const
B218: =Model!$G$1692 -> AmbShrPen.dHPALL. | C218: Domestic Heat Pump share | D218: 1 | E218: 2020 | F218: 30 | K218: =OFFSET(lv1.AmbShrPen.dHPALL.,0,-1) -> … | L218: =lv1.AmbShrPen.dHPALL. -> 0 | M218: =lv2.AmbShrPen.dHPALL. -> 0.2 | N218: =lv3.AmbShrPen.dHPALL. -> 0.4 | O218: =lv4.AmbShrPen.dHPALL. -> 0.9 | P218: =LvrShrPen.dHPALL. -> 0 | AB218: =Control!$C$85 -> Heat Pump Share | AC218: =Control!$D$85 -> 1 | AD218: =Control!$E$85 -> 2020 | AE218: =Control!$F$85 -> 30 | AF218: =Control!$AK$85 -> Heat Technology | AG218: =Control!$AP$85 -> 1 | AH218: =Control!$AG$85 -> 2020 | AI218: =Control!$AI$85 -> 30 | AQ218: 1 | AR218: 2020 | AS218: 30 | BC218: 0 | BD218: =ShrBY.dHPALL. -> 0 | BE218: =OFFSET(lv1.AmbShrPen.dHPALL.,0,-1) -> … | BF218: … | BG218: … | BH218: … | BI218: … | BJ218: … | BK218: Const
B219: =Model!$G$1693 -> AmbShrPen.dHyb. | C219: Domestic Hybrid Heat Pump share | D219: 1 | E219: 2020 | F219: 30 | K219: =OFFSET(lv1.AmbShrPen.dHyb.,0,-1) -> … | L219: =lv1.AmbShrPen.dHyb. -> 0 | M219: =lv2.AmbShrPen.dHyb. -> 0.25 | N219: =lv3.AmbShrPen.dHyb. -> 0.5 | O219: =lv4.AmbShrPen.dHyb. -> 0.9 | P219: =LvrShrPen.dHyb. -> 0 | AB219: =Control!$C$86 -> Hybrid Heat Share | AC219: =Control!$D$86 -> 1 | AD219: =Control!$E$86 -> 2020 | AE219: =Control!$F$86 -> 30 | AF219: =Control!$AK$86 -> No Control Lv1 | AG219: =Control!$AP$86 -> 1 | AH219: =Control!$AG$86 -> 2020 | AI219: =Control!$AI$86 -> 30 | AQ219: 1 | AR219: 2020 | AS219: 30 | BC219: 0 | BD219: =ShrBY.dHyb. -> 0 | BE219: =OFFSET(lv1.AmbShrPen.dHyb.,0,-1) -> … | BF219: … | BG219: … | BH219: … | BI219: … | BJ219: … | BK219: Const
B220: =Model!$G$1758 -> AmbShrPen.nDHN. | C220: Non-Domestic District heat share | D220: 1 | E220: 2020 | F220: 30 | K220: =OFFSET(lv1.AmbShrPen.nDHN.,0,-1) -> … | L220: =lv1.AmbShrPen.nDHN. -> 0.05 | M220: =lv2.AmbShrPen.nDHN. -> 0.2 | N220: =lv3.AmbShrPen.nDHN. -> 0.4 | O220: =lv4.AmbShrPen.nDHN. -> 0.6 | P220: =LvrShrPen.nDHN. -> 0.05 | AB220: =Control!$C$84 -> District Heat Share | AC220: =Control!$D$84 -> 1 | AD220: =Control!$E$84 -> 2020 | AE220: =Control!$F$84 -> 30 | AF220: =Control!$AK$84 -> No Control Lv1 | AG220: =Control!$AP$84 -> 1 | AH220: =Control!$AG$84 -> 2020 | AI220: =Control!$AI$84 -> 30 | AQ220: 1 | AR220: 2020 | AS220: 30 | BC220: 0 | BD220: =ShrBY.nDHN. -> 0.02963641856 | BE220: =OFFSET(lv1.AmbShrPen.nDHN.,0,-1) -> … | BF220: … | BG220: … | BH220: … | BI220: … | BJ220: … | BK220: Const
B221: =Model!$G$1759 -> AmbShrPen.nHPALL. | C221: Non-Domestic Heat Pump share | D221: 1 | E221: 2020 | F221: 30 | K221: =OFFSET(lv1.AmbShrPen.nHPALL.,0,-1) -> … | L221: =lv1.AmbShrPen.nHPALL. -> 0 | M221: =lv2.AmbShrPen.nHPALL. -> 0.2 | N221: =lv3.AmbShrPen.nHPALL. -> 0.4 | O221: =lv4.AmbShrPen.nHPALL. -> 0.9 | P221: =LvrShrPen.nHPALL. -> 0 | AB221: =Control!$C$85 -> Heat Pump Share | AC221: =Control!$D$85 -> 1 | AD221: =Control!$E$85 -> 2020 | AE221: =Control!$F$85 -> 30 | AF221: =Control!$AK$85 -> Heat Technology | AG221: =Control!$AP$85 -> 1 | AH221: =Control!$AG$85 -> 2020 | AI221: =Control!$AI$85 -> 30 | AQ221: 1 | AR221: 2020 | AS221: 30 | BC221: 0 | BD221: =ShrBY.nHPALL. -> 0 | BE221: =OFFSET(lv1.AmbShrPen.nHPALL.,0,-1) -> … | BF221: … | BG221: … | BH221: … | BI221: … | BJ221: … | BK221: Const
B222: =Model!$G$1760 -> AmbShrPen.nHyb. | C222: Non-Domestic Hybrid Heat Pump share | D222: 1 | E222: 2020 | F222: 30 | K222: =OFFSET(lv1.AmbShrPen.nHyb.,0,-1) -> … | L222: =lv1.AmbShrPen.nHyb. -> 0 | M222: =lv2.AmbShrPen.nHyb. -> 0.25 | N222: =lv3.AmbShrPen.nHyb. -> 0.5 | O222: =lv4.AmbShrPen.nHyb. -> 0.9 | P222: =LvrShrPen.nHyb. -> 0 | AB222: =Control!$C$86 -> Hybrid Heat Share | AC222: =Control!$D$86 -> 1 | AD222: =Control!$E$86 -> 2020 | AE222: =Control!$F$86 -> 30 | AF222: =Control!$AK$86 -> No Control Lv1 | AG222: =Control!$AP$86 -> 1 | AH222: =Control!$AG$86 -> 2020 | AI222: =Control!$AI$86 -> 30 | AQ222: 1 | AR222: 2020 | AS222: 30 | BC222: 0 | BD222: =ShrBY.nHyb. -> 0 | BE222: =OFFSET(lv1.AmbShrPen.nHyb.,0,-1) -> … | BF222: … | BG222: … | BH222: … | BI222: … | BJ222: … | BK222: Const
B223: =Model!$G$4466 -> AmbShrPen.hnHPW. | C223: Water Source Heat Pump share of network heat | D223: 1 | E223: 2020 | F223: 30 | K223: =OFFSET(lv1.AmbShrPen.hnHPW.,0,-1) -> TWh. | L223: =lv1.AmbShrPen.hnHPW. -> 0 | M223: =lv2.AmbShrPen.hnHPW. -> 20 | N223: =lv3.AmbShrPen.hnHPW. -> 40 | O223: =lv4.AmbShrPen.hnHPW. -> 80 | P223: =LvrShrPen.hnHPW. -> 0 | AB223: =Control!$C$87 -> Network - Heat Pump | AC223: =Control!$D$87 -> 1 | AD223: =Control!$E$87 -> 2020 | AE223: =Control!$F$87 -> 30 | AF223: =Control!$AK$87 -> Heat Technology | AG223: =Control!$AP$87 -> 1 | AH223: =Control!$AG$87 -> 2020 | AI223: =Control!$AI$87 -> 30 | AQ223: 1 | AR223: 2020 | AS223: 30 | BC223: 0 | BD223: =ActvBY.hnHPW. -> 0 | BE223: =OFFSET(lv1.AmbShrPen.hnHPW.,0,-1) -> TWh. | BF223: … | BG223: … | BH223: … | BI223: … | BJ223: … | BK223: Const
B224: =Model!$G$4467 -> AmbShrPen.hnHPG. | C224: Ground Source Heat Pump share of network heat | D224: 1 | E224: 2020 | F224: 30 | K224: =OFFSET(lv1.AmbShrPen.hnHPG.,0,-1) -> TWh. | L224: =lv1.AmbShrPen.hnHPG. -> 0 | M224: =lv2.AmbShrPen.hnHPG. -> 50 | N224: =lv3.AmbShrPen.hnHPG. -> 100 | O224: =lv4.AmbShrPen.hnHPG. -> 225 | P224: =LvrShrPen.hnHPG. -> 0 | AB224: =Control!$C$87 -> Network - Heat Pump | AC224: =Control!$D$87 -> 1 | AD224: =Control!$E$87 -> 2020 | AE224: =Control!$F$87 -> 30 | AF224: =Control!$AK$87 -> Heat Technology | AG224: =Control!$AP$87 -> 1 | AH224: =Control!$AG$87 -> 2020 | AI224: =Control!$AI$87 -> 30 | AQ224: 1 | AR224: 2020 | AS224: 30 | BC224: 0 | BD224: =ActvBY.hnHPG. -> 0 | BE224: =OFFSET(lv1.AmbShrPen.hnHPG.,0,-1) -> TWh. | BF224: … | BG224: … | BH224: … | BI224: … | BJ224: … | BK224: Const
B225: =Model!$G$4468 -> AmbShrPen.hnCHPB. | C225: Biomass CHP share of network heat | D225: 1 | E225: 2020 | F225: 30 | K225: =OFFSET(lv1.AmbShrPen.hnCHPB.,0,-1) -> TWh. | L225: =lv1.AmbShrPen.hnCHPB. -> 0 | M225: =lv2.AmbShrPen.hnCHPB. -> 25 | N225: =lv3.AmbShrPen.hnCHPB. -> 50 | O225: =lv4.AmbShrPen.hnCHPB. -> 100 | P225: =LvrShrPen.hnCHPB. -> 0 | AB225: =Control!$C$88 -> Heat Network - Biomass | AC225: =Control!$D$88 -> 1 | AD225: =Control!$E$88 -> 2020 | AE225: =Control!$F$88 -> 30 | AF225: =Control!$AK$88 -> No Control Lv1 | AG225: =Control!$AP$88 -> 1 | AH225: =Control!$AG$88 -> 2020 | AI225: =Control!$AI$88 -> 30 | AQ225: 1 | AR225: 2020 | AS225: 30 | BC225: 0 | BD225: =ActvBY.hnCHPB. -> 0.2385101822 | BE225: =OFFSET(lv1.AmbShrPen.hnCHPB.,0,-1) -> TWh. | BF225: … | BG225: … | BH225: … | BI225: … | BJ225: … | BK225: Const
B226: =Model!G3641 -> AmbShrPen.dDwl.dCl. | C226: Share of dwellings with air conditioning | D226: 1 | E226: 2020 | F226: 30 | K226: =OFFSET(lv1.AmbShrPen.dDwl.dCl.,0,-1) -> Fraction of dwellings | L226: =lv1.AmbShrPen.dDwl.dCl. -> 0.5 | M226: =lv2.AmbShrPen.dDwl.dCl. -> 0.33 | N226: =lv3.AmbShrPen.dDwl.dCl. -> 0.167 | O226: =lv4.AmbShrPen.dDwl.dCl. -> 0 | P226: =LvrShrPen.dDwl.dCl. -> 0.5 | AB226: =Control!$C$82 -> Buildings Temperature | AC226: =Control!$D$82 -> 1 | AD226: =Control!$E$82 -> 2020 | AE226: =Control!$F$82 -> 30 | AF226: =Control!$AK$82 -> Buildings Behaviour | AG226: =Control!$AP$82 -> 1 | AH226: =Control!$AG$82 -> 2020 | AI226: =Control!$AI$82 -> 30 | AQ226: =INDEX($D226:$AI226, , MATCH(AQ$163,$D$163:$AI$163,0)) -> 1 | AR226: 2020 | AS226: 30 | BC226: 0 | BD226: =+SUMIFS(ShrBaU.dDwl.dCl.,Prd.,BY.) -> 0.01091533448 | BE226: =OFFSET(lv1.AmbShrPen.dDwl.dCl.,0,-1) -> Fraction of dwellings | BF226: =+SUMIFS(ShrBaU.dDwl.dCl.,Prd.,AR226) -> 0.01388416345 | BG226: =+SUMIFS(ShrBaU.dDwl.dCl.,Prd.,2050) -> 0.5046546931 | BH226: … | BI226: … | BJ226: … | BK226: Const
B227: =Model!G3642 -> AmbDemUnitIndx.nFlr.dCl. | C227: Non-Domestic cooling demand | D227: 1 | E227: 2020 | F227: 30 | K227: =OFFSET(lv1.AmbDemUnitIndx.nFlr.dCl.,0,-1) -> Index | L227: =lv1.AmbDemUnitIndx.nFlr.dCl. -> 2.41 | M227: =lv2.AmbDemUnitIndx.nFlr.dCl. -> 1.6 | N227: =lv3.AmbDemUnitIndx.nFlr.dCl. -> 1.07 | O227: =lv4.AmbDemUnitIndx.nFlr.dCl. -> 0.56 | P227: =LvrDemUnitIndx.nFlr.dCl. -> 2.41 | AB227: =Control!$C$82 -> Buildings Temperature | AC227: =Control!$D$82 -> 1 | AD227: =Control!$E$82 -> 2020 | AE227: =Control!$F$82 -> 30 | AF227: =Control!$AK$82 -> Buildings Behaviour | AG227: =Control!$AP$82 -> 1 | AH227: =Control!$AG$82 -> 2020 | AI227: =Control!$AI$82 -> 30 | AQ227: 1 | AR227: 2020 | AS227: 30 | BC227: 0 | BD227: =+SUMIFS(DemUnitIndxBaU.nFlr.dCl.,Prd.,BY.) -> 1 | BE227: =OFFSET(lv1.AmbDemUnitIndx.nFlr.dCl.,0,-1) -> Index | BF227: =+SUMIFS(DemUnitIndxBaU.nFlr.dCl.,Prd.,AR227) -> 1.152360833 | BG227: =+SUMIFS(DemUnitIndxBaU.nFlr.dCl.,Prd.,2050) -> 2.066525834 | BH227: =DemUnitBY.nFlr.dCl. -> 4.975047609e-08 | BI227: =OFFSET(DemUnitBY.nFlr.dCl.,0,-1) -> TWh. / sqm. floor area | BJ227: … | BK227: TS
B228: =Model!G3460 -> AmbDemUnitIndx.dDwl.dLt. | C228: Domestic lighting demand | D228: 1 | E228: 2020 | F228: 30 | K228: =OFFSET(lv1.AmbDemUnitIndx.dDwl.dLt.,0,-1) -> Index (demand/person) | L228: =lv1.AmbDemUnitIndx.dDwl.dLt. -> 1.5 | M228: =lv2.AmbDemUnitIndx.dDwl.dLt. -> 1 | N228: =lv3.AmbDemUnitIndx.dDwl.dLt. -> 0.85 | O228: =lv4.AmbDemUnitIndx.dDwl.dLt. -> 0.7 | P228: =LvrDemUnitIndx.dDwl.dLt. -> 1.5 | AB228: =Control!$C$89 -> Lighting and Appliances | AC228: =Control!$D$89 -> 1 | AD228: =Control!$E$89 -> 2020 | AE228: =Control!$F$89 -> 30 | AF228: =Control!$AK$89 -> Insulation & Efficiency | AG228: =Control!$AP$89 -> 1 | AH228: =Control!$AG$89 -> 2020 | AI228: =Control!$AI$89 -> 30 | AQ228: 1 | AR228: 2020 | AS228: 30 | BC228: 0 | BD228: =+SUMIFS(DemUnitIndxBaU.dDwl.dLt.,Prd.,BY.) -> 1 | BE228: =OFFSET(lv1.AmbDemUnitIndx.dDwl.dLt.,0,-1) -> Index (demand/person) | BF228: =+SUMIFS(DemUnitIndxBaU.dDwl.dLt.,Prd.,AR228) -> 1 | BG228: =+SUMIFS(DemUnitIndxBaU.dDwl.dLt.,Prd.,2050) -> 1 | BH228: =DemUnitBY.dDwl.dLt. -> 2.062853817e-07 | BI228: =OFFSET(DemUnitBY.dDwl.dLt.,0,-1) -> TWh. / person | BJ228: … | BK228: TS
... 213 more rows

Sheet WebOutputs
A1: Web Outputs | H1: 2015 | I1: =H1+5 -> 2020 | J1: 2025 | K1: 2030 | L1: 2035 | M1: 2040 | N1: 2045 | O1: 2050 | P1: 2055 | Q1: 2060 | R1: 2065 | S1: 2070 | T1: 2075 | U1: 2080 | V1: 2085 | W1: 2090 | X1: 2095 | Y1: 2100 | Z1: Type | AA1: Colour | AB1: Shade
A3: Inputs from Web
B4: Inputs from Webtool
C5: input.lever.ambition
C6: input.lever.start
C7: input.lever.end
B9: Inputs from My2050
C11: =Control!$D$133 -> input.simple.lever.ambition
A14: Outputs to Web
B15: Information for webtool
C16: =Control!$C$68 -> output.lever.names | D16: Name changed
C17: =Control!$K$68 -> output.lever.descriptions | D17: Name changed
C18: =Control!$Q$68 -> output.lever.example.ambition | D18: Name changed
C19: =Control!AG68 -> output.lever.default.start | D19: May not be used
C20: =Control!AH68 -> output.lever.default.end | D20: May not be used
B23: Information for My2050
C25: =Control!$C$133 -> output.simple.lever.names
C26: =Control!$K$133 -> output.simple.lever.descriptions
B30: Outputs to Webtool Summary | M30: More consistent axes
C31: Webtool Page | D31: Webtool Tab | E31: Position | F31: Title | G31: Axis Unit | H31: Named Range | I31: Graph Type | M31: Y axis min | N31: Y axis max
C32: =$C$176 -> Key indicators | D32: Not required | E32: 1 | F32: =$G$178 -> GHG Emissions in 2050 | G32: =$G$179 -> % reduction on 1990 | H32: =$G$180 -> output.metric.emissions.reduction.twentyfifty | I32: =$G$181 -> Bar with shaded confidence interval
C33: =C32 -> Key indicators | D33: Not required | E33: 2 | F33: =$G$193 -> UK Net Zero by | G33: =$G$194 -> No Units | H33: =$G$195 -> output.metric.emissions.yrzero | I33: =$G$196 -> Text
C34: =$C$209 -> Warnings | D34: Not required | E34: 1 | F34: =$G$211 -> Level 4 | G34: =$G$212 -> No Units | H34: =$G$213 -> output.warning.L4chosen | I34: =$G$214 -> Icon
C35: =C34 -> Warnings | D35: Not required | E35: 2 | F35: =$G$221 -> Extremely ambitious rate of change | G35: =$G$222 -> No Units | H35: =$G$223 -> output.warning.exceedL4.rate | I35: =$G$224 -> Icon
C36: =C35 -> Warnings | D36: Not required | E36: 3 | F36: =$G$231 -> Bioenergy Imports | G36: =$G$232 -> No Units | H36: =$G$233 -> output.warning.bio.imports | I36: =$G$234 -> Icon
C37: =C36 -> Warnings | D37: Not required | E37: 4 | F37: =$G$241 -> Land | G37: =$G$242 -> No Units | H37: =$G$243 -> output.warning.land | I37: =$G$244 -> Icon
C38: =C37 -> Warnings | D38: Not required | E38: 5 | F38: =$G$251 -> Electricity Peak | G38: =$G$252 -> No Units | H38: =$G$253 -> output.warning.elec.peak | I38: =$G$254 -> Icon
C39: =$C$262 -> Overview | D39: =$D$263 -> GHG Emissions / Primary Energy | E39: Top | F39: =$G$264 -> Annual Greenhouse Gas Emissions | G39: =$G$265 -> MtCO2e/yr | H39: =$G$266 -> output.emissions.sector | I39: =$G$267 -> Stacked Area with overlying Line(s) | M39: -500 | N39: 750
C40: =C39 -> Overview | D40: =D39 -> GHG Emissions / Primary Energy | E40: Bottom | F40: =$G$290 -> Primary Energy Consumption | G40: =$G$291 -> TWh/yr | H40: =$G$292 -> output.primary.energy.consumption | I40: =$G$293 -> Stacked Area with overlying Line(s) | M40: 0 | N40: 4000
C41: =C40 -> Overview | D41: =$D$315 -> GHG Cumulative / Final Energy | E41: Top | F41: =$G$316 -> Cumulative UK Greenhouse Gas Emissions | G41: =$G$317 -> MtCO2e | H41: =$G$318 -> output.emissions.cumulative | I41: =$G$319 -> Line | M41: 0 | N41: 50000
C42: =C41 -> Overview | D42: =D41 -> GHG Cumulative / Final Energy | E42: Bottom | F42: =$G$329 -> Final Energy Consumption | G42: =$G$330 -> TWh/yr | H42: =$G$331 -> output.final.energy.consumption | I42: =$G$332 -> Stacked Area with overlying Line(s) | M42: 0 | N42: 4000
C43: =$C$346 -> Transport | D43: =$D$347 -> Energy & Emissions | E43: Top | F43: =$G$348 -> Emissions - Transport | G43: =$G$349 -> MtCO2e/yr | H43: =$G$350 -> output.tra.emissions | I43: =$G$351 -> Stacked Area with overlying Line(s) | M43: 0 | N43: 250
C44: =C43 -> Transport | D44: =D43 -> Energy & Emissions | E44: Bottom | F44: =$G$369 -> Energy Consumption - Transport | G44: =$G$370 -> TWh/yr | H44: =$G$371 -> output.tra.energy.consumption | I44: =$G$372 -> Stacked Area with overlying Line(s) | M44: 0 | N44: 1000
C45: =C44 -> Transport | D45: =$D$382 -> Demand & Technology | E45: Top | F45: =$G$383 -> Passenger Distance Travelled | G45: =$G$384 -> Billion Passenger km/yr | H45: =$G$385 -> output.tra.pass.distance | I45: =$G$386 -> Stacked Area with overlying Line(s) | M45: 0 | N45: 1250
C46: =C45 -> Transport | D46: =D45 -> Demand & Technology | E46: Bottom | F46: =$G$404 -> Road Transport Energy Consumption by Engine Type | G46: =$G$405 -> TWh/yr | H46: =$G$406 -> output.tra.energy.consumption.vehicle | I46: =$G$407 -> Stacked Area with overlying Line(s) | L46: *output.tra.car.type.share replaced with output.tra.energy.consumption.vehicle | M46: 0 | N46: 600
C47: =$C$419 -> Buildings | D47: =$D$420 -> Energy & Emissions | E47: Top | F47: =$G$421 -> Emissions - Buildings | G47: =$G$422 -> MtCO2e/yr | H47: =$G$423 -> output.buildings.emissions | I47: =$G$424 -> Stacked Area with overlying Line(s) | M47: 0 | N47: 250
C48: =C47 -> Buildings | D48: =D47 -> Energy & Emissions | E48: Bottom | F48: =$G$434 -> Energy Consumption - Buildings & Heat Networks | G48: =$G$435 -> TWh/yr | H48: =$G$436 -> output.buildings.energy.consumption | I48: =$G$437 -> Stacked Area with overlying Line(s) | M48: 0 | N48: 1250
C49: =C48 -> Buildings | D49: =$D$452 -> Heat | E49: Top | F49: =$G$453 -> Heat Supplied | G49: =$G$454 -> TWh/yr | H49: =$G$455 -> output.buildings.heat.supply | I49: =$G$456 -> Stacked Area with overlying Line(s) | M49: 0 | N49: 800
C50: =C49 -> Buildings | D50: =D49 -> Heat | E50: Bottom | F50: =$G$468 -> Heat Demand | G50: =$G$469 -> TWh/yr | H50: =$G$470 -> output.buildings.heat.demand | I50: =$G$471 -> Stacked Area with overlying Line(s) | M50: 0 | N50: 800
C51: =$C$481 -> Industry | D51: =$D$482 -> Energy & Emissions | E51: Top | F51: =$G$483 -> Emissions - Industry | G51: =$G$484 -> MtCO2e/yr | H51: =$G$485 -> output.ind.emissions | I51: =$G$486 -> Stacked Area with overlying Line(s) | M51: -25 | N51: 75
C52: =C51 -> Industry | D52: =D51 -> Energy & Emissions | E52: Bottom | F52: =$G$497 -> Energy Consumption - Industry | G52: =$G$498 -> TWh/yr | H52: =$G$499 -> output.ind.energy.consumption | I52: =$G$500 -> Stacked Area with overlying Line(s) | M52: 0 | N52: 400
C53: =$C$512 -> CO2 Removal & Gases | D53: =$D$513 -> Emissions Removal | E53: Top | F53: =$G$514 -> Emissions Removal | G53: =$G$515 -> MtCO2e/yr | H53: =$G$516 -> output.emissions.removal | I53: =$G$517 -> Stacked Area with overlying Line(s) | M53: 0 | N53: 500
C54: =C53 -> CO2 Removal & Gases | D54: =D53 -> Emissions Removal | E54: Bottom | F54: =$G$529 -> Cumulative Emissions Stored | G54: =$G$530 -> MtCO2e | H54: =$G$531 -> output.emissions.stored.cumulative | I54: =$G$532 -> Line | M54: 0 | N54: 40000
C55: =C54 -> CO2 Removal & Gases | D55: =$D$541 -> Gas Grid & Hydrogen | E55: Top | F55: =$G$542 -> Gas Distribution Grid Energy Supplied | G55: =$G$543 -> TWh/yr | H55: =$G$544 -> output.gas.grid.dist.supply | I55: =$G$545 -> Stacked Area with overlying Line(s) | M55: 0 | N55: 800
C56: =C55 -> CO2 Removal & Gases | D56: =D55 -> Gas Grid & Hydrogen | E56: Bottom | F56: =$G$555 -> Hydrogen Supply | G56: =$G$556 -> TWh/yr | H56: =$G$557 -> output.hydrogen.production | I56: =$G$558 -> Stacked Area with overlying Line(s) | M56: 0 | N56: 1250
C57: =$C$568 -> Electricity | D57: =$D$569 -> Emissions & Generation | E57: Top | F57: =$G$570 -> Emissions - Electricity Generation | G57: =$G$571 -> MtCO2e/yr | H57: =$G$572 -> output.electricity.emissions | I57: =$G$573 -> Stacked Area with overlying Line(s) | M57: -200 | N57: 300
C58: =C57 -> Electricity | D58: =D57 -> Emissions & Generation | E58: Bottom | F58: =$G$586 -> Electricity Supply | G58: =$G$587 -> TWh/yr | H58: =$G$588 -> output.electricity.generation.type | I58: =$G$589 -> Stacked Area with overlying Line(s) | M58: 0 | N58: 800
C59: =C58 -> Electricity | D59: =$D$606 -> Capacity & Peak | E59: Top | F59: =$G$607 -> Electrical Capacity | G59: =$G$608 -> GW | H59: =$G$609 -> output.electricity.capacity.type | I59: =$G$610 -> Stacked Area with overlying Line(s) | M59: 0 | N59: 250
C60: =C59 -> Electricity | D60: =D59 -> Capacity & Peak | E60: Bottom | F60: =$G$629 -> Peak Gate Power Demand | G60: =$G$630 -> GW | H60: =$G$631 -> output.electricity.peak.demand | I60: =$G$632 -> Stacked Area with overlying Line(s) | M60: 0 | N60: 250
C61: =$C$644 -> Land Use & Bioenergy | D61: =$D$645 -> Emissions & Land | E61: Top | F61: =$G$646 -> Emissions - Land Use and Biofuels | G61: =$G$647 -> MtCO2e/yr | H61: =$G$648 -> output.land.bio.emissions | I61: =$G$649 -> Stacked Area with overlying Line(s) | M61: -100 | N61: 100
C62: =C61 -> Land Use & Bioenergy | D62: =D61 -> Emissions & Land | E62: Bottom | F62: =$G$663 -> Land Area Trade Off | G62: =$G$664 -> km2 | H62: =$G$665 -> output.land.area.trade.off | I62: =$G$666 -> Stacked Area with overlying Line(s) | M62: 0 | N62: 150000
C63: Land Use & Bioenergy | D63: =$D$675 -> Bioenergy | E63: Top | F63: =$G$676 -> Domestic Bioenergy Production | G63: =$G$677 -> TWh/yr | H63: =$G$678 -> output.land.bioenergy.production | I63: =$G$679 -> Stacked Area with overlying Line(s) | M63: 0 | N63: 500
C64: Land Use & Bioenergy | D64: =D63 -> Bioenergy | E64: Bottom | F64: =$G$690 -> Imported Bioenergy | G64: =$G$691 -> TWh/yr | H64: =$G$692 -> output.bioenergy.imports | I64: =$G$693 -> Line | M64: 0 | N64: 800
C65: =$C$699 -> Imports, Map & Flows | D65: =$D$700 -> Imports | E65: Top | F65: =$G$703 -> Energy Imports | G65: =$G$704 -> TWh/yr | H65: =$G$705 -> output.security.import.energy | I65: =$G$706 -> Stacked Area with overlying Line(s) | M65: 0 | N65: 4000
C66: =C65 -> Imports, Map & Flows | D66: =D65 -> Imports | E66: Bottom | F66: =$G$720 -> Energy Import Dependence | G66: =$G$721 -> Percent | H66: =$G$722 -> output.security.import.fraction | I66: =$G$723 -> Line | M66: 0 | N66: 100
C67: =C66 -> Imports, Map & Flows | D67: =$D$737 -> Map | E67: Page | F67: =$G$740 -> Illustration of scale of land and sea use (positions are arbitrary) | G67: =$G$741 -> No Units | H67: =$G$742 -> output.land.map.area,output.land.map.distance,output.landarea.numberunits | I67: =$G$743 -> Map
C68: Imports, Map & Flows | D68: =$D$789 -> Flows | E68: Page | F68: =$G$790 -> UK Energy Flows | G68: =$G$791 -> TWh/yr | H68: =$G$792 -> output.flows | I68: =$G$793 -> Sankey/Flow
B72: Outputs to My2050 Summary
C73: My2050 Output Page | D73: Tab | E73: Position | F73: Title | G73: Axis Unit | H73: Named Range | I73: Graph Type
C75: =$C$901 -> GHG Emissions Reduction | D75: NA | E75: Left | F75: =$G$903 -> Total | G75: =$G$904 -> % of 1990 emissions | H75: =$G$905 -> output.simple.emissions.reduction.percent | I75: =$G$906 -> Bar
C76: =C75 -> GHG Emissions Reduction | D76: NA | E76: Right | F76: =$G$915 -> Per Sector | G76: =$G$916 -> % of 1990 emissions | H76: =$G$917 -> output.simple.emissions.sector.percent | I76: =$G$918 -> Bar
C77: =C76 -> GHG Emissions Reduction | D77: NA | E77: Bottom | F77: =$G$930 -> Emissions in Your Scenario | G77: =$G$931 -> MtCO2e | H77: =$G$932 -> output.simple.emissions.sector | I77: =$G$933 -> Text (labels)
C78: =$C$944 -> Energy Consumption | D78: NA | E78: Left | F78: =$G$946 -> Demand | G78: =$G$947 -> TWh | H78: =$G$948 -> output.simple.energy.demand | I78: =$G$949 -> Bar
C79: =C78 -> Energy Consumption | D79: NA | E79: Right | F79: =$G$958 -> Supply | G79: =$G$959 -> TWh | H79: =$G$960 -> output.simple.energy.supply | I79: =$G$961 -> Bar
B82: Style and principles of outputs
C83: Colours
D84: Shades of each colour should be used across groups of similar categories (e.g. coal, oil, natural gas) and to provide visual contrast between adjacent categories.
D85: Shades can be used to brighten or darken the colours in the BEIS brand guidance listed below.
D86: Shade suggestions have been provided in some cases.
D88: Branding | E88: Dark blue | G88: Dark blue - C100 M49 Y0 K40, R0 G74 B127, #003366
D89: Graph Colours | E89: BEIS brand
D90: Black | E90: NA
D91: Grey | E91: Dark slate | G91: Dark slate - C62 M52 Y46 K40, R85 G86 B90, #555559
D92: Brown | E92: Soft amber | G92: Soft amber - C25 M22 Y33 K0, R203 G193 B175, #cbc1af
D93: Green | E93: Green | G93: Green - C61 M0 Y100 K0, R115 G183 B43, #66cc33
D94: Yellow | E94: Gold | G94: Gold - C0 M37 Y87 K0, R249 G174 B45, #ffcc33
D95: Orange | E95: Orange | G95: Orange - C0 M64 Y94 K0, R238 G117 B27, #ff9933
D96: Red | E96: NA
D97: Purple | E97: Purple | G97: Purple - C83 M100 Y0 K40, R86 G37 B131, #663399
D98: Blue | E98: Cyan | G98: Cyan - C75 M22 Y0 K0, R28 G156 B217, #0099cc
D99: White with texture (grey horizontal lines or dots) | E99: NA | F99: Inc texture
C103: Old colour lookup table (redundant)
D105: Lookup for colours | G105: Note - capitals are colours which aren't in the BEIS guidelines (RC can provide RGB values if needed, but happy for design team to make this judgment)
D106: Original colour | E106: BEIS brand
D107: Black line | E107: BLACK | G107: Principles of colours are:
D108: Black | E108: BLACK | G108: -similar categories which we'd like people to see together are the same colour (e.g.in some graphs, all fossil fuels)
D109: Brown-dark | E109: BROWN-DARK | H109: -within this, darker colours mean higher emissionsn (coal black or dark grey, oil medium, gas light)
D110: Brown-med | E110: BROWN-MID | G110: -where a category has similar emissions, dark means more solid, medium liquid, light gas (or for biomass, dark = wetter)
D111: Brown-mid | E111: BROWN-MID
D112: Brown | E112: BROWN-MID | G112: Certain technologies have a similar colour wherever used, as that colour feels the most intuitive
D113: Blue-light | E113: Cyan | G113: -fossil fuels -grey
D114: Blue | E114: Cyan | G114: -forestry or agriculture - green
D115: Blue dotted line | E115: Cyan | G115: -biomass or waste -brown
D116: Dotted blue | E116: Cyan | G116: -heating - red
D117: Blue-dark | E117: Dark blue
D118: Grey-dark | E118: Dark slate | G118: For consistency, a few colours are also used throughout
D119: Yellow-dark | E119: Gold | G119: -transport-blue
D120: Green-mid | E120: Green | G120: -electricity - yellow
D121: Green | E121: Green | G121: -nuclear - orange
D122: Green-dark | E122: GREEN-DARK | G122: -hydrogen - purple
D123: Green-light | E123: Lime
D124: Grey | E124: Marine grey
D125: Grey-mid | E125: Marine grey
D126: Grey dotted line | E126: Marine grey
D127: Orange | E127: Orange
D128: Dotted orange | E128: Orange
D129: Grey-light | E129: Pale slate
D130: Purple | E130: Purple
D131: Purple-dark | E131: Purple
D132: Red | E132: RED
D133: Red dotted line | E133: RED
D134: Brown-light | E134: Soft amber
D135: White | E135: WHITE
D136: Yellow-light | E136: YELLOW
D137: Yellow | E137: YELLOW
C141: Order | X141: Principles
Y142: Fossil fuels
H143: Counterfactual - emphasises the profile for replacement | Y143: Flexible
H144: Low Carbon - emphasis the uptake of new technologies (BF Preference) | Y144: Renewable resource
G146: Electricity | H146: 5 | I146: 6 | J146: 7 | K146: 8 | L146: 8 | M146: 8 | N146: 8
G147: Heat (Waste) | H147: 0 | I147: 0 | J147: 0.1 | K147: 0.2 | L147: 0.3 | M147: 0.4 | N147: 0.5 | X147: Principles
G148: Hydrogen | H148: 0 | I148: 0 | J148: 0.5 | K148: 1 | L148: 1.5 | M148: 2 | N148: 2 | Y148: Buildings-Residential / Buildings-non-residential
G149: Bio - Solid | H149: 0 | I149: 0.25 | J149: 0.5 | K149: 0.75 | L149: 1 | M149: 1 | N149: 1 | Y149: Avoid public/commercial
G150: Bio - Liquid | H150: 0 | I150: 0.25 | J150: 0.5 | K150: 0.75 | L150: 1 | M150: 1 | N150: 1
G151: Bio - Gas | H151: 0 | I151: 0.5 | J151: 1 | K151: 1 | L151: 1 | M151: 1 | N151: 1 | Y151: Transport - domestic, transport-international
G152: Fossil Fuel - Solid | H152: 2 | I152: 1.5 | J152: 1 | K152: 0.5 | L152: 0 | M152: 0 | N152: 0
G153: Fossil Fuel - Liquid | H153: 2 | I153: 1.5 | J153: 1 | K153: 0.5 | L153: 0 | M153: 0 | N153: 0 | Y153: For gas - always say natural gas
G154: Fossil Fuel - Gas | H154: 10 | I154: 8 | J154: 6.4 | K154: 5.12 | L154: 4.096 | M154: 3.2768 | N154: 2.62144 | Y154: Fossil fuel: coal, oil, natural gas
Y156: Gas boiler (either description or 1-pager to make it clear this is hydrogen/natural/bio)
Y158: Do we abbreviate GGR - call it GHG removal
Y159: CCS - as long as the levers expalin it, we can abbreviate
Y160: LULUCF - spell out
X162: Allocation
Y163: Transport -always use dom/international (except when need to show by tech)
C164: Grouping
C171: Named range convention
F172: "." has been used as the separator as per Climact request "For the name of the input and output ranges, could you use “.” Instead of “_”"
F173: All start with "output."
B175: Outputs to Webtool
C176: Key indicators
E177: Metric bar on right-hand side
F178: Title | G178: GHG Emissions in 2050
F179: Axis Unit | G179: % reduction on 1990
F180: Named Range | G180: output.metric.emissions.reduction.twentyfifty
F181: Graph Type | G181: Bar with shaded confidence interval
F182: Notes
G184: Year | H184: 2050 | I184: COMMENT
F185: Categories | G185: Low | H185: =Results!M213 -> 0.5952235697
G186: Central | H186: =Results!M214 -> 0.6452235697
G187: High | H187: =Results!M215 -> 0.6952235697
E192: Chart2
F193: Title | G193: UK Net Zero by
F194: Axis Unit | G194: No Units
F195: Named Range | G195: output.metric.emissions.yrzero
F196: Graph Type | G196: Text
F197: Notes | G197: Text for whether or not net zero is achieved has been removed because this is visible from the display
D198: Raw calcs | F198: Categories
D199: Low | E199: =IF(E$200="never","never",E201-5) -> never | G199: Net zero text
D200: Central | E200: =IF(Results!W194>0,"never",2080) -> never
D201: High | E201: =IF(E$200="never","never",H203+5) -> never
C209: Warnings
F211: Title | G211: Level 4
F212: Axis Unit | G212: No Units
F213: Named Range | G213: output.warning.L4chosen
F214: Graph Type | G214: Icon
F215: Notes | G215: icon that is on (1) or off (0), with text that appears on hover-over
G217: Icon on? | H217: =Results!F2026 -> 0
G218: Warning text | H218: =Results!G2026 -> 0 levers are set to level 4, considered by experts to be the limit of what is plausible.
F221: Title | G221: Extremely ambitious rate of change
F222: Axis Unit | G222: No Units
F223: Named Range | G223: output.warning.exceedL4.rate
F224: Graph Type | G224: Icon
F225: Notes | G225: icon that is on (1) or off (0), with text that appears on hover-over
G227: Icon on? | H227: =Results!F2027 -> 0
G228: Warning text | H228: =Results!G2027 -> 0 levers have a rate of increase in ambition that is higher than Level 4 ambition over the default deployment time, considered by experts to be the fastest plausible.
F231: Title | G231: Bioenergy Imports
F232: Axis Unit | G232: No Units
F233: Named Range | G233: output.warning.bio.imports
F234: Graph Type | G234: Icon
F235: Notes | G235: icon that is on (1) or off (0), with text that appears on hover-over
G237: Icon on?
G238: Warning text | H238: =Results!G2028 -> Biomass imports of 68 TWh/year do not exceed the maximum available in the CCC Global Governance & Innovation scenario of 155 TWh/year of imports (or 300 TWh/year including domestic supplies).
F241: Title | G241: Land
F242: Axis Unit | G242: No Units
F243: Named Range | G243: output.warning.land
F244: Graph Type | G244: Icon
F245: Notes | G245: icon that is on (1) or off (0), with text that appears on hover-over
G247: Icon on? | H247: =Results!F2029 -> 0
G248: Warning text | H248: =Results!G2029 -> There is sufficient land available for both the selected level of forest and bioenergy land in all years.
F251: Title | G251: Electricity Peak
F252: Axis Unit | G252: No Units
F253: Named Range | G253: output.warning.elec.peak
F254: Graph Type | G254: Icon
F255: Notes | G255: icon that is on (1) or off (0), with text that appears on hover-over
G257: Icon on? | H257: =Results!F2030 -> 1
G258: Warning text | H258: =Results!G2030 -> More centralised unabated fossil fuel generation capacity is required in some years than was present in 2015. 66 GW of centralised unabated fossil fuel generation capacity is required to ensure peak electricity demand can be met in 2050, Compared to the 49 GW installed in 2015. Consider deploying more storage/balancing capacity, deploying more dispatchable generation, or reducing peak electricity demand. See electricity outputs for more information.
C262: Overview
D263: GHG Emissions / Primary Energy | E263: Page1:Chart1
F264: Title | G264: Annual Greenhouse Gas Emissions
F265: Axis Unit | G265: MtCO2e/yr
... 589 more rows

Sheet Results
A1: Results | F1: 2015 | G1: 2020 | H1: 2025 | I1: 2030 | J1: 2035 | K1: 2040 | L1: 2045 | M1: 2050 | N1: 2055 | O1: 2060 | P1: 2065 | Q1: 2070 | R1: 2075 | S1: 2080 | T1: 2085 | U1: 2090 | V1: 2095 | W1: 2100
G2: 2020 | I2: 2030 | K2: 2040 | M2: 2050 | O2: 2060 | Q2: 2070 | S2: 2080 | U2: 2090 | W2: 2100
Y3: Contents
E5: =HYPERLINK("#" & CELL("address", Results!$A$32), Results!$A$32) -> Emissions
E6: =HYPERLINK("#" & CELL("address", Results!$A$388), Results!$A$388) -> PEC/FEC
E7: =HYPERLINK("#" & CELL("address", Results!$A$465), Results!$A$465) -> Homes and Non-Domestic Buildings
E8: =HYPERLINK("#" & CELL("address", Results!$A$698), Results!$A$698) -> Network Heating Source
E9: =HYPERLINK("#" & CELL("address", Results!$A$746), Results!$A$746) -> Industry
E10: =HYPERLINK("#" & CELL("address", Results!$A$776), Results!$A$776) -> Gas Grid
E11: =HYPERLINK("#" & CELL("address", Results!$A$825), Results!$A$825) -> Hydrogen Production
E13: =HYPERLINK("#" & CELL("address", Results!$A$862), Results!$A$862) -> Electricity Generation and Storage
E16: =HYPERLINK("#" & CELL("address", Results!$A$1084), Results!$A$1084) -> Transport
E19: =HYPERLINK("#" & CELL("address", Results!$A$1386), Results!$A$1386) -> Farming and Forestry
E20: =HYPERLINK("#" & CELL("address", Results!$A$1487), Results!$A$1487) -> Bioenergy and Waste
E21: =HYPERLINK("#" & CELL("address", Results!$A$1599), Results!$A$1599) -> Greenhouse Gas Removal & CCS
E23: =HYPERLINK("#" & CELL("address", Results!$A$1709), Results!$A$1709) -> Security & Imports
E24: =HYPERLINK("#" & CELL("address", Results!$A$1745), Results!$A$1745) -> Energy Map Diagram Table
E25: =HYPERLINK("#" & CELL("address", Results!$A$1782), Results!$A$1782) -> Energy Flow Diagram Table
F27: =RIGHT(CELL("address",F1), LEN(CELL("address",F1)) -1) -> F$1 | G27: G$1 | H27: H$1 | I27: I$1 | J27: J$1 | K27: K$1 | L27: L$1 | M27: M$1 | N27: N$1 | O27: O$1 | P27: P$1 | Q27: Q$1 | R27: R$1 | S27: S$1 | T27: T$1 | U27: U$1 | V27: V$1 | W27: W$1 | Y27: Formula Template
C28: TmpInBaU.dDwl. | E28: Equation | F28: ="=+SUMIFS("&$C28&", Prd., "&F$27&")" -> =+SUMIFS(TmpInBaU.dDwl., Prd., F$1)
A32: Emissions | W32: =HYPERLINK("#" & CELL("address", Results!$Y$3), Results!$Y$3) -> Contents
B33: GHG Emissions by Process
E34: Units
E35: … | F35: … | G35: … | H35: … | I35: … | J35: … | K35: … | L35: … | M35: … | N35: … | O35: … | P35: … | Q35: … | R35: … | S35: … | T35: … | U35: … | V35: … | W35: … | Y35: Sector (high level) | Z35: Sector (detail) | AA35: Indirect emissions process category
C36: =Model!G2096 -> Em.GHG.dDHN. | E36: =Model!$F$495 -> Domestic District Heat Network | F36: =+SUMIFS(Em.GHG.dDHN., Prd., F$1) -> 0 | G36: =+SUMIFS(Em.GHG.dDHN., Prd., G$1) -> 0 | H36: 0 | I36: 0 | J36: 0 | K36: 0 | L36: 0 | M36: 0 | N36: 0 | O36: 0 | P36: 0 | Q36: 0 | R36: 0 | S36: 0 | T36: 0 | U36: 0 | V36: 0 | W36: 0 | Y36: =$E$243 -> Buildings-Residential | Z36: =$E$310 -> Residential | AA36: Direct
C37: =Model!G2097 -> Em.GHG.dHPA. | E37: =Model!$F$492 -> Domestic Heat Pump Air Source | F37: =+SUMIFS(Em.GHG.dHPA., Prd., F$1) -> 0 | G37: 0 | H37: 0 | I37: 0 | J37: 0 | K37: 0 | L37: 0 | M37: 0 | N37: 0 | O37: 0 | P37: 0 | Q37: 0 | R37: 0 | S37: 0 | T37: 0 | U37: 0 | V37: 0 | W37: 0 | Y37: Buildings-Residential | Z37: Residential | AA37: Direct
C38: =Model!G2098 -> Em.GHG.dHPG. | E38: =Model!$F$493 -> Domestic Heat Pump Ground Source | F38: =+SUMIFS(Em.GHG.dHPG., Prd., F$1) -> 0 | G38: 0 | H38: 0 | I38: 0 | J38: 0 | K38: 0 | L38: 0 | M38: 0 | N38: 0 | O38: 0 | P38: 0 | Q38: 0 | R38: 0 | S38: 0 | T38: 0 | U38: 0 | V38: 0 | W38: 0 | Y38: Buildings-Residential | Z38: Residential | AA38: Direct
C39: =Model!G2099 -> Em.GHG.dHyb. | E39: =Model!$F$494 -> Domestic Hybrid Heat Pump / Gas Boiler | F39: =+SUMIFS(Em.GHG.dHyb., Prd., F$1) -> 0 | G39: 0 | H39: 0 | I39: 0 | J39: 0 | K39: 0 | L39: 0 | M39: 0 | N39: 0 | O39: 0 | P39: 0 | Q39: 0 | R39: 0 | S39: 0 | T39: 0 | U39: 0 | V39: 0 | W39: 0 | Y39: Buildings-Residential | Z39: Residential | AA39: Direct
C40: =Model!G2100 -> Em.GHG.dblO. | E40: =Model!$F$488 -> Domestic Oil Fuel Boiler | F40: =+SUMIFS(Em.GHG.dblO., Prd., F$1) -> 7.413604078 | G40: 7.736504851 | H40: 8.180343134 | I40: 8.496349491 | J40: 8.861457229 | K40: 9.135946362 | L40: 9.307028486 | M40: 9.485898967 | N40: 9.454405441 | O40: 9.38496804 | P40: 9.26619459 | Q40: 9.085731636 | R40: 9.024483356 | S40: 8.856812707 | T40: 8.489489469 | U40: 8.324775846 | V40: 8.083481228 | W40: 7.916703732 | Y40: Buildings-Residential | Z40: Residential | AA40: Direct
C41: =Model!G2101 -> Em.GHG.dblS. | E41: =Model!$F$489 -> Domestic Solid Fuel Boiler | F41: =+SUMIFS(Em.GHG.dblS., Prd., F$1) -> 2.402409137 | G41: 2.506953273 | H41: 2.651295738 | I41: 2.754412293 | J41: 2.873371724 | K41: 2.963103385 | L41: 3.019493483 | M41: 3.078414612 | N41: 3.068558382 | O41: 3.046444468 | P41: 3.008413659 | Q41: 2.950497127 | R41: 2.931062213 | S41: 2.877302291 | T41: 2.759129412 | U41: 2.70632352 | V41: 2.628815973 | W41: 2.575356644 | Y41: Buildings-Residential | Z41: Residential | AA41: Direct
C42: =Model!G2102 -> Em.GHG.dblG. | E42: =Model!$F$487 -> Domestic Gas Boiler | F42: =+SUMIFS(Em.GHG.dblG., Prd., F$1) -> 51.31699452 | G42: 53.55351225 | H42: 56.54755921 | I42: 58.64840031 | J42: 61.08350707 | K42: 62.88620659 | L42: 63.97042608 | M42: 65.10519048 | N42: 64.88361864 | O42: 64.40078979 | P42: 63.57795215 | Q42: 62.32972146 | R42: 61.90277872 | S42: 60.74226917 | T42: 58.20582523 | U42: 57.06569418 | V42: 55.3977153 | W42: 54.24317591 | Y42: Buildings-Residential | Z42: Residential | AA42: Direct
C43: =Model!G2103 -> Em.GHG.dhtE. | E43: =Model!$F$490 -> Domestic Electric Heater | F43: =+SUMIFS(Em.GHG.dhtE., Prd., F$1) -> 0 | G43: 0 | H43: 0 | I43: 0 | J43: 0 | K43: 0 | L43: 0 | M43: 0 | N43: 0 | O43: 0 | P43: 0 | Q43: 0 | R43: 0 | S43: 0 | T43: 0 | U43: 0 | V43: 0 | W43: 0 | Y43: Buildings-Residential | Z43: Residential | AA43: Direct
C44: =Model!G2132 -> Em.GHG.nDHN. | E44: =Model!$F$508 -> Non-Domestic District Heat Network | F44: =+SUMIFS(Em.GHG.nDHN., Prd., F$1) -> 0 | G44: 0 | H44: 0 | I44: 0 | J44: 0 | K44: 0 | L44: 0 | M44: 0 | N44: 0 | O44: 0 | P44: 0 | Q44: 0 | R44: 0 | S44: 0 | T44: 0 | U44: 0 | V44: 0 | W44: 0 | Y44: =$E$244 -> Buildings-Non-Residential | Z44: =$E$311 -> Non-residential | AA44: Direct
C45: =Model!G2133 -> Em.GHG.nHPA. | E45: =Model!$F$505 -> Non-Domestic Heat Pump Air Source | F45: =+SUMIFS(Em.GHG.nHPA., Prd., F$1) -> 0 | G45: 0 | H45: 0 | I45: 0 | J45: 0 | K45: 0 | L45: 0 | M45: 0 | N45: 0 | O45: 0 | P45: 0 | Q45: 0 | R45: 0 | S45: 0 | T45: 0 | U45: 0 | V45: 0 | W45: 0 | Y45: Buildings-Non-Residential | Z45: Non-residential | AA45: Direct
C46: =Model!G2134 -> Em.GHG.nHPG. | E46: =Model!$F$506 -> Non-Domestic Heat Pump Ground Source | F46: =+SUMIFS(Em.GHG.nHPG., Prd., F$1) -> 0 | G46: 0 | H46: 0 | I46: 0 | J46: 0 | K46: 0 | L46: 0 | M46: 0 | N46: 0 | O46: 0 | P46: 0 | Q46: 0 | R46: 0 | S46: 0 | T46: 0 | U46: 0 | V46: 0 | W46: 0 | Y46: Buildings-Non-Residential | Z46: Non-residential | AA46: Direct
C47: =Model!G2135 -> Em.GHG.nHyb. | E47: =Model!$F$507 -> Non-Domestic Hybrid Heat Pump / Gas Boiler | F47: =+SUMIFS(Em.GHG.nHyb., Prd., F$1) -> 0 | G47: 0 | H47: 0 | I47: 0 | J47: 0 | K47: 0 | L47: 0 | M47: 0 | N47: 0 | O47: 0 | P47: 0 | Q47: 0 | R47: 0 | S47: 0 | T47: 0 | U47: 0 | V47: 0 | W47: 0 | Y47: Buildings-Non-Residential | Z47: Non-residential | AA47: Direct
C48: =Model!G2136 -> Em.GHG.nblO. | E48: =Model!$F$501 -> Non-Domestic Oil Fuel Boiler | F48: =+SUMIFS(Em.GHG.nblO., Prd., F$1) -> 3.566527169 | G48: 3.54268196 | H48: 3.793244568 | I48: 4.037368213 | J48: 4.275143886 | K48: 4.50666215 | L48: 4.732013135 | M48: 4.951286538 | N48: 4.917819875 | O48: 4.884534961 | P48: 4.851433108 | Q48: 4.818515635 | R48: 4.78578387 | S48: 4.753239152 | T48: 4.720882829 | U48: 4.688716259 | V48: 4.656740809 | W48: 4.624957857 | Y48: Buildings-Non-Residential | Z48: Non-residential | AA48: Direct
C49: =Model!G2137 -> Em.GHG.nblS. | E49: =Model!$F$502 -> Non-Domestic Solid Fuel Boiler | F49: =+SUMIFS(Em.GHG.nblS., Prd., F$1) -> 2.719040023 | G49: 2.700994508 | H49: 2.892505525 | I49: 3.079174412 | J49: 3.261069185 | K49: 3.438257549 | L49: 3.610806888 | M49: 3.778784273 | N49: 3.753447995 | O49: 3.728250652 | P49: 3.703193244 | Q49: 3.678276781 | R49: 3.653502278 | S49: 3.628870758 | T49: 3.604383251 | U49: 3.580040797 | V49: 3.555844439 | W49: 3.531795231 | Y49: Buildings-Non-Residential | Z49: Non-residential | AA49: Direct
C50: =Model!G2138 -> Em.GHG.nblG. | E50: =Model!$F$500 -> Non-Domestic Gas Boiler | F50: =+SUMIFS(Em.GHG.nblG., Prd., F$1) -> 16.51127643 | G50: 16.40041942 | H50: 17.55113489 | I50: 18.6707611 | J50: 19.759748 | K50: 20.81854325 | L50: 21.84759215 | M50: 22.84733766 | N50: 22.69219437 | O50: 22.53788898 | P50: 22.38442753 | Q50: 22.23181609 | R50: 22.08006079 | S50: 21.92916781 | T50: 21.77914335 | U50: 21.62999368 | V50: 21.4817251 | W50: 21.33434397 | Y50: Buildings-Non-Residential | Z50: Non-residential | AA50: Direct
C51: =Model!G2139 -> Em.GHG.nhtE. | E51: =Model!$F$503 -> Non-Domestic Electric Heater | F51: =+SUMIFS(Em.GHG.nhtE., Prd., F$1) -> 0 | G51: 0 | H51: 0 | I51: 0 | J51: 0 | K51: 0 | L51: 0 | M51: 0 | N51: 0 | O51: 0 | P51: 0 | Q51: 0 | R51: 0 | S51: 0 | T51: 0 | U51: 0 | V51: 0 | W51: 0 | Y51: Buildings-Non-Residential | Z51: Non-residential | AA51: Direct
C52: =Model!G3429 -> Em.GHG.dStvG. | E52: =Model!$F$526 -> Domestic Gas Stove | F52: =+SUMIFS(Em.GHG.dStvG., Prd., F$1) -> 0.9568016259 | G52: 0.9900566391 | H52: 1.019422776 | I52: 1.046136324 | J52: 1.069596644 | K52: 1.090806044 | L52: 1.110916642 | M52: 1.129972752 | N52: 1.149056483 | O52: 1.167135318 | P52: 1.185224614 | Q52: 1.204372082 | R52: 1.224769591 | S52: 1.245765838 | T52: 1.266764318 | U52: 1.28776166 | V52: 1.309092435 | W52: 1.330868581 | Y52: =$E$243 -> Buildings-Residential | Z52: =$E$310 -> Residential | AA52: Direct
C53: =Model!G3430 -> Em.GHG.dStvE. | E53: =Model!$F$527 -> Domestic Electric Stove | F53: =+SUMIFS(Em.GHG.dStvE., Prd., F$1) -> 0 | G53: 0 | H53: 0 | I53: 0 | J53: 0 | K53: 0 | L53: 0 | M53: 0 | N53: 0 | O53: 0 | P53: 0 | Q53: 0 | R53: 0 | S53: 0 | T53: 0 | U53: 0 | V53: 0 | W53: 0 | Y53: =$E$243 -> Buildings-Residential | Z53: =$E$310 -> Residential | AA53: Direct
C54: =Model!G3431 -> Em.GHG.nStvG. | E54: =Model!$F$528 -> Non-Domestic Gas Stove | F54: =+SUMIFS(Em.GHG.nStvG., Prd., F$1) -> 1.222510584 | G54: 1.231321341 | H54: 1.233414994 | I54: 1.23548108 | J54: 1.237519137 | K54: 1.2395287 | L54: 1.241509297 | M54: 1.243460452 | N54: 1.252422196 | O54: 1.261448529 | P54: 1.270539915 | Q54: 1.279696824 | R54: 1.288919727 | S54: 1.298209101 | T54: 1.307565425 | U54: 1.31698918 | V54: 1.326480853 | W54: 1.336040934 | Y54: =$E$244 -> Buildings-Non-Residential | Z54: =$E$311 -> Non-residential | AA54: Direct
C55: =Model!G3432 -> Em.GHG.nStvE. | E55: =Model!$F$529 -> Non-Domestic Electric Stove | F55: =+SUMIFS(Em.GHG.nStvE., Prd., F$1) -> 0 | G55: 0 | H55: 0 | I55: 0 | J55: 0 | K55: 0 | L55: 0 | M55: 0 | N55: 0 | O55: 0 | P55: 0 | Q55: 0 | R55: 0 | S55: 0 | T55: 0 | U55: 0 | V55: 0 | W55: 0 | Y55: =$E$244 -> Buildings-Non-Residential | Z55: =$E$311 -> Non-residential | AA55: Direct
C56: =Model!G3610 -> Em.GHG.dLt. | E56: =Model!$F$530 -> Domestic Lighting | F56: =+SUMIFS(Em.GHG.dLt., Prd., F$1) -> 0 | G56: 0 | H56: 0 | I56: 0 | J56: 0 | K56: 0 | L56: 0 | M56: 0 | N56: 0 | O56: 0 | P56: 0 | Q56: 0 | R56: 0 | S56: 0 | T56: 0 | U56: 0 | V56: 0 | W56: 0 | Y56: =$E$243 -> Buildings-Residential | Z56: =$E$310 -> Residential | AA56: Direct
C57: =Model!G3611 -> Em.GHG.nLt. | E57: =Model!$F$531 -> Non-Domestic Lighting | F57: =+SUMIFS(Em.GHG.nLt., Prd., F$1) -> 0 | G57: 0 | H57: 0 | I57: 0 | J57: 0 | K57: 0 | L57: 0 | M57: 0 | N57: 0 | O57: 0 | P57: 0 | Q57: 0 | R57: 0 | S57: 0 | T57: 0 | U57: 0 | V57: 0 | W57: 0 | Y57: =$E$244 -> Buildings-Non-Residential | Z57: =$E$311 -> Non-residential | AA57: Direct
C58: =Model!G3612 -> Em.GHG.dAp. | E58: =Model!$F$532 -> Domestic Appliances | F58: =+SUMIFS(Em.GHG.dAp., Prd., F$1) -> 0 | G58: 0 | H58: 0 | I58: 0 | J58: 0 | K58: 0 | L58: 0 | M58: 0 | N58: 0 | O58: 0 | P58: 0 | Q58: 0 | R58: 0 | S58: 0 | T58: 0 | U58: 0 | V58: 0 | W58: 0 | Y58: =$E$243 -> Buildings-Residential | Z58: =$E$310 -> Residential | AA58: Direct
C59: =Model!G3613 -> Em.GHG.nAp. | E59: =Model!$F$533 -> Non-Domestic Appliances | F59: =+SUMIFS(Em.GHG.nAp., Prd., F$1) -> 0 | G59: 0 | H59: 0 | I59: 0 | J59: 0 | K59: 0 | L59: 0 | M59: 0 | N59: 0 | O59: 0 | P59: 0 | Q59: 0 | R59: 0 | S59: 0 | T59: 0 | U59: 0 | V59: 0 | W59: 0 | Y59: =$E$244 -> Buildings-Non-Residential | Z59: =$E$311 -> Non-residential | AA59: Direct
C60: =Model!G3726 -> Em.GHG.dAC. | E60: =Model!$F$534 -> Domestic Air Conditioning | F60: =+SUMIFS(Em.GHG.dAC., Prd., F$1) -> 0 | G60: 0 | H60: 0 | I60: 0 | J60: 0 | K60: 0 | L60: 0 | M60: 0 | N60: 0 | O60: 0 | P60: 0 | Q60: 0 | R60: 0 | S60: 0 | T60: 0 | U60: 0 | V60: 0 | W60: 0 | Y60: =$E$243 -> Buildings-Residential | Z60: =$E$310 -> Residential | AA60: Direct
C61: =Model!G3727 -> Em.GHG.nAC. | E61: =Model!$F$535 -> Non-Domestic Air Conditioning | F61: =+SUMIFS(Em.GHG.nAC., Prd., F$1) -> 13.32754278 | G61: 10.75145976 | H61: 7.929318061 | I61: 4.92736631 | J61: 3.000180312 | K61: 3.368194219 | L61: 3.750736156 | M61: 4.147806123 | N61: 4.147806123 | O61: 4.147806123 | P61: 4.147806123 | Q61: 4.147806123 | R61: 4.147806123 | S61: 4.147806123 | T61: 4.147806123 | U61: 4.147806123 | V61: 4.147806123 | W61: 4.147806123 | X61: F gas | Y61: =$E$244 -> Buildings-Non-Residential | Z61: =$E$311 -> Non-residential | AA61: Direct
C62: =Model!G4606 -> Em.GHG.hnWHO. | E62: =Model!$F$524 -> Heat Network Waste Heat Offtake from Power | F62: =+SUMIFS(Em.GHG.hnWHO., Prd., F$1) -> 0 | G62: 0 | H62: 0 | I62: 0 | J62: 0 | K62: 0 | L62: 0 | M62: 0 | N62: 0 | O62: 0 | P62: 0 | Q62: 0 | R62: 0 | S62: 0 | T62: 0 | U62: 0 | V62: 0 | W62: 0 | Y62: =$E$247 -> Buildings-Heat Network | Z62: =$E$247 -> Buildings-Heat Network | AA62: Network Heat Production
C63: =Model!G4607 -> Em.GHG.hnHPW. | E63: =Model!$F$516 -> Heat Network Heat Pump Water Source | F63: =+SUMIFS(Em.GHG.hnHPW., Prd., F$1) -> 0 | G63: 0 | H63: 0 | I63: 0 | J63: 0 | K63: 0 | L63: 0 | M63: 0 | N63: 0 | O63: 0 | P63: 0 | Q63: 0 | R63: 0 | S63: 0 | T63: 0 | U63: 0 | V63: 0 | W63: 0 | Y63: Buildings-Heat Network | Z63: Buildings-Heat Network | AA63: Network Heat Production
C64: =Model!G4608 -> Em.GHG.hnHPG. | E64: =Model!$F$517 -> Heat Network Heat Pump Ground Source | F64: =+SUMIFS(Em.GHG.hnHPG., Prd., F$1) -> 0 | G64: 0 | H64: 0 | I64: 0 | J64: 0 | K64: 0 | L64: 0 | M64: 0 | N64: 0 | O64: 0 | P64: 0 | Q64: 0 | R64: 0 | S64: 0 | T64: 0 | U64: 0 | V64: 0 | W64: 0 | Y64: Buildings-Heat Network | Z64: Buildings-Heat Network | AA64: Network Heat Production
A65: CHP | C65: =Model!G4776 -> Em.GHG.hnCHPB_ElecComp. | E65: =Model!$F$519 -> Heat Network Biomass CHP Electrical Component | F65: =+SUMIFS(Em.GHG.hnCHPB_ElecComp., Prd., F$1) -> 0.004915611168 | G65: 0.004915611168 | H65: 0.00409634264 | I65: 0.003277074112 | J65: 0.002457805584 | K65: 0.001638537056 | L65: 0.0008192685279 | M65: -5.720326746e-19 | N65: 0 | O65: 0 | P65: 0 | Q65: 0 | R65: 0 | S65: 0 | T65: 0 | U65: 0 | V65: 0 | W65: 0 | Y65: =$E$237 -> Electricity Generation | Z65: =$E$352 -> Biomass & Waste | AA65: Heat Network CHP
A66: CHP | C66: =Model!G4777 -> Em.GHG.hnCHPG_ElecComp. | E66: =Model!$F$522 -> Heat Network Gas CHP Electrical Component | F66: =+SUMIFS(Em.GHG.hnCHPG_ElecComp., Prd., F$1) -> 3.373828695 | G66: 3.373828695 | H66: 3.383991147 | I66: 3.394141735 | J66: 3.404280456 | K66: 3.436889244 | L66: 3.665280098 | M66: 3.904591486 | N66: 3.886229844 | O66: 3.857326791 | P66: 3.814656539 | Q66: 3.754722985 | R66: 3.728173594 | S66: 3.671852602 | T66: 3.559676793 | U66: 3.504281837 | V66: 3.434625429 | W66: 3.434625429 | Y66: =$E$237 -> Electricity Generation | Z66: =$E$354 -> Gas | AA66: Heat Network CHP
A67: CHP | C67: =Model!G4788 -> Em.GHG.hnCHPB_HtComp. | E67: =Model!$F$520 -> Heat Network Biomass CHP Heat Processes Heat Component | F67: =+SUMIFS(Em.GHG.hnCHPB_HtComp., Prd., F$1) -> 0.002657087118 | G67: 0.002657087118 | H67: 0.002214239265 | I67: 0.001771391412 | J67: 0.001328543559 | K67: 0.0008856957059 | L67: 0.0004428478529 | M67: -3.092068512e-19 | N67: 0 | O67: 0 | P67: 0 | Q67: 0 | R67: 0 | S67: 0 | T67: 0 | U67: 0 | V67: 0 | W67: 0 | Y67: Buildings-Heat Network | Z67: Buildings-Heat Network | AA67: Heat Network CHP
A68: CHP | C68: =Model!G4789 -> Em.GHG.hnCHPG_HtComp. | E68: =Model!$F$523 -> Heat Network Gas CHP Heat Processes Heat Component | F68: =+SUMIFS(Em.GHG.hnCHPG_HtComp., Prd., F$1) -> 1.823691186 | G68: 1.823691186 | H68: 1.829184404 | I68: 1.834671208 | J68: 1.840151598 | K68: 1.85777797 | L68: 1.981232485 | M68: 2.110589992 | N68: 2.100664781 | O68: 2.085041509 | P68: 2.061976508 | Q68: 2.029579992 | R68: 2.015228969 | S68: 1.98478519 | T68: 1.924149618 | U68: 1.894206398 | V68: 1.856554286 | W68: 1.856554286 | Y68: Buildings-Heat Network | Z68: Buildings-Heat Network | AA68: Heat Network CHP
C69: =Model!G5130 -> Em.GHG.ggDstALL. | E69: =Model!$F$538 -> Gas Grid Distribution All Types | F69: =+SUMIFS(Em.GHG.ggDstALL., Prd., F$1) -> 3.454110011 | G69: 3.517340396 | H69: 3.656436503 | I69: 3.767127646 | J69: 3.890615763 | K69: 3.995728105 | L69: 4.088976833 | M69: 4.184613911 | N69: 4.185320382 | O69: 4.177035498 | P69: 4.139985381 | Q69: 4.086448626 | R69: 4.064974442 | S69: 4.014997114 | T69: 3.911482341 | U69: 3.86237251 | V69: 3.793163526 | W69: 3.746753039 | Y69: =$E$239 -> Other Energy Supply | Z69: =$E$370 -> Gas Grid Leakage | AA69: =$E$370 -> Gas Grid Leakage
C70: =Model!G5135 -> Em.GHG.ggTmsALL. | E70: =Model!$F$541 -> Gas Grid Transmission All Types | F70: =+SUMIFS(Em.GHG.ggTmsALL., Prd., F$1) -> 0.05876302315 | G70: 0.05961343955 | H70: 0.05868460961 | I70: 0.06217883434 | J70: 0.07900237123 | K70: 0.09173994941 | L70: 0.09811818302 | M70: 0.1047525957 | N70: 0.1054529189 | O70: 0.1059878635 | P70: 0.1059765921 | Q70: 0.1057213975 | R70: 0.105937818 | S70: 0.1057702984 | T70: 0.1048589628 | U70: 0.1047059247 | V70: 0.1042757626 | W70: 0.10413929 | Y70: =$E$239 -> Other Energy Supply | Z70: =$E$370 -> Gas Grid Leakage | AA70: =$E$370 -> Gas Grid Leakage
C71: =Model!G6478 -> Em.GHG.carE. | E71: =Model!$F$406 -> Car Electric | F71: =+SUMIFS(Em.GHG.carE., Prd., F$1) -> 0 | G71: 0 | H71: 0 | I71: 0 | J71: 0 | K71: 0 | L71: 0 | M71: 0 | N71: 0 | O71: 0 | P71: 0 | Q71: 0 | R71: 0 | S71: 0 | T71: 0 | U71: 0 | V71: 0 | W71: 0 | Y71: =$E$245 -> Transport-Domestic | Z71: =$E$317 -> Car | AA71: Direct
C72: =Model!G6479 -> Em.GHG.carH2. | E72: =Model!$F$407 -> Car Hydrogen | F72: =+SUMIFS(Em.GHG.carH2., Prd., F$1) -> 0 | G72: 0 | H72: 0 | I72: 0 | J72: 0 | K72: 0 | L72: 0 | M72: 0 | N72: 0 | O72: 0 | P72: 0 | Q72: 0 | R72: 0 | S72: 0 | T72: 0 | U72: 0 | V72: 0 | W72: 0 | Y72: Transport-Domestic | Z72: =$E$317 -> Car | AA72: Direct
C73: =Model!G6480 -> Em.GHG.carPHEV. | E73: =Model!$F$408 -> Car Plug-in Hybrid Electric Vehicle | F73: =+SUMIFS(Em.GHG.carPHEV., Prd., F$1) -> 0.03694739409 | G73: 0.03228447953 | H73: 0.02640543651 | I73: 0.02007768055 | J73: 0.01559688141 | K73: 0.01072263092 | L73: 0.005431726681 | M73: 0 | N73: 0 | O73: 0 | P73: 0 | Q73: 0 | R73: 0 | S73: 0 | T73: 0 | U73: 0 | V73: 0 | W73: 0 | Y73: Transport-Domestic | Z73: =$E$317 -> Car | AA73: Direct
C74: =Model!G6481 -> Em.GHG.carIC. | E74: =Model!$F$409 -> Car Internal Combustion Engine | F74: =+SUMIFS(Em.GHG.carIC., Prd., F$1) -> 60.73821941 | G74: 51.05278246 | H74: 48.16601174 | I74: 44.11375943 | J74: 44.45810324 | K74: 44.50138423 | L74: 44.74764244 | M74: 44.79360101 | N74: 45.55010514 | O74: 46.26677387 | P74: 46.98385725 | Q74: 47.74288799 | R74: 48.55147197 | S74: 49.38379075 | T74: 50.21619801 | U74: 51.04856016 | V74: 51.89414006 | W74: 52.75737503 | Y74: Transport-Domestic | Z74: =$E$317 -> Car | AA74: Direct
C75: =Model!G6482 -> Em.GHG.lgvE. | E75: =Model!$F$410 -> LGV (van) Electric | F75: =+SUMIFS(Em.GHG.lgvE., Prd., F$1) -> 0 | G75: 0 | H75: 0 | I75: 0 | J75: 0 | K75: 0 | L75: 0 | M75: 0 | N75: 0 | O75: 0 | P75: 0 | Q75: 0 | R75: 0 | S75: 0 | T75: 0 | U75: 0 | V75: 0 | W75: 0 | Y75: Transport-Domestic | Z75: =$E$319 -> Light Goods Vehicles | AA75: Direct
C76: =Model!G6483 -> Em.GHG.lgvH2. | E76: =Model!$F$411 -> LGV (van) Hydrogen | F76: =+SUMIFS(Em.GHG.lgvH2., Prd., F$1) -> 0 | G76: 0 | H76: 0 | I76: 0 | J76: 0 | K76: 0 | L76: 0 | M76: 0 | N76: 0 | O76: 0 | P76: 0 | Q76: 0 | R76: 0 | S76: 0 | T76: 0 | U76: 0 | V76: 0 | W76: 0 | Y76: Transport-Domestic | Z76: =$E$319 -> Light Goods Vehicles | AA76: Direct
C77: =Model!G6484 -> Em.GHG.lgvPHEV. | E77: =Model!$F$412 -> LGV (van) Plug-in Hybrid Electric Vehicle | F77: =+SUMIFS(Em.GHG.lgvPHEV., Prd., F$1) -> 0.000809300049 | G77: 0.0008213110303 | H77: 0.0007780723913 | I77: 0.0006486933428 | J77: 0.000538867598 | K77: 0.0003962159003 | L77: 0.0002110943371 | M77: 0 | N77: 0 | O77: 0 | P77: 0 | Q77: 0 | R77: 0 | S77: 0 | T77: 0 | U77: 0 | V77: 0 | W77: 0 | Y77: Transport-Domestic | Z77: =$E$319 -> Light Goods Vehicles | AA77: Direct
C78: =Model!G6485 -> Em.GHG.lgvIC. | E78: =Model!$F$413 -> LGV (van) Internal Combustion Engine | F78: =+SUMIFS(Em.GHG.lgvIC., Prd., F$1) -> 16.21940939 | G78: 15.84978251 | H78: 17.5220196 | I78: 17.75434566 | J78: 19.19163392 | K78: 20.61968212 | L78: 22.03751874 | M78: 23.44572106 | N78: 24.86705473 | O78: 26.28603542 | P78: 27.70326431 | Q78: 29.11802067 | R78: 30.52925395 | S78: 31.93630942 | T78: 33.33937983 | U78: 34.73946106 | V78: 36.1375196 | W78: 37.53403569 | Y78: Transport-Domestic | Z78: =$E$319 -> Light Goods Vehicles | AA78: Direct
C79: =Model!G6486 -> Em.GHG.hgvRE. | E79: =Model!$F$414 -> HGV _Rigid Electric | F79: =+SUMIFS(Em.GHG.hgvRE., Prd., F$1) -> 0 | G79: 0 | H79: 0 | I79: 0 | J79: 0 | K79: 0 | L79: 0 | M79: 0 | N79: 0 | O79: 0 | P79: 0 | Q79: 0 | R79: 0 | S79: 0 | T79: 0 | U79: 0 | V79: 0 | W79: 0 | Y79: Transport-Domestic | Z79: =$E$320 -> Heavy Goods Vehicles | AA79: Direct
C80: =Model!G6487 -> Em.GHG.hgvRH2. | E80: =Model!$F$415 -> HGV _Rigid Hydrogen | F80: =+SUMIFS(Em.GHG.hgvRH2., Prd., F$1) -> 0 | G80: 0 | H80: 0 | I80: 0 | J80: 0 | K80: 0 | L80: 0 | M80: 0 | N80: 0 | O80: 0 | P80: 0 | Q80: 0 | R80: 0 | S80: 0 | T80: 0 | U80: 0 | V80: 0 | W80: 0 | Y80: Transport-Domestic | Z80: Heavy Goods Vehicles | AA80: Direct
C81: =Model!G6488 -> Em.GHG.hgvRPHEV. | E81: =Model!$F$416 -> HGV _Rigid Plug-in Hybrid Electric Vehicle | F81: =+SUMIFS(Em.GHG.hgvRPHEV., Prd., F$1) -> 0 | G81: 0 | H81: 0 | I81: 0 | J81: 0 | K81: 0 | L81: 0 | M81: 0 | N81: 0 | O81: 0 | P81: 0 | Q81: 0 | R81: 0 | S81: 0 | T81: 0 | U81: 0 | V81: 0 | W81: 0 | Y81: Transport-Domestic | Z81: Heavy Goods Vehicles | AA81: Direct
C82: =Model!G6489 -> Em.GHG.hgvRIC. | E82: =Model!$F$417 -> HGV _Rigid Internal Combustion Engine | F82: =+SUMIFS(Em.GHG.hgvRIC., Prd., F$1) -> 11.83469067 | G82: 11.47510489 | H82: 10.92268782 | I82: 10.42261833 | J82: 10.2241863 | K82: 10.01575794 | L82: 9.88885738 | M82: 9.752765908 | N82: 9.894997148 | O82: 10.03821873 | P82: 10.18245197 | Q82: 10.32725863 | R82: 10.47215596 | S82: 10.61685968 | T82: 10.76139601 | U82: 10.90604254 | V82: 11.05104111 | W82: 11.19646782 | Y82: Transport-Domestic | Z82: Heavy Goods Vehicles | AA82: Direct
C83: =Model!G6490 -> Em.GHG.hgvAE. | E83: =Model!$F$418 -> HGV _Articulated Electric | F83: =+SUMIFS(Em.GHG.hgvAE., Prd., F$1) -> 0 | G83: 0 | H83: 0 | I83: 0 | J83: 0 | K83: 0 | L83: 0 | M83: 0 | N83: 0 | O83: 0 | P83: 0 | Q83: 0 | R83: 0 | S83: 0 | T83: 0 | U83: 0 | V83: 0 | W83: 0 | Y83: Transport-Domestic | Z83: Heavy Goods Vehicles | AA83: Direct
C84: =Model!G6491 -> Em.GHG.hgvAH2. | E84: =Model!$F$419 -> HGV _Articulated Hydrogen | F84: =+SUMIFS(Em.GHG.hgvAH2., Prd., F$1) -> 0 | G84: 0 | H84: 0 | I84: 0 | J84: 0 | K84: 0 | L84: 0 | M84: 0 | N84: 0 | O84: 0 | P84: 0 | Q84: 0 | R84: 0 | S84: 0 | T84: 0 | U84: 0 | V84: 0 | W84: 0 | Y84: Transport-Domestic | Z84: Heavy Goods Vehicles | AA84: Direct
C85: =Model!G6492 -> Em.GHG.hgvAPHEV. | E85: =Model!$F$420 -> HGV _Articulated Plug-in Hybrid Electric Vehicle | F85: =+SUMIFS(Em.GHG.hgvAPHEV., Prd., F$1) -> 0 | G85: 0 | H85: 0 | I85: 0 | J85: 0 | K85: 0 | L85: 0 | M85: 0 | N85: 0 | O85: 0 | P85: 0 | Q85: 0 | R85: 0 | S85: 0 | T85: 0 | U85: 0 | V85: 0 | W85: 0 | Y85: Transport-Domestic | Z85: Heavy Goods Vehicles | AA85: Direct
C86: =Model!G6493 -> Em.GHG.hgvAIC. | E86: =Model!$F$421 -> HGV _Articulated Internal Combustion Engine | F86: =+SUMIFS(Em.GHG.hgvAIC., Prd., F$1) -> 11.01971292 | G86: 10.57502752 | H86: 10.03105121 | I86: 9.382448084 | J86: 9.517530373 | K86: 9.625591134 | L86: 9.848794222 | M86: 10.02836471 | N86: 10.56401625 | O86: 11.09897838 | P86: 11.63347144 | Q86: 12.16716483 | R86: 12.69960186 | S86: 13.23050056 | T86: 13.75993467 | U86: 14.28830818 | V86: 14.81600867 | W86: 15.34322164 | Y86: Transport-Domestic | Z86: Heavy Goods Vehicles | AA86: Direct
C87: =Model!G6494 -> Em.GHG.busE. | E87: =Model!$F$422 -> Bus Electric | F87: =+SUMIFS(Em.GHG.busE., Prd., F$1) -> 0 | G87: 0 | H87: 0 | I87: 0 | J87: 0 | K87: 0 | L87: 0 | M87: 0 | N87: 0 | O87: 0 | P87: 0 | Q87: 0 | R87: 0 | S87: 0 | T87: 0 | U87: 0 | V87: 0 | W87: 0 | Y87: Transport-Domestic | Z87: =$E$318 -> Bus | AA87: Direct
C88: =Model!G6495 -> Em.GHG.busH2. | E88: =Model!$F$423 -> Bus Hydrogen | F88: =+SUMIFS(Em.GHG.busH2., Prd., F$1) -> 0 | G88: 0 | H88: 0 | I88: 0 | J88: 0 | K88: 0 | L88: 0 | M88: 0 | N88: 0 | O88: 0 | P88: 0 | Q88: 0 | R88: 0 | S88: 0 | T88: 0 | U88: 0 | V88: 0 | W88: 0 | Y88: Transport-Domestic | Z88: =$E$318 -> Bus | AA88: Direct
C89: =Model!G6496 -> Em.GHG.busPHEV. | E89: =Model!$F$424 -> Bus Plug-in Hybrid Electric Vehicle | F89: =+SUMIFS(Em.GHG.busPHEV., Prd., F$1) -> 0 | G89: 0 | H89: 0 | I89: 0 | J89: 0 | K89: 0 | L89: 0 | M89: 0 | N89: 0 | O89: 0 | P89: 0 | Q89: 0 | R89: 0 | S89: 0 | T89: 0 | U89: 0 | V89: 0 | W89: 0 | Y89: Transport-Domestic | Z89: =$E$318 -> Bus | AA89: Direct
C90: =Model!G6497 -> Em.GHG.busIC. | E90: =Model!$F$425 -> Bus Internal Combustion Engine | F90: =+SUMIFS(Em.GHG.busIC., Prd., F$1) -> 3.536601612 | G90: 2.707065384 | H90: 2.39382006 | I90: 2.07051648 | J90: 1.965818041 | K90: 1.85403495 | L90: 1.762143468 | M90: 1.662951643 | N90: 1.691036676 | O90: 1.71764283 | P90: 1.744264378 | Q90: 1.772443211 | R90: 1.802461696 | S90: 1.833361331 | T90: 1.864264249 | U90: 1.895165494 | V90: 1.926557444 | W90: 1.958604834 | Y90: Transport-Domestic | Z90: =$E$318 -> Bus | AA90: Direct
C91: =Model!G6498 -> Em.GHG.trnPE. | E91: =Model!$F$426 -> Train Passenger Electric | F91: =+SUMIFS(Em.GHG.trnPE., Prd., F$1) -> 0 | G91: 0 | H91: 0 | I91: 0 | J91: 0 | K91: 0 | L91: 0 | M91: 0 | N91: 0 | O91: 0 | P91: 0 | Q91: 0 | R91: 0 | S91: 0 | T91: 0 | U91: 0 | V91: 0 | W91: 0 | Y91: Transport-Domestic | Z91: =$E$321 -> Rail | AA91: Direct
C92: =Model!G6499 -> Em.GHG.trnPIC. | E92: =Model!$F$427 -> Train Passenger Internal Combustion Engine | F92: =+SUMIFS(Em.GHG.trnPIC., Prd., F$1) -> 2.110238421 | G92: 2.183582785 | H92: 2.234100691 | I92: 2.286945413 | J92: 2.333443172 | K92: 2.372749036 | L92: 2.420311358 | M92: 2.459542186 | N92: 2.501080571 | O92: 2.54043166 | P92: 2.579805516 | Q92: 2.621482633 | R92: 2.665880635 | S92: 2.711581876 | T92: 2.757287975 | U92: 2.802991598 | V92: 2.849420985 | W92: 2.896819782 | Y92: Transport-Domestic | Z92: =$E$321 -> Rail | AA92: Direct
C93: =Model!G6500 -> Em.GHG.trnFE. | E93: =Model!$F$428 -> Train Freight Electric | F93: =+SUMIFS(Em.GHG.trnFE., Prd., F$1) -> 0 | G93: 0 | H93: 0 | I93: 0 | J93: 0 | K93: 0 | L93: 0 | M93: 0 | N93: 0 | O93: 0 | P93: 0 | Q93: 0 | R93: 0 | S93: 0 | T93: 0 | U93: 0 | V93: 0 | W93: 0 | Y93: Transport-Domestic | Z93: =$E$321 -> Rail | AA93: Direct
C94: =Model!G6501 -> Em.GHG.trnFIC. | E94: =Model!$F$429 -> Train Freight Internal Combustion Engine | F94: =+SUMIFS(Em.GHG.trnFIC., Prd., F$1) -> 0.3213208242 | G94: 0.3084679913 | H94: 0.3031663707 | I94: 0.2980034363 | J94: 0.2948640079 | K94: 0.2917657978 | L94: 0.2905587108 | M94: 0.2893525929 | N94: 0.2893525929 | O94: 0.2893525929 | P94: 0.2893525929 | Q94: 0.2893525929 | R94: 0.2893525929 | S94: 0.2893525929 | T94: 0.2893525929 | U94: 0.2893525929 | V94: 0.2893525929 | W94: 0.2893525929 | Y94: Transport-Domestic | Z94: =$E$321 -> Rail | AA94: Direct
C95: =Model!G6502 -> Em.GHG.nrmIC. | E95: =Model!$F$432 -> Non-Road Mobile Machinery Internal Combustion Engine | F95: =+SUMIFS(Em.GHG.nrmIC., Prd., F$1) -> 0.0001396982424 | G95: 0.0001396982424 | H95: 0.0001391904486 | I95: 0.0001386826548 | J95: 0.000138174861 | K95: 0.0001376670671 | L95: 0.0001371592733 | M95: 0.0001366514795 | N95: 0.0001366514795 | O95: 0.0001366514795 | P95: 0.0001366514795 | Q95: 0.0001366514795 | R95: 0.0001366514795 | S95: 0.0001366514795 | T95: 0.0001366514795 | U95: 0.0001366514795 | V95: 0.0001366514795 | W95: 0.0001366514795 | Y95: =$E$242 -> Industry | Z95: =$E$334 -> Other Industry | AA95: Direct
C96: =Model!G6503 -> Em.GHG.shpDIC. | E96: =Model!$F$430 -> Shipping Domestic Internal Combustion Engine | F96: =+SUMIFS(Em.GHG.shpDIC., Prd., F$1) -> 6.019549115 | G96: 5.397880311 | H96: 4.798723181 | I96: 4.050859242 | J96: 3.682353717 | K96: 3.465242964 | L96: 3.26995367 | M96: 3.068554171 | N96: 3.068554171 | O96: 3.068554171 | P96: 3.068554171 | Q96: 3.068554171 | R96: 3.068554171 | S96: 3.068554171 | T96: 3.068554171 | U96: 3.068554171 | V96: 3.068554171 | W96: 3.068554171 | Y96: =$E$245 -> Transport-Domestic | Z96: =$E$322 -> Shipping-Domestic | AA96: Direct
C97: =Model!G6504 -> Em.GHG.shpIIC. | E97: =Model!$F$431 -> Shipping International Internal Combustion Engine | F97: =+SUMIFS(Em.GHG.shpIIC., Prd., F$1) -> 10.39001211 | G97: 9.477824211 | H97: 8.540631684 | I97: 7.636571419 | J97: 7.079264107 | K97: 6.770705831 | L97: 6.41870827 | M97: 6.035223386 | N97: 6.035223386 | O97: 6.035223386 | P97: 6.035223386 | Q97: 6.035223386 | R97: 6.035223386 | S97: 6.035223386 | T97: 6.035223386 | U97: 6.035223386 | V97: 6.035223386 | W97: 6.035223386 | Y97: =$E$246 -> Transport-International | Z97: =$E$324 -> Shipping-International | AA97: Direct
C98: =Model!G7041 -> Em.GHG.LVEref. | E98: =Model!$F$441 -> Light Duty Vehicles Electric Refuelling Infrastructure | F98: =+SUMIFS(Em.GHG.LVEref., Prd., F$1) -> 0 | G98: 0 | H98: 0 | I98: 0 | J98: 0 | K98: 0 | L98: 0 | M98: 0 | N98: 0 | O98: 0 | P98: 0 | Q98: 0 | R98: 0 | S98: 0 | T98: 0 | U98: 0 | V98: 0 | W98: 0 | Y98: =$E$245 -> Transport-Domestic | Z98: =$E$362 -> Transport Refuelling | AA98: Direct
C99: =Model!G7042 -> Em.GHG.hgvAEref. | E99: =Model!$F$444 -> HGV _Articulated Electric Refuelling Infrastructure | F99: =+SUMIFS(Em.GHG.hgvAEref., Prd., F$1) -> 0 | G99: 0 | H99: 0 | I99: 0 | J99: 0 | K99: 0 | L99: 0 | M99: 0 | N99: 0 | O99: 0 | P99: 0 | Q99: 0 | R99: 0 | S99: 0 | T99: 0 | U99: 0 | V99: 0 | W99: 0 | Y99: Transport-Domestic | Z99: Transport Refuelling | AA99: Direct
C100: =Model!G7043 -> Em.GHG.busEref. | E100: =Model!$F$447 -> Bus Electric Refuelling Infrastructure | F100: =+SUMIFS(Em.GHG.busEref., Prd., F$1) -> 0 | G100: 0 | H100: 0 | I100: 0 | J100: 0 | K100: 0 | L100: 0 | M100: 0 | N100: 0 | O100: 0 | P100: 0 | Q100: 0 | R100: 0 | S100: 0 | T100: 0 | U100: 0 | V100: 0 | W100: 0 | Y100: Transport-Domestic | Z100: Transport Refuelling | AA100: Direct
C101: =Model!G7044 -> Em.GHG.LVH2ref. | E101: =Model!$F$442 -> Light Duty Vehicles Hydrogen Refuelling Infrastructure | F101: =+SUMIFS(Em.GHG.LVH2ref., Prd., F$1) -> 0 | G101: 0 | H101: 0 | I101: 0 | J101: 0 | K101: 0 | L101: 0 | M101: 0 | N101: 0 | O101: 0 | P101: 0 | Q101: 0 | R101: 0 | S101: 0 | T101: 0 | U101: 0 | V101: 0 | W101: 0 | Y101: Transport-Domestic | Z101: Transport Refuelling | AA101: Direct
C102: =Model!G7045 -> Em.GHG.hgvAH2ref. | E102: =Model!$F$445 -> HGV _Articulated Hydrogen Refuelling Infrastructure | F102: =+SUMIFS(Em.GHG.hgvAH2ref., Prd., F$1) -> 0 | G102: 0 | H102: 0 | I102: 0 | J102: 0 | K102: 0 | L102: 0 | M102: 0 | N102: 0 | O102: 0 | P102: 0 | Q102: 0 | R102: 0 | S102: 0 | T102: 0 | U102: 0 | V102: 0 | W102: 0 | Y102: Transport-Domestic | Z102: Transport Refuelling | AA102: Direct
C103: =Model!G7046 -> Em.GHG.busH2ref. | E103: =Model!$F$448 -> Bus Hydrogen Refuelling Infrastructure | F103: =+SUMIFS(Em.GHG.busH2ref., Prd., F$1) -> 0 | G103: 0 | H103: 0 | I103: 0 | J103: 0 | K103: 0 | L103: 0 | M103: 0 | N103: 0 | O103: 0 | P103: 0 | Q103: 0 | R103: 0 | S103: 0 | T103: 0 | U103: 0 | V103: 0 | W103: 0 | Y103: Transport-Domestic | Z103: Transport Refuelling | AA103: Direct
C104: =Model!G7047 -> Em.GHG.LVICref. | E104: =Model!$F$443 -> Light Duty Vehicles Internal Combustion Engine Refuelling Infrastructure | F104: =+SUMIFS(Em.GHG.LVICref., Prd., F$1) -> 0 | G104: 0 | H104: 0 | I104: 0 | J104: 0 | K104: 0 | L104: 0 | M104: 0 | N104: 0 | O104: 0 | P104: 0 | Q104: 0 | R104: 0 | S104: 0 | T104: 0 | U104: 0 | V104: 0 | W104: 0 | Y104: Transport-Domestic | Z104: Transport Refuelling | AA104: Direct
C105: =Model!G7048 -> Em.GHG.hgvAICref. | E105: =Model!$F$446 -> HGV _Articulated Internal Combustion Engine Refuelling Infrastructure | F105: =+SUMIFS(Em.GHG.hgvAICref., Prd., F$1) -> 0 | G105: 0 | H105: 0 | I105: 0 | J105: 0 | K105: 0 | L105: 0 | M105: 0 | N105: 0 | O105: 0 | P105: 0 | Q105: 0 | R105: 0 | S105: 0 | T105: 0 | U105: 0 | V105: 0 | W105: 0 | Y105: Transport-Domestic | Z105: Transport Refuelling | AA105: Direct
C106: =Model!G7049 -> Em.GHG.busICref. | E106: =Model!$F$449 -> Bus Internal Combustion Engine Refuelling Infrastructure | F106: =+SUMIFS(Em.GHG.busICref., Prd., F$1) -> 0 | G106: 0 | H106: 0 | I106: 0 | J106: 0 | K106: 0 | L106: 0 | M106: 0 | N106: 0 | O106: 0 | P106: 0 | Q106: 0 | R106: 0 | S106: 0 | T106: 0 | U106: 0 | V106: 0 | W106: 0 | Y106: Transport-Domestic | Z106: Transport Refuelling | AA106: Direct
C107: =Model!G8588 -> Em.GHG.aviDPHEV. | E107: =Model!$F$435 -> Aviation Domestic Plug-in Hybrid Electric Vehicle | F107: =+SUMIFS(Em.GHG.aviDPHEV., Prd., F$1) -> 0 | G107: 0 | H107: 0 | I107: 0 | J107: 0 | K107: 0 | L107: 0 | M107: 0 | N107: 0 | O107: 0 | P107: 0 | Q107: 0 | R107: 0 | S107: 0 | T107: 0 | U107: 0 | V107: 0 | W107: 0 | Y107: Transport-Domestic | Z107: =$E$323 -> Aviation-Domestic | AA107: Direct
C108: =Model!G8589 -> Em.GHG.aviDCon. | E108: =Model!$F$436 -> Aviation Domestic Conventional | F108: =+SUMIFS(Em.GHG.aviDCon., Prd., F$1) -> 2.525493795 | G108: 2.688742727 | H108: 2.581852381 | I108: 2.469901806 | J108: 2.437316356 | K108: 2.379024928 | L108: 2.344478185 | M108: 2.27563902 | N108: 2.314071525 | O108: 2.350480282 | P108: 2.386910104 | Q108: 2.425470969 | R108: 2.466549275 | S108: 2.508833375 | T108: 2.551121969 | U108: 2.593408273 | V108: 2.636366074 | W108: 2.680220802 | Y108: Transport-Domestic | Z108: =$E$323 -> Aviation-Domestic | AA108: Direct
C109: =Model!G8590 -> Em.GHG.aviIPHEV. | E109: =Model!$F$437 -> Aviation International Plug-in Hybrid Electric Vehicle | F109: =+SUMIFS(Em.GHG.aviIPHEV., Prd., F$1) -> 0 | G109: 0 | H109: 0 | I109: 0 | J109: 0 | K109: 0 | L109: 0 | M109: 0 | N109: 0 | O109: 0 | P109: 0 | Q109: 0 | R109: 0 | S109: 0 | T109: 0 | U109: 0 | V109: 0 | W109: 0 | Y109: =$E$246 -> Transport-International | Z109: =$E$325 -> Aviation-International | AA109: Direct
C110: =Model!G8591 -> Em.GHG.aviICon. | E110: =Model!$F$438 -> Aviation International Conventional | F110: =+SUMIFS(Em.GHG.aviICon., Prd., F$1) -> 34.11485263 | G110: 36.26105461 | H110: 37.57653917 | I110: 38.56631348 | J110: 39.92534696 | K110: 40.85134902 | L110: 42.9906234 | M110: 44.63312658 | N110: 45.38692051 | O110: 46.10102175 | P110: 46.81553616 | Q110: 47.57184765 | R110: 48.37753485 | S110: 49.20687183 | T110: 50.03629696 | U110: 50.86567715 | V110: 51.70822773 | W110: 52.56837014 | Y110: =$E$246 -> Transport-International | Z110: =$E$325 -> Aviation-International | AA110: Direct
C111: =Model!G9432 -> Em.GHG.LndWdl. | E111: =Model!$F$583 -> Woodland | F111: =+SUMIFS(Em.GHG.LndWdl., Prd., F$1) -> -19.7 | G111: -21.1 | H111: -18.49376756 | I111: -15.28754756 | J111: -13.38132134 | K111: -11.47509512 | L111: -9.968851116 | M111: -10.3626 | N111: -10.35636667 | O111: -10.35013333 | P111: -10.3439 | Q111: -10.33766667 | R111: -10.33766667 | S111: -10.33766667 | T111: -10.33766667 | U111: -10.33766667 | V111: -10.33766667 | W111: -10.33766667 | Y111: =$E$241 -> Agriculture & Land Use | Z111: =$E$340 -> Forestry | AA111: Direct
C112: =Model!G9433 -> Em.GHG.LndArbl. | E112: =Model!$F$585 -> Arable Land for Food | F112: =+SUMIFS(Em.GHG.LndArbl., Prd., F$1) -> 4.232834918 | G112: 4.265202914 | H112: 4.285715416 | I112: 4.306200142 | J112: 4.329589863 | K112: 4.352978486 | L112: 4.376459902 | M112: 4.399941221 | N112: 4.399941221 | O112: 4.399941221 | P112: 4.399941221 | Q112: 4.399941221 | R112: 4.399941221 | S112: 4.399941221 | T112: 4.399941221 | U112: 4.399941221 | V112: 4.399941221 | W112: 4.399941221 | Y112: Agriculture & Land Use | Z112: =$E$341 -> Land | AA112: Direct
C113: =Model!G9434 -> Em.GHG.LndLivG. | E113: =Model!$F$586 -> Livestock Grazing Land | F113: =+SUMIFS(Em.GHG.LndLivG., Prd., F$1) -> -4.931988183 | G113: -4.910155279 | H113: -4.888594122 | I113: -4.867064377 | J113: -4.848318047 | K113: -4.829572597 | L113: -4.810398916 | M113: -4.791225311 | N113: -4.791225311 | O113: -4.791225311 | P113: -4.791225311 | Q113: -4.791225311 | R113: -4.791225311 | S113: -4.791225311 | T113: -4.791225311 | U113: -4.791225311 | V113: -4.791225311 | W113: -4.791225311 | Y113: Agriculture & Land Use | Z113: =$E$341 -> Land | AA113: Direct
C114: =Model!G9435 -> Em.GHG.LndSet. | E114: =Model!$F$587 -> Settlement Land | F114: =+SUMIFS(Em.GHG.LndSet., Prd., F$1) -> 2.279758894 | G114: 2.284314092 | H114: 2.328038573 | I114: 2.37170224 | J114: 2.398940183 | K114: 2.426176846 | L114: 2.452884165 | M114: 2.479591373 | N114: 2.479591373 | O114: 2.479591373 | P114: 2.479591373 | Q114: 2.479591373 | R114: 2.479591373 | S114: 2.479591373 | T114: 2.479591373 | U114: 2.479591373 | V114: 2.479591373 | W114: 2.479591373 | Y114: Agriculture & Land Use | Z114: =$E$341 -> Land | AA114: Direct
C115: =Model!G9436 -> Em.GHG.LndOth. | E115: =Model!$F$588 -> Other Land | F115: =+SUMIFS(Em.GHG.LndOth., Prd., F$1) -> 0.2686891145 | G115: 0.2735789508 | H115: 0.2751207702 | I115: 0.2766604907 | J115: 0.2778091205 | K115: 0.2789576964 | L115: 0.2798234524 | M115: 0.2806892048 | N115: 0.2806892048 | O115: 0.2806892048 | P115: 0.2806892048 | Q115: 0.2806892048 | R115: 0.2806892048 | S115: 0.2806892048 | T115: 0.2806892048 | U115: 0.2806892048 | V115: 0.2806892048 | W115: 0.2806892048 | Y115: Agriculture & Land Use | Z115: =$E$341 -> Land | AA115: Direct
C116: =Model!G9437 -> Em.GHG.MnrMng. | E116: =Model!$F$595 -> Manure Management | F116: =+SUMIFS(Em.GHG.MnrMng., Prd., F$1) -> 3.529339768 | G116: 3.478920628 | H116: 3.428501489 | I116: 3.378082349 | J116: 3.32766321 | K116: 3.27724407 | L116: 3.22682493 | M116: 3.176405791 | N116: 3.176405791 | O116: 3.176405791 | P116: 3.176405791 | Q116: 3.176405791 | R116: 3.176405791 | S116: 3.176405791 | T116: 3.176405791 | U116: 3.176405791 | V116: 3.176405791 | W116: 3.176405791 | Y116: Agriculture & Land Use | Z116: =$E$342 -> Agriculture & Livestock | AA116: Direct
C117: =Model!G9438 -> Em.GHG.EntFrm. | E117: =Model!$F$596 -> Enteric Fermentation | F117: =+SUMIFS(Em.GHG.EntFrm., Prd., F$1) -> 24.25527503 | G117: 24.25527503 | H117: 24.25527503 | I117: 24.25527503 | J117: 24.25527503 | K117: 24.25527503 | L117: 24.25527503 | M117: 24.25527503 | N117: 24.25527503 | O117: 24.25527503 | P117: 24.25527503 | Q117: 24.25527503 | R117: 24.25527503 | S117: 24.25527503 | T117: 24.25527503 | U117: 24.25527503 | V117: 24.25527503 | W117: 24.25527503 | Y117: Agriculture & Land Use | Z117: =$E$342 -> Agriculture & Livestock | AA117: Direct
C118: =Model!G9439 -> Em.GHG.SoilMng. | E118: =Model!$F$597 -> Soil Management | F118: =+SUMIFS(Em.GHG.SoilMng., Prd., F$1) -> 14.44955175 | G118: 14.44955175 | H118: 14.44955175 | I118: 14.44955175 | J118: 14.44955175 | K118: 14.44955175 | L118: 14.44955175 | M118: 14.44955175 | N118: 14.44955175 | O118: 14.44955175 | P118: 14.44955175 | Q118: 14.44955175 | R118: 14.44955175 | S118: 14.44955175 | T118: 14.44955175 | U118: 14.44955175 | V118: 14.44955175 | W118: 14.44955175 | Y118: Agriculture & Land Use | Z118: =$E$342 -> Agriculture & Livestock | AA118: Direct
C119: =Model!G9440 -> Em.GHG.AgrFU. | E119: =Model!$F$599 -> Agricultural Fuel Use | F119: =+SUMIFS(Em.GHG.AgrFU., Prd., F$1) -> 1.545358219 | G119: 1.545358219 | H119: 1.545493491 | I119: 1.545628763 | J119: 1.545764035 | K119: 1.545899308 | L119: 1.54603458 | M119: 1.546169852 | N119: 1.546169852 | O119: 1.546169852 | P119: 1.546169852 | Q119: 1.546169852 | R119: 1.546169852 | S119: 1.546169852 | T119: 1.546169852 | U119: 1.546169852 | V119: 1.546169852 | W119: 1.546169852 | Y119: Agriculture & Land Use | Z119: =$E$342 -> Agriculture & Livestock | AA119: Direct
C120: =Model!G9441 -> Em.GHG.LndWdl.rBiS. | E120: =Model!$F$583 & Model!$F$737 -> Woodland Dry Waste | F120: =+SUMIFS(Em.GHG.LndWdl.rBiS., Prd., F$1) -> 0.008715294576 | G120: 0.008742707432 | H120: 0.008731991782 | I120: 0.008721280113 | J120: 0.008719288726 | K120: 0.008717297339 | L120: 0.00872028442 | M120: 0.008723269225 | N120: 0.008721275563 | O120: 0.008719281901 | P120: 0.008717288239 | Q120: 0.008715294576 | R120: 0.008715294576 | S120: 0.008715294576 | T120: 0.008715294576 | U120: 0.008715294576 | V120: 0.008715294576 | W120: 0.008715294576 | Y120: Agriculture & Land Use | Z120: =$E$341 -> Land | AA120: Direct
C121: =Model!G9442 -> Em.GHG.LndArbl.rBiS. | E121: =Model!$F$585 & Model!$F$737 -> Arable Land for Food Dry Waste | F121: =+SUMIFS(Em.GHG.LndArbl.rBiS., Prd., F$1) -> 0.0050070636 | G121: 0.005045352032 | H121: 0.00506961648 | I121: 0.005093848071 | J121: 0.005121516012 | K121: 0.005149182651 | L121: 0.005176959059 | M121: 0.00520473535 | N121: 0.00520473535 | O121: 0.00520473535 | P121: 0.00520473535 | Q121: 0.00520473535 | R121: 0.00520473535 | S121: 0.00520473535 | T121: 0.00520473535 | U121: 0.00520473535 | V121: 0.00520473535 | W121: 0.00520473535 | Y121: Agriculture & Land Use | Z121: =$E$341 -> Land | AA121: Direct
C122: =Model!G9443 -> Em.GHG.LndBi.rBiS. | E122: =Model!$F$584 & Model!$F$736 -> Bioenergy LandBioenergy Solid | F122: =+SUMIFS(Em.GHG.LndBi.rBiS., Prd., F$1) -> 0.09865430387 | G122: 0.1021776719 | H122: 0.1057010399 | I122: 0.1092244079 | J122: 0.1127477759 | K122: 0.1162711438 | L122: 0.1197945118 | M122: 0.1233178798 | N122: 0.1233178798 | O122: 0.1233178798 | P122: 0.1233178798 | Q122: 0.1233178798 | R122: 0.1233178798 | S122: 0.1233178798 | T122: 0.1233178798 | U122: 0.1233178798 | V122: 0.1233178798 | W122: 0.1233178798 | Y122: Agriculture & Land Use | Z122: =$E$341 -> Land | AA122: Direct
C123: =Model!G9444 -> Em.GHG.MnrMng.rWstW. | E123: =Model!$F$595 & Model!$F$738 -> Manure Management Wet Waste | F123: =+SUMIFS(Em.GHG.MnrMng.rWstW., Prd., F$1) -> 0 | G123: 0.002682738279 | H123: 0.005365476559 | I123: 0.008048214838 | J123: 0.01073095312 | K123: 0.0134136914 | L123: 0.01609642968 | M123: 0.01877916796 | N123: 0.01877916796 | O123: 0.01877916796 | P123: 0.01877916796 | Q123: 0.01877916796 | R123: 0.01877916796 | S123: 0.01877916796 | T123: 0.01877916796 | U123: 0.01877916796 | V123: 0.01877916796 | W123: 0.01877916796 | Y123: Agriculture & Land Use | Z123: =$E$341 -> Land | AA123: Direct
C124: =Model!G10056 -> Em.GHG.bcBS. | E124: =Model!$F$607 -> Biomass Pelletisation Plant | F124: =+SUMIFS(Em.GHG.bcBS., Prd., F$1) -> 0.7160897673 | G124: 0.9851758126 | H124: 1.014890994 | I124: 0.9346073455 | J124: 0.6429403854 | K124: 0.4616684126 | L124: 0.399745365 | M124: 0.4059860161 | N124: 0.4076477421 | O124: 0.4085142467 | P124: 0.4051677256 | Q124: 0.4002032133 | R124: 0.3983659345 | S124: 0.3937376911 | T124: 0.3838734676 | U124: 0.3793252254 | V124: 0.3727690724 | W124: 0.3681684486 | Y124: =$E$239 -> Other Energy Supply | Z124: =$E$343 -> Bio-Conversion | AA124: Bioenergy Solid
C125: =Model!G10057 -> Em.GHG.bcLndFGC. | E125: =Model!$F$622 -> Landfill Gas Collection | F125: =+SUMIFS(Em.GHG.bcLndFGC., Prd., F$1) -> 0.0001300957694 | G125: 0.0001324772818 | H125: 0.0001721452555 | I125: 0.0002128279215 | J125: 0.0002564386012 | K125: 0.0003009905999 | L125: 0.0003465167054 | M125: 0.0003940237606 | N125: 0.0003940902821 | O125: 0.0003933101763 | P125: 0.0003898215327 | Q125: 0.0003847805054 | R125: 0.0003827584935 | S125: 0.0003780526222 | T125: 0.0003683056584 | U125: 0.0003636814707 | V125: 0.0003571647442 | W125: 0.000352794727 | Y125: =$E$239 -> Other Energy Supply | Z125: =$E$343 -> Bio-Conversion | AA125: Bioenergy Gas
C126: =Model!G10058 -> Em.GHG.bcAD. | E126: =Model!$F$614 -> Anaerobic Digestion Plant | F126: =+SUMIFS(Em.GHG.bcAD., Prd., F$1) -> 0 | G126: 0 | H126: 0 | I126: 0 | J126: 0 | K126: 0 | L126: 0 | M126: 0 | N126: 0 | O126: 0 | P126: 0 | Q126: 0 | R126: 0 | S126: 0 | T126: 0 | U126: 0 | V126: 0 | W126: 0 | Y126: =$E$239 -> Other Energy Supply | Z126: =$E$343 -> Bio-Conversion | AA126: Bioenergy Gas
C127: =Model!G10059 -> Em.GHG.bcBG. | E127: =Model!$F$609 -> Biomass Gasification Plant (BioSNG) | F127: =+SUMIFS(Em.GHG.bcBG., Prd., F$1) -> 0 | G127: 0 | H127: 0 | I127: 0 | J127: 0 | K127: 0 | L127: 0 | M127: 0 | N127: 0 | O127: 0 | P127: 0 | Q127: 0 | R127: 0 | S127: 0 | T127: 0 | U127: 0 | V127: 0 | W127: 0 | Y127: =$E$239 -> Other Energy Supply | Z127: =$E$343 -> Bio-Conversion | AA127: Bioenergy Gas
C128: =Model!G10060 -> Em.GHG.bcBL. | E128: =Model!$F$612 -> Biofuel Plant | F128: =+SUMIFS(Em.GHG.bcBL., Prd., F$1) -> -0.001862492057 | G128: -0.001996369099 | H128: -0.002113127043 | I128: -0.002228937366 | J128: -0.002830305771 | K128: -0.002988700409 | L128: -0.003146112873 | M128: -0.003302543164 | N128: -0.003302543164 | O128: -0.003302543164 | P128: -0.003302543164 | Q128: -0.003302543164 | R128: -0.003302543164 | S128: -0.003302543164 | T128: -0.003302543164 | U128: -0.003302543164 | V128: -0.003302543164 | W128: -0.003302543164 | Y128: =$E$239 -> Other Energy Supply | Z128: =$E$343 -> Bio-Conversion | AA128: Bioenergy Liquid
C129: =Model!G10061 -> Em.GHG.bcEfW. | E129: =Model!$F$618 -> Energy from Waste | F129: =+SUMIFS(Em.GHG.bcEfW., Prd., F$1) -> 0.9811353512 | G129: 1.013515876 | H129: 1.053011782 | I129: 1.093196187 | J129: 1.133924781 | K129: 1.175125164 | L129: 1.216752101 | M129: 1.258775999 | N129: 1.258604765 | O129: 1.258648295 | P129: 1.258682816 | Q129: 1.258711929 | R129: 1.258726677 | S129: 1.258745508 | T129: 1.258776467 | U129: 1.258791655 | V129: 1.258811401 | W129: 1.258824592 | Y129: =$E$237 -> Electricity Generation | Z129: =$E$352 -> Biomass & Waste | AA129: Electricity
C130: =Model!G10062 -> Em.GHG.bcBGccs. | E130: =Model!$F$610 -> Biomass Gasification Plant (BioSNG) with CCS | F130: =+SUMIFS(Em.GHG.bcBGccs., Prd., F$1) -> 0 | G130: 0 | H130: 0 | I130: 0 | J130: 0 | K130: 0 | L130: 0 | M130: 0 | N130: 0 | O130: 0 | P130: 0 | Q130: 0 | R130: 0 | S130: 0 | T130: 0 | U130: 0 | V130: 0 | W130: 0 | Y130: =$E$239 -> Other Energy Supply | Z130: =$E$343 -> Bio-Conversion | AA130: Bioenergy Gas
C131: =Model!G10063 -> Em.GHG.bcBLccs. | E131: =Model!$F$613 -> Biofuel Plant with CCS | F131: =+SUMIFS(Em.GHG.bcBLccs., Prd., F$1) -> 0 | G131: 0 | H131: 0 | I131: 0 | J131: 0 | K131: 0 | L131: 0 | M131: 0 | N131: 0 | O131: 0 | P131: 0 | Q131: 0 | R131: 0 | S131: 0 | T131: 0 | U131: 0 | V131: 0 | W131: 0 | Y131: =$E$239 -> Other Energy Supply | Z131: =$E$343 -> Bio-Conversion | AA131: Bioenergy Liquid
C132: =Model!G10064 -> Em.GHG.bcEfWccs. | E132: =Model!$F$619 -> Energy from Waste with CCS | F132: =+SUMIFS(Em.GHG.bcEfWccs., Prd., F$1) -> 0 | G132: 0 | H132: 0 | I132: 0 | J132: 0 | K132: 0 | L132: 0 | M132: 0 | N132: 0 | O132: 0 | P132: 0 | Q132: 0 | R132: 0 | S132: 0 | T132: 0 | U132: 0 | V132: 0 | W132: 0 | Y132: =$E$237 -> Electricity Generation | Z132: =$E$351 -> Biomass & Waste CCS | AA132: Electricity
C133: =Model!G10074 -> Em.GHG.bcLndFGRel. | E133: =Model!$F$623 -> Landfill Gas Release | F133: =+SUMIFS(Em.GHG.bcLndFGRel., Prd., F$1) -> 14.29651026 | G133: 10.70524159 | H133: 8.700142353 | I133: 7.544066909 | J133: 6.86654694 | K133: 6.464022706 | L133: 6.221394113 | M133: 6.072100186 | N133: 5.735110383 | O133: 5.816528101 | P133: 5.865110452 | Q133: 5.894393932 | R133: 5.912189629 | S133: 5.923082347 | T133: 5.929796638 | U133: 5.933966186 | V133: 5.936577166 | W133: 5.938228072 | Y133: =$E$240 -> Waste Management | Z133: =$E$344 -> Waste Management | AA133: Direct
C134: =Model!G10645 -> Em.GHG.ggrAirCap. | E134: =Model!$F$602 -> Direct Air Capture | F134: =+SUMIFS(Em.GHG.ggrAirCap., Prd., F$1) -> 0 | G134: 0 | H134: 0 | I134: 0 | J134: 0 | K134: 0 | L134: 0 | M134: 0 | N134: 0 | O134: 0 | P134: 0 | Q134: 0 | R134: 0 | S134: 0 | T134: 0 | U134: 0 | V134: 0 | W134: 0 | Y134: =$E$236 -> Dedicated GHG Removal | Z134: =$E$366 -> GGR | AA134: Direct
C135: =Model!G10646 -> Em.GHG.ggrEnhWth. | E135: =Model!$F$603 -> Enhanced Weathering | F135: =+SUMIFS(Em.GHG.ggrEnhWth., Prd., F$1) -> 0 | G135: 0 | H135: 0 | I135: 0 | J135: 0 | K135: 0 | L135: 0 | M135: 0 | N135: 0 | O135: 0 | P135: 0 | Q135: 0 | R135: 0 | S135: 0 | T135: 0 | U135: 0 | V135: 0 | W135: 0 | Y135: =$E$236 -> Dedicated GHG Removal | Z135: =$E$366 -> GGR | AA135: Direct
C136: =Model!G10868 -> Em.GHG.hpBccs. | E136: Hydrogen Production - Biomass Gasification with CCS | F136: =+SUMIFS(Em.GHG.hpBccs., Prd., F$1) -> 0 | G136: 0 | H136: 0 | I136: 0 | J136: 0 | K136: 0 | L136: 0 | M136: 0 | N136: 0 | O136: 0 | P136: 0 | Q136: 0 | R136: 0 | S136: 0 | T136: 0 | U136: 0 | V136: 0 | W136: 0 | Y136: =$E$238 -> Hydrogen Production | Z136: =$E$368 -> Hydrogen Production | AA136: Hydrogen Production
C137: =Model!G10869 -> Em.GHG.hpGccs. | E137: Hydrogen Production - Steam Methane Reformation with CCS | F137: =+SUMIFS(Em.GHG.hpGccs., Prd., F$1) -> 0 | G137: 0 | H137: 0 | I137: 0 | J137: 0 | K137: 0 | L137: 0 | M137: 0 | N137: 0 | O137: 0 | P137: 0 | Q137: 0 | R137: 0 | S137: 0 | T137: 0 | U137: 0 | V137: 0 | W137: 0 | Y137: =$E$238 -> Hydrogen Production | Z137: =$E$368 -> Hydrogen Production | AA137: Hydrogen Production
C138: =Model!G10870 -> Em.GHG.hpImp. | E138: Zero Carbon hydrogen imports | F138: =+SUMIFS(Em.GHG.hpImp., Prd., F$1) -> 0 | G138: 0 | H138: 0 | I138: 0 | J138: 0 | K138: 0 | L138: 0 | M138: 0 | N138: 0 | O138: 0 | P138: 0 | Q138: 0 | R138: 0 | S138: 0 | T138: 0 | U138: 0 | V138: 0 | W138: 0 | Y138: =$E$248 -> Imports | Z138: =$E$371 -> Imports | AA138: Imports
C139: =Model!G10871 -> Em.GHG.hpElc. | E139: Hydrogen Production - Electrolysis | F139: =+SUMIFS(Em.GHG.hpElc., Prd., F$1) -> 0 | G139: 0 | H139: 0 | I139: 0 | J139: 0 | K139: 0 | L139: 0 | M139: 0 | N139: 0 | O139: 0 | P139: 0 | Q139: 0 | R139: 0 | S139: 0 | T139: 0 | U139: 0 | V139: 0 | W139: 0 | Y139: =$E$238 -> Hydrogen Production | Z139: =$E$368 -> Hydrogen Production | AA139: Hydrogen Production
C140: =Model!G10872 -> Em.GHG.hpSsnStr. | E140: Seasonal Hydrogen Storage | F140: =+SUMIFS(Em.GHG.hpSsnStr., Prd., F$1) -> 0 | G140: 0 | H140: 0 | I140: 0 | J140: 0 | K140: 0 | L140: 0 | M140: 0 | N140: 0 | O140: 0 | P140: 0 | Q140: 0 | R140: 0 | S140: 0 | T140: 0 | U140: 0 | V140: 0 | W140: 0 | Y140: =$E$238 -> Hydrogen Production | Z140: =$E$368 -> Hydrogen Production | AA140: Hydrogen Production
C141: =Model!G12287 -> Em.GHG.eBccs. | E141: Electricity - Biomass CCS | F141: =+SUMIFS(Em.GHG.eBccs., Prd., F$1) -> 0 | G141: 0 | H141: 0 | I141: 0 | J141: 0 | K141: 0 | L141: 0 | M141: 0 | N141: 0 | O141: 0 | P141: 0 | Q141: 0 | R141: 0 | S141: 0 | T141: 0 | U141: 0 | V141: 0 | W141: 0 | Y141: =$E$237 -> Electricity Generation | Z141: =$E$351 -> Biomass & Waste CCS | AA141: Electricity
C142: =Model!G12288 -> Em.GHG.eNuc. | E142: Electricity - Nuclear | F142: =+SUMIFS(Em.GHG.eNuc., Prd., F$1) -> 0 | G142: 0 | H142: 0 | I142: 0 | J142: 0 | K142: 0 | L142: 0 | M142: 0 | N142: 0 | O142: 0 | P142: 0 | Q142: 0 | R142: 0 | S142: 0 | T142: 0 | U142: 0 | V142: 0 | W142: 0 | Y142: Electricity Generation | Z142: =$E$361 -> Electricity Other | AA142: Electricity
C143: =Model!G12289 -> Em.GHG.eHyd. | E143: Electricity - Hydro | F143: =+SUMIFS(Em.GHG.eHyd., Prd., F$1) -> 0 | G143: 0 | H143: 0 | I143: 0 | J143: 0 | K143: 0 | L143: 0 | M143: 0 | N143: 0 | O143: 0 | P143: 0 | Q143: 0 | R143: 0 | S143: 0 | T143: 0 | U143: 0 | V143: 0 | W143: 0 | Y143: Electricity Generation | Z143: Electricity Other | AA143: Electricity
C144: =Model!G12290 -> Em.GHG.eWons. | E144: Electricity - Wind (onshore) | F144: =+SUMIFS(Em.GHG.eWons., Prd., F$1) -> 0 | G144: 0 | H144: 0 | I144: 0 | J144: 0 | K144: 0 | L144: 0 | M144: 0 | N144: 0 | O144: 0 | P144: 0 | Q144: 0 | R144: 0 | S144: 0 | T144: 0 | U144: 0 | V144: 0 | W144: 0 | Y144: Electricity Generation | Z144: Electricity Other | AA144: Electricity
C145: =Model!G12291 -> Em.GHG.eWoff. | E145: Electricity - Wind (offshore) | F145: =+SUMIFS(Em.GHG.eWoff., Prd., F$1) -> 0 | G145: 0 | H145: 0 | I145: 0 | J145: 0 | K145: 0 | L145: 0 | M145: 0 | N145: 0 | O145: 0 | P145: 0 | Q145: 0 | R145: 0 | S145: 0 | T145: 0 | U145: 0 | V145: 0 | W145: 0 | Y145: Electricity Generation | Z145: Electricity Other | AA145: Electricity
C146: =Model!G12292 -> Em.GHG.eSol. | E146: Electricity - Solar PV | F146: =+SUMIFS(Em.GHG.eSol., Prd., F$1) -> 0 | G146: 0 | H146: 0 | I146: 0 | J146: 0 | K146: 0 | L146: 0 | M146: 0 | N146: 0 | O146: 0 | P146: 0 | Q146: 0 | R146: 0 | S146: 0 | T146: 0 | U146: 0 | V146: 0 | W146: 0 | Y146: Electricity Generation | Z146: Electricity Other | AA146: Electricity
C147: =Model!G12293 -> Em.GHG.eTidS. | E147: Electricity - Tidal Stream | F147: =+SUMIFS(Em.GHG.eTidS., Prd., F$1) -> 0 | G147: 0 | H147: 0 | I147: 0 | J147: 0 | K147: 0 | L147: 0 | M147: 0 | N147: 0 | O147: 0 | P147: 0 | Q147: 0 | R147: 0 | S147: 0 | T147: 0 | U147: 0 | V147: 0 | W147: 0 | Y147: Electricity Generation | Z147: Electricity Other | AA147: Electricity
C148: =Model!G12294 -> Em.GHG.eTidR. | E148: Electricity - Tidal Range | F148: =+SUMIFS(Em.GHG.eTidR., Prd., F$1) -> 0 | G148: 0 | H148: 0 | I148: 0 | J148: 0 | K148: 0 | L148: 0 | M148: 0 | N148: 0 | O148: 0 | P148: 0 | Q148: 0 | R148: 0 | S148: 0 | T148: 0 | U148: 0 | V148: 0 | W148: 0 | Y148: Electricity Generation | Z148: Electricity Other | AA148: Electricity
C149: =Model!G12295 -> Em.GHG.eWav. | E149: Electricity - Wave | F149: =+SUMIFS(Em.GHG.eWav., Prd., F$1) -> 0 | G149: 0 | H149: 0 | I149: 0 | J149: 0 | K149: 0 | L149: 0 | M149: 0 | N149: 0 | O149: 0 | P149: 0 | Q149: 0 | R149: 0 | S149: 0 | T149: 0 | U149: 0 | V149: 0 | W149: 0 | Y149: Electricity Generation | Z149: Electricity Other | AA149: Electricity
C150: =Model!G12296 -> Em.GHG.eBio. | E150: Electricity - Biomass | F150: =+SUMIFS(Em.GHG.eBio., Prd., F$1) -> 0.5684867405 | G150: 0.9691908931 | H150: 0.9975714574 | I150: 0.8609060755 | J150: 0.3962485936 | K150: 0.1044412223 | L150: 0 | M150: 0 | N150: 0 | O150: 0 | P150: 0 | Q150: 0 | R150: 0 | S150: 0 | T150: 0 | U150: 0 | V150: 0 | W150: 0 | Y150: Electricity Generation | Z150: =$E$352 -> Biomass & Waste | AA150: Electricity
C151: =Model!G12297 -> Em.GHG.eGccs. | E151: Electricity - Gas CCS | F151: =+SUMIFS(Em.GHG.eGccs., Prd., F$1) -> 0 | G151: 0 | H151: 0 | I151: 0 | J151: 0 | K151: 0 | L151: 0 | M151: 0 | N151: 0 | O151: 0 | P151: 0 | Q151: 0 | R151: 0 | S151: 0 | T151: 0 | U151: 0 | V151: 0 | W151: 0 | Y151: Electricity Generation | Z151: =$E$353 -> Gas CCS | AA151: Electricity
C152: =Model!G12298 -> Em.GHG.eCoal. | E152: Electricity - Coal Unabated | F152: =+SUMIFS(Em.GHG.eCoal., Prd., F$1) -> 69.55974929 | G152: 11.99673911 | H152: 0 | I152: 0 | J152: 0 | K152: 0 | L152: 0 | M152: 0 | N152: 0 | O152: 0 | P152: 0 | Q152: 0 | R152: 0 | S152: 0 | T152: 0 | U152: 0 | V152: 0 | W152: 0 | Y152: Electricity Generation | Z152: =$E$355 -> Coal | AA152: Electricity
C153: =Model!G12299 -> Em.GHG.eGas. | E153: Electricity - Gas Unabated (CCGT) | F153: =+SUMIFS(Em.GHG.eGas., Prd., F$1) -> 43.96731074 | G153: 44.23885406 | H153: 35.63472061 | I153: 37.63723118 | J153: 74.79413583 | K153: 102.5085922 | L153: 115.4374529 | M153: 128.6026994 | N153: 130.0813792 | O153: 131.5200475 | P153: 132.2658336 | Q153: 133.1119856 | R153: 134.1620788 | S153: 135.1099629 | T153: 135.8151214 | U153: 136.7726524 | V153: 137.6458979 | W153: 138.5852122 | Y153: Electricity Generation | Z153: =$E$354 -> Gas | AA153: Electricity
C154: =Model!G12300 -> Em.GHG.eGasPk. | E154: Electricity - Gas Unabated Peaking plant (OCGT) | F154: =+SUMIFS(Em.GHG.eGasPk., Prd., F$1) -> 0 | G154: 0 | H154: 2.574160392 | I154: 5.794474247 | J154: 5.061568725 | K154: 4.604811674 | L154: 4.206337354 | M154: 4.112129954 | N154: 4.27182307 | O154: 4.327691478 | P154: 4.575717982 | Q154: 4.600056429 | R154: 4.65375898 | S154: 4.68587328 | T154: 4.674539516 | U154: 4.707393973 | V154: 4.72211925 | W154: 4.73805504 | Y154: Electricity Generation | Z154: =$E$354 -> Gas | AA154: Electricity
C155: =Model!G12301 -> Em.GHG.eInt. | E155: Electricity - Interconnectors | F155: =+SUMIFS(Em.GHG.eInt., Prd., F$1) -> 0 | G155: 0 | H155: 0 | I155: 0 | J155: 0 | K155: 0 | L155: 0 | M155: 0 | N155: 0 | O155: 0 | P155: 0 | Q155: 0 | R155: 0 | S155: 0 | T155: 0 | U155: 0 | V155: 0 | W155: 0 | Y155: =$E$248 -> Imports | Z155: =$E$371 -> Imports | AA155: Imports
C156: =Model!G12302 -> Em.GHG.eSsnStr. | E156: Electricity - Seasonal Storage | F156: =+SUMIFS(Em.GHG.eSsnStr., Prd., F$1) -> 0 | G156: 0 | H156: 0 | I156: 0 | J156: 0 | K156: 0 | L156: 0 | M156: 0 | N156: 0 | O156: 0 | P156: 0 | Q156: 0 | R156: 0 | S156: 0 | T156: 0 | U156: 0 | V156: 0 | W156: 0 | Y156: =$E$237 -> Electricity Generation | Z156: =$E$361 -> Electricity Other | AA156: Electricity
C157: =Model!G12303 -> Em.GHG.eDShiftVtG. | E157: Electricity - Demand Shift Vehicle to Grid | F157: =+SUMIFS(Em.GHG.eDShiftVtG., Prd., F$1) -> 0 | G157: 0 | H157: 0 | I157: 0 | J157: 0 | K157: 0 | L157: 0 | M157: 0 | N157: 0 | O157: 0 | P157: 0 | Q157: 0 | R157: 0 | S157: 0 | T157: 0 | U157: 0 | V157: 0 | W157: 0 | Y157: Electricity Generation | Z157: Electricity Other | AA157: Electricity
C158: =Model!G12304 -> Em.GHG.eDShiftBat. | E158: Electricity - Demand Shift Battery | F158: =+SUMIFS(Em.GHG.eDShiftBat., Prd., F$1) -> 0 | G158: 0 | H158: 0 | I158: 0 | J158: 0 | K158: 0 | L158: 0 | M158: 0 | N158: 0 | O158: 0 | P158: 0 | Q158: 0 | R158: 0 | S158: 0 | T158: 0 | U158: 0 | V158: 0 | W158: 0 | Y158: Electricity Generation | Z158: Electricity Other | AA158: Electricity
C159: =Model!G12305 -> Em.GHG.eDst. | E159: Electricity - Distribution | F159: =+SUMIFS(Em.GHG.eDst., Prd., F$1) -> 0 | G159: 0 | H159: 0 | I159: 0 | J159: 0 | K159: 0 | L159: 0 | M159: 0 | N159: 0 | O159: 0 | P159: 0 | Q159: 0 | R159: 0 | S159: 0 | T159: 0 | U159: 0 | V159: 0 | W159: 0 | Y159: Electricity Generation | Z159: Electricity Other | AA159: Electricity
C160: =Model!G12306 -> Em.GHG.eTms. | E160: Electricity - Transmission | F160: =+SUMIFS(Em.GHG.eTms., Prd., F$1) -> 0 | G160: 0 | H160: 0 | I160: 0 | J160: 0 | K160: 0 | L160: 0 | M160: 0 | N160: 0 | O160: 0 | P160: 0 | Q160: 0 | R160: 0 | S160: 0 | T160: 0 | U160: 0 | V160: 0 | W160: 0 | Y160: Electricity Generation | Z160: Electricity Other | AA160: Electricity
C161: =Model!G12307 -> Em.GHG.eSPILL. | E161: Electricity - Energy Spilt | F161: =+SUMIFS(Em.GHG.eSPILL., Prd., F$1) -> 0 | G161: 0 | H161: 0 | I161: 0 | J161: 0 | K161: 0 | L161: 0 | M161: 0 | N161: 0 | O161: 0 | P161: 0 | Q161: 0 | R161: 0 | S161: 0 | T161: 0 | U161: 0 | V161: 0 | W161: 0 | Y161: Electricity Generation | Z161: Electricity Other | AA161: Electricity
C162: =Model!G13835 -> Em.GHG.inSTLElc. | E162: Elec Process - Industry Ferrous and non-ferrous metal production | F162: =+SUMIFS(Em.GHG.inSTLElc., Prd., F$1) -> 0 | G162: 0 | H162: 0 | I162: 0 | J162: 0 | K162: 0 | L162: 0 | M162: 0 | N162: 0 | O162: 0 | P162: 0 | Q162: 0 | R162: 0 | S162: 0 | T162: 0 | U162: 0 | V162: 0 | W162: 0 | Y162: =$E$242 -> Industry | Z162: =$E$331 -> Ferrous & non-ferrous metals | AA162: Direct
